Workbook

Sheet Analitico (hidden)
A1: 104658
A2: 104658 | B2: SINAPI | C2: 88316 | D2: 1.279
A3: 104658 | B3: SINAPI | C3: 88309 | D3: 0.639
A4: 104658 | B4: SINAPI-I | C4: 36178 | D4: 6.4375
A5: 104658 | B5: SINAPI-I | C5: 34357 | D5: 0.24
A6: 104658 | B6: SINAPI-I | C6: 34353 | D6: 8.62
A7: 105002
A8: 105002 | B8: SINAPI | C8: 104658 | D8: 0.48
A9: 105002 | B9: SINAPI | C9: 94965 | D9: 0.6650246
A10: 105002 | B10: SINAPI | C10: 88316 | D10: 7.208
A11: 105002 | B11: SINAPI | C11: 88309 | D11: 3.604
A12: 105002 | B12: SINAPI-I | C12: 5068 | D12: 0.036696
A13: 105002 | B13: SINAPI-I | C13: 4718 | D13: 0.027
A14: 105002 | B14: SINAPI-I | C14: 4509 | D14: 7.48
A15: 105004
A16: 105004 | B16: SINAPI | C16: 104658 | D16: 0.0576577
A17: 105004 | B17: SINAPI | C17: 94965 | D17: 0.1231527
A18: 105004 | B18: SINAPI | C18: 88316 | D18: 1.261
A19: 105004 | B19: SINAPI | C19: 88309 | D19: 0.63
A20: 105004 | B20: SINAPI-I | C20: 5068 | D20: 0.0044079
A21: 105004 | B21: SINAPI-I | C21: 4718 | D21: 0.005
A22: 105004 | B22: SINAPI-I | C22: 4509 | D22: 0.7399399
A23: 105003
A24: 105003 | B24: SINAPI | C24: 104658 | D24: 0.48
A25: 105003 | B25: SINAPI | C25: 94965 | D25: 0.6650246
A26: 105003 | B26: SINAPI | C26: 90965 | D26: 5.2258834
A27: 105003 | B27: SINAPI | C27: 90964 | D27: 0.9539216
A28: 105003 | B28: SINAPI | C28: 88316 | D28: 17.011
A29: 105003 | B29: SINAPI | C29: 88309 | D29: 2.325195
A30: 105003 | B30: SINAPI | C30: 5952 | D30: 5.2258834
A31: 105003 | B31: SINAPI | C31: 5795 | D31: 0.9539216
A32: 105003 | B32: SINAPI-I | C32: 5068 | D32: 0.036696
A33: 105003 | B33: SINAPI-I | C33: 4718 | D33: 0.1998
A34: 105003 | B34: SINAPI-I | C34: 4509 | D34: 7.48
A35: 105005
A36: 105005 | B36: SINAPI | C36: 104658 | D36: 0.0576577
A37: 105005 | B37: SINAPI | C37: 94965 | D37: 0.1231527
A38: 105005 | B38: SINAPI | C38: 90965 | D38: 0.9677562
A39: 105005 | B39: SINAPI | C39: 90964 | D39: 0.1766521
A40: 105005 | B40: SINAPI | C40: 88316 | D40: 3.076
A41: 105005 | B41: SINAPI | C41: 88309 | D41: 0.3935917
A42: 105005 | B42: SINAPI | C42: 5952 | D42: 0.9677562
A43: 105005 | B43: SINAPI | C43: 5795 | D43: 0.1766521
A44: 105005 | B44: SINAPI-I | C44: 5068 | D44: 0.0044079
A45: 105005 | B45: SINAPI-I | C45: 4718 | D45: 0.037
A46: 105005 | B46: SINAPI-I | C46: 4509 | D46: 0.7399399
A47: 105006
A48: 105006 | B48: SINAPI | C48: 88316 | D48: 2.189
A49: 105006 | B49: SINAPI | C49: 88309 | D49: 1.094
A50: 105006 | B50: SINAPI | C50: 87307 | D50: 0.131886
A51: 105006 | B51: SINAPI | C51: 87286 | D51: 0.0259413
A52: 105006 | B52: SINAPI-I | C52: 45087 | D52: 1
A53: 104999
A54: 104999 | B54: SINAPI | C54: 90965 | D54: 2.961334
A55: 104999 | B55: SINAPI | C55: 90964 | D55: 0.5405556
A56: 104999 | B56: SINAPI | C56: 88316 | D56: 7.4
A57: 104999 | B57: SINAPI | C57: 88309 | D57: 0.1981105
A58: 104999 | B58: SINAPI | C58: 87307 | D58: 0.131886
A59: 104999 | B59: SINAPI | C59: 87286 | D59: 0.0259413
A60: 104999 | B60: SINAPI-I | C60: 45087 | D60: 1
A61: 104999 | B61: SINAPI | C61: 5952 | D61: 2.961334
A62: 104999 | B62: SINAPI | C62: 5795 | D62: 0.5405556
A63: 105000
A64: 105000 | B64: SINAPI | C64: 104658 | D64: 0.5
A65: 105000 | B65: SINAPI | C65: 104626 | D65: 0.12
A66: 105000 | B66: SINAPI | C66: 99837 | D66: 2
A67: 105000 | B67: SINAPI | C67: 96624 | D67: 0.12
A68: 105001
A69: 105001 | B69: SINAPI | C69: 104658 | D69: 0.525
A70: 105001 | B70: SINAPI | C70: 104626 | D70: 0.15
A71: 105001 | B71: SINAPI | C71: 99837 | D71: 2
A72: 105001 | B72: SINAPI | C72: 96624 | D72: 0.15
A73: 89306
A74: 89306 | B74: SINAPI | C74: 88316 | D74: 0.6
A75: 89306 | B75: SINAPI | C75: 88309 | D75: 1.2
A76: 89306 | B76: SINAPI | C76: 87286 | D76: 0.0192
A77: 89306 | B77: SINAPI-I | C77: 34788 | D77: 1.53
A78: 89306 | B78: SINAPI-I | C78: 34649 | D78: 1.27
A79: 89306 | B79: SINAPI-I | C79: 34586 | D79: 15.29
A80: 89307
A81: 89307 | B81: SINAPI | C81: 88316 | D81: 0.6
A82: 89307 | B82: SINAPI | C82: 88309 | D82: 1.2
A83: 89307 | B83: SINAPI | C83: 87367 | D83: 0.0192
A84: 89307 | B84: SINAPI-I | C84: 34788 | D84: 1.53
A85: 89307 | B85: SINAPI-I | C85: 34649 | D85: 1.27
A86: 89307 | B86: SINAPI-I | C86: 34586 | D86: 15.29
A87: 89290
A88: 89290 | B88: SINAPI | C88: 88316 | D88: 0.43
A89: 89290 | B89: SINAPI | C89: 88309 | D89: 0.86
A90: 89290 | B90: SINAPI | C90: 87286 | D90: 0.0143
A91: 89290 | B91: SINAPI-I | C91: 34788 | D91: 1.53
A92: 89290 | B92: SINAPI-I | C92: 34649 | D92: 1.27
A93: 89290 | B93: SINAPI-I | C93: 34586 | D93: 15.29
A94: 89291
A95: 89291 | B95: SINAPI | C95: 88316 | D95: 0.43
A96: 89291 | B96: SINAPI | C96: 88309 | D96: 0.86
A97: 89291 | B97: SINAPI | C97: 87367 | D97: 0.0143
A98: 89291 | B98: SINAPI-I | C98: 34788 | D98: 1.53
A99: 89291 | B99: SINAPI-I | C99: 34649 | D99: 1.27
A100: 89291 | B100: SINAPI-I | C100: 34586 | D100: 15.29
A101: 89298
A102: 89298 | B102: SINAPI | C102: 88316 | D102: 0.44
A103: 89298 | B103: SINAPI | C103: 88309 | D103: 0.88
A104: 89298 | B104: SINAPI | C104: 87286 | D104: 0.0172
A105: 89298 | B105: SINAPI-I | C105: 38603 | D105: 1.44
A106: 89298 | B106: SINAPI-I | C106: 34781 | D106: 1.44
A107: 89298 | B107: SINAPI-I | C107: 34655 | D107: 0.96
A108: 89298 | B108: SINAPI-I | C108: 34588 | D108: 10.06
A109: 89299
A110: 89299 | B110: SINAPI | C110: 88316 | D110: 0.44
A111: 89299 | B111: SINAPI | C111: 88309 | D111: 0.88
A112: 89299 | B112: SINAPI | C112: 87367 | D112: 0.0172
A113: 89299 | B113: SINAPI-I | C113: 38603 | D113: 1.44
A114: 89299 | B114: SINAPI-I | C114: 34781 | D114: 1.44
A115: 89299 | B115: SINAPI-I | C115: 34655 | D115: 0.96
A116: 89299 | B116: SINAPI-I | C116: 34588 | D116: 10.06
A117: 89282
A118: 89282 | B118: SINAPI | C118: 88316 | D118: 0.33
A119: 89282 | B119: SINAPI | C119: 88309 | D119: 0.65
A120: 89282 | B120: SINAPI | C120: 87286 | D120: 0.0129
A121: 89282 | B121: SINAPI-I | C121: 38603 | D121: 1.44
A122: 89282 | B122: SINAPI-I | C122: 34781 | D122: 1.44
A123: 89282 | B123: SINAPI-I | C123: 34655 | D123: 0.96
A124: 89282 | B124: SINAPI-I | C124: 34588 | D124: 10.06
A125: 89283
A126: 89283 | B126: SINAPI | C126: 88316 | D126: 0.33
A127: 89283 | B127: SINAPI | C127: 88309 | D127: 0.65
A128: 89283 | B128: SINAPI | C128: 87367 | D128: 0.0129
A129: 89283 | B129: SINAPI-I | C129: 38603 | D129: 1.44
A130: 89283 | B130: SINAPI-I | C130: 34781 | D130: 1.44
A131: 89283 | B131: SINAPI-I | C131: 34655 | D131: 0.96
A132: 89283 | B132: SINAPI-I | C132: 34588 | D132: 10.06
A133: 89480
A134: 89480 | B134: SINAPI | C134: 88626 | D134: 0.0187
A135: 89480 | B135: SINAPI | C135: 88316 | D135: 1.13
A136: 89480 | B136: SINAPI | C136: 88309 | D136: 1.13
A137: 89480 | B137: SINAPI-I | C137: 38599 | D137: 1.27
A138: 89480 | B138: SINAPI-I | C138: 38592 | D138: 1.52
A139: 89480 | B139: SINAPI-I | C139: 34564 | D139: 15.19
A140: 89464
A141: 89464 | B141: SINAPI | C141: 88626 | D141: 0.0125
A142: 89464 | B142: SINAPI | C142: 88316 | D142: 0.8
A143: 89464 | B143: SINAPI | C143: 88309 | D143: 0.8
A144: 89464 | B144: SINAPI-I | C144: 38599 | D144: 1.27
A145: 89464 | B145: SINAPI-I | C145: 38592 | D145: 1.52
A146: 89464 | B146: SINAPI-I | C146: 34564 | D146: 15.19
A147: 89478
A148: 89478 | B148: SINAPI | C148: 88715 | D148: 0.0187
A149: 89478 | B149: SINAPI | C149: 88316 | D149: 1.05
A150: 89478 | B150: SINAPI | C150: 88309 | D150: 1.05
A151: 89478 | B151: SINAPI-I | C151: 38596 | D151: 1.29
A152: 89478 | B152: SINAPI-I | C152: 38590 | D152: 15.51
A153: 89478 | B153: SINAPI-I | C153: 38588 | D153: 1.55
A154: 89462
A155: 89462 | B155: SINAPI | C155: 88715 | D155: 0.0125
A156: 89462 | B156: SINAPI | C156: 88316 | D156: 0.74
A157: 89462 | B157: SINAPI | C157: 88309 | D157: 0.74
A158: 89462 | B158: SINAPI-I | C158: 38596 | D158: 1.29
A159: 89462 | B159: SINAPI-I | C159: 38590 | D159: 15.51
A160: 89462 | B160: SINAPI-I | C160: 38588 | D160: 1.55
A161: 104444
A162: 104444 | B162: SINAPI | C162: 88316 | D162: 1.08
A163: 104444 | B163: SINAPI | C163: 88309 | D163: 1.08
A164: 104444 | B164: SINAPI | C164: 87286 | D164: 0.0187
A165: 104444 | B165: SINAPI-I | C165: 44905 | D165: 1.28
A166: 104444 | B166: SINAPI-I | C166: 44904 | D166: 1.54
A167: 104444 | B167: SINAPI-I | C167: 34567 | D167: 15.37
A168: 104442
A169: 104442 | B169: SINAPI | C169: 88316 | D169: 0.76
A170: 104442 | B170: SINAPI | C170: 88309 | D170: 0.76
A171: 104442 | B171: SINAPI | C171: 87286 | D171: 0.0125
A172: 104442 | B172: SINAPI-I | C172: 44905 | D172: 1.28
A173: 104442 | B173: SINAPI-I | C173: 44904 | D173: 1.54
A174: 104442 | B174: SINAPI-I | C174: 34567 | D174: 15.37
A175: 89472
A176: 89472 | B176: SINAPI | C176: 88626 | D176: 0.0168
A177: 89472 | B177: SINAPI | C177: 88316 | D177: 0.67
A178: 89472 | B178: SINAPI | C178: 88309 | D178: 0.67
A179: 89472 | B179: SINAPI-I | C179: 38600 | D179: 0.95
A180: 89472 | B180: SINAPI-I | C180: 38594 | D180: 1.43
A181: 89472 | B181: SINAPI-I | C181: 38593 | D181: 1.43
A182: 89472 | B182: SINAPI-I | C182: 34570 | D182: 9.99
A183: 89455
A184: 89455 | B184: SINAPI | C184: 88626 | D184: 0.0113
A185: 89455 | B185: SINAPI | C185: 88316 | D185: 0.48
A186: 89455 | B186: SINAPI | C186: 88309 | D186: 0.48
A187: 89455 | B187: SINAPI-I | C187: 38600 | D187: 0.95
A188: 89455 | B188: SINAPI-I | C188: 38594 | D188: 1.43
A189: 89455 | B189: SINAPI-I | C189: 38593 | D189: 1.43
A190: 89455 | B190: SINAPI-I | C190: 34570 | D190: 9.99
A191: 89470
A192: 89470 | B192: SINAPI | C192: 88715 | D192: 0.0168
A193: 89470 | B193: SINAPI | C193: 88316 | D193: 0.62
A194: 89470 | B194: SINAPI | C194: 88309 | D194: 0.62
A195: 89470 | B195: SINAPI-I | C195: 38597 | D195: 0.97
A196: 89470 | B196: SINAPI-I | C196: 38591 | D196: 1.46
A197: 89470 | B197: SINAPI-I | C197: 38589 | D197: 1.46
A198: 89470 | B198: SINAPI-I | C198: 25070 | D198: 10.204
A199: 89453
A200: 89453 | B200: SINAPI | C200: 88715 | D200: 0.0113
... 4300 more rows

Sheet Composições
B1: COMPOSIÇÕES | T1: Cores das células: | X1: =_xlfn.UNIQUE(_xlfn._xlws.FILTER(OFFSET(Banco!$B$5,1,0,1000000),OFFSET(Banco!$B$5,1,0,1000000)<>"")) -> Composição
V2: Fundo amarelo: células para preencher | X2: Cotação
X3: SINAPI-I
I4: CUSTO UNIT | J4: CUSTO UNIT | O4: %AS | P4: %AS | V4: Fundo azul: células para seleção de opções | X4: SINAPI
B5: =OFFSET(Composições!$A$1,MATCH(COUNTIF($H$1:$H5,"Composições"),Composições!$K:$K,0)-1,COLUMN(Banco!B$6)-1) -> Composição | C5: =OFFSET(Composições!$A$1,MATCH(COUNTIF($H$1:$H5,"Composições"),Composições!$K:$K,0)-1,COLUMN(Banco!C$6)-1) -> IUD20080 | D5: =IF(COUNTIF(OFFSET(Banco!$A$6,1,0,NCOMPOSICOES),$A5)>1,"CÓDIGO REPETIDO",OFFSET(Composições!$A$1,MATCH(COUNTIF($H$1:$H5,"Composições"),Composições!$K:$K,0)-1,COLUMN(Banco!D$6)-1)) -> Escavação manual em solo-prof. até 1,50 m | E5: =OFFSET(Composições!$A$1,MATCH(COUNTIF($H$1:$H5,"Composições"),Composições!$K:$K,0)-1,COLUMN(Banco!E$6)-1) -> M3 | F5: =OFFSET(Composições!$A$1,MATCH(COUNTIF($H$1:$H5,"Composições"),Composições!$K:$K,0)-1,COLUMN(Banco!F$6)-1) -> 40.26 | G5: =OFFSET(Composições!$A$1,MATCH(COUNTIF($H$1:$H5,"Composições"),Composições!$K:$K,0)-1,COLUMN(Banco!G$6)-1) -> 43.44 | H5: Composições
A7: =CONCATENATE($B7," ",$C7) -> Composição | B7: Composição | F7: =IF($L7>0,SUM(OFFSET(F7,1,0,$L7),0)) -> 0 | G7: =IF($L7>0,SUM(OFFSET(G7,1,0,$L7),0)) -> 0 | I7: =IF(ISERROR(F7),0,F7) -> 0 | J7: =IF(ISERROR(G7),0,G7) -> 0 | K7: =COUNTA($A$1:$A7)-1 -> 0 | L7: =IF(MAX(K:K)=K7,MATCH(9999999,$K:$K)+1,MATCH(K7+1,K:K,0))-ROW(L7)-2 -> 2 | M7: =IF(AND(OR(I7<>0,J7<>0),N7="Sim"),"F","") ->  | N7: Sim
D8: =IF(ISNUMBER($L8),OFFSET(Banco!$A$1,Composições!$L8-1,COLUMN(Composições!D8)-1),"") ->  | E8: =IF(ISNUMBER($L8),OFFSET(Banco!$A$1,Composições!$L8-1,COLUMN(Composições!E8)-1),"") ->  | F8: =ROUND($H8*ROUND(I8,2),2) -> 0 | G8: =ROUND($H8*ROUND(J8,2),2) -> 0 | I8: =IF(ISNUMBER($L8),VALUE(OFFSET(Banco!$A$1,Composições!$L8-1,COLUMN(Composições!I8)-4)),0) -> 0 | J8: =IF(ISNUMBER($L8),VALUE(OFFSET(Banco!$A$1,Composições!$L8-1,COLUMN(Composições!J8)-4)),0) -> 0 | K8: =COUNTA($A$1:$A8)-1 -> 0 | L8: =MATCH(CONCATENATE($B8," ",$C8),Banco!$A:$A,0) ->  | M8: =IF(OR(ISERROR($L8),$H8="",$H8=0),"",OFFSET(M$1,MATCH($K8,$K$1:$K8,0)-1,0)) ->  | O8: =IF(ISNUMBER($L8),VALUE(OFFSET(Banco!$A$1,Composições!$L8-1,COLUMN(Composições!O8)-6)),0) -> 0 | P8: =IF(ISNUMBER($L8),VALUE(OFFSET(Banco!$A$1,Composições!$L8-1,COLUMN(Composições!P8)-6)),0) -> 0
K9: =COUNTA($A$1:$A9)-1 -> 0 | M9: =IF(OFFSET($M$1,MATCH(OFFSET(K9,-1,0),$K$1:$K9,0)-1,0)="F","F","") -> 
B10: FONTE | C10: CÓDIGO | D10: DESCRIÇÃO | E10: UNIDADE | H10: COEFIC. | I10: DESONERADO | J10: NÃO DESONER. | M10: FILTRO | N10: IMPRIMIR | O10: DESONERADO | P10: NÃO DESONERADO
A11: =CONCATENATE($B11," ",$C11) -> Composição IUD20080 | B11: Composição | C11: IUD20080 | D11: Escavação manual em solo-prof. até 1,50 m | E11: M3 | F11: =IF($L11>0,SUM(OFFSET(F11,1,0,$L11),0)) -> 40.26 | G11: =IF($L11>0,SUM(OFFSET(G11,1,0,$L11),0)) -> 43.44 | I11: =IF(ISERROR(F11),0,F11) -> 40.26 | J11: =IF(ISERROR(G11),0,G11) -> 43.44 | K11: =COUNTA($A$1:$A11)-1 -> 1 | L11: =IF(MAX(K:K)=K11,MATCH(9999999,$K:$K)+1,MATCH(K11+1,K:K,0))-ROW(L11)-2 -> 1 | M11: =IF(AND(OR(I11<>0,J11<>0),N11="Sim"),"F","") -> F | N11: Sim
B12: SINAPI | C12: 88316 | D12: =IF(ISNUMBER($L12),OFFSET(Banco!$A$1,Composições!$L12-1,COLUMN(Composições!D12)-1),"") -> SERVENTE COM ENCARGOS COMPLEMENTARES | E12: =IF(ISNUMBER($L12),OFFSET(Banco!$A$1,Composições!$L12-1,COLUMN(Composições!E12)-1),"") -> H | F12: =ROUND($H12*ROUND(I12,2),2) -> 40.26 | G12: 43.44 | H12: 2 | I12: =IF(ISNUMBER($L12),VALUE(OFFSET(Banco!$A$1,Composições!$L12-1,COLUMN(Composições!I12)-4)),0) -> 20.13 | J12: =IF(ISNUMBER($L12),VALUE(OFFSET(Banco!$A$1,Composições!$L12-1,COLUMN(Composições!J12)-4)),0) -> 21.72 | K12: =COUNTA($A$1:$A12)-1 -> 1 | L12: =MATCH(CONCATENATE($B12," ",$C12),Banco!$A:$A,0) -> 13164 | M12: =IF(OR(ISERROR($L12),$H12="",$H12=0),"",OFFSET(M$1,MATCH($K12,$K$1:$K12,0)-1,0)) -> F | O12: =IF(ISNUMBER($L12),VALUE(OFFSET(Banco!$A$1,Composições!$L12-1,COLUMN(Composições!O12)-6)),0) -> 0 | P12: =IF(ISNUMBER($L12),VALUE(OFFSET(Banco!$A$1,Composições!$L12-1,COLUMN(Composições!P12)-6)),0) -> 0 | Q12: =ROUND(F12*O12,2) -> 0 | R12: 0
K13: =COUNTA($A$1:$A13)-1 -> 1 | M13: =IF(OFFSET($M$1,MATCH(OFFSET(K13,-1,0),$K$1:$K13,0)-1,0)="F","F","") -> F
A14: =CONCATENATE($B14," ",$C14) -> Composição IUS0001 | B14: Composição | C14: IUS0001 | D14: Placa de obra em chapa de aço galvanizado (REF 74209/001 descontinuado em 01/01/2020) | E14: M2 | F14: =IF($L14>0,SUM(OFFSET(F14,1,0,$L14),0)) -> 506.56 | G14: =IF($L14>0,SUM(OFFSET(G14,1,0,$L14),0)) -> 511.92 | I14: =IF(ISERROR(F14),0,F14) -> 506.56 | J14: =IF(ISERROR(G14),0,G14) -> 511.92 | K14: =COUNTA($A$1:$A14)-1 -> 2 | L14: =IF(MAX(K:K)=K14,MATCH(9999999,$K:$K)+1,MATCH(K14+1,K:K,0))-ROW(L14)-2 -> 7 | M14: =IF(AND(OR(I14<>0,J14<>0),N14="Sim"),"F","") -> F | N14: Sim
B15: SINAPI | C15: 88262 | D15: =IF(ISNUMBER($L15),OFFSET(Banco!$A$1,Composições!$L15-1,COLUMN(Composições!D15)-1),"") -> CARPINTEIRO DE FORMAS COM ENCARGOS COMPLEMENTARES | E15: =IF(ISNUMBER($L15),OFFSET(Banco!$A$1,Composições!$L15-1,COLUMN(Composições!E15)-1),"") -> H | F15: =ROUND($H15*ROUND(I15,2),2) -> 24.58 | G15: 26.69 | H15: 1 | I15: =IF(ISNUMBER($L15),VALUE(OFFSET(Banco!$A$1,Composições!$L15-1,COLUMN(Composições!I15)-4)),0) -> 24.58 | J15: =IF(ISNUMBER($L15),VALUE(OFFSET(Banco!$A$1,Composições!$L15-1,COLUMN(Composições!J15)-4)),0) -> 26.69 | K15: =COUNTA($A$1:$A15)-1 -> 2 | L15: =MATCH(CONCATENATE($B15," ",$C15),Banco!$A:$A,0) -> 12867 | M15: =IF(OR(ISERROR($L15),$H15="",$H15=0),"",OFFSET(M$1,MATCH($K15,$K$1:$K15,0)-1,0)) -> F | O15: =IF(ISNUMBER($L15),VALUE(OFFSET(Banco!$A$1,Composições!$L15-1,COLUMN(Composições!O15)-6)),0) -> 0 | P15: =IF(ISNUMBER($L15),VALUE(OFFSET(Banco!$A$1,Composições!$L15-1,COLUMN(Composições!P15)-6)),0) -> 0 | Q15: =ROUND(F15*O15,2) -> 0 | R15: 0
B16: SINAPI | C16: 88316 | D16: =IF(ISNUMBER($L16),OFFSET(Banco!$A$1,Composições!$L16-1,COLUMN(Composições!D16)-1),"") -> SERVENTE COM ENCARGOS COMPLEMENTARES | E16: =IF(ISNUMBER($L16),OFFSET(Banco!$A$1,Composições!$L16-1,COLUMN(Composições!E16)-1),"") -> H | F16: 40.26 | G16: 43.44 | H16: 2 | I16: =IF(ISNUMBER($L16),VALUE(OFFSET(Banco!$A$1,Composições!$L16-1,COLUMN(Composições!I16)-4)),0) -> 20.13 | J16: =IF(ISNUMBER($L16),VALUE(OFFSET(Banco!$A$1,Composições!$L16-1,COLUMN(Composições!J16)-4)),0) -> 21.72 | K16: =COUNTA($A$1:$A16)-1 -> 2 | L16: =MATCH(CONCATENATE($B16," ",$C16),Banco!$A:$A,0) -> 13164 | M16: =IF(OR(ISERROR($L16),$H16="",$H16=0),"",OFFSET(M$1,MATCH($K16,$K$1:$K16,0)-1,0)) -> F | O16: =IF(ISNUMBER($L16),VALUE(OFFSET(Banco!$A$1,Composições!$L16-1,COLUMN(Composições!O16)-6)),0) -> 0 | P16: =IF(ISNUMBER($L16),VALUE(OFFSET(Banco!$A$1,Composições!$L16-1,COLUMN(Composições!P16)-6)),0) -> 0 | Q16: 0 | R16: 0
B17: SINAPI | C17: 94962 | D17: =IF(ISNUMBER($L17),OFFSET(Banco!$A$1,Composições!$L17-1,COLUMN(Composições!D17)-1),"") -> CONCRETO MAGRO PARA LASTRO, TRAÇO 1:4,5:4,5 (EM MASSA SECA DE CIMENTO/ AREIA MÉDIA/ BRITA 1) - PREPARO MECÂNICO COM BETONEIRA 400 L. AF_05/2021 | E17: =IF(ISNUMBER($L17),OFFSET(Banco!$A$1,Composições!$L17-1,COLUMN(Composições!E17)-1),"") -> M3 | F17: 3.91 | G17: 3.98 | H17: 0.01 | I17: =IF(ISNUMBER($L17),VALUE(OFFSET(Banco!$A$1,Composições!$L17-1,COLUMN(Composições!I17)-4)),0) -> 391.2 | J17: =IF(ISNUMBER($L17),VALUE(OFFSET(Banco!$A$1,Composições!$L17-1,COLUMN(Composições!J17)-4)),0) -> 398.05 | K17: =COUNTA($A$1:$A17)-1 -> 2 | L17: =MATCH(CONCATENATE($B17," ",$C17),Banco!$A:$A,0) -> 14359 | M17: =IF(OR(ISERROR($L17),$H17="",$H17=0),"",OFFSET(M$1,MATCH($K17,$K$1:$K17,0)-1,0)) -> F | O17: =IF(ISNUMBER($L17),VALUE(OFFSET(Banco!$A$1,Composições!$L17-1,COLUMN(Composições!O17)-6)),0) -> 0 | P17: =IF(ISNUMBER($L17),VALUE(OFFSET(Banco!$A$1,Composições!$L17-1,COLUMN(Composições!P17)-6)),0) -> 0 | Q17: 0 | R17: 0
B18: SINAPI-I | C18: 4417 | D18: =IF(ISNUMBER($L18),OFFSET(Banco!$A$1,Composições!$L18-1,COLUMN(Composições!D18)-1),"") -> SARRAFO NAO APARELHADO *2,5 X 7* CM, EM MACARANDUBA/MASSARANDUBA, ANGELIM, PEROBA-ROSA OU EQUIVALENTE DA REGIAO - BRUTA | E18: =IF(ISNUMBER($L18),OFFSET(Banco!$A$1,Composições!$L18-1,COLUMN(Composições!E18)-1),"") -> M | F18: 7.48 | G18: 7.48 | H18: 1 | I18: =IF(ISNUMBER($L18),VALUE(OFFSET(Banco!$A$1,Composições!$L18-1,COLUMN(Composições!I18)-4)),0) -> 7.48 | J18: =IF(ISNUMBER($L18),VALUE(OFFSET(Banco!$A$1,Composições!$L18-1,COLUMN(Composições!J18)-4)),0) -> 7.48 | K18: =COUNTA($A$1:$A18)-1 -> 2 | L18: =MATCH(CONCATENATE($B18," ",$C18),Banco!$A:$A,0) -> 3941 | M18: =IF(OR(ISERROR($L18),$H18="",$H18=0),"",OFFSET(M$1,MATCH($K18,$K$1:$K18,0)-1,0)) -> F | O18: =IF(ISNUMBER($L18),VALUE(OFFSET(Banco!$A$1,Composições!$L18-1,COLUMN(Composições!O18)-6)),0) -> 0 | P18: =IF(ISNUMBER($L18),VALUE(OFFSET(Banco!$A$1,Composições!$L18-1,COLUMN(Composições!P18)-6)),0) -> 0 | Q18: 0 | R18: 0
B19: SINAPI-I | C19: 4491 | D19: =IF(ISNUMBER($L19),OFFSET(Banco!$A$1,Composições!$L19-1,COLUMN(Composições!D19)-1),"") -> PONTALETE *7,5 X 7,5* CM EM PINUS, MISTA OU EQUIVALENTE DA REGIAO - BRUTA | E19: =IF(ISNUMBER($L19),OFFSET(Banco!$A$1,Composições!$L19-1,COLUMN(Composições!E19)-1),"") -> M | F19: =ROUND($H19*ROUND(I19,2),2) -> 28.16 | G19: =ROUND($H19*ROUND(J19,2),2) -> 28.16 | H19: 4 | I19: =IF(ISNUMBER($L19),VALUE(OFFSET(Banco!$A$1,Composições!$L19-1,COLUMN(Composições!I19)-4)),0) -> 7.04 | J19: =IF(ISNUMBER($L19),VALUE(OFFSET(Banco!$A$1,Composições!$L19-1,COLUMN(Composições!J19)-4)),0) -> 7.04 | K19: =COUNTA($A$1:$A19)-1 -> 2 | L19: =MATCH(CONCATENATE($B19," ",$C19),Banco!$A:$A,0) -> 3562 | M19: =IF(OR(ISERROR($L19),$H19="",$H19=0),"",OFFSET(M$1,MATCH($K19,$K$1:$K19,0)-1,0)) -> F | O19: =IF(ISNUMBER($L19),VALUE(OFFSET(Banco!$A$1,Composições!$L19-1,COLUMN(Composições!O19)-6)),0) -> 0 | P19: =IF(ISNUMBER($L19),VALUE(OFFSET(Banco!$A$1,Composições!$L19-1,COLUMN(Composições!P19)-6)),0) -> 0
B20: Cotação | C20: 4813 | D20: =IF(ISNUMBER($L20),OFFSET(Banco!$A$1,Composições!$L20-1,COLUMN(Composições!D20)-1),"") -> PLACA DE OBRA (PARA CONSTRUCAO CIVIL) EM CHAPA GALVANIZADA *N. 22*, ADESIVADA, DE *2,4 X 1,2* M (SEM POSTES PARA FIXACAO) | E20: =IF(ISNUMBER($L20),OFFSET(Banco!$A$1,Composições!$L20-1,COLUMN(Composições!E20)-1),"") -> M2 | F20: =ROUND($H20*ROUND(I20,2),2) -> 400 | G20: 400 | H20: 1 | I20: =IF(ISNUMBER($L20),VALUE(OFFSET(Banco!$A$1,Composições!$L20-1,COLUMN(Composições!I20)-4)),0) -> 400 | J20: =IF(ISNUMBER($L20),VALUE(OFFSET(Banco!$A$1,Composições!$L20-1,COLUMN(Composições!J20)-4)),0) -> 400 | K20: =COUNTA($A$1:$A20)-1 -> 2 | L20: =MATCH(CONCATENATE($B20," ",$C20),Banco!$A:$A,0) -> 31 | M20: =IF(OR(ISERROR($L20),$H20="",$H20=0),"",OFFSET(M$1,MATCH($K20,$K$1:$K20,0)-1,0)) -> F | O20: =IF(ISNUMBER($L20),VALUE(OFFSET(Banco!$A$1,Composições!$L20-1,COLUMN(Composições!O20)-6)),0) -> 0 | P20: =IF(ISNUMBER($L20),VALUE(OFFSET(Banco!$A$1,Composições!$L20-1,COLUMN(Composições!P20)-6)),0) -> 0 | Q20: =ROUND(F20*O20,2) -> 0 | R20: 0
B21: SINAPI-I | C21: 5075 | D21: =IF(ISNUMBER($L21),OFFSET(Banco!$A$1,Composições!$L21-1,COLUMN(Composições!D21)-1),"") -> PREGO DE ACO POLIDO COM CABECA 18 X 30 (2 3/4 X 10) | E21: =IF(ISNUMBER($L21),OFFSET(Banco!$A$1,Composições!$L21-1,COLUMN(Composições!E21)-1),"") -> KG | F21: 2.17 | G21: 2.17 | H21: 0.11 | I21: =IF(ISNUMBER($L21),VALUE(OFFSET(Banco!$A$1,Composições!$L21-1,COLUMN(Composições!I21)-4)),0) -> 19.73 | J21: =IF(ISNUMBER($L21),VALUE(OFFSET(Banco!$A$1,Composições!$L21-1,COLUMN(Composições!J21)-4)),0) -> 19.73 | K21: =COUNTA($A$1:$A21)-1 -> 2 | L21: =MATCH(CONCATENATE($B21," ",$C21),Banco!$A:$A,0) -> 3714 | M21: =IF(OR(ISERROR($L21),$H21="",$H21=0),"",OFFSET(M$1,MATCH($K21,$K$1:$K21,0)-1,0)) -> F | O21: =IF(ISNUMBER($L21),VALUE(OFFSET(Banco!$A$1,Composições!$L21-1,COLUMN(Composições!O21)-6)),0) -> 0 | P21: =IF(ISNUMBER($L21),VALUE(OFFSET(Banco!$A$1,Composições!$L21-1,COLUMN(Composições!P21)-6)),0) -> 0 | Q21: 0 | R21: 0
K22: =COUNTA($A$1:$A22)-1 -> 2 | M22: =IF(OFFSET($M$1,MATCH(OFFSET(K22,-1,0),$K$1:$K22,0)-1,0)="F","F","") -> F
A23: =CONCATENATE($B23," ",$C23) -> Composição IUD20017 | B23: Composição | C23: IUD20017 | D23: Ligação provisória de água | E23: UN | F23: =IF($L23>0,SUM(OFFSET(F23,1,0,$L23),0)) -> 483.47 | G23: =IF($L23>0,SUM(OFFSET(G23,1,0,$L23),0)) -> 490.93 | I23: =IF(ISERROR(F23),0,F23) -> 483.47 | J23: =IF(ISERROR(G23),0,G23) -> 490.93 | K23: =COUNTA($A$1:$A23)-1 -> 3 | L23: =IF(MAX(K:K)=K23,MATCH(9999999,$K:$K)+1,MATCH(K23+1,K:K,0))-ROW(L23)-2 -> 3 | M23: =IF(AND(OR(I23<>0,J23<>0),N23="Sim"),"F","") -> F | N23: Sim
B24: SINAPI | C24: 95676 | D24: =IF(ISNUMBER($L24),OFFSET(Banco!$A$1,Composições!$L24-1,COLUMN(Composições!D24)-1),"") -> CAIXA EM CONCRETO PRÉ-MOLDADO PARA ABRIGO DE HIDRÔMETRO COM DN 20 MM - FORNECIMENTO E INSTALAÇÃO. AF_03/2024 | E24: =IF(ISNUMBER($L24),OFFSET(Banco!$A$1,Composições!$L24-1,COLUMN(Composições!E24)-1),"") -> UN | F24: =ROUND($H24*ROUND(I24,2),2) -> 132.57 | G24: 133.57 | H24: 1 | I24: =IF(ISNUMBER($L24),VALUE(OFFSET(Banco!$A$1,Composições!$L24-1,COLUMN(Composições!I24)-4)),0) -> 132.57 | J24: =IF(ISNUMBER($L24),VALUE(OFFSET(Banco!$A$1,Composições!$L24-1,COLUMN(Composições!J24)-4)),0) -> 133.57 | K24: =COUNTA($A$1:$A24)-1 -> 3 | L24: =MATCH(CONCATENATE($B24," ",$C24),Banco!$A:$A,0) -> 14993 | M24: =IF(OR(ISERROR($L24),$H24="",$H24=0),"",OFFSET(M$1,MATCH($K24,$K$1:$K24,0)-1,0)) -> F | O24: =IF(ISNUMBER($L24),VALUE(OFFSET(Banco!$A$1,Composições!$L24-1,COLUMN(Composições!O24)-6)),0) -> 0 | P24: =IF(ISNUMBER($L24),VALUE(OFFSET(Banco!$A$1,Composições!$L24-1,COLUMN(Composições!P24)-6)),0) -> 0 | Q24: =ROUND(F24*O24,2) -> 0 | R24: 0
B25: SINAPI | C25: 95674 | D25: =IF(ISNUMBER($L25),OFFSET(Banco!$A$1,Composições!$L25-1,COLUMN(Composições!D25)-1),"") -> HIDRÔMETRO DN 1/2", 3,0 M3/H - FORNECIMENTO E INSTALAÇÃO. AF_03/2024 | E25: =IF(ISNUMBER($L25),OFFSET(Banco!$A$1,Composições!$L25-1,COLUMN(Composições!E25)-1),"") -> UN | F25: 137.41 | G25: 139.03 | H25: 1 | I25: =IF(ISNUMBER($L25),VALUE(OFFSET(Banco!$A$1,Composições!$L25-1,COLUMN(Composições!I25)-4)),0) -> 137.41 | J25: =IF(ISNUMBER($L25),VALUE(OFFSET(Banco!$A$1,Composições!$L25-1,COLUMN(Composições!J25)-4)),0) -> 139.03 | K25: =COUNTA($A$1:$A25)-1 -> 3 | L25: =MATCH(CONCATENATE($B25," ",$C25),Banco!$A:$A,0) -> 14999 | M25: =IF(OR(ISERROR($L25),$H25="",$H25=0),"",OFFSET(M$1,MATCH($K25,$K$1:$K25,0)-1,0)) -> F | O25: =IF(ISNUMBER($L25),VALUE(OFFSET(Banco!$A$1,Composições!$L25-1,COLUMN(Composições!O25)-6)),0) -> 0.8593 | P25: =IF(ISNUMBER($L25),VALUE(OFFSET(Banco!$A$1,Composições!$L25-1,COLUMN(Composições!P25)-6)),0) -> 0.8493 | Q25: 118.08 | R25: 118.08
B26: SINAPI | C26: 95634 | D26: =IF(ISNUMBER($L26),OFFSET(Banco!$A$1,Composições!$L26-1,COLUMN(Composições!D26)-1),"") -> KIT CAVALETE PARA MEDIÇÃO DE ÁGUA - ENTRADA PRINCIPAL, EM PVC 20 MM (1/2") - FORNECIMENTO E INSTALAÇÃO (EXCLUSIVE HIDRÔMETRO). AF_03/2024 | E26: =IF(ISNUMBER($L26),OFFSET(Banco!$A$1,Composições!$L26-1,COLUMN(Composições!E26)-1),"") -> UN | F26: 213.49 | G26: 218.33 | H26: 1 | I26: =IF(ISNUMBER($L26),VALUE(OFFSET(Banco!$A$1,Composições!$L26-1,COLUMN(Composições!I26)-4)),0) -> 213.49 | J26: =IF(ISNUMBER($L26),VALUE(OFFSET(Banco!$A$1,Composições!$L26-1,COLUMN(Composições!J26)-4)),0) -> 218.33 | K26: =COUNTA($A$1:$A26)-1 -> 3 | L26: =MATCH(CONCATENATE($B26," ",$C26),Banco!$A:$A,0) -> 15038 | M26: =IF(OR(ISERROR($L26),$H26="",$H26=0),"",OFFSET(M$1,MATCH($K26,$K$1:$K26,0)-1,0)) -> F | O26: =IF(ISNUMBER($L26),VALUE(OFFSET(Banco!$A$1,Composições!$L26-1,COLUMN(Composições!O26)-6)),0) -> 0 | P26: =IF(ISNUMBER($L26),VALUE(OFFSET(Banco!$A$1,Composições!$L26-1,COLUMN(Composições!P26)-6)),0) -> 0 | Q26: 0 | R26: 0
K27: =COUNTA($A$1:$A27)-1 -> 3 | M27: =IF(OFFSET($M$1,MATCH(OFFSET(K27,-1,0),$K$1:$K27,0)-1,0)="F","F","") -> F
A28: =CONCATENATE($B28," ",$C28) -> Composição IUI00003 | B28: Composição | C28: IUI00003 | D28: Sinalização de advertência de obra com placa (fundo laranja) sobre cavalete, conforme ABNT-NBR-7678 | E28: UN | F28: =IF($L28>0,SUM(OFFSET(F28,1,0,$L28),0)) -> 484.12 | G28: =IF($L28>0,SUM(OFFSET(G28,1,0,$L28),0)) -> 488.64 | I28: =IF(ISERROR(F28),0,F28) -> 484.12 | J28: =IF(ISERROR(G28),0,G28) -> 488.64 | K28: =COUNTA($A$1:$A28)-1 -> 4 | L28: =IF(MAX(K:K)=K28,MATCH(9999999,$K:$K)+1,MATCH(K28+1,K:K,0))-ROW(L28)-2 -> 5 | M28: =IF(AND(OR(I28<>0,J28<>0),N28="Sim"),"F","") -> F | N28: Sim
B29: SINAPI-I | C29: 4433 | D29: =IF(ISNUMBER($L29),OFFSET(Banco!$A$1,Composições!$L29-1,COLUMN(Composições!D29)-1),"") -> CAIBRO NAO APARELHADO *6 X 6* CM, EM MACARANDUBA/MASSARANDUBA, ANGELIM OU EQUIVALENTE DA REGIAO - BRUTA | E29: =IF(ISNUMBER($L29),OFFSET(Banco!$A$1,Composições!$L29-1,COLUMN(Composições!E29)-1),"") -> M | F29: =ROUND($H29*ROUND(I29,2),2) -> 26.89 | G29: 26.89 | H29: 1 | I29: =IF(ISNUMBER($L29),VALUE(OFFSET(Banco!$A$1,Composições!$L29-1,COLUMN(Composições!I29)-4)),0) -> 26.89 | J29: =IF(ISNUMBER($L29),VALUE(OFFSET(Banco!$A$1,Composições!$L29-1,COLUMN(Composições!J29)-4)),0) -> 26.89 | K29: =COUNTA($A$1:$A29)-1 -> 4 | L29: =MATCH(CONCATENATE($B29," ",$C29),Banco!$A:$A,0) -> 882 | M29: =IF(OR(ISERROR($L29),$H29="",$H29=0),"",OFFSET(M$1,MATCH($K29,$K$1:$K29,0)-1,0)) -> F | O29: =IF(ISNUMBER($L29),VALUE(OFFSET(Banco!$A$1,Composições!$L29-1,COLUMN(Composições!O29)-6)),0) -> 0 | P29: =IF(ISNUMBER($L29),VALUE(OFFSET(Banco!$A$1,Composições!$L29-1,COLUMN(Composições!P29)-6)),0) -> 0 | Q29: =ROUND(F29*O29,2) -> 0 | R29: 0
B30: Cotação | C30: 4813 | D30: =IF(ISNUMBER($L30),OFFSET(Banco!$A$1,Composições!$L30-1,COLUMN(Composições!D30)-1),"") -> PLACA DE OBRA (PARA CONSTRUCAO CIVIL) EM CHAPA GALVANIZADA *N. 22*, ADESIVADA, DE *2,4 X 1,2* M (SEM POSTES PARA FIXACAO) | E30: =IF(ISNUMBER($L30),OFFSET(Banco!$A$1,Composições!$L30-1,COLUMN(Composições!E30)-1),"") -> M2 | F30: 400 | G30: 400 | H30: 1 | I30: =IF(ISNUMBER($L30),VALUE(OFFSET(Banco!$A$1,Composições!$L30-1,COLUMN(Composições!I30)-4)),0) -> 400 | J30: =IF(ISNUMBER($L30),VALUE(OFFSET(Banco!$A$1,Composições!$L30-1,COLUMN(Composições!J30)-4)),0) -> 400 | K30: =COUNTA($A$1:$A30)-1 -> 4 | L30: =MATCH(CONCATENATE($B30," ",$C30),Banco!$A:$A,0) -> 31 | M30: =IF(OR(ISERROR($L30),$H30="",$H30=0),"",OFFSET(M$1,MATCH($K30,$K$1:$K30,0)-1,0)) -> F | O30: =IF(ISNUMBER($L30),VALUE(OFFSET(Banco!$A$1,Composições!$L30-1,COLUMN(Composições!O30)-6)),0) -> 0 | P30: =IF(ISNUMBER($L30),VALUE(OFFSET(Banco!$A$1,Composições!$L30-1,COLUMN(Composições!P30)-6)),0) -> 0 | Q30: 0 | R30: 0
B31: SINAPI | C31: 73467 | D31: =IF(ISNUMBER($L31),OFFSET(Banco!$A$1,Composições!$L31-1,COLUMN(Composições!D31)-1),"") -> CAMINHÃO TOCO, PBT 14.300 KG, CARGA ÚTIL MÁX. 9.710 KG, DIST. ENTRE EIXOS 3,56 M, POTÊNCIA 185 CV, INCLUSIVE CARROCERIA FIXA ABERTA DE MADEIRA P/ TRANSPORTE GERAL DE CARGA SECA, DIMEN. APROX. 2,50 X 6,50 X 0,50 M - CHP DIURNO. AF_06/2014 | E31: =IF(ISNUMBER($L31),OFFSET(Banco!$A$1,Composições!$L31-1,COLUMN(Composições!E31)-1),"") -> CHP | F31: 2.45 | G31: 2.48 | H31: 0.01 | I31: =IF(ISNUMBER($L31),VALUE(OFFSET(Banco!$A$1,Composições!$L31-1,COLUMN(Composições!I31)-4)),0) -> 245.4 | J31: =IF(ISNUMBER($L31),VALUE(OFFSET(Banco!$A$1,Composições!$L31-1,COLUMN(Composições!J31)-4)),0) -> 247.5 | K31: =COUNTA($A$1:$A31)-1 -> 4 | L31: =MATCH(CONCATENATE($B31," ",$C31),Banco!$A:$A,0) -> 7537 | M31: =IF(OR(ISERROR($L31),$H31="",$H31=0),"",OFFSET(M$1,MATCH($K31,$K$1:$K31,0)-1,0)) -> F | O31: =IF(ISNUMBER($L31),VALUE(OFFSET(Banco!$A$1,Composições!$L31-1,COLUMN(Composições!O31)-6)),0) -> 0.2686 | P31: =IF(ISNUMBER($L31),VALUE(OFFSET(Banco!$A$1,Composições!$L31-1,COLUMN(Composições!P31)-6)),0) -> 0.2663 | Q31: 0.66 | R31: 0.66
B32: SINAPI | C32: 88262 | D32: =IF(ISNUMBER($L32),OFFSET(Banco!$A$1,Composições!$L32-1,COLUMN(Composições!D32)-1),"") -> CARPINTEIRO DE FORMAS COM ENCARGOS COMPLEMENTARES | E32: =IF(ISNUMBER($L32),OFFSET(Banco!$A$1,Composições!$L32-1,COLUMN(Composições!E32)-1),"") -> H | F32: 24.58 | G32: 26.69 | H32: 1 | I32: =IF(ISNUMBER($L32),VALUE(OFFSET(Banco!$A$1,Composições!$L32-1,COLUMN(Composições!I32)-4)),0) -> 24.58 | J32: =IF(ISNUMBER($L32),VALUE(OFFSET(Banco!$A$1,Composições!$L32-1,COLUMN(Composições!J32)-4)),0) -> 26.69 | K32: =COUNTA($A$1:$A32)-1 -> 4 | L32: =MATCH(CONCATENATE($B32," ",$C32),Banco!$A:$A,0) -> 12867 | M32: =IF(OR(ISERROR($L32),$H32="",$H32=0),"",OFFSET(M$1,MATCH($K32,$K$1:$K32,0)-1,0)) -> F | O32: =IF(ISNUMBER($L32),VALUE(OFFSET(Banco!$A$1,Composições!$L32-1,COLUMN(Composições!O32)-6)),0) -> 0 | P32: =IF(ISNUMBER($L32),VALUE(OFFSET(Banco!$A$1,Composições!$L32-1,COLUMN(Composições!P32)-6)),0) -> 0 | Q32: 0 | R32: 0
B33: SINAPI | C33: 88316 | D33: =IF(ISNUMBER($L33),OFFSET(Banco!$A$1,Composições!$L33-1,COLUMN(Composições!D33)-1),"") -> SERVENTE COM ENCARGOS COMPLEMENTARES | E33: =IF(ISNUMBER($L33),OFFSET(Banco!$A$1,Composições!$L33-1,COLUMN(Composições!E33)-1),"") -> H | F33: =ROUND($H33*ROUND(I33,2),2) -> 30.2 | G33: =ROUND($H33*ROUND(J33,2),2) -> 32.58 | H33: 1.5 | I33: =IF(ISNUMBER($L33),VALUE(OFFSET(Banco!$A$1,Composições!$L33-1,COLUMN(Composições!I33)-4)),0) -> 20.13 | J33: =IF(ISNUMBER($L33),VALUE(OFFSET(Banco!$A$1,Composições!$L33-1,COLUMN(Composições!J33)-4)),0) -> 21.72 | K33: =COUNTA($A$1:$A33)-1 -> 4 | L33: =MATCH(CONCATENATE($B33," ",$C33),Banco!$A:$A,0) -> 13164 | M33: =IF(OR(ISERROR($L33),$H33="",$H33=0),"",OFFSET(M$1,MATCH($K33,$K$1:$K33,0)-1,0)) -> F | O33: =IF(ISNUMBER($L33),VALUE(OFFSET(Banco!$A$1,Composições!$L33-1,COLUMN(Composições!O33)-6)),0) -> 0 | P33: =IF(ISNUMBER($L33),VALUE(OFFSET(Banco!$A$1,Composições!$L33-1,COLUMN(Composições!P33)-6)),0) -> 0
K34: =COUNTA($A$1:$A34)-1 -> 4 | M34: =IF(OFFSET($M$1,MATCH(OFFSET(K34,-1,0),$K$1:$K34,0)-1,0)="F","F","") -> F
A35: =CONCATENATE($B35," ",$C35) -> Composição IUD30112 | B35: Composição | C35: IUD30112 | D35: Lastro ou enroncamento de pedra-de-mão ou rachão, com lançamento mecanizado, fornecimento e apiloamento. Exclusive transporte. | E35: M3 | F35: =IF($L35>0,SUM(OFFSET(F35,1,0,$L35),0)) -> 282.89 | G35: =IF($L35>0,SUM(OFFSET(G35,1,0,$L35),0)) -> 293.7 | I35: =IF(ISERROR(F35),0,F35) -> 282.89 | J35: =IF(ISERROR(G35),0,G35) -> 293.7 | K35: =COUNTA($A$1:$A35)-1 -> 5 | L35: =IF(MAX(K:K)=K35,MATCH(9999999,$K:$K)+1,MATCH(K35+1,K:K,0))-ROW(L35)-2 -> 5 | M35: =IF(AND(OR(I35<>0,J35<>0),N35="Sim"),"F","") -> F | N35: Sim
B36: SINAPI-I | C36: 4730 | D36: =IF(ISNUMBER($L36),OFFSET(Banco!$A$1,Composições!$L36-1,COLUMN(Composições!D36)-1),"") -> PEDRA DE MAO OU PEDRA RACHAO PARA ARRIMO/FUNDACAO (POSTO PEDREIRA/FORNECEDOR, SEM FRETE) | E36: =IF(ISNUMBER($L36),OFFSET(Banco!$A$1,Composições!$L36-1,COLUMN(Composições!E36)-1),"") -> M3 | F36: =ROUND($H36*ROUND(I36,2),2) -> 120.82 | G36: 120.82 | H36: 1.3 | I36: =IF(ISNUMBER($L36),VALUE(OFFSET(Banco!$A$1,Composições!$L36-1,COLUMN(Composições!I36)-4)),0) -> 92.94 | J36: =IF(ISNUMBER($L36),VALUE(OFFSET(Banco!$A$1,Composições!$L36-1,COLUMN(Composições!J36)-4)),0) -> 92.94 | K36: =COUNTA($A$1:$A36)-1 -> 5 | L36: =MATCH(CONCATENATE($B36," ",$C36),Banco!$A:$A,0) -> 3385 | M36: =IF(OR(ISERROR($L36),$H36="",$H36=0),"",OFFSET(M$1,MATCH($K36,$K$1:$K36,0)-1,0)) -> F | O36: =IF(ISNUMBER($L36),VALUE(OFFSET(Banco!$A$1,Composições!$L36-1,COLUMN(Composições!O36)-6)),0) -> 0 | P36: =IF(ISNUMBER($L36),VALUE(OFFSET(Banco!$A$1,Composições!$L36-1,COLUMN(Composições!P36)-6)),0) -> 0 | Q36: =ROUND(F36*O36,2) -> 0 | R36: 0
B37: SINAPI | C37: 88242 | D37: =IF(ISNUMBER($L37),OFFSET(Banco!$A$1,Composições!$L37-1,COLUMN(Composições!D37)-1),"") -> AJUDANTE DE PEDREIRO COM ENCARGOS COMPLEMENTARES | E37: =IF(ISNUMBER($L37),OFFSET(Banco!$A$1,Composições!$L37-1,COLUMN(Composições!E37)-1),"") -> H | F37: 82.68 | G37: 89.2 | H37: 4 | I37: =IF(ISNUMBER($L37),VALUE(OFFSET(Banco!$A$1,Composições!$L37-1,COLUMN(Composições!I37)-4)),0) -> 20.67 | J37: =IF(ISNUMBER($L37),VALUE(OFFSET(Banco!$A$1,Composições!$L37-1,COLUMN(Composições!J37)-4)),0) -> 22.3 | K37: =COUNTA($A$1:$A37)-1 -> 5 | L37: =MATCH(CONCATENATE($B37," ",$C37),Banco!$A:$A,0) -> 12819 | M37: =IF(OR(ISERROR($L37),$H37="",$H37=0),"",OFFSET(M$1,MATCH($K37,$K$1:$K37,0)-1,0)) -> F | O37: =IF(ISNUMBER($L37),VALUE(OFFSET(Banco!$A$1,Composições!$L37-1,COLUMN(Composições!O37)-6)),0) -> 0 | P37: =IF(ISNUMBER($L37),VALUE(OFFSET(Banco!$A$1,Composições!$L37-1,COLUMN(Composições!P37)-6)),0) -> 0 | Q37: 0 | R37: 0
B38: SINAPI | C38: 5632 | D38: =IF(ISNUMBER($L38),OFFSET(Banco!$A$1,Composições!$L38-1,COLUMN(Composições!D38)-1),"") -> ESCAVADEIRA HIDRÁULICA SOBRE ESTEIRAS, CAÇAMBA 0,80 M3, PESO OPERACIONAL 17 T, POTENCIA BRUTA 111 HP - CHI DIURNO. AF_06/2014 | E38: =IF(ISNUMBER($L38),OFFSET(Banco!$A$1,Composições!$L38-1,COLUMN(Composições!E38)-1),"") -> CHI | F38: 29.49 | G38: 30.41 | H38: 0.336 | I38: =IF(ISNUMBER($L38),VALUE(OFFSET(Banco!$A$1,Composições!$L38-1,COLUMN(Composições!I38)-4)),0) -> 87.78 | J38: =IF(ISNUMBER($L38),VALUE(OFFSET(Banco!$A$1,Composições!$L38-1,COLUMN(Composições!J38)-4)),0) -> 90.5 | K38: =COUNTA($A$1:$A38)-1 -> 5 | L38: =MATCH(CONCATENATE($B38," ",$C38),Banco!$A:$A,0) -> 7592 | M38: =IF(OR(ISERROR($L38),$H38="",$H38=0),"",OFFSET(M$1,MATCH($K38,$K$1:$K38,0)-1,0)) -> F | O38: =IF(ISNUMBER($L38),VALUE(OFFSET(Banco!$A$1,Composições!$L38-1,COLUMN(Composições!O38)-6)),0) -> 0 | P38: =IF(ISNUMBER($L38),VALUE(OFFSET(Banco!$A$1,Composições!$L38-1,COLUMN(Composições!P38)-6)),0) -> 0 | Q38: 0 | R38: 0
B39: SINAPI | C39: 5631 | D39: =IF(ISNUMBER($L39),OFFSET(Banco!$A$1,Composições!$L39-1,COLUMN(Composições!D39)-1),"") -> ESCAVADEIRA HIDRÁULICA SOBRE ESTEIRAS, CAÇAMBA 0,80 M3, PESO OPERACIONAL 17 T, POTENCIA BRUTA 111 HP - CHP DIURNO. AF_06/2014 | E39: =IF(ISNUMBER($L39),OFFSET(Banco!$A$1,Composições!$L39-1,COLUMN(Composições!E39)-1),"") -> CHP | F39: 12.44 | G39: 12.6 | H39: 0.059 | I39: =IF(ISNUMBER($L39),VALUE(OFFSET(Banco!$A$1,Composições!$L39-1,COLUMN(Composições!I39)-4)),0) -> 210.82 | J39: =IF(ISNUMBER($L39),VALUE(OFFSET(Banco!$A$1,Composições!$L39-1,COLUMN(Composições!J39)-4)),0) -> 213.54 | K39: =COUNTA($A$1:$A39)-1 -> 5 | L39: =MATCH(CONCATENATE($B39," ",$C39),Banco!$A:$A,0) -> 7593 | M39: =IF(OR(ISERROR($L39),$H39="",$H39=0),"",OFFSET(M$1,MATCH($K39,$K$1:$K39,0)-1,0)) -> F | O39: =IF(ISNUMBER($L39),VALUE(OFFSET(Banco!$A$1,Composições!$L39-1,COLUMN(Composições!O39)-6)),0) -> 0 | P39: =IF(ISNUMBER($L39),VALUE(OFFSET(Banco!$A$1,Composições!$L39-1,COLUMN(Composições!P39)-6)),0) -> 0 | Q39: 0 | R39: 0
B40: SINAPI | C40: 88309 | D40: =IF(ISNUMBER($L40),OFFSET(Banco!$A$1,Composições!$L40-1,COLUMN(Composições!D40)-1),"") -> PEDREIRO COM ENCARGOS COMPLEMENTARES | E40: =IF(ISNUMBER($L40),OFFSET(Banco!$A$1,Composições!$L40-1,COLUMN(Composições!E40)-1),"") -> H | F40: =ROUND($H40*ROUND(I40,2),2) -> 37.46 | G40: =ROUND($H40*ROUND(J40,2),2) -> 40.67 | H40: 1.5 | I40: =IF(ISNUMBER($L40),VALUE(OFFSET(Banco!$A$1,Composições!$L40-1,COLUMN(Composições!I40)-4)),0) -> 24.97 | J40: =IF(ISNUMBER($L40),VALUE(OFFSET(Banco!$A$1,Composições!$L40-1,COLUMN(Composições!J40)-4)),0) -> 27.11 | K40: =COUNTA($A$1:$A40)-1 -> 5 | L40: =MATCH(CONCATENATE($B40," ",$C40),Banco!$A:$A,0) -> 13151 | M40: =IF(OR(ISERROR($L40),$H40="",$H40=0),"",OFFSET(M$1,MATCH($K40,$K$1:$K40,0)-1,0)) -> F | O40: =IF(ISNUMBER($L40),VALUE(OFFSET(Banco!$A$1,Composições!$L40-1,COLUMN(Composições!O40)-6)),0) -> 0 | P40: =IF(ISNUMBER($L40),VALUE(OFFSET(Banco!$A$1,Composições!$L40-1,COLUMN(Composições!P40)-6)),0) -> 0
K41: =COUNTA($A$1:$A41)-1 -> 5 | M41: =IF(OFFSET($M$1,MATCH(OFFSET(K41,-1,0),$K$1:$K41,0)-1,0)="F","F","") -> F
A42: =CONCATENATE($B42," ",$C42) -> Composição IUD20006 | B42: Composição | C42: IUD20006 | D42: BLSC - Boca-de-lobo simples, em concreto simples fck 20 MPa, incluindo forma, escavação, calçamento ao redor e grelha em FoFo tipo pesada, conforme projeto | E42: UN | F42: =IF($L42>0,SUM(OFFSET(F42,1,0,$L42),0)) -> 1706.18 | G42: =IF($L42>0,SUM(OFFSET(G42,1,0,$L42),0)) -> 1741.43 | I42: =IF(ISERROR(F42),0,F42) -> 1706.18 | J42: =IF(ISERROR(G42),0,G42) -> 1741.43 | K42: =COUNTA($A$1:$A42)-1 -> 6 | L42: =IF(MAX(K:K)=K42,MATCH(9999999,$K:$K)+1,MATCH(K42+1,K:K,0))-ROW(L42)-2 -> 10 | M42: =IF(AND(OR(I42<>0,J42<>0),N42="Sim"),"F","") -> F | N42: Sim
B43: Cotação | C43: IUD003 | D43: =IF(ISNUMBER($L43),OFFSET(Banco!$A$1,Composições!$L43-1,COLUMN(Composições!D43)-1),"") -> Grelha em FoFo, articulada, 1,0m x 0,45m -12 ton, fornecimento | E43: =IF(ISNUMBER($L43),OFFSET(Banco!$A$1,Composições!$L43-1,COLUMN(Composições!E43)-1),"") -> UN | F43: =ROUND($H43*ROUND(I43,2),2) -> 752.6 | G43: =ROUND($H43*ROUND(J43,2),2) -> 752.6 | H43: 1 | I43: =IF(ISNUMBER($L43),VALUE(OFFSET(Banco!$A$1,Composições!$L43-1,COLUMN(Composições!I43)-4)),0) -> 752.6 | J43: =IF(ISNUMBER($L43),VALUE(OFFSET(Banco!$A$1,Composições!$L43-1,COLUMN(Composições!J43)-4)),0) -> 752.6 | K43: =COUNTA($A$1:$A43)-1 -> 6 | L43: =MATCH(CONCATENATE($B43," ",$C43),Banco!$A:$A,0) -> 32 | M43: =IF(OR(ISERROR($L43),$H43="",$H43=0),"",OFFSET(M$1,MATCH($K43,$K$1:$K43,0)-1,0)) -> F | O43: =IF(ISNUMBER($L43),VALUE(OFFSET(Banco!$A$1,Composições!$L43-1,COLUMN(Composições!O43)-6)),0) -> 0 | P43: =IF(ISNUMBER($L43),VALUE(OFFSET(Banco!$A$1,Composições!$L43-1,COLUMN(Composições!P43)-6)),0) -> 0 | Q43: =ROUND(F43*O43,2) -> 0 | R43: =ROUND(G43*P43,2) -> 0
B44: SINAPI | C44: 92917 | D44: =IF(ISNUMBER($L44),OFFSET(Banco!$A$1,Composições!$L44-1,COLUMN(Composições!D44)-1),"") -> ARMAÇÃO DE ESTRUTURAS DIVERSAS DE CONCRETO ARMADO, EXCETO VIGAS, PILARES, LAJES E FUNDAÇÕES, UTILIZANDO AÇO CA-50 DE 8,0 MM - MONTAGEM. AF_06/2022 | E44: =IF(ISNUMBER($L44),OFFSET(Banco!$A$1,Composições!$L44-1,COLUMN(Composições!E44)-1),"") -> KG | F44: 60.08 | G44: 61.29 | H44: 4.5 | I44: =IF(ISNUMBER($L44),VALUE(OFFSET(Banco!$A$1,Composições!$L44-1,COLUMN(Composições!I44)-4)),0) -> 13.35 | J44: =IF(ISNUMBER($L44),VALUE(OFFSET(Banco!$A$1,Composições!$L44-1,COLUMN(Composições!J44)-4)),0) -> 13.62 | K44: =COUNTA($A$1:$A44)-1 -> 6 | L44: =MATCH(CONCATENATE($B44," ",$C44),Banco!$A:$A,0) -> 6312 | M44: =IF(OR(ISERROR($L44),$H44="",$H44=0),"",OFFSET(M$1,MATCH($K44,$K$1:$K44,0)-1,0)) -> F | O44: =IF(ISNUMBER($L44),VALUE(OFFSET(Banco!$A$1,Composições!$L44-1,COLUMN(Composições!O44)-6)),0) -> 0.012 | P44: =IF(ISNUMBER($L44),VALUE(OFFSET(Banco!$A$1,Composições!$L44-1,COLUMN(Composições!P44)-6)),0) -> 0.0117 | Q44: 0.72 | R44: 0.72
B45: SINAPI | C45: 92915 | D45: =IF(ISNUMBER($L45),OFFSET(Banco!$A$1,Composições!$L45-1,COLUMN(Composições!D45)-1),"") -> ARMAÇÃO DE ESTRUTURAS DIVERSAS DE CONCRETO ARMADO, EXCETO VIGAS, PILARES, LAJES E FUNDAÇÕES, UTILIZANDO AÇO CA-60 DE 5,0 MM - MONTAGEM. AF_06/2022 | E45: =IF(ISNUMBER($L45),OFFSET(Banco!$A$1,Composições!$L45-1,COLUMN(Composições!E45)-1),"") -> KG | F45: 14.63 | G45: 15.18 | H45: 0.92 | I45: =IF(ISNUMBER($L45),VALUE(OFFSET(Banco!$A$1,Composições!$L45-1,COLUMN(Composições!I45)-4)),0) -> 15.9 | J45: =IF(ISNUMBER($L45),VALUE(OFFSET(Banco!$A$1,Composições!$L45-1,COLUMN(Composições!J45)-4)),0) -> 16.5 | K45: =COUNTA($A$1:$A45)-1 -> 6 | L45: =MATCH(CONCATENATE($B45," ",$C45),Banco!$A:$A,0) -> 6313 | M45: =IF(OR(ISERROR($L45),$H45="",$H45=0),"",OFFSET(M$1,MATCH($K45,$K$1:$K45,0)-1,0)) -> F | O45: =IF(ISNUMBER($L45),VALUE(OFFSET(Banco!$A$1,Composições!$L45-1,COLUMN(Composições!O45)-6)),0) -> 0.0164 | P45: =IF(ISNUMBER($L45),VALUE(OFFSET(Banco!$A$1,Composições!$L45-1,COLUMN(Composições!P45)-6)),0) -> 0.0158 | Q45: 0.24 | R45: 0.24
B46: SINAPI | C46: 94964 | D46: =IF(ISNUMBER($L46),OFFSET(Banco!$A$1,Composições!$L46-1,COLUMN(Composições!D46)-1),"") -> CONCRETO FCK = 20MPA, TRAÇO 1:2,7:3 (EM MASSA SECA DE CIMENTO/ AREIA MÉDIA/ BRITA 1) - PREPARO MECÂNICO COM BETONEIRA 400 L. AF_05/2021 | E46: =IF(ISNUMBER($L46),OFFSET(Banco!$A$1,Composições!$L46-1,COLUMN(Composições!E46)-1),"") -> M3 | F46: 354.29 | G46: 359.7 | H46: 0.729 | I46: =IF(ISNUMBER($L46),VALUE(OFFSET(Banco!$A$1,Composições!$L46-1,COLUMN(Composições!I46)-4)),0) -> 486 | J46: =IF(ISNUMBER($L46),VALUE(OFFSET(Banco!$A$1,Composições!$L46-1,COLUMN(Composições!J46)-4)),0) -> 493.42 | K46: =COUNTA($A$1:$A46)-1 -> 6 | L46: =MATCH(CONCATENATE($B46," ",$C46),Banco!$A:$A,0) -> 14344 | M46: =IF(OR(ISERROR($L46),$H46="",$H46=0),"",OFFSET(M$1,MATCH($K46,$K$1:$K46,0)-1,0)) -> F | O46: =IF(ISNUMBER($L46),VALUE(OFFSET(Banco!$A$1,Composições!$L46-1,COLUMN(Composições!O46)-6)),0) -> 0 | P46: =IF(ISNUMBER($L46),VALUE(OFFSET(Banco!$A$1,Composições!$L46-1,COLUMN(Composições!P46)-6)),0) -> 0 | Q46: 0 | R46: 0
B47: Composição | C47: IUD20080 | D47: =IF(ISNUMBER($L47),OFFSET(Banco!$A$1,Composições!$L47-1,COLUMN(Composições!D47)-1),"") -> Escavação manual em solo-prof. até 1,50 m | E47: =IF(ISNUMBER($L47),OFFSET(Banco!$A$1,Composições!$L47-1,COLUMN(Composições!E47)-1),"") -> M3 | F47: 38.25 | G47: 41.27 | H47: 0.95 | I47: =IF(ISNUMBER($L47),VALUE(OFFSET(Banco!$A$1,Composições!$L47-1,COLUMN(Composições!I47)-4)),0) -> 40.26 | J47: =IF(ISNUMBER($L47),VALUE(OFFSET(Banco!$A$1,Composições!$L47-1,COLUMN(Composições!J47)-4)),0) -> 43.44 | K47: =COUNTA($A$1:$A47)-1 -> 6 | L47: =MATCH(CONCATENATE($B47," ",$C47),Banco!$A:$A,0) -> 7 | M47: =IF(OR(ISERROR($L47),$H47="",$H47=0),"",OFFSET(M$1,MATCH($K47,$K$1:$K47,0)-1,0)) -> F | O47: =IF(ISNUMBER($L47),VALUE(OFFSET(Banco!$A$1,Composições!$L47-1,COLUMN(Composições!O47)-6)),0) -> 0 | P47: =IF(ISNUMBER($L47),VALUE(OFFSET(Banco!$A$1,Composições!$L47-1,COLUMN(Composições!P47)-6)),0) -> 0 | Q47: 0 | R47: 0
B48: SINAPI | C48: 5928 | D48: =IF(ISNUMBER($L48),OFFSET(Banco!$A$1,Composições!$L48-1,COLUMN(Composições!D48)-1),"") -> GUINDAUTO HIDRÁULICO, CAPACIDADE MÁXIMA DE CARGA 6200 KG, MOMENTO MÁXIMO DE CARGA 11,7 TM, ALCANCE MÁXIMO HORIZONTAL 9,70 M, INCLUSIVE CAMINHÃO TOCO PBT 16.000 KG, POTÊNCIA DE 189 CV - CHP DIURNO. AF_06/2014 | E48: =IF(ISNUMBER($L48),OFFSET(Banco!$A$1,Composições!$L48-1,COLUMN(Composições!E48)-1),"") -> CHP | F48: 27.27 | G48: 27.49 | H48: 0.1 | I48: =IF(ISNUMBER($L48),VALUE(OFFSET(Banco!$A$1,Composições!$L48-1,COLUMN(Composições!I48)-4)),0) -> 272.65 | J48: =IF(ISNUMBER($L48),VALUE(OFFSET(Banco!$A$1,Composições!$L48-1,COLUMN(Composições!J48)-4)),0) -> 274.89 | K48: =COUNTA($A$1:$A48)-1 -> 6 | L48: =MATCH(CONCATENATE($B48," ",$C48),Banco!$A:$A,0) -> 7651 | M48: =IF(OR(ISERROR($L48),$H48="",$H48=0),"",OFFSET(M$1,MATCH($K48,$K$1:$K48,0)-1,0)) -> F | O48: =IF(ISNUMBER($L48),VALUE(OFFSET(Banco!$A$1,Composições!$L48-1,COLUMN(Composições!O48)-6)),0) -> 0.3241 | P48: =IF(ISNUMBER($L48),VALUE(OFFSET(Banco!$A$1,Composições!$L48-1,COLUMN(Composições!P48)-6)),0) -> 0.3214 | Q48: 8.84 | R48: 8.84
B49: SINAPI | C49: 103670 | D49: =IF(ISNUMBER($L49),OFFSET(Banco!$A$1,Composições!$L49-1,COLUMN(Composições!D49)-1),"") -> LANÇAMENTO COM USO DE BALDES, ADENSAMENTO E ACABAMENTO DE CONCRETO EM ESTRUTURAS. AF_02/2022 | E49: =IF(ISNUMBER($L49),OFFSET(Banco!$A$1,Composições!$L49-1,COLUMN(Composições!E49)-1),"") -> M3 | F49: 198.77 | G49: 214.94 | H49: 0.729 | I49: =IF(ISNUMBER($L49),VALUE(OFFSET(Banco!$A$1,Composições!$L49-1,COLUMN(Composições!I49)-4)),0) -> 272.66 | J49: =IF(ISNUMBER($L49),VALUE(OFFSET(Banco!$A$1,Composições!$L49-1,COLUMN(Composições!J49)-4)),0) -> 294.84 | K49: =COUNTA($A$1:$A49)-1 -> 6 | L49: =MATCH(CONCATENATE($B49," ",$C49),Banco!$A:$A,0) -> 7335 | M49: =IF(OR(ISERROR($L49),$H49="",$H49=0),"",OFFSET(M$1,MATCH($K49,$K$1:$K49,0)-1,0)) -> F | O49: =IF(ISNUMBER($L49),VALUE(OFFSET(Banco!$A$1,Composições!$L49-1,COLUMN(Composições!O49)-6)),0) -> 0.0064 | P49: =IF(ISNUMBER($L49),VALUE(OFFSET(Banco!$A$1,Composições!$L49-1,COLUMN(Composições!P49)-6)),0) -> 0.0059 | Q49: 1.27 | R49: 1.27
B50: SINAPI | C50: 92431 | D50: =IF(ISNUMBER($L50),OFFSET(Banco!$A$1,Composições!$L50-1,COLUMN(Composições!D50)-1),"") -> MONTAGEM E DESMONTAGEM DE FÔRMA DE PILARES RETANGULARES E ESTRUTURAS SIMILARES, PÉ-DIREITO SIMPLES, EM CHAPA DE MADEIRA COMPENSADA PLASTIFICADA, 10 UTILIZAÇÕES. AF_09/2020 | E50: =IF(ISNUMBER($L50),OFFSET(Banco!$A$1,Composições!$L50-1,COLUMN(Composições!E50)-1),"") -> M2 | F50: 236.6 | G50: 243.77 | H50: 3.62 | I50: =IF(ISNUMBER($L50),VALUE(OFFSET(Banco!$A$1,Composições!$L50-1,COLUMN(Composições!I50)-4)),0) -> 65.36 | J50: =IF(ISNUMBER($L50),VALUE(OFFSET(Banco!$A$1,Composições!$L50-1,COLUMN(Composições!J50)-4)),0) -> 67.34 | K50: =COUNTA($A$1:$A50)-1 -> 6 | L50: =MATCH(CONCATENATE($B50," ",$C50),Banco!$A:$A,0) -> 10102 | M50: =IF(OR(ISERROR($L50),$H50="",$H50=0),"",OFFSET(M$1,MATCH($K50,$K$1:$K50,0)-1,0)) -> F | O50: =IF(ISNUMBER($L50),VALUE(OFFSET(Banco!$A$1,Composições!$L50-1,COLUMN(Composições!O50)-6)),0) -> 0 | P50: =IF(ISNUMBER($L50),VALUE(OFFSET(Banco!$A$1,Composições!$L50-1,COLUMN(Composições!P50)-6)),0) -> 0 | Q50: 0 | R50: 0
B51: Composição | C51: IUP30002 | D51: =IF(ISNUMBER($L51),OFFSET(Banco!$A$1,Composições!$L51-1,COLUMN(Composições!D51)-1),"") -> Recorte mecânico de pavimento asfáltico ou piso de concreto, com serra de disco diamantado para piso/asfalto | E51: =IF(ISNUMBER($L51),OFFSET(Banco!$A$1,Composições!$L51-1,COLUMN(Composições!E51)-1),"") -> M | F51: 9.93 | G51: 10.36 | H51: 3.31 | I51: =IF(ISNUMBER($L51),VALUE(OFFSET(Banco!$A$1,Composições!$L51-1,COLUMN(Composições!I51)-4)),0) -> 3 | J51: =IF(ISNUMBER($L51),VALUE(OFFSET(Banco!$A$1,Composições!$L51-1,COLUMN(Composições!J51)-4)),0) -> 3.13 | K51: =COUNTA($A$1:$A51)-1 -> 6 | L51: =MATCH(CONCATENATE($B51," ",$C51),Banco!$A:$A,0) -> 26 | M51: =IF(OR(ISERROR($L51),$H51="",$H51=0),"",OFFSET(M$1,MATCH($K51,$K$1:$K51,0)-1,0)) -> F | O51: =IF(ISNUMBER($L51),VALUE(OFFSET(Banco!$A$1,Composições!$L51-1,COLUMN(Composições!O51)-6)),0) -> 0 | P51: =IF(ISNUMBER($L51),VALUE(OFFSET(Banco!$A$1,Composições!$L51-1,COLUMN(Composições!P51)-6)),0) -> 0 | Q51: 0 | R51: 0
B52: Composição | C52: IUD20075 | D52: =IF(ISNUMBER($L52),OFFSET(Banco!$A$1,Composições!$L52-1,COLUMN(Composições!D52)-1),"") -> Regularização manual e compactação mecânica de terreno | E52: =IF(ISNUMBER($L52),OFFSET(Banco!$A$1,Composições!$L52-1,COLUMN(Composições!E52)-1),"") -> M2 | F52: =ROUND($H52*ROUND(I52,2),2) -> 13.76 | G52: =ROUND($H52*ROUND(J52,2),2) -> 14.83 | H52: 2.06 | I52: =IF(ISNUMBER($L52),VALUE(OFFSET(Banco!$A$1,Composições!$L52-1,COLUMN(Composições!I52)-4)),0) -> 6.68 | J52: =IF(ISNUMBER($L52),VALUE(OFFSET(Banco!$A$1,Composições!$L52-1,COLUMN(Composições!J52)-4)),0) -> 7.2 | K52: =COUNTA($A$1:$A52)-1 -> 6 | L52: =MATCH(CONCATENATE($B52," ",$C52),Banco!$A:$A,0) -> 27 | M52: =IF(OR(ISERROR($L52),$H52="",$H52=0),"",OFFSET(M$1,MATCH($K52,$K$1:$K52,0)-1,0)) -> F | O52: =IF(ISNUMBER($L52),VALUE(OFFSET(Banco!$A$1,Composições!$L52-1,COLUMN(Composições!O52)-6)),0) -> 0 | P52: =IF(ISNUMBER($L52),VALUE(OFFSET(Banco!$A$1,Composições!$L52-1,COLUMN(Composições!P52)-6)),0) -> 0
K53: =COUNTA($A$1:$A53)-1 -> 6 | M53: =IF(OFFSET($M$1,MATCH(OFFSET(K53,-1,0),$K$1:$K53,0)-1,0)="F","F","") -> F
A54: =CONCATENATE($B54," ",$C54) -> Composição IUD20007 | B54: Composição | C54: IUD20007 | D54: BLDC - Boca-de-lobo dupla, em concreto simples fck 20 MPa, com guia chapeu, incluindo forma, escavação, calçamento ao redor e grelhas em FoFo tipo pesada, conforme projeto | E54: UN | F54: =IF($L54>0,SUM(OFFSET(F54,1,0,$L54),0)) -> 3177.17 | G54: =IF($L54>0,SUM(OFFSET(G54,1,0,$L54),0)) -> 3239.64 | I54: =IF(ISERROR(F54),0,F54) -> 3177.17 | J54: =IF(ISERROR(G54),0,G54) -> 3239.64 | K54: =COUNTA($A$1:$A54)-1 -> 7 | L54: =IF(MAX(K:K)=K54,MATCH(9999999,$K:$K)+1,MATCH(K54+1,K:K,0))-ROW(L54)-2 -> 10 | M54: =IF(AND(OR(I54<>0,J54<>0),N54="Sim"),"F","") -> F | N54: Sim
B55: Cotação | C55: IUD003 | D55: =IF(ISNUMBER($L55),OFFSET(Banco!$A$1,Composições!$L55-1,COLUMN(Composições!D55)-1),"") -> Grelha em FoFo, articulada, 1,0m x 0,45m -12 ton, fornecimento | E55: =IF(ISNUMBER($L55),OFFSET(Banco!$A$1,Composições!$L55-1,COLUMN(Composições!E55)-1),"") -> UN | F55: =ROUND($H55*ROUND(I55,2),2) -> 1505.2 | G55: =ROUND($H55*ROUND(J55,2),2) -> 1505.2 | H55: 2 | I55: =IF(ISNUMBER($L55),VALUE(OFFSET(Banco!$A$1,Composições!$L55-1,COLUMN(Composições!I55)-4)),0) -> 752.6 | J55: =IF(ISNUMBER($L55),VALUE(OFFSET(Banco!$A$1,Composições!$L55-1,COLUMN(Composições!J55)-4)),0) -> 752.6 | K55: =COUNTA($A$1:$A55)-1 -> 7 | L55: =MATCH(CONCATENATE($B55," ",$C55),Banco!$A:$A,0) -> 32 | M55: =IF(OR(ISERROR($L55),$H55="",$H55=0),"",OFFSET(M$1,MATCH($K55,$K$1:$K55,0)-1,0)) -> F | O55: =IF(ISNUMBER($L55),VALUE(OFFSET(Banco!$A$1,Composições!$L55-1,COLUMN(Composições!O55)-6)),0) -> 0 | P55: =IF(ISNUMBER($L55),VALUE(OFFSET(Banco!$A$1,Composições!$L55-1,COLUMN(Composições!P55)-6)),0) -> 0 | Q55: =ROUND(F55*O55,2) -> 0 | R55: =ROUND(G55*P55,2) -> 0
B56: SINAPI | C56: 92917 | D56: =IF(ISNUMBER($L56),OFFSET(Banco!$A$1,Composições!$L56-1,COLUMN(Composições!D56)-1),"") -> ARMAÇÃO DE ESTRUTURAS DIVERSAS DE CONCRETO ARMADO, EXCETO VIGAS, PILARES, LAJES E FUNDAÇÕES, UTILIZANDO AÇO CA-50 DE 8,0 MM - MONTAGEM. AF_06/2022 | E56: =IF(ISNUMBER($L56),OFFSET(Banco!$A$1,Composições!$L56-1,COLUMN(Composições!E56)-1),"") -> KG | F56: 114.68 | G56: 117 | H56: 8.59 | I56: =IF(ISNUMBER($L56),VALUE(OFFSET(Banco!$A$1,Composições!$L56-1,COLUMN(Composições!I56)-4)),0) -> 13.35 | J56: =IF(ISNUMBER($L56),VALUE(OFFSET(Banco!$A$1,Composições!$L56-1,COLUMN(Composições!J56)-4)),0) -> 13.62 | K56: =COUNTA($A$1:$A56)-1 -> 7 | L56: =MATCH(CONCATENATE($B56," ",$C56),Banco!$A:$A,0) -> 6312 | M56: =IF(OR(ISERROR($L56),$H56="",$H56=0),"",OFFSET(M$1,MATCH($K56,$K$1:$K56,0)-1,0)) -> F | O56: =IF(ISNUMBER($L56),VALUE(OFFSET(Banco!$A$1,Composições!$L56-1,COLUMN(Composições!O56)-6)),0) -> 0.012 | P56: =IF(ISNUMBER($L56),VALUE(OFFSET(Banco!$A$1,Composições!$L56-1,COLUMN(Composições!P56)-6)),0) -> 0.0117 | Q56: 1.38 | R56: 1.37
B57: SINAPI | C57: 92915 | D57: =IF(ISNUMBER($L57),OFFSET(Banco!$A$1,Composições!$L57-1,COLUMN(Composições!D57)-1),"") -> ARMAÇÃO DE ESTRUTURAS DIVERSAS DE CONCRETO ARMADO, EXCETO VIGAS, PILARES, LAJES E FUNDAÇÕES, UTILIZANDO AÇO CA-60 DE 5,0 MM - MONTAGEM. AF_06/2022 | E57: =IF(ISNUMBER($L57),OFFSET(Banco!$A$1,Composições!$L57-1,COLUMN(Composições!E57)-1),"") -> KG | F57: 40.23 | G57: 41.75 | H57: 2.53 | I57: =IF(ISNUMBER($L57),VALUE(OFFSET(Banco!$A$1,Composições!$L57-1,COLUMN(Composições!I57)-4)),0) -> 15.9 | J57: =IF(ISNUMBER($L57),VALUE(OFFSET(Banco!$A$1,Composições!$L57-1,COLUMN(Composições!J57)-4)),0) -> 16.5 | K57: =COUNTA($A$1:$A57)-1 -> 7 | L57: =MATCH(CONCATENATE($B57," ",$C57),Banco!$A:$A,0) -> 6313 | M57: =IF(OR(ISERROR($L57),$H57="",$H57=0),"",OFFSET(M$1,MATCH($K57,$K$1:$K57,0)-1,0)) -> F | O57: =IF(ISNUMBER($L57),VALUE(OFFSET(Banco!$A$1,Composições!$L57-1,COLUMN(Composições!O57)-6)),0) -> 0.0164 | P57: =IF(ISNUMBER($L57),VALUE(OFFSET(Banco!$A$1,Composições!$L57-1,COLUMN(Composições!P57)-6)),0) -> 0.0158 | Q57: 0.66 | R57: 0.66
B58: SINAPI | C58: 94964 | D58: =IF(ISNUMBER($L58),OFFSET(Banco!$A$1,Composições!$L58-1,COLUMN(Composições!D58)-1),"") -> CONCRETO FCK = 20MPA, TRAÇO 1:2,7:3 (EM MASSA SECA DE CIMENTO/ AREIA MÉDIA/ BRITA 1) - PREPARO MECÂNICO COM BETONEIRA 400 L. AF_05/2021 | E58: =IF(ISNUMBER($L58),OFFSET(Banco!$A$1,Composições!$L58-1,COLUMN(Composições!E58)-1),"") -> M3 | F58: 617.22 | G58: 626.64 | H58: 1.27 | I58: =IF(ISNUMBER($L58),VALUE(OFFSET(Banco!$A$1,Composições!$L58-1,COLUMN(Composições!I58)-4)),0) -> 486 | J58: =IF(ISNUMBER($L58),VALUE(OFFSET(Banco!$A$1,Composições!$L58-1,COLUMN(Composições!J58)-4)),0) -> 493.42 | K58: =COUNTA($A$1:$A58)-1 -> 7 | L58: =MATCH(CONCATENATE($B58," ",$C58),Banco!$A:$A,0) -> 14344 | M58: =IF(OR(ISERROR($L58),$H58="",$H58=0),"",OFFSET(M$1,MATCH($K58,$K$1:$K58,0)-1,0)) -> F | O58: =IF(ISNUMBER($L58),VALUE(OFFSET(Banco!$A$1,Composições!$L58-1,COLUMN(Composições!O58)-6)),0) -> 0 | P58: =IF(ISNUMBER($L58),VALUE(OFFSET(Banco!$A$1,Composições!$L58-1,COLUMN(Composições!P58)-6)),0) -> 0 | Q58: 0 | R58: 0
B59: Composição | C59: IUD20080 | D59: =IF(ISNUMBER($L59),OFFSET(Banco!$A$1,Composições!$L59-1,COLUMN(Composições!D59)-1),"") -> Escavação manual em solo-prof. até 1,50 m | E59: =IF(ISNUMBER($L59),OFFSET(Banco!$A$1,Composições!$L59-1,COLUMN(Composições!E59)-1),"") -> M3 | F59: 76.9 | G59: 82.97 | H59: 1.91 | I59: =IF(ISNUMBER($L59),VALUE(OFFSET(Banco!$A$1,Composições!$L59-1,COLUMN(Composições!I59)-4)),0) -> 40.26 | J59: =IF(ISNUMBER($L59),VALUE(OFFSET(Banco!$A$1,Composições!$L59-1,COLUMN(Composições!J59)-4)),0) -> 43.44 | K59: =COUNTA($A$1:$A59)-1 -> 7 | L59: =MATCH(CONCATENATE($B59," ",$C59),Banco!$A:$A,0) -> 7 | M59: =IF(OR(ISERROR($L59),$H59="",$H59=0),"",OFFSET(M$1,MATCH($K59,$K$1:$K59,0)-1,0)) -> F | O59: =IF(ISNUMBER($L59),VALUE(OFFSET(Banco!$A$1,Composições!$L59-1,COLUMN(Composições!O59)-6)),0) -> 0 | P59: =IF(ISNUMBER($L59),VALUE(OFFSET(Banco!$A$1,Composições!$L59-1,COLUMN(Composições!P59)-6)),0) -> 0 | Q59: 0 | R59: 0
B60: SINAPI | C60: 5928 | D60: =IF(ISNUMBER($L60),OFFSET(Banco!$A$1,Composições!$L60-1,COLUMN(Composições!D60)-1),"") -> GUINDAUTO HIDRÁULICO, CAPACIDADE MÁXIMA DE CARGA 6200 KG, MOMENTO MÁXIMO DE CARGA 11,7 TM, ALCANCE MÁXIMO HORIZONTAL 9,70 M, INCLUSIVE CAMINHÃO TOCO PBT 16.000 KG, POTÊNCIA DE 189 CV - CHP DIURNO. AF_06/2014 | E60: =IF(ISNUMBER($L60),OFFSET(Banco!$A$1,Composições!$L60-1,COLUMN(Composições!E60)-1),"") -> CHP | F60: 27.27 | G60: 27.49 | H60: 0.1 | I60: =IF(ISNUMBER($L60),VALUE(OFFSET(Banco!$A$1,Composições!$L60-1,COLUMN(Composições!I60)-4)),0) -> 272.65 | J60: =IF(ISNUMBER($L60),VALUE(OFFSET(Banco!$A$1,Composições!$L60-1,COLUMN(Composições!J60)-4)),0) -> 274.89 | K60: =COUNTA($A$1:$A60)-1 -> 7 | L60: =MATCH(CONCATENATE($B60," ",$C60),Banco!$A:$A,0) -> 7651 | M60: =IF(OR(ISERROR($L60),$H60="",$H60=0),"",OFFSET(M$1,MATCH($K60,$K$1:$K60,0)-1,0)) -> F | O60: =IF(ISNUMBER($L60),VALUE(OFFSET(Banco!$A$1,Composições!$L60-1,COLUMN(Composições!O60)-6)),0) -> 0.3241 | P60: =IF(ISNUMBER($L60),VALUE(OFFSET(Banco!$A$1,Composições!$L60-1,COLUMN(Composições!P60)-6)),0) -> 0.3214 | Q60: 8.84 | R60: 8.84
B61: SINAPI | C61: 103670 | D61: =IF(ISNUMBER($L61),OFFSET(Banco!$A$1,Composições!$L61-1,COLUMN(Composições!D61)-1),"") -> LANÇAMENTO COM USO DE BALDES, ADENSAMENTO E ACABAMENTO DE CONCRETO EM ESTRUTURAS. AF_02/2022 | E61: =IF(ISNUMBER($L61),OFFSET(Banco!$A$1,Composições!$L61-1,COLUMN(Composições!E61)-1),"") -> M3 | F61: 346.28 | G61: 374.45 | H61: 1.27 | I61: =IF(ISNUMBER($L61),VALUE(OFFSET(Banco!$A$1,Composições!$L61-1,COLUMN(Composições!I61)-4)),0) -> 272.66 | J61: =IF(ISNUMBER($L61),VALUE(OFFSET(Banco!$A$1,Composições!$L61-1,COLUMN(Composições!J61)-4)),0) -> 294.84 | K61: =COUNTA($A$1:$A61)-1 -> 7 | L61: =MATCH(CONCATENATE($B61," ",$C61),Banco!$A:$A,0) -> 7335 | M61: =IF(OR(ISERROR($L61),$H61="",$H61=0),"",OFFSET(M$1,MATCH($K61,$K$1:$K61,0)-1,0)) -> F | O61: =IF(ISNUMBER($L61),VALUE(OFFSET(Banco!$A$1,Composições!$L61-1,COLUMN(Composições!O61)-6)),0) -> 0.0064 | P61: =IF(ISNUMBER($L61),VALUE(OFFSET(Banco!$A$1,Composições!$L61-1,COLUMN(Composições!P61)-6)),0) -> 0.0059 | Q61: 2.22 | R61: 2.21
B62: SINAPI | C62: 92431 | D62: =IF(ISNUMBER($L62),OFFSET(Banco!$A$1,Composições!$L62-1,COLUMN(Composições!D62)-1),"") -> MONTAGEM E DESMONTAGEM DE FÔRMA DE PILARES RETANGULARES E ESTRUTURAS SIMILARES, PÉ-DIREITO SIMPLES, EM CHAPA DE MADEIRA COMPENSADA PLASTIFICADA, 10 UTILIZAÇÕES. AF_09/2020 | E62: =IF(ISNUMBER($L62),OFFSET(Banco!$A$1,Composições!$L62-1,COLUMN(Composições!E62)-1),"") -> M2 | F62: 415.69 | G62: 428.28 | H62: 6.36 | I62: =IF(ISNUMBER($L62),VALUE(OFFSET(Banco!$A$1,Composições!$L62-1,COLUMN(Composições!I62)-4)),0) -> 65.36 | J62: =IF(ISNUMBER($L62),VALUE(OFFSET(Banco!$A$1,Composições!$L62-1,COLUMN(Composições!J62)-4)),0) -> 67.34 | K62: =COUNTA($A$1:$A62)-1 -> 7 | L62: =MATCH(CONCATENATE($B62," ",$C62),Banco!$A:$A,0) -> 10102 | M62: =IF(OR(ISERROR($L62),$H62="",$H62=0),"",OFFSET(M$1,MATCH($K62,$K$1:$K62,0)-1,0)) -> F | O62: =IF(ISNUMBER($L62),VALUE(OFFSET(Banco!$A$1,Composições!$L62-1,COLUMN(Composições!O62)-6)),0) -> 0 | P62: =IF(ISNUMBER($L62),VALUE(OFFSET(Banco!$A$1,Composições!$L62-1,COLUMN(Composições!P62)-6)),0) -> 0 | Q62: 0 | R62: 0
B63: Composição | C63: IUP30002 | D63: =IF(ISNUMBER($L63),OFFSET(Banco!$A$1,Composições!$L63-1,COLUMN(Composições!D63)-1),"") -> Recorte mecânico de pavimento asfáltico ou piso de concreto, com serra de disco diamantado para piso/asfalto | E63: =IF(ISNUMBER($L63),OFFSET(Banco!$A$1,Composições!$L63-1,COLUMN(Composições!E63)-1),"") -> M | F63: 13.53 | G63: 14.12 | H63: 4.51 | I63: =IF(ISNUMBER($L63),VALUE(OFFSET(Banco!$A$1,Composições!$L63-1,COLUMN(Composições!I63)-4)),0) -> 3 | J63: =IF(ISNUMBER($L63),VALUE(OFFSET(Banco!$A$1,Composições!$L63-1,COLUMN(Composições!J63)-4)),0) -> 3.13 | K63: =COUNTA($A$1:$A63)-1 -> 7 | L63: =MATCH(CONCATENATE($B63," ",$C63),Banco!$A:$A,0) -> 26 | M63: =IF(OR(ISERROR($L63),$H63="",$H63=0),"",OFFSET(M$1,MATCH($K63,$K$1:$K63,0)-1,0)) -> F | O63: =IF(ISNUMBER($L63),VALUE(OFFSET(Banco!$A$1,Composições!$L63-1,COLUMN(Composições!O63)-6)),0) -> 0 | P63: =IF(ISNUMBER($L63),VALUE(OFFSET(Banco!$A$1,Composições!$L63-1,COLUMN(Composições!P63)-6)),0) -> 0 | Q63: 0 | R63: 0
B64: Composição | C64: IUD20075 | D64: =IF(ISNUMBER($L64),OFFSET(Banco!$A$1,Composições!$L64-1,COLUMN(Composições!D64)-1),"") -> Regularização manual e compactação mecânica de terreno | E64: =IF(ISNUMBER($L64),OFFSET(Banco!$A$1,Composições!$L64-1,COLUMN(Composições!E64)-1),"") -> M2 | F64: =ROUND($H64*ROUND(I64,2),2) -> 20.17 | G64: =ROUND($H64*ROUND(J64,2),2) -> 21.74 | H64: 3.02 | I64: =IF(ISNUMBER($L64),VALUE(OFFSET(Banco!$A$1,Composições!$L64-1,COLUMN(Composições!I64)-4)),0) -> 6.68 | J64: =IF(ISNUMBER($L64),VALUE(OFFSET(Banco!$A$1,Composições!$L64-1,COLUMN(Composições!J64)-4)),0) -> 7.2 | K64: =COUNTA($A$1:$A64)-1 -> 7 | L64: =MATCH(CONCATENATE($B64," ",$C64),Banco!$A:$A,0) -> 27 | M64: =IF(OR(ISERROR($L64),$H64="",$H64=0),"",OFFSET(M$1,MATCH($K64,$K$1:$K64,0)-1,0)) -> F | O64: =IF(ISNUMBER($L64),VALUE(OFFSET(Banco!$A$1,Composições!$L64-1,COLUMN(Composições!O64)-6)),0) -> 0 | P64: =IF(ISNUMBER($L64),VALUE(OFFSET(Banco!$A$1,Composições!$L64-1,COLUMN(Composições!P64)-6)),0) -> 0
K65: =COUNTA($A$1:$A65)-1 -> 7 | M65: =IF(OFFSET($M$1,MATCH(OFFSET(K65,-1,0),$K$1:$K65,0)-1,0)="F","F","") -> F
A66: =CONCATENATE($B66," ",$C66) -> Composição IUD20008 | B66: Composição | C66: IUD20008 | D66: BLTC - Boca-de-lobo tripla, em concreto simples fck 20 MPa, com guia chapeu, incluindo forma, escavação, calçamento ao redor e grelhas em f°f° tipo pesada, conforme projeto | E66: UN | F66: =IF($L66>0,SUM(OFFSET(F66,1,0,$L66),0)) -> 4652.22 | G66: =IF($L66>0,SUM(OFFSET(G66,1,0,$L66),0)) -> 4742.04 | I66: =IF(ISERROR(F66),0,F66) -> 4652.22 | J66: =IF(ISERROR(G66),0,G66) -> 4742.04 | K66: =COUNTA($A$1:$A66)-1 -> 8 | L66: =IF(MAX(K:K)=K66,MATCH(9999999,$K:$K)+1,MATCH(K66+1,K:K,0))-ROW(L66)-2 -> 10 | M66: =IF(AND(OR(I66<>0,J66<>0),N66="Sim"),"F","") -> F | N66: Sim
B67: Cotação | C67: IUD003 | D67: =IF(ISNUMBER($L67),OFFSET(Banco!$A$1,Composições!$L67-1,COLUMN(Composições!D67)-1),"") -> Grelha em FoFo, articulada, 1,0m x 0,45m -12 ton, fornecimento | E67: =IF(ISNUMBER($L67),OFFSET(Banco!$A$1,Composições!$L67-1,COLUMN(Composições!E67)-1),"") -> UN | F67: =ROUND($H67*ROUND(I67,2),2) -> 2257.8 | G67: =ROUND($H67*ROUND(J67,2),2) -> 2257.8 | H67: 3 | I67: =IF(ISNUMBER($L67),VALUE(OFFSET(Banco!$A$1,Composições!$L67-1,COLUMN(Composições!I67)-4)),0) -> 752.6 | J67: =IF(ISNUMBER($L67),VALUE(OFFSET(Banco!$A$1,Composições!$L67-1,COLUMN(Composições!J67)-4)),0) -> 752.6 | K67: =COUNTA($A$1:$A67)-1 -> 8 | L67: =MATCH(CONCATENATE($B67," ",$C67),Banco!$A:$A,0) -> 32 | M67: =IF(OR(ISERROR($L67),$H67="",$H67=0),"",OFFSET(M$1,MATCH($K67,$K$1:$K67,0)-1,0)) -> F | O67: =IF(ISNUMBER($L67),VALUE(OFFSET(Banco!$A$1,Composições!$L67-1,COLUMN(Composições!O67)-6)),0) -> 0 | P67: =IF(ISNUMBER($L67),VALUE(OFFSET(Banco!$A$1,Composições!$L67-1,COLUMN(Composições!P67)-6)),0) -> 0 | Q67: =ROUND(F67*O67,2) -> 0 | R67: =ROUND(G67*P67,2) -> 0
B68: SINAPI | C68: 92917 | D68: =IF(ISNUMBER($L68),OFFSET(Banco!$A$1,Composições!$L68-1,COLUMN(Composições!D68)-1),"") -> ARMAÇÃO DE ESTRUTURAS DIVERSAS DE CONCRETO ARMADO, EXCETO VIGAS, PILARES, LAJES E FUNDAÇÕES, UTILIZANDO AÇO CA-50 DE 8,0 MM - MONTAGEM. AF_06/2022 | E68: =IF(ISNUMBER($L68),OFFSET(Banco!$A$1,Composições!$L68-1,COLUMN(Composições!E68)-1),"") -> KG | F68: 169.28 | G68: 172.7 | H68: 12.68 | I68: =IF(ISNUMBER($L68),VALUE(OFFSET(Banco!$A$1,Composições!$L68-1,COLUMN(Composições!I68)-4)),0) -> 13.35 | J68: =IF(ISNUMBER($L68),VALUE(OFFSET(Banco!$A$1,Composições!$L68-1,COLUMN(Composições!J68)-4)),0) -> 13.62 | K68: =COUNTA($A$1:$A68)-1 -> 8 | L68: =MATCH(CONCATENATE($B68," ",$C68),Banco!$A:$A,0) -> 6312 | M68: =IF(OR(ISERROR($L68),$H68="",$H68=0),"",OFFSET(M$1,MATCH($K68,$K$1:$K68,0)-1,0)) -> F | O68: =IF(ISNUMBER($L68),VALUE(OFFSET(Banco!$A$1,Composições!$L68-1,COLUMN(Composições!O68)-6)),0) -> 0.012 | P68: =IF(ISNUMBER($L68),VALUE(OFFSET(Banco!$A$1,Composições!$L68-1,COLUMN(Composições!P68)-6)),0) -> 0.0117 | Q68: 2.03 | R68: 2.02
B69: SINAPI | C69: 92915 | D69: =IF(ISNUMBER($L69),OFFSET(Banco!$A$1,Composições!$L69-1,COLUMN(Composições!D69)-1),"") -> ARMAÇÃO DE ESTRUTURAS DIVERSAS DE CONCRETO ARMADO, EXCETO VIGAS, PILARES, LAJES E FUNDAÇÕES, UTILIZANDO AÇO CA-60 DE 5,0 MM - MONTAGEM. AF_06/2022 | E69: =IF(ISNUMBER($L69),OFFSET(Banco!$A$1,Composições!$L69-1,COLUMN(Composições!E69)-1),"") -> KG | F69: 67.26 | G69: 69.8 | H69: 4.23 | I69: =IF(ISNUMBER($L69),VALUE(OFFSET(Banco!$A$1,Composições!$L69-1,COLUMN(Composições!I69)-4)),0) -> 15.9 | J69: =IF(ISNUMBER($L69),VALUE(OFFSET(Banco!$A$1,Composições!$L69-1,COLUMN(Composições!J69)-4)),0) -> 16.5 | K69: =COUNTA($A$1:$A69)-1 -> 8 | L69: =MATCH(CONCATENATE($B69," ",$C69),Banco!$A:$A,0) -> 6313 | M69: =IF(OR(ISERROR($L69),$H69="",$H69=0),"",OFFSET(M$1,MATCH($K69,$K$1:$K69,0)-1,0)) -> F | O69: =IF(ISNUMBER($L69),VALUE(OFFSET(Banco!$A$1,Composições!$L69-1,COLUMN(Composições!O69)-6)),0) -> 0.0164 | P69: =IF(ISNUMBER($L69),VALUE(OFFSET(Banco!$A$1,Composições!$L69-1,COLUMN(Composições!P69)-6)),0) -> 0.0158 | Q69: 1.1 | R69: 1.1
B70: SINAPI | C70: 94964 | D70: =IF(ISNUMBER($L70),OFFSET(Banco!$A$1,Composições!$L70-1,COLUMN(Composições!D70)-1),"") -> CONCRETO FCK = 20MPA, TRAÇO 1:2,7:3 (EM MASSA SECA DE CIMENTO/ AREIA MÉDIA/ BRITA 1) - PREPARO MECÂNICO COM BETONEIRA 400 L. AF_05/2021 | E70: =IF(ISNUMBER($L70),OFFSET(Banco!$A$1,Composições!$L70-1,COLUMN(Composições!E70)-1),"") -> M3 | F70: 882.09 | G70: 895.56 | H70: 1.815 | I70: =IF(ISNUMBER($L70),VALUE(OFFSET(Banco!$A$1,Composições!$L70-1,COLUMN(Composições!I70)-4)),0) -> 486 | J70: =IF(ISNUMBER($L70),VALUE(OFFSET(Banco!$A$1,Composições!$L70-1,COLUMN(Composições!J70)-4)),0) -> 493.42 | K70: =COUNTA($A$1:$A70)-1 -> 8 | L70: =MATCH(CONCATENATE($B70," ",$C70),Banco!$A:$A,0) -> 14344 | M70: =IF(OR(ISERROR($L70),$H70="",$H70=0),"",OFFSET(M$1,MATCH($K70,$K$1:$K70,0)-1,0)) -> F | O70: =IF(ISNUMBER($L70),VALUE(OFFSET(Banco!$A$1,Composições!$L70-1,COLUMN(Composições!O70)-6)),0) -> 0 | P70: =IF(ISNUMBER($L70),VALUE(OFFSET(Banco!$A$1,Composições!$L70-1,COLUMN(Composições!P70)-6)),0) -> 0 | Q70: 0 | R70: 0
B71: Composição | C71: IUD20080 | D71: =IF(ISNUMBER($L71),OFFSET(Banco!$A$1,Composições!$L71-1,COLUMN(Composições!D71)-1),"") -> Escavação manual em solo-prof. até 1,50 m | E71: =IF(ISNUMBER($L71),OFFSET(Banco!$A$1,Composições!$L71-1,COLUMN(Composições!E71)-1),"") -> M3 | F71: 115.14 | G71: 124.24 | H71: 2.86 | I71: =IF(ISNUMBER($L71),VALUE(OFFSET(Banco!$A$1,Composições!$L71-1,COLUMN(Composições!I71)-4)),0) -> 40.26 | J71: =IF(ISNUMBER($L71),VALUE(OFFSET(Banco!$A$1,Composições!$L71-1,COLUMN(Composições!J71)-4)),0) -> 43.44 | K71: =COUNTA($A$1:$A71)-1 -> 8 | L71: =MATCH(CONCATENATE($B71," ",$C71),Banco!$A:$A,0) -> 7 | M71: =IF(OR(ISERROR($L71),$H71="",$H71=0),"",OFFSET(M$1,MATCH($K71,$K$1:$K71,0)-1,0)) -> F | O71: =IF(ISNUMBER($L71),VALUE(OFFSET(Banco!$A$1,Composições!$L71-1,COLUMN(Composições!O71)-6)),0) -> 0 | P71: =IF(ISNUMBER($L71),VALUE(OFFSET(Banco!$A$1,Composições!$L71-1,COLUMN(Composições!P71)-6)),0) -> 0 | Q71: 0 | R71: 0
B72: SINAPI | C72: 5928 | D72: =IF(ISNUMBER($L72),OFFSET(Banco!$A$1,Composições!$L72-1,COLUMN(Composições!D72)-1),"") -> GUINDAUTO HIDRÁULICO, CAPACIDADE MÁXIMA DE CARGA 6200 KG, MOMENTO MÁXIMO DE CARGA 11,7 TM, ALCANCE MÁXIMO HORIZONTAL 9,70 M, INCLUSIVE CAMINHÃO TOCO PBT 16.000 KG, POTÊNCIA DE 189 CV - CHP DIURNO. AF_06/2014 | E72: =IF(ISNUMBER($L72),OFFSET(Banco!$A$1,Composições!$L72-1,COLUMN(Composições!E72)-1),"") -> CHP | F72: 27.27 | G72: 27.49 | H72: 0.1 | I72: =IF(ISNUMBER($L72),VALUE(OFFSET(Banco!$A$1,Composições!$L72-1,COLUMN(Composições!I72)-4)),0) -> 272.65 | J72: =IF(ISNUMBER($L72),VALUE(OFFSET(Banco!$A$1,Composições!$L72-1,COLUMN(Composições!J72)-4)),0) -> 274.89 | K72: =COUNTA($A$1:$A72)-1 -> 8 | L72: =MATCH(CONCATENATE($B72," ",$C72),Banco!$A:$A,0) -> 7651 | M72: =IF(OR(ISERROR($L72),$H72="",$H72=0),"",OFFSET(M$1,MATCH($K72,$K$1:$K72,0)-1,0)) -> F | O72: =IF(ISNUMBER($L72),VALUE(OFFSET(Banco!$A$1,Composições!$L72-1,COLUMN(Composições!O72)-6)),0) -> 0.3241 | P72: =IF(ISNUMBER($L72),VALUE(OFFSET(Banco!$A$1,Composições!$L72-1,COLUMN(Composições!P72)-6)),0) -> 0.3214 | Q72: 8.84 | R72: 8.84
B73: SINAPI | C73: 103670 | D73: =IF(ISNUMBER($L73),OFFSET(Banco!$A$1,Composições!$L73-1,COLUMN(Composições!D73)-1),"") -> LANÇAMENTO COM USO DE BALDES, ADENSAMENTO E ACABAMENTO DE CONCRETO EM ESTRUTURAS. AF_02/2022 | E73: =IF(ISNUMBER($L73),OFFSET(Banco!$A$1,Composições!$L73-1,COLUMN(Composições!E73)-1),"") -> M3 | F73: 494.88 | G73: 535.13 | H73: 1.815 | I73: =IF(ISNUMBER($L73),VALUE(OFFSET(Banco!$A$1,Composições!$L73-1,COLUMN(Composições!I73)-4)),0) -> 272.66 | J73: =IF(ISNUMBER($L73),VALUE(OFFSET(Banco!$A$1,Composições!$L73-1,COLUMN(Composições!J73)-4)),0) -> 294.84 | K73: =COUNTA($A$1:$A73)-1 -> 8 | L73: =MATCH(CONCATENATE($B73," ",$C73),Banco!$A:$A,0) -> 7335 | M73: =IF(OR(ISERROR($L73),$H73="",$H73=0),"",OFFSET(M$1,MATCH($K73,$K$1:$K73,0)-1,0)) -> F | O73: =IF(ISNUMBER($L73),VALUE(OFFSET(Banco!$A$1,Composições!$L73-1,COLUMN(Composições!O73)-6)),0) -> 0.0064 | P73: =IF(ISNUMBER($L73),VALUE(OFFSET(Banco!$A$1,Composições!$L73-1,COLUMN(Composições!P73)-6)),0) -> 0.0059 | Q73: 3.17 | R73: 3.16
B74: SINAPI | C74: 92431 | D74: =IF(ISNUMBER($L74),OFFSET(Banco!$A$1,Composições!$L74-1,COLUMN(Composições!D74)-1),"") -> MONTAGEM E DESMONTAGEM DE FÔRMA DE PILARES RETANGULARES E ESTRUTURAS SIMILARES, PÉ-DIREITO SIMPLES, EM CHAPA DE MADEIRA COMPENSADA PLASTIFICADA, 10 UTILIZAÇÕES. AF_09/2020 | E74: =IF(ISNUMBER($L74),OFFSET(Banco!$A$1,Composições!$L74-1,COLUMN(Composições!E74)-1),"") -> M2 | F74: 594.78 | G74: 612.79 | H74: 9.1 | I74: =IF(ISNUMBER($L74),VALUE(OFFSET(Banco!$A$1,Composições!$L74-1,COLUMN(Composições!I74)-4)),0) -> 65.36 | J74: =IF(ISNUMBER($L74),VALUE(OFFSET(Banco!$A$1,Composições!$L74-1,COLUMN(Composições!J74)-4)),0) -> 67.34 | K74: =COUNTA($A$1:$A74)-1 -> 8 | L74: =MATCH(CONCATENATE($B74," ",$C74),Banco!$A:$A,0) -> 10102 | M74: =IF(OR(ISERROR($L74),$H74="",$H74=0),"",OFFSET(M$1,MATCH($K74,$K$1:$K74,0)-1,0)) -> F | O74: =IF(ISNUMBER($L74),VALUE(OFFSET(Banco!$A$1,Composições!$L74-1,COLUMN(Composições!O74)-6)),0) -> 0 | P74: =IF(ISNUMBER($L74),VALUE(OFFSET(Banco!$A$1,Composições!$L74-1,COLUMN(Composições!P74)-6)),0) -> 0 | Q74: 0 | R74: 0
B75: Composição | C75: IUP30002 | D75: =IF(ISNUMBER($L75),OFFSET(Banco!$A$1,Composições!$L75-1,COLUMN(Composições!D75)-1),"") -> Recorte mecânico de pavimento asfáltico ou piso de concreto, com serra de disco diamantado para piso/asfalto | E75: =IF(ISNUMBER($L75),OFFSET(Banco!$A$1,Composições!$L75-1,COLUMN(Composições!E75)-1),"") -> M | F75: 17.13 | G75: 17.87 | H75: 5.71 | I75: =IF(ISNUMBER($L75),VALUE(OFFSET(Banco!$A$1,Composições!$L75-1,COLUMN(Composições!I75)-4)),0) -> 3 | J75: =IF(ISNUMBER($L75),VALUE(OFFSET(Banco!$A$1,Composições!$L75-1,COLUMN(Composições!J75)-4)),0) -> 3.13 | K75: =COUNTA($A$1:$A75)-1 -> 8 | L75: =MATCH(CONCATENATE($B75," ",$C75),Banco!$A:$A,0) -> 26 | M75: =IF(OR(ISERROR($L75),$H75="",$H75=0),"",OFFSET(M$1,MATCH($K75,$K$1:$K75,0)-1,0)) -> F | O75: =IF(ISNUMBER($L75),VALUE(OFFSET(Banco!$A$1,Composições!$L75-1,COLUMN(Composições!O75)-6)),0) -> 0 | P75: =IF(ISNUMBER($L75),VALUE(OFFSET(Banco!$A$1,Composições!$L75-1,COLUMN(Composições!P75)-6)),0) -> 0 | Q75: 0 | R75: 0
B76: Composição | C76: IUD20075 | D76: =IF(ISNUMBER($L76),OFFSET(Banco!$A$1,Composições!$L76-1,COLUMN(Composições!D76)-1),"") -> Regularização manual e compactação mecânica de terreno | E76: =IF(ISNUMBER($L76),OFFSET(Banco!$A$1,Composições!$L76-1,COLUMN(Composições!E76)-1),"") -> M2 | F76: =ROUND($H76*ROUND(I76,2),2) -> 26.59 | G76: =ROUND($H76*ROUND(J76,2),2) -> 28.66 | H76: 3.98 | I76: =IF(ISNUMBER($L76),VALUE(OFFSET(Banco!$A$1,Composições!$L76-1,COLUMN(Composições!I76)-4)),0) -> 6.68 | J76: =IF(ISNUMBER($L76),VALUE(OFFSET(Banco!$A$1,Composições!$L76-1,COLUMN(Composições!J76)-4)),0) -> 7.2 | K76: =COUNTA($A$1:$A76)-1 -> 8 | L76: =MATCH(CONCATENATE($B76," ",$C76),Banco!$A:$A,0) -> 27 | M76: =IF(OR(ISERROR($L76),$H76="",$H76=0),"",OFFSET(M$1,MATCH($K76,$K$1:$K76,0)-1,0)) -> F | O76: =IF(ISNUMBER($L76),VALUE(OFFSET(Banco!$A$1,Composições!$L76-1,COLUMN(Composições!O76)-6)),0) -> 0 | P76: =IF(ISNUMBER($L76),VALUE(OFFSET(Banco!$A$1,Composições!$L76-1,COLUMN(Composições!P76)-6)),0) -> 0
K77: =COUNTA($A$1:$A77)-1 -> 8 | M77: =IF(OFFSET($M$1,MATCH(OFFSET(K77,-1,0),$K$1:$K77,0)-1,0)="F","F","") -> F
A78: =CONCATENATE($B78," ",$C78) -> Composição IUD20087 | B78: Composição | C78: IUD20087 | D78: PV-1 - Poço-de-visita 2,32x2,32m, em alv. de bloco estrutural, rev. int. com argam. 1:3, lastro de brita 12cm, berço 18cm em conc. fck = 15 MPa, laje de 12cm em conc. armado fck = 20 MPa, incl. forma, escav. manual e reat. apiloado. Excl. pescoço e tampão | E78: UN | F78: =IF($L78>0,SUM(OFFSET(F78,1,0,$L78),0)) -> 5165.37 | G78: =IF($L78>0,SUM(OFFSET(G78,1,0,$L78),0)) -> 5342.49 | I78: =IF(ISERROR(F78),0,F78) -> 5165.37 | J78: =IF(ISERROR(G78),0,G78) -> 5342.49 | K78: =COUNTA($A$1:$A78)-1 -> 9 | L78: =IF(MAX(K:K)=K78,MATCH(9999999,$K:$K)+1,MATCH(K78+1,K:K,0))-ROW(L78)-2 -> 12 | M78: =IF(AND(OR(I78<>0,J78<>0),N78="Sim"),"F","") -> F | N78: Sim
B79: SINAPI | C79: 103320 | D79: =IF(ISNUMBER($L79),OFFSET(Banco!$A$1,Composições!$L79-1,COLUMN(Composições!D79)-1),"") -> ALVENARIA DE VEDAÇÃO DE BLOCOS VAZADOS DE CONCRETO DE 19X19X39 CM (ESPESSURA 19 CM) E ARGAMASSA DE ASSENTAMENTO COM PREPARO EM BETONEIRA. AF_12/2021 | E79: =IF(ISNUMBER($L79),OFFSET(Banco!$A$1,Composições!$L79-1,COLUMN(Composições!E79)-1),"") -> M2 | F79: =ROUND($H79*ROUND(I79,2),2) -> 1621.9 | G79: =ROUND($H79*ROUND(J79,2),2) -> 1670.37 | H79: 14.09 | I79: =IF(ISNUMBER($L79),VALUE(OFFSET(Banco!$A$1,Composições!$L79-1,COLUMN(Composições!I79)-4)),0) -> 115.11 | J79: =IF(ISNUMBER($L79),VALUE(OFFSET(Banco!$A$1,Composições!$L79-1,COLUMN(Composições!J79)-4)),0) -> 118.55 | K79: =COUNTA($A$1:$A79)-1 -> 9 | L79: =MATCH(CONCATENATE($B79," ",$C79),Banco!$A:$A,0) -> 6112 | M79: =IF(OR(ISERROR($L79),$H79="",$H79=0),"",OFFSET(M$1,MATCH($K79,$K$1:$K79,0)-1,0)) -> F | O79: =IF(ISNUMBER($L79),VALUE(OFFSET(Banco!$A$1,Composições!$L79-1,COLUMN(Composições!O79)-6)),0) -> 0.0036 | P79: =IF(ISNUMBER($L79),VALUE(OFFSET(Banco!$A$1,Composições!$L79-1,COLUMN(Composições!P79)-6)),0) -> 0.0035 | Q79: =ROUND(F79*O79,2) -> 5.84 | R79: =ROUND(G79*P79,2) -> 5.85
B80: SINAPI | C80: 87313 | D80: =IF(ISNUMBER($L80),OFFSET(Banco!$A$1,Composições!$L80-1,COLUMN(Composições!D80)-1),"") -> ARGAMASSA TRAÇO 1:3 (EM VOLUME DE CIMENTO E AREIA GROSSA ÚMIDA) PARA CHAPISCO CONVENCIONAL, PREPARO MECÂNICO COM BETONEIRA 400 L. AF_08/2019 | E80: =IF(ISNUMBER($L80),OFFSET(Banco!$A$1,Composições!$L80-1,COLUMN(Composições!E80)-1),"") -> M3 | F80: 197.06 | G80: 200.34 | H80: 0.36 | I80: =IF(ISNUMBER($L80),VALUE(OFFSET(Banco!$A$1,Composições!$L80-1,COLUMN(Composições!I80)-4)),0) -> 547.39 | J80: =IF(ISNUMBER($L80),VALUE(OFFSET(Banco!$A$1,Composições!$L80-1,COLUMN(Composições!J80)-4)),0) -> 556.5 | K80: =COUNTA($A$1:$A80)-1 -> 9 | L80: =MATCH(CONCATENATE($B80," ",$C80),Banco!$A:$A,0) -> 6192 | M80: =IF(OR(ISERROR($L80),$H80="",$H80=0),"",OFFSET(M$1,MATCH($K80,$K$1:$K80,0)-1,0)) -> F | O80: =IF(ISNUMBER($L80),VALUE(OFFSET(Banco!$A$1,Composições!$L80-1,COLUMN(Composições!O80)-6)),0) -> 0 | P80: =IF(ISNUMBER($L80),VALUE(OFFSET(Banco!$A$1,Composições!$L80-1,COLUMN(Composições!P80)-6)),0) -> 0 | Q80: 0 | R80: 0
B81: SINAPI | C81: 92916 | D81: =IF(ISNUMBER($L81),OFFSET(Banco!$A$1,Composições!$L81-1,COLUMN(Composições!D81)-1),"") -> ARMAÇÃO DE ESTRUTURAS DIVERSAS DE CONCRETO ARMADO, EXCETO VIGAS, PILARES, LAJES E FUNDAÇÕES, UTILIZANDO AÇO CA-50 DE 6,3 MM - MONTAGEM. AF_06/2022 | E81: =IF(ISNUMBER($L81),OFFSET(Banco!$A$1,Composições!$L81-1,COLUMN(Composições!E81)-1),"") -> KG | F81: 914.54 | G81: 940.23 | H81: 62.64 | I81: =IF(ISNUMBER($L81),VALUE(OFFSET(Banco!$A$1,Composições!$L81-1,COLUMN(Composições!I81)-4)),0) -> 14.6 | J81: =IF(ISNUMBER($L81),VALUE(OFFSET(Banco!$A$1,Composições!$L81-1,COLUMN(Composições!J81)-4)),0) -> 15.01 | K81: =COUNTA($A$1:$A81)-1 -> 9 | L81: =MATCH(CONCATENATE($B81," ",$C81),Banco!$A:$A,0) -> 6311 | M81: =IF(OR(ISERROR($L81),$H81="",$H81=0),"",OFFSET(M$1,MATCH($K81,$K$1:$K81,0)-1,0)) -> F | O81: =IF(ISNUMBER($L81),VALUE(OFFSET(Banco!$A$1,Composições!$L81-1,COLUMN(Composições!O81)-6)),0) -> 0.0144 | P81: =IF(ISNUMBER($L81),VALUE(OFFSET(Banco!$A$1,Composições!$L81-1,COLUMN(Composições!P81)-6)),0) -> 0.014 | Q81: 13.17 | R81: 13.16
B82: SINAPI | C82: 87878 | D82: =IF(ISNUMBER($L82),OFFSET(Banco!$A$1,Composições!$L82-1,COLUMN(Composições!D82)-1),"") -> CHAPISCO APLICADO EM ALVENARIAS E ESTRUTURAS DE CONCRETO INTERNAS, COM COLHER DE PEDREIRO. ARGAMASSA TRAÇO 1:3 COM PREPARO MANUAL. AF_10/2022 | E82: =IF(ISNUMBER($L82),OFFSET(Banco!$A$1,Composições!$L82-1,COLUMN(Composições!E82)-1),"") -> M2 | F82: 67.15 | G82: 70.61 | H82: 14.44 | I82: =IF(ISNUMBER($L82),VALUE(OFFSET(Banco!$A$1,Composições!$L82-1,COLUMN(Composições!I82)-4)),0) -> 4.65 | J82: =IF(ISNUMBER($L82),VALUE(OFFSET(Banco!$A$1,Composições!$L82-1,COLUMN(Composições!J82)-4)),0) -> 4.89 | K82: =COUNTA($A$1:$A82)-1 -> 9 | L82: =MATCH(CONCATENATE($B82," ",$C82),Banco!$A:$A,0) -> 7308 | M82: =IF(OR(ISERROR($L82),$H82="",$H82=0),"",OFFSET(M$1,MATCH($K82,$K$1:$K82,0)-1,0)) -> F | O82: =IF(ISNUMBER($L82),VALUE(OFFSET(Banco!$A$1,Composições!$L82-1,COLUMN(Composições!O82)-6)),0) -> 0 | P82: =IF(ISNUMBER($L82),VALUE(OFFSET(Banco!$A$1,Composições!$L82-1,COLUMN(Composições!P82)-6)),0) -> 0 | Q82: 0 | R82: 0
B83: SINAPI | C83: 94964 | D83: =IF(ISNUMBER($L83),OFFSET(Banco!$A$1,Composições!$L83-1,COLUMN(Composições!D83)-1),"") -> CONCRETO FCK = 20MPA, TRAÇO 1:2,7:3 (EM MASSA SECA DE CIMENTO/ AREIA MÉDIA/ BRITA 1) - PREPARO MECÂNICO COM BETONEIRA 400 L. AF_05/2021 | E83: =IF(ISNUMBER($L83),OFFSET(Banco!$A$1,Composições!$L83-1,COLUMN(Composições!E83)-1),"") -> M3 | F83: 1142.1 | G83: 1159.54 | H83: 2.35 | I83: =IF(ISNUMBER($L83),VALUE(OFFSET(Banco!$A$1,Composições!$L83-1,COLUMN(Composições!I83)-4)),0) -> 486 | J83: =IF(ISNUMBER($L83),VALUE(OFFSET(Banco!$A$1,Composições!$L83-1,COLUMN(Composições!J83)-4)),0) -> 493.42 | K83: =COUNTA($A$1:$A83)-1 -> 9 | L83: =MATCH(CONCATENATE($B83," ",$C83),Banco!$A:$A,0) -> 14344 | M83: =IF(OR(ISERROR($L83),$H83="",$H83=0),"",OFFSET(M$1,MATCH($K83,$K$1:$K83,0)-1,0)) -> F | O83: =IF(ISNUMBER($L83),VALUE(OFFSET(Banco!$A$1,Composições!$L83-1,COLUMN(Composições!O83)-6)),0) -> 0 | P83: =IF(ISNUMBER($L83),VALUE(OFFSET(Banco!$A$1,Composições!$L83-1,COLUMN(Composições!P83)-6)),0) -> 0 | Q83: 0 | R83: 0
B84: Composição | C84: IUD20080 | D84: =IF(ISNUMBER($L84),OFFSET(Banco!$A$1,Composições!$L84-1,COLUMN(Composições!D84)-1),"") -> Escavação manual em solo-prof. até 1,50 m | E84: =IF(ISNUMBER($L84),OFFSET(Banco!$A$1,Composições!$L84-1,COLUMN(Composições!E84)-1),"") -> M3 | F84: 52.34 | G84: 56.47 | H84: 1.3 | I84: =IF(ISNUMBER($L84),VALUE(OFFSET(Banco!$A$1,Composições!$L84-1,COLUMN(Composições!I84)-4)),0) -> 40.26 | J84: =IF(ISNUMBER($L84),VALUE(OFFSET(Banco!$A$1,Composições!$L84-1,COLUMN(Composições!J84)-4)),0) -> 43.44 | K84: =COUNTA($A$1:$A84)-1 -> 9 | L84: =MATCH(CONCATENATE($B84," ",$C84),Banco!$A:$A,0) -> 7 | M84: =IF(OR(ISERROR($L84),$H84="",$H84=0),"",OFFSET(M$1,MATCH($K84,$K$1:$K84,0)-1,0)) -> F | O84: =IF(ISNUMBER($L84),VALUE(OFFSET(Banco!$A$1,Composições!$L84-1,COLUMN(Composições!O84)-6)),0) -> 0 | P84: =IF(ISNUMBER($L84),VALUE(OFFSET(Banco!$A$1,Composições!$L84-1,COLUMN(Composições!P84)-6)),0) -> 0 | Q84: 0 | R84: 0
B85: SINAPI | C85: 96533 | D85: =IF(ISNUMBER($L85),OFFSET(Banco!$A$1,Composições!$L85-1,COLUMN(Composições!D85)-1),"") -> FABRICAÇÃO, MONTAGEM E DESMONTAGEM DE FÔRMA PARA VIGA BALDRAME, EM MADEIRA SERRADA, E=25 MM, 2 UTILIZAÇÕES. AF_01/2024 | E85: =IF(ISNUMBER($L85),OFFSET(Banco!$A$1,Composições!$L85-1,COLUMN(Composições!E85)-1),"") -> M2 | F85: 302.7 | G85: 316.2 | H85: 3.72 | I85: =IF(ISNUMBER($L85),VALUE(OFFSET(Banco!$A$1,Composições!$L85-1,COLUMN(Composições!I85)-4)),0) -> 81.37 | J85: =IF(ISNUMBER($L85),VALUE(OFFSET(Banco!$A$1,Composições!$L85-1,COLUMN(Composições!J85)-4)),0) -> 85 | K85: =COUNTA($A$1:$A85)-1 -> 9 | L85: =MATCH(CONCATENATE($B85," ",$C85),Banco!$A:$A,0) -> 10041 | M85: =IF(OR(ISERROR($L85),$H85="",$H85=0),"",OFFSET(M$1,MATCH($K85,$K$1:$K85,0)-1,0)) -> F | O85: =IF(ISNUMBER($L85),VALUE(OFFSET(Banco!$A$1,Composições!$L85-1,COLUMN(Composições!O85)-6)),0) -> 0 | P85: =IF(ISNUMBER($L85),VALUE(OFFSET(Banco!$A$1,Composições!$L85-1,COLUMN(Composições!P85)-6)),0) -> 0 | Q85: 0 | R85: 0
B86: SINAPI | C86: 5928 | D86: =IF(ISNUMBER($L86),OFFSET(Banco!$A$1,Composições!$L86-1,COLUMN(Composições!D86)-1),"") -> GUINDAUTO HIDRÁULICO, CAPACIDADE MÁXIMA DE CARGA 6200 KG, MOMENTO MÁXIMO DE CARGA 11,7 TM, ALCANCE MÁXIMO HORIZONTAL 9,70 M, INCLUSIVE CAMINHÃO TOCO PBT 16.000 KG, POTÊNCIA DE 189 CV - CHP DIURNO. AF_06/2014 | E86: =IF(ISNUMBER($L86),OFFSET(Banco!$A$1,Composições!$L86-1,COLUMN(Composições!E86)-1),"") -> CHP | F86: 27.27 | G86: 27.49 | H86: 0.1 | I86: =IF(ISNUMBER($L86),VALUE(OFFSET(Banco!$A$1,Composições!$L86-1,COLUMN(Composições!I86)-4)),0) -> 272.65 | J86: =IF(ISNUMBER($L86),VALUE(OFFSET(Banco!$A$1,Composições!$L86-1,COLUMN(Composições!J86)-4)),0) -> 274.89 | K86: =COUNTA($A$1:$A86)-1 -> 9 | L86: =MATCH(CONCATENATE($B86," ",$C86),Banco!$A:$A,0) -> 7651 | M86: =IF(OR(ISERROR($L86),$H86="",$H86=0),"",OFFSET(M$1,MATCH($K86,$K$1:$K86,0)-1,0)) -> F | O86: =IF(ISNUMBER($L86),VALUE(OFFSET(Banco!$A$1,Composições!$L86-1,COLUMN(Composições!O86)-6)),0) -> 0.3241 | P86: =IF(ISNUMBER($L86),VALUE(OFFSET(Banco!$A$1,Composições!$L86-1,COLUMN(Composições!P86)-6)),0) -> 0.3214 | Q86: 8.84 | R86: 8.84
B87: SINAPI | C87: 103670 | D87: =IF(ISNUMBER($L87),OFFSET(Banco!$A$1,Composições!$L87-1,COLUMN(Composições!D87)-1),"") -> LANÇAMENTO COM USO DE BALDES, ADENSAMENTO E ACABAMENTO DE CONCRETO EM ESTRUTURAS. AF_02/2022 | E87: =IF(ISNUMBER($L87),OFFSET(Banco!$A$1,Composições!$L87-1,COLUMN(Composições!E87)-1),"") -> M3 | F87: 640.75 | G87: 692.87 | H87: 2.35 | I87: =IF(ISNUMBER($L87),VALUE(OFFSET(Banco!$A$1,Composições!$L87-1,COLUMN(Composições!I87)-4)),0) -> 272.66 | J87: =IF(ISNUMBER($L87),VALUE(OFFSET(Banco!$A$1,Composições!$L87-1,COLUMN(Composições!J87)-4)),0) -> 294.84 | K87: =COUNTA($A$1:$A87)-1 -> 9 | L87: =MATCH(CONCATENATE($B87," ",$C87),Banco!$A:$A,0) -> 7335 | M87: =IF(OR(ISERROR($L87),$H87="",$H87=0),"",OFFSET(M$1,MATCH($K87,$K$1:$K87,0)-1,0)) -> F | O87: =IF(ISNUMBER($L87),VALUE(OFFSET(Banco!$A$1,Composições!$L87-1,COLUMN(Composições!O87)-6)),0) -> 0.0064 | P87: =IF(ISNUMBER($L87),VALUE(OFFSET(Banco!$A$1,Composições!$L87-1,COLUMN(Composições!P87)-6)),0) -> 0.0059 | Q87: 4.1 | R87: 4.09
B88: Composição | C88: IUC10004 | D88: =IF(ISNUMBER($L88),OFFSET(Banco!$A$1,Composições!$L88-1,COLUMN(Composições!D88)-1),"") -> Lastro de brita | E88: =IF(ISNUMBER($L88),OFFSET(Banco!$A$1,Composições!$L88-1,COLUMN(Composições!E88)-1),"") -> M3 | F88: =ROUND($H88*ROUND(I88,2),2) -> 117.15 | G88: =ROUND($H88*ROUND(J88,2),2) -> 119.73 | H88: 0.81 | I88: =IF(ISNUMBER($L88),VALUE(OFFSET(Banco!$A$1,Composições!$L88-1,COLUMN(Composições!I88)-4)),0) -> 144.63 | J88: =IF(ISNUMBER($L88),VALUE(OFFSET(Banco!$A$1,Composições!$L88-1,COLUMN(Composições!J88)-4)),0) -> 147.81 | K88: =COUNTA($A$1:$A88)-1 -> 9 | L88: =MATCH(CONCATENATE($B88," ",$C88),Banco!$A:$A,0) -> 28 | M88: =IF(OR(ISERROR($L88),$H88="",$H88=0),"",OFFSET(M$1,MATCH($K88,$K$1:$K88,0)-1,0)) -> F | O88: =IF(ISNUMBER($L88),VALUE(OFFSET(Banco!$A$1,Composições!$L88-1,COLUMN(Composições!O88)-6)),0) -> 0 | P88: =IF(ISNUMBER($L88),VALUE(OFFSET(Banco!$A$1,Composições!$L88-1,COLUMN(Composições!P88)-6)),0) -> 0
B89: SINAPI | C89: 93382 | D89: =IF(ISNUMBER($L89),OFFSET(Banco!$A$1,Composições!$L89-1,COLUMN(Composições!D89)-1),"") -> REATERRO MANUAL DE VALAS, COM COMPACTADOR DE SOLOS DE PERCUSSÃO. AF_08/2023 | E89: =IF(ISNUMBER($L89),OFFSET(Banco!$A$1,Composições!$L89-1,COLUMN(Composições!E89)-1),"") -> M3 | F89: =ROUND($H89*ROUND(I89,2),2) -> 27.97 | G89: 29.96 | H89: 1.15 | I89: =IF(ISNUMBER($L89),VALUE(OFFSET(Banco!$A$1,Composições!$L89-1,COLUMN(Composições!I89)-4)),0) -> 24.32 | J89: =IF(ISNUMBER($L89),VALUE(OFFSET(Banco!$A$1,Composições!$L89-1,COLUMN(Composições!J89)-4)),0) -> 26.05 | K89: =COUNTA($A$1:$A89)-1 -> 9 | L89: =MATCH(CONCATENATE($B89," ",$C89),Banco!$A:$A,0) -> 6760 | M89: =IF(OR(ISERROR($L89),$H89="",$H89=0),"",OFFSET(M$1,MATCH($K89,$K$1:$K89,0)-1,0)) -> F | O89: =IF(ISNUMBER($L89),VALUE(OFFSET(Banco!$A$1,Composições!$L89-1,COLUMN(Composições!O89)-6)),0) -> 0.0222 | P89: =IF(ISNUMBER($L89),VALUE(OFFSET(Banco!$A$1,Composições!$L89-1,COLUMN(Composições!P89)-6)),0) -> 0.0207 | Q89: =ROUND(F89*O89,2) -> 0.62 | R89: 0.62
B90: Composição | C90: IUD20075 | D90: =IF(ISNUMBER($L90),OFFSET(Banco!$A$1,Composições!$L90-1,COLUMN(Composições!D90)-1),"") -> Regularização manual e compactação mecânica de terreno | E90: =IF(ISNUMBER($L90),OFFSET(Banco!$A$1,Composições!$L90-1,COLUMN(Composições!E90)-1),"") -> M2 | F90: 54.44 | G90: 58.68 | H90: 8.15 | I90: =IF(ISNUMBER($L90),VALUE(OFFSET(Banco!$A$1,Composições!$L90-1,COLUMN(Composições!I90)-4)),0) -> 6.68 | J90: =IF(ISNUMBER($L90),VALUE(OFFSET(Banco!$A$1,Composições!$L90-1,COLUMN(Composições!J90)-4)),0) -> 7.2 | K90: =COUNTA($A$1:$A90)-1 -> 9 | L90: =MATCH(CONCATENATE($B90," ",$C90),Banco!$A:$A,0) -> 27 | M90: =IF(OR(ISERROR($L90),$H90="",$H90=0),"",OFFSET(M$1,MATCH($K90,$K$1:$K90,0)-1,0)) -> F | O90: =IF(ISNUMBER($L90),VALUE(OFFSET(Banco!$A$1,Composições!$L90-1,COLUMN(Composições!O90)-6)),0) -> 0 | P90: =IF(ISNUMBER($L90),VALUE(OFFSET(Banco!$A$1,Composições!$L90-1,COLUMN(Composições!P90)-6)),0) -> 0 | Q90: 0 | R90: 0
K91: =COUNTA($A$1:$A91)-1 -> 9 | M91: =IF(OFFSET($M$1,MATCH(OFFSET(K91,-1,0),$K$1:$K91,0)-1,0)="F","F","") -> F
A92: =CONCATENATE($B92," ",$C92) -> Composição IUD30165 | B92: Composição | C92: IUD30165 | D92: Dissipador de energia hidráulica em concreto armado Tipo-02 vazão entre 2 e 3 m3/s | E92: UN | F92: =IF($L92>0,SUM(OFFSET(F92,1,0,$L92),0)) -> 15727.46 | G92: =IF($L92>0,SUM(OFFSET(G92,1,0,$L92),0)) -> 16356.81 | I92: =IF(ISERROR(F92),0,F92) -> 15727.46 | J92: =IF(ISERROR(G92),0,G92) -> 16356.81 | K92: =COUNTA($A$1:$A92)-1 -> 10 | L92: =IF(MAX(K:K)=K92,MATCH(9999999,$K:$K)+1,MATCH(K92+1,K:K,0))-ROW(L92)-2 -> 10 | M92: =IF(AND(OR(I92<>0,J92<>0),N92="Sim"),"F","") -> F | N92: Sim
B93: SINAPI | C93: 92916 | D93: =IF(ISNUMBER($L93),OFFSET(Banco!$A$1,Composições!$L93-1,COLUMN(Composições!D93)-1),"") -> ARMAÇÃO DE ESTRUTURAS DIVERSAS DE CONCRETO ARMADO, EXCETO VIGAS, PILARES, LAJES E FUNDAÇÕES, UTILIZANDO AÇO CA-50 DE 6,3 MM - MONTAGEM. AF_06/2022 | E93: =IF(ISNUMBER($L93),OFFSET(Banco!$A$1,Composições!$L93-1,COLUMN(Composições!E93)-1),"") -> KG | F93: =ROUND($H93*ROUND(I93,2),2) -> 661.09 | G93: =ROUND($H93*ROUND(J93,2),2) -> 679.65 | H93: 45.28 | I93: =IF(ISNUMBER($L93),VALUE(OFFSET(Banco!$A$1,Composições!$L93-1,COLUMN(Composições!I93)-4)),0) -> 14.6 | J93: =IF(ISNUMBER($L93),VALUE(OFFSET(Banco!$A$1,Composições!$L93-1,COLUMN(Composições!J93)-4)),0) -> 15.01 | K93: =COUNTA($A$1:$A93)-1 -> 10 | L93: =MATCH(CONCATENATE($B93," ",$C93),Banco!$A:$A,0) -> 6311 | M93: =IF(OR(ISERROR($L93),$H93="",$H93=0),"",OFFSET(M$1,MATCH($K93,$K$1:$K93,0)-1,0)) -> F | O93: =IF(ISNUMBER($L93),VALUE(OFFSET(Banco!$A$1,Composições!$L93-1,COLUMN(Composições!O93)-6)),0) -> 0.0144 | P93: =IF(ISNUMBER($L93),VALUE(OFFSET(Banco!$A$1,Composições!$L93-1,COLUMN(Composições!P93)-6)),0) -> 0.014 | Q93: =ROUND(F93*O93,2) -> 9.52 | R93: =ROUND(G93*P93,2) -> 9.52
B94: SINAPI | C94: 97083 | D94: =IF(ISNUMBER($L94),OFFSET(Banco!$A$1,Composições!$L94-1,COLUMN(Composições!D94)-1),"") -> COMPACTAÇÃO MECÂNICA DE SOLO PARA EXECUÇÃO DE RADIER, PISO DE CONCRETO OU LAJE SOBRE SOLO, COM COMPACTADOR DE SOLOS A PERCUSSÃO. AF_09/2021 | E94: =IF(ISNUMBER($L94),OFFSET(Banco!$A$1,Composições!$L94-1,COLUMN(Composições!E94)-1),"") -> M2 | F94: 66.93 | G94: 71.91 | H94: 21.66 | I94: =IF(ISNUMBER($L94),VALUE(OFFSET(Banco!$A$1,Composições!$L94-1,COLUMN(Composições!I94)-4)),0) -> 3.09 | J94: =IF(ISNUMBER($L94),VALUE(OFFSET(Banco!$A$1,Composições!$L94-1,COLUMN(Composições!J94)-4)),0) -> 3.32 | K94: =COUNTA($A$1:$A94)-1 -> 10 | L94: =MATCH(CONCATENATE($B94," ",$C94),Banco!$A:$A,0) -> 14404 | M94: =IF(OR(ISERROR($L94),$H94="",$H94=0),"",OFFSET(M$1,MATCH($K94,$K$1:$K94,0)-1,0)) -> F | O94: =IF(ISNUMBER($L94),VALUE(OFFSET(Banco!$A$1,Composições!$L94-1,COLUMN(Composições!O94)-6)),0) -> 0 | P94: =IF(ISNUMBER($L94),VALUE(OFFSET(Banco!$A$1,Composições!$L94-1,COLUMN(Composições!P94)-6)),0) -> 0 | Q94: 0 | R94: 0
B95: SINAPI | C95: 94963 | D95: =IF(ISNUMBER($L95),OFFSET(Banco!$A$1,Composições!$L95-1,COLUMN(Composições!D95)-1),"") -> CONCRETO FCK = 15MPA, TRAÇO 1:3,4:3,5 (EM MASSA SECA DE CIMENTO/ AREIA MÉDIA/ BRITA 1) - PREPARO MECÂNICO COM BETONEIRA 400 L. AF_05/2021 | E95: =IF(ISNUMBER($L95),OFFSET(Banco!$A$1,Composições!$L95-1,COLUMN(Composições!E95)-1),"") -> M3 | F95: 572.05 | G95: 580.89 | H95: 1.3 | I95: =IF(ISNUMBER($L95),VALUE(OFFSET(Banco!$A$1,Composições!$L95-1,COLUMN(Composições!I95)-4)),0) -> 440.04 | J95: =IF(ISNUMBER($L95),VALUE(OFFSET(Banco!$A$1,Composições!$L95-1,COLUMN(Composições!J95)-4)),0) -> 446.84 | K95: =COUNTA($A$1:$A95)-1 -> 10 | L95: =MATCH(CONCATENATE($B95," ",$C95),Banco!$A:$A,0) -> 14340 | M95: =IF(OR(ISERROR($L95),$H95="",$H95=0),"",OFFSET(M$1,MATCH($K95,$K$1:$K95,0)-1,0)) -> F | O95: =IF(ISNUMBER($L95),VALUE(OFFSET(Banco!$A$1,Composições!$L95-1,COLUMN(Composições!O95)-6)),0) -> 0 | P95: =IF(ISNUMBER($L95),VALUE(OFFSET(Banco!$A$1,Composições!$L95-1,COLUMN(Composições!P95)-6)),0) -> 0 | Q95: 0 | R95: 0
B96: SINAPI | C96: 94964 | D96: =IF(ISNUMBER($L96),OFFSET(Banco!$A$1,Composições!$L96-1,COLUMN(Composições!D96)-1),"") -> CONCRETO FCK = 20MPA, TRAÇO 1:2,7:3 (EM MASSA SECA DE CIMENTO/ AREIA MÉDIA/ BRITA 1) - PREPARO MECÂNICO COM BETONEIRA 400 L. AF_05/2021 | E96: =IF(ISNUMBER($L96),OFFSET(Banco!$A$1,Composições!$L96-1,COLUMN(Composições!E96)-1),"") -> M3 | F96: 6065.28 | G96: 6157.88 | H96: 12.48 | I96: =IF(ISNUMBER($L96),VALUE(OFFSET(Banco!$A$1,Composições!$L96-1,COLUMN(Composições!I96)-4)),0) -> 486 | J96: =IF(ISNUMBER($L96),VALUE(OFFSET(Banco!$A$1,Composições!$L96-1,COLUMN(Composições!J96)-4)),0) -> 493.42 | K96: =COUNTA($A$1:$A96)-1 -> 10 | L96: =MATCH(CONCATENATE($B96," ",$C96),Banco!$A:$A,0) -> 14344 | M96: =IF(OR(ISERROR($L96),$H96="",$H96=0),"",OFFSET(M$1,MATCH($K96,$K$1:$K96,0)-1,0)) -> F | O96: =IF(ISNUMBER($L96),VALUE(OFFSET(Banco!$A$1,Composições!$L96-1,COLUMN(Composições!O96)-6)),0) -> 0 | P96: =IF(ISNUMBER($L96),VALUE(OFFSET(Banco!$A$1,Composições!$L96-1,COLUMN(Composições!P96)-6)),0) -> 0 | Q96: 0 | R96: 0
B97: SINAPI | C97: 94962 | D97: =IF(ISNUMBER($L97),OFFSET(Banco!$A$1,Composições!$L97-1,COLUMN(Composições!D97)-1),"") -> CONCRETO MAGRO PARA LASTRO, TRAÇO 1:4,5:4,5 (EM MASSA SECA DE CIMENTO/ AREIA MÉDIA/ BRITA 1) - PREPARO MECÂNICO COM BETONEIRA 400 L. AF_05/2021 | E97: =IF(ISNUMBER($L97),OFFSET(Banco!$A$1,Composições!$L97-1,COLUMN(Composições!E97)-1),"") -> M3 | F97: 273.84 | G97: 278.64 | H97: 0.7 | I97: =IF(ISNUMBER($L97),VALUE(OFFSET(Banco!$A$1,Composições!$L97-1,COLUMN(Composições!I97)-4)),0) -> 391.2 | J97: =IF(ISNUMBER($L97),VALUE(OFFSET(Banco!$A$1,Composições!$L97-1,COLUMN(Composições!J97)-4)),0) -> 398.05 | K97: =COUNTA($A$1:$A97)-1 -> 10 | L97: =MATCH(CONCATENATE($B97," ",$C97),Banco!$A:$A,0) -> 14359 | M97: =IF(OR(ISERROR($L97),$H97="",$H97=0),"",OFFSET(M$1,MATCH($K97,$K$1:$K97,0)-1,0)) -> F | O97: =IF(ISNUMBER($L97),VALUE(OFFSET(Banco!$A$1,Composições!$L97-1,COLUMN(Composições!O97)-6)),0) -> 0 | P97: =IF(ISNUMBER($L97),VALUE(OFFSET(Banco!$A$1,Composições!$L97-1,COLUMN(Composições!P97)-6)),0) -> 0 | Q97: 0 | R97: 0
B98: SINAPI | C98: 90107 | D98: =IF(ISNUMBER($L98),OFFSET(Banco!$A$1,Composições!$L98-1,COLUMN(Composições!D98)-1),"") -> ESCAVAÇÃO MECANIZADA DE VALA COM PROFUNDIDADE MAIOR QUE 1,5 M ATÉ 3,0 M (MÉDIA MONTANTE E JUSANTE/UMA COMPOSIÇÃO POR TRECHO), RETROESCAV. (0,26 M3), LARGURA MENOR QUE 0,8 M, EM SOLO DE 1A CATEGORIA, LOCAIS COM BAIXO NÍVEL DE INTERFERÊNCIA. AF_09/2024 | E98: =IF(ISNUMBER($L98),OFFSET(Banco!$A$1,Composições!$L98-1,COLUMN(Composições!E98)-1),"") -> M3 | F98: 58.97 | G98: 61.17 | H98: 7.58 | I98: =IF(ISNUMBER($L98),VALUE(OFFSET(Banco!$A$1,Composições!$L98-1,COLUMN(Composições!I98)-4)),0) -> 7.78 | J98: =IF(ISNUMBER($L98),VALUE(OFFSET(Banco!$A$1,Composições!$L98-1,COLUMN(Composições!J98)-4)),0) -> 8.07 | K98: =COUNTA($A$1:$A98)-1 -> 10 | L98: =MATCH(CONCATENATE($B98," ",$C98),Banco!$A:$A,0) -> 9363 | M98: =IF(OR(ISERROR($L98),$H98="",$H98=0),"",OFFSET(M$1,MATCH($K98,$K$1:$K98,0)-1,0)) -> F | O98: =IF(ISNUMBER($L98),VALUE(OFFSET(Banco!$A$1,Composições!$L98-1,COLUMN(Composições!O98)-6)),0) -> 0 | P98: =IF(ISNUMBER($L98),VALUE(OFFSET(Banco!$A$1,Composições!$L98-1,COLUMN(Composições!P98)-6)),0) -> 0 | Q98: 0 | R98: 0
B99: SINAPI | C99: 101792 | D99: =IF(ISNUMBER($L99),OFFSET(Banco!$A$1,Composições!$L99-1,COLUMN(Composições!D99)-1),"") -> ESCORAMENTO DE FÔRMAS DE LAJE EM MADEIRA NÃO APARELHADA, PÉ-DIREITO SIMPLES, INCLUSO TRAVAMENTO, 4 UTILIZAÇÕES. AF_09/2020 | E99: =IF(ISNUMBER($L99),OFFSET(Banco!$A$1,Composições!$L99-1,COLUMN(Composições!E99)-1),"") -> M3 | F99: 89.55 | G99: 92.96 | H99: 5.88 | I99: =IF(ISNUMBER($L99),VALUE(OFFSET(Banco!$A$1,Composições!$L99-1,COLUMN(Composições!I99)-4)),0) -> 15.23 | J99: =IF(ISNUMBER($L99),VALUE(OFFSET(Banco!$A$1,Composições!$L99-1,COLUMN(Composições!J99)-4)),0) -> 15.81 | K99: =COUNTA($A$1:$A99)-1 -> 10 | L99: =MATCH(CONCATENATE($B99," ",$C99),Banco!$A:$A,0) -> 10048 | M99: =IF(OR(ISERROR($L99),$H99="",$H99=0),"",OFFSET(M$1,MATCH($K99,$K$1:$K99,0)-1,0)) -> F | O99: =IF(ISNUMBER($L99),VALUE(OFFSET(Banco!$A$1,Composições!$L99-1,COLUMN(Composições!O99)-6)),0) -> 0 | P99: =IF(ISNUMBER($L99),VALUE(OFFSET(Banco!$A$1,Composições!$L99-1,COLUMN(Composições!P99)-6)),0) -> 0 | Q99: 0 | R99: 0
B100: SINAPI | C100: 96533 | D100: =IF(ISNUMBER($L100),OFFSET(Banco!$A$1,Composições!$L100-1,COLUMN(Composições!D100)-1),"") -> FABRICAÇÃO, MONTAGEM E DESMONTAGEM DE FÔRMA PARA VIGA BALDRAME, EM MADEIRA SERRADA, E=25 MM, 2 UTILIZAÇÕES. AF_01/2024 | E100: =IF(ISNUMBER($L100),OFFSET(Banco!$A$1,Composições!$L100-1,COLUMN(Composições!E100)-1),"") -> M2 | F100: 4117.32 | G100: 4301 | H100: 50.6 | I100: =IF(ISNUMBER($L100),VALUE(OFFSET(Banco!$A$1,Composições!$L100-1,COLUMN(Composições!I100)-4)),0) -> 81.37 | J100: =IF(ISNUMBER($L100),VALUE(OFFSET(Banco!$A$1,Composições!$L100-1,COLUMN(Composições!J100)-4)),0) -> 85 | K100: =COUNTA($A$1:$A100)-1 -> 10 | L100: =MATCH(CONCATENATE($B100," ",$C100),Banco!$A:$A,0) -> 10041 | M100: =IF(OR(ISERROR($L100),$H100="",$H100=0),"",OFFSET(M$1,MATCH($K100,$K$1:$K100,0)-1,0)) -> F | O100: =IF(ISNUMBER($L100),VALUE(OFFSET(Banco!$A$1,Composições!$L100-1,COLUMN(Composições!O100)-6)),0) -> 0 | P100: =IF(ISNUMBER($L100),VALUE(OFFSET(Banco!$A$1,Composições!$L100-1,COLUMN(Composições!P100)-6)),0) -> 0 | Q100: 0 | R100: 0
B101: SINAPI | C101: 103670 | D101: =IF(ISNUMBER($L101),OFFSET(Banco!$A$1,Composições!$L101-1,COLUMN(Composições!D101)-1),"") -> LANÇAMENTO COM USO DE BALDES, ADENSAMENTO E ACABAMENTO DE CONCRETO EM ESTRUTURAS. AF_02/2022 | E101: =IF(ISNUMBER($L101),OFFSET(Banco!$A$1,Composições!$L101-1,COLUMN(Composições!E101)-1),"") -> M3 | F101: 3757.25 | G101: 4062.9 | H101: 13.78 | I101: =IF(ISNUMBER($L101),VALUE(OFFSET(Banco!$A$1,Composições!$L101-1,COLUMN(Composições!I101)-4)),0) -> 272.66 | J101: =IF(ISNUMBER($L101),VALUE(OFFSET(Banco!$A$1,Composições!$L101-1,COLUMN(Composições!J101)-4)),0) -> 294.84 | K101: =COUNTA($A$1:$A101)-1 -> 10 | L101: =MATCH(CONCATENATE($B101," ",$C101),Banco!$A:$A,0) -> 7335 | M101: =IF(OR(ISERROR($L101),$H101="",$H101=0),"",OFFSET(M$1,MATCH($K101,$K$1:$K101,0)-1,0)) -> F | O101: =IF(ISNUMBER($L101),VALUE(OFFSET(Banco!$A$1,Composições!$L101-1,COLUMN(Composições!O101)-6)),0) -> 0.0064 | P101: =IF(ISNUMBER($L101),VALUE(OFFSET(Banco!$A$1,Composições!$L101-1,COLUMN(Composições!P101)-6)),0) -> 0.0059 | Q101: 24.05 | R101: 23.97
B102: SINAPI | C102: 93382 | D102: =IF(ISNUMBER($L102),OFFSET(Banco!$A$1,Composições!$L102-1,COLUMN(Composições!D102)-1),"") -> REATERRO MANUAL DE VALAS, COM COMPACTADOR DE SOLOS DE PERCUSSÃO. AF_08/2023 | E102: =IF(ISNUMBER($L102),OFFSET(Banco!$A$1,Composições!$L102-1,COLUMN(Composições!E102)-1),"") -> M3 | F102: =ROUND($H102*ROUND(I102,2),2) -> 65.18 | G102: =ROUND($H102*ROUND(J102,2),2) -> 69.81 | H102: 2.68 | I102: =IF(ISNUMBER($L102),VALUE(OFFSET(Banco!$A$1,Composições!$L102-1,COLUMN(Composições!I102)-4)),0) -> 24.32 | J102: =IF(ISNUMBER($L102),VALUE(OFFSET(Banco!$A$1,Composições!$L102-1,COLUMN(Composições!J102)-4)),0) -> 26.05 | K102: =COUNTA($A$1:$A102)-1 -> 10 | L102: =MATCH(CONCATENATE($B102," ",$C102),Banco!$A:$A,0) -> 6760 | M102: =IF(OR(ISERROR($L102),$H102="",$H102=0),"",OFFSET(M$1,MATCH($K102,$K$1:$K102,0)-1,0)) -> F | O102: =IF(ISNUMBER($L102),VALUE(OFFSET(Banco!$A$1,Composições!$L102-1,COLUMN(Composições!O102)-6)),0) -> 0.0222 | P102: =IF(ISNUMBER($L102),VALUE(OFFSET(Banco!$A$1,Composições!$L102-1,COLUMN(Composições!P102)-6)),0) -> 0.0207
K103: =COUNTA($A$1:$A103)-1 -> 10 | M103: =IF(OFFSET($M$1,MATCH(OFFSET(K103,-1,0),$K$1:$K103,0)-1,0)="F","F","") -> F
A104: =CONCATENATE($B104," ",$C104) -> Composição IUP30005 | B104: Composição | C104: IUP30005 | D104: Demolição de pavimento asfáltico com emprego de retro-escavadeira e serra de disco, exclusive bota-fora do material | E104: M3 | F104: =IF($L104>0,SUM(OFFSET(F104,1,0,$L104),0)) -> 17.79 | G104: =IF($L104>0,SUM(OFFSET(G104,1,0,$L104),0)) -> 18.55 | I104: =IF(ISERROR(F104),0,F104) -> 17.79 | J104: =IF(ISERROR(G104),0,G104) -> 18.55 | K104: =COUNTA($A$1:$A104)-1 -> 11 | L104: =IF(MAX(K:K)=K104,MATCH(9999999,$K:$K)+1,MATCH(K104+1,K:K,0))-ROW(L104)-2 -> 5 | M104: =IF(AND(OR(I104<>0,J104<>0),N104="Sim"),"F","") -> F | N104: Sim
B105: SINAPI-I | C105: 13887 | D105: =IF(ISNUMBER($L105),OFFSET(Banco!$A$1,Composições!$L105-1,COLUMN(Composições!D105)-1),"") -> DISCO DE CORTE DIAMANTADO SEGMENTADO PARA CONCRETO/ASFALTO, DIAMETRO DE *350* MM, FURO DE 25,40 MM | E105: =IF(ISNUMBER($L105),OFFSET(Banco!$A$1,Composições!$L105-1,COLUMN(Composições!E105)-1),"") -> UN | F105: =ROUND($H105*ROUND(I105,2),2) -> 0.1 | G105: =ROUND($H105*ROUND(J105,2),2) -> 0.1 | H105: 0.0004 | I105: =IF(ISNUMBER($L105),VALUE(OFFSET(Banco!$A$1,Composições!$L105-1,COLUMN(Composições!I105)-4)),0) -> 257.34 | J105: =IF(ISNUMBER($L105),VALUE(OFFSET(Banco!$A$1,Composições!$L105-1,COLUMN(Composições!J105)-4)),0) -> 257.34 | K105: =COUNTA($A$1:$A105)-1 -> 11 | L105: =MATCH(CONCATENATE($B105," ",$C105),Banco!$A:$A,0) -> 1782 | M105: =IF(OR(ISERROR($L105),$H105="",$H105=0),"",OFFSET(M$1,MATCH($K105,$K$1:$K105,0)-1,0)) -> F | O105: =IF(ISNUMBER($L105),VALUE(OFFSET(Banco!$A$1,Composições!$L105-1,COLUMN(Composições!O105)-6)),0) -> 0 | P105: =IF(ISNUMBER($L105),VALUE(OFFSET(Banco!$A$1,Composições!$L105-1,COLUMN(Composições!P105)-6)),0) -> 0 | Q105: =ROUND(F105*O105,2) -> 0 | R105: =ROUND(G105*P105,2) -> 0
B106: SINAPI | C106: 91283 | D106: =IF(ISNUMBER($L106),OFFSET(Banco!$A$1,Composições!$L106-1,COLUMN(Composições!D106)-1),"") -> CORTADORA DE PISO COM MOTOR 4 TEMPOS A GASOLINA, POTÊNCIA DE 13 HP, COM DISCO DE CORTE DIAMANTADO SEGMENTADO PARA CONCRETO, DIÂMETRO DE 350 MM, FURO DE 1" (14 X 1") - CHP DIURNO. AF_08/2015 | E106: =IF(ISNUMBER($L106),OFFSET(Banco!$A$1,Composições!$L106-1,COLUMN(Composições!E106)-1),"") -> CHP | F106: 5.53 | G106: 5.53 | H106: 0.56 | I106: =IF(ISNUMBER($L106),VALUE(OFFSET(Banco!$A$1,Composições!$L106-1,COLUMN(Composições!I106)-4)),0) -> 9.87 | J106: =IF(ISNUMBER($L106),VALUE(OFFSET(Banco!$A$1,Composições!$L106-1,COLUMN(Composições!J106)-4)),0) -> 9.87 | K106: =COUNTA($A$1:$A106)-1 -> 11 | L106: =MATCH(CONCATENATE($B106," ",$C106),Banco!$A:$A,0) -> 7573 | M106: =IF(OR(ISERROR($L106),$H106="",$H106=0),"",OFFSET(M$1,MATCH($K106,$K$1:$K106,0)-1,0)) -> F | O106: =IF(ISNUMBER($L106),VALUE(OFFSET(Banco!$A$1,Composições!$L106-1,COLUMN(Composições!O106)-6)),0) -> 0 | P106: =IF(ISNUMBER($L106),VALUE(OFFSET(Banco!$A$1,Composições!$L106-1,COLUMN(Composições!P106)-6)),0) -> 0 | Q106: 0 | R106: 0
B107: SINAPI | C107: 5681 | D107: =IF(ISNUMBER($L107),OFFSET(Banco!$A$1,Composições!$L107-1,COLUMN(Composições!D107)-1),"") -> RETROESCAVADEIRA SOBRE RODAS COM CARREGADEIRA, TRAÇÃO 4X2, POTÊNCIA LÍQ. 79 HP, CAÇAMBA CARREG. CAP. MÍN. 1 M3, CAÇAMBA RETRO CAP. 0,20 M3, PESO OPERACIONAL MÍN. 6.570 KG, PROFUNDIDADE ESCAVAÇÃO MÁX. 4,37 M - CHI DIURNO. AF_06/2014 | E107: =IF(ISNUMBER($L107),OFFSET(Banco!$A$1,Composições!$L107-1,COLUMN(Composições!E107)-1),"") -> CHI | F107: 4.34 | G107: 4.55 | H107: 0.075 | I107: =IF(ISNUMBER($L107),VALUE(OFFSET(Banco!$A$1,Composições!$L107-1,COLUMN(Composições!I107)-4)),0) -> 57.89 | J107: =IF(ISNUMBER($L107),VALUE(OFFSET(Banco!$A$1,Composições!$L107-1,COLUMN(Composições!J107)-4)),0) -> 60.61 | K107: =COUNTA($A$1:$A107)-1 -> 11 | L107: =MATCH(CONCATENATE($B107," ",$C107),Banco!$A:$A,0) -> 7778 | M107: =IF(OR(ISERROR($L107),$H107="",$H107=0),"",OFFSET(M$1,MATCH($K107,$K$1:$K107,0)-1,0)) -> F | O107: =IF(ISNUMBER($L107),VALUE(OFFSET(Banco!$A$1,Composições!$L107-1,COLUMN(Composições!O107)-6)),0) -> 0 | P107: =IF(ISNUMBER($L107),VALUE(OFFSET(Banco!$A$1,Composições!$L107-1,COLUMN(Composições!P107)-6)),0) -> 0 | Q107: 0 | R107: 0
B108: SINAPI | C108: 5680 | D108: =IF(ISNUMBER($L108),OFFSET(Banco!$A$1,Composições!$L108-1,COLUMN(Composições!D108)-1),"") -> RETROESCAVADEIRA SOBRE RODAS COM CARREGADEIRA, TRAÇÃO 4X2, POTÊNCIA LÍQ. 79 HP, CAÇAMBA CARREG. CAP. MÍN. 1 M3, CAÇAMBA RETRO CAP. 0,20 M3, PESO OPERACIONAL MÍN. 6.570 KG, PROFUNDIDADE ESCAVAÇÃO MÁX. 4,37 M - CHP DIURNO. AF_06/2014 | E108: =IF(ISNUMBER($L108),OFFSET(Banco!$A$1,Composições!$L108-1,COLUMN(Composições!E108)-1),"") -> CHP | F108: 1.11 | G108: 1.13 | H108: 0.008333 | I108: =IF(ISNUMBER($L108),VALUE(OFFSET(Banco!$A$1,Composições!$L108-1,COLUMN(Composições!I108)-4)),0) -> 132.62 | J108: =IF(ISNUMBER($L108),VALUE(OFFSET(Banco!$A$1,Composições!$L108-1,COLUMN(Composições!J108)-4)),0) -> 135.34 | K108: =COUNTA($A$1:$A108)-1 -> 11 | L108: =MATCH(CONCATENATE($B108," ",$C108),Banco!$A:$A,0) -> 7779 | M108: =IF(OR(ISERROR($L108),$H108="",$H108=0),"",OFFSET(M$1,MATCH($K108,$K$1:$K108,0)-1,0)) -> F | O108: =IF(ISNUMBER($L108),VALUE(OFFSET(Banco!$A$1,Composições!$L108-1,COLUMN(Composições!O108)-6)),0) -> 0 | P108: =IF(ISNUMBER($L108),VALUE(OFFSET(Banco!$A$1,Composições!$L108-1,COLUMN(Composições!P108)-6)),0) -> 0 | Q108: 0 | R108: 0
B109: SINAPI | C109: 88316 | D109: =IF(ISNUMBER($L109),OFFSET(Banco!$A$1,Composições!$L109-1,COLUMN(Composições!D109)-1),"") -> SERVENTE COM ENCARGOS COMPLEMENTARES | E109: =IF(ISNUMBER($L109),OFFSET(Banco!$A$1,Composições!$L109-1,COLUMN(Composições!E109)-1),"") -> H | F109: 6.71 | G109: 7.24 | H109: 0.3333333 | I109: =IF(ISNUMBER($L109),VALUE(OFFSET(Banco!$A$1,Composições!$L109-1,COLUMN(Composições!I109)-4)),0) -> 20.13 | J109: =IF(ISNUMBER($L109),VALUE(OFFSET(Banco!$A$1,Composições!$L109-1,COLUMN(Composições!J109)-4)),0) -> 21.72 | K109: =COUNTA($A$1:$A109)-1 -> 11 | L109: =MATCH(CONCATENATE($B109," ",$C109),Banco!$A:$A,0) -> 13164 | M109: =IF(OR(ISERROR($L109),$H109="",$H109=0),"",OFFSET(M$1,MATCH($K109,$K$1:$K109,0)-1,0)) -> F | O109: =IF(ISNUMBER($L109),VALUE(OFFSET(Banco!$A$1,Composições!$L109-1,COLUMN(Composições!O109)-6)),0) -> 0 | P109: =IF(ISNUMBER($L109),VALUE(OFFSET(Banco!$A$1,Composições!$L109-1,COLUMN(Composições!P109)-6)),0) -> 0 | Q109: 0 | R109: 0
K110: =COUNTA($A$1:$A110)-1 -> 11 | M110: =IF(OFFSET($M$1,MATCH(OFFSET(K110,-1,0),$K$1:$K110,0)-1,0)="F","F","") -> F
A111: =CONCATENATE($B111," ",$C111) -> Composição IUP30094 | B111: Composição | C111: IUP30094 | D111: EXECUÇÃO DE PINTURA DE LIGAÇÃO COM EMULSÃO ASFÁLTICA RR-1C | E111: M2 | F111: =IF($L111>0,SUM(OFFSET(F111,1,0,$L111),0)) -> 3.14 | G111: =IF($L111>0,SUM(OFFSET(G111,1,0,$L111),0)) -> 3.18 | I111: =IF(ISERROR(F111),0,F111) -> 3.14 | J111: =IF(ISERROR(G111),0,G111) -> 3.18 | K111: =COUNTA($A$1:$A111)-1 -> 12 | L111: =IF(MAX(K:K)=K111,MATCH(9999999,$K:$K)+1,MATCH(K111+1,K:K,0))-ROW(L111)-2 -> 10 | M111: =IF(AND(OR(I111<>0,J111<>0),N111="Sim"),"F","") -> F | N111: Sim
B112: Cotação | C112: IUP0009 | D112: =IF(ISNUMBER($L112),OFFSET(Banco!$A$1,Composições!$L112-1,COLUMN(Composições!D112)-1),"") -> Emulsão asfáltica catiônica RR-1C para uso em pavimentação asfáltica. | E112: =IF(ISNUMBER($L112),OFFSET(Banco!$A$1,Composições!$L112-1,COLUMN(Composições!E112)-1),"") -> T | F112: =ROUND($H112*ROUND(I112,2),2) -> 2.19 | G112: =ROUND($H112*ROUND(J112,2),2) -> 2.19 | H112: 0.00045 | I112: =IF(ISNUMBER($L112),VALUE(OFFSET(Banco!$A$1,Composições!$L112-1,COLUMN(Composições!I112)-4)),0) -> 4875 | J112: =IF(ISNUMBER($L112),VALUE(OFFSET(Banco!$A$1,Composições!$L112-1,COLUMN(Composições!J112)-4)),0) -> 4875 | K112: =COUNTA($A$1:$A112)-1 -> 12 | L112: =MATCH(CONCATENATE($B112," ",$C112),Banco!$A:$A,0) -> 33 | M112: =IF(OR(ISERROR($L112),$H112="",$H112=0),"",OFFSET(M$1,MATCH($K112,$K$1:$K112,0)-1,0)) -> F | O112: =IF(ISNUMBER($L112),VALUE(OFFSET(Banco!$A$1,Composições!$L112-1,COLUMN(Composições!O112)-6)),0) -> 0 | P112: =IF(ISNUMBER($L112),VALUE(OFFSET(Banco!$A$1,Composições!$L112-1,COLUMN(Composições!P112)-6)),0) -> 0 | Q112: =ROUND(F112*O112,2) -> 0 | R112: =ROUND(G112*P112,2) -> 0
B113: SINAPI | C113: 91486 | D113: =IF(ISNUMBER($L113),OFFSET(Banco!$A$1,Composições!$L113-1,COLUMN(Composições!D113)-1),"") -> ESPARGIDOR DE ASFALTO PRESSURIZADO, TANQUE 6 M3 COM ISOLAÇÃO TÉRMICA, AQUECIDO COM 2 MAÇARICOS, COM BARRA ESPARGIDORA 3,60 M, MONTADO SOBRE CAMINHÃO TOCO, PBT 14.300 KG, POTÊNCIA 185 CV - CHI DIURNO. AF_05/2023 | E113: =IF(ISNUMBER($L113),OFFSET(Banco!$A$1,Composições!$L113-1,COLUMN(Composições!E113)-1),"") -> CHI | F113: 0.33 | G113: 0.34 | H113: 0.005 | I113: =IF(ISNUMBER($L113),VALUE(OFFSET(Banco!$A$1,Composições!$L113-1,COLUMN(Composições!I113)-4)),0) -> 65.8 | J113: =IF(ISNUMBER($L113),VALUE(OFFSET(Banco!$A$1,Composições!$L113-1,COLUMN(Composições!J113)-4)),0) -> 67.9 | K113: =COUNTA($A$1:$A113)-1 -> 12 | L113: =MATCH(CONCATENATE($B113," ",$C113),Banco!$A:$A,0) -> 7598 | M113: =IF(OR(ISERROR($L113),$H113="",$H113=0),"",OFFSET(M$1,MATCH($K113,$K$1:$K113,0)-1,0)) -> F | O113: =IF(ISNUMBER($L113),VALUE(OFFSET(Banco!$A$1,Composições!$L113-1,COLUMN(Composições!O113)-6)),0) -> 0.643 | P113: =IF(ISNUMBER($L113),VALUE(OFFSET(Banco!$A$1,Composições!$L113-1,COLUMN(Composições!P113)-6)),0) -> 0.6231 | Q113: 0.21 | R113: 0.21
B114: SINAPI | C114: 83362 | D114: =IF(ISNUMBER($L114),OFFSET(Banco!$A$1,Composições!$L114-1,COLUMN(Composições!D114)-1),"") -> ESPARGIDOR DE ASFALTO PRESSURIZADO, TANQUE 6 M3 COM ISOLAÇÃO TÉRMICA, AQUECIDO COM 2 MAÇARICOS, COM BARRA ESPARGIDORA 3,60 M, MONTADO SOBRE CAMINHÃO TOCO, PBT 14.300 KG, POTÊNCIA 185 CV - CHP DIURNO. AF_05/2023 | E114: =IF(ISNUMBER($L114),OFFSET(Banco!$A$1,Composições!$L114-1,COLUMN(Composições!E114)-1),"") -> CHP | F114: 0.03 | G114: 0.03 | H114: 0.0001 | I114: =IF(ISNUMBER($L114),VALUE(OFFSET(Banco!$A$1,Composições!$L114-1,COLUMN(Composições!I114)-4)),0) -> 267.12 | J114: =IF(ISNUMBER($L114),VALUE(OFFSET(Banco!$A$1,Composições!$L114-1,COLUMN(Composições!J114)-4)),0) -> 269.22 | K114: =COUNTA($A$1:$A114)-1 -> 12 | L114: =MATCH(CONCATENATE($B114," ",$C114),Banco!$A:$A,0) -> 7599 | M114: =IF(OR(ISERROR($L114),$H114="",$H114=0),"",OFFSET(M$1,MATCH($K114,$K$1:$K114,0)-1,0)) -> F | O114: =IF(ISNUMBER($L114),VALUE(OFFSET(Banco!$A$1,Composições!$L114-1,COLUMN(Composições!O114)-6)),0) -> 0.3281 | P114: =IF(ISNUMBER($L114),VALUE(OFFSET(Banco!$A$1,Composições!$L114-1,COLUMN(Composições!P114)-6)),0) -> 0.3255 | Q114: 0.01 | R114: 0.01
B115: SINAPI | C115: 88316 | D115: =IF(ISNUMBER($L115),OFFSET(Banco!$A$1,Composições!$L115-1,COLUMN(Composições!D115)-1),"") -> SERVENTE COM ENCARGOS COMPLEMENTARES | E115: =IF(ISNUMBER($L115),OFFSET(Banco!$A$1,Composições!$L115-1,COLUMN(Composições!E115)-1),"") -> H | F115: 0.12 | G115: 0.13 | H115: 0.006 | I115: =IF(ISNUMBER($L115),VALUE(OFFSET(Banco!$A$1,Composições!$L115-1,COLUMN(Composições!I115)-4)),0) -> 20.13 | J115: =IF(ISNUMBER($L115),VALUE(OFFSET(Banco!$A$1,Composições!$L115-1,COLUMN(Composições!J115)-4)),0) -> 21.72 | K115: =COUNTA($A$1:$A115)-1 -> 12 | L115: =MATCH(CONCATENATE($B115," ",$C115),Banco!$A:$A,0) -> 13164 | M115: =IF(OR(ISERROR($L115),$H115="",$H115=0),"",OFFSET(M$1,MATCH($K115,$K$1:$K115,0)-1,0)) -> F | O115: =IF(ISNUMBER($L115),VALUE(OFFSET(Banco!$A$1,Composições!$L115-1,COLUMN(Composições!O115)-6)),0) -> 0 | P115: =IF(ISNUMBER($L115),VALUE(OFFSET(Banco!$A$1,Composições!$L115-1,COLUMN(Composições!P115)-6)),0) -> 0 | Q115: 0 | R115: 0
B116: SINAPI | C116: 89036 | D116: =IF(ISNUMBER($L116),OFFSET(Banco!$A$1,Composições!$L116-1,COLUMN(Composições!D116)-1),"") -> TRATOR DE PNEUS, POTÊNCIA 85 CV, TRAÇÃO 4X4, PESO COM LASTRO DE 4.675 KG - CHI DIURNO. AF_06/2014 | E116: =IF(ISNUMBER($L116),OFFSET(Banco!$A$1,Composições!$L116-1,COLUMN(Composições!E116)-1),"") -> CHI | F116: 0.18 | G116: 0.19 | H116: 0.004 | I116: =IF(ISNUMBER($L116),VALUE(OFFSET(Banco!$A$1,Composições!$L116-1,COLUMN(Composições!I116)-4)),0) -> 43.95 | J116: =IF(ISNUMBER($L116),VALUE(OFFSET(Banco!$A$1,Composições!$L116-1,COLUMN(Composições!J116)-4)),0) -> 46.37 | K116: =COUNTA($A$1:$A116)-1 -> 12 | L116: =MATCH(CONCATENATE($B116," ",$C116),Banco!$A:$A,0) -> 7842 | M116: =IF(OR(ISERROR($L116),$H116="",$H116=0),"",OFFSET(M$1,MATCH($K116,$K$1:$K116,0)-1,0)) -> F | O116: =IF(ISNUMBER($L116),VALUE(OFFSET(Banco!$A$1,Composições!$L116-1,COLUMN(Composições!O116)-6)),0) -> 0.4005 | P116: =IF(ISNUMBER($L116),VALUE(OFFSET(Banco!$A$1,Composições!$L116-1,COLUMN(Composições!P116)-6)),0) -> 0.3796 | Q116: 0.07 | R116: 0.07
B117: SINAPI | C117: 89035 | D117: =IF(ISNUMBER($L117),OFFSET(Banco!$A$1,Composições!$L117-1,COLUMN(Composições!D117)-1),"") -> TRATOR DE PNEUS, POTÊNCIA 85 CV, TRAÇÃO 4X4, PESO COM LASTRO DE 4.675 KG - CHP DIURNO. AF_06/2014 | E117: =IF(ISNUMBER($L117),OFFSET(Banco!$A$1,Composições!$L117-1,COLUMN(Composições!E117)-1),"") -> CHP | F117: 0.25 | G117: 0.26 | H117: 0.002 | I117: =IF(ISNUMBER($L117),VALUE(OFFSET(Banco!$A$1,Composições!$L117-1,COLUMN(Composições!I117)-4)),0) -> 127.02 | J117: =IF(ISNUMBER($L117),VALUE(OFFSET(Banco!$A$1,Composições!$L117-1,COLUMN(Composições!J117)-4)),0) -> 129.44 | K117: =COUNTA($A$1:$A117)-1 -> 12 | L117: =MATCH(CONCATENATE($B117," ",$C117),Banco!$A:$A,0) -> 7843 | M117: =IF(OR(ISERROR($L117),$H117="",$H117=0),"",OFFSET(M$1,MATCH($K117,$K$1:$K117,0)-1,0)) -> F | O117: =IF(ISNUMBER($L117),VALUE(OFFSET(Banco!$A$1,Composições!$L117-1,COLUMN(Composições!O117)-6)),0) -> 0.2581 | P117: =IF(ISNUMBER($L117),VALUE(OFFSET(Banco!$A$1,Composições!$L117-1,COLUMN(Composições!P117)-6)),0) -> 0.2532 | Q117: 0.06 | R117: 0.07
B118: SINAPI | C118: 5841 | D118: =IF(ISNUMBER($L118),OFFSET(Banco!$A$1,Composições!$L118-1,COLUMN(Composições!D118)-1),"") -> VASSOURA MECÂNICA REBOCÁVEL COM ESCOVA CILÍNDRICA, LARGURA ÚTIL DE VARRIMENTO DE 2,44 M - CHI DIURNO. AF_06/2014 | E118: =IF(ISNUMBER($L118),OFFSET(Banco!$A$1,Composições!$L118-1,COLUMN(Composições!E118)-1),"") -> CHI | F118: 0.02 | G118: 0.02 | H118: 0.004 | I118: =IF(ISNUMBER($L118),VALUE(OFFSET(Banco!$A$1,Composições!$L118-1,COLUMN(Composições!I118)-4)),0) -> 4.69 | J118: =IF(ISNUMBER($L118),VALUE(OFFSET(Banco!$A$1,Composições!$L118-1,COLUMN(Composições!J118)-4)),0) -> 4.69 | K118: =COUNTA($A$1:$A118)-1 -> 12 | L118: =MATCH(CONCATENATE($B118," ",$C118),Banco!$A:$A,0) -> 7864 | M118: =IF(OR(ISERROR($L118),$H118="",$H118=0),"",OFFSET(M$1,MATCH($K118,$K$1:$K118,0)-1,0)) -> F | O118: =IF(ISNUMBER($L118),VALUE(OFFSET(Banco!$A$1,Composições!$L118-1,COLUMN(Composições!O118)-6)),0) -> 1 | P118: =IF(ISNUMBER($L118),VALUE(OFFSET(Banco!$A$1,Composições!$L118-1,COLUMN(Composições!P118)-6)),0) -> 1 | Q118: 0.02 | R118: 0.02
B119: SINAPI | C119: 5839 | D119: =IF(ISNUMBER($L119),OFFSET(Banco!$A$1,Composições!$L119-1,COLUMN(Composições!D119)-1),"") -> VASSOURA MECÂNICA REBOCÁVEL COM ESCOVA CILÍNDRICA, LARGURA ÚTIL DE VARRIMENTO DE 2,44 M - CHP DIURNO. AF_06/2014 | E119: =IF(ISNUMBER($L119),OFFSET(Banco!$A$1,Composições!$L119-1,COLUMN(Composições!E119)-1),"") -> CHP | F119: 0.02 | G119: 0.02 | H119: 0.002 | I119: =IF(ISNUMBER($L119),VALUE(OFFSET(Banco!$A$1,Composições!$L119-1,COLUMN(Composições!I119)-4)),0) -> 9.33 | J119: =IF(ISNUMBER($L119),VALUE(OFFSET(Banco!$A$1,Composições!$L119-1,COLUMN(Composições!J119)-4)),0) -> 9.33 | K119: =COUNTA($A$1:$A119)-1 -> 12 | L119: =MATCH(CONCATENATE($B119," ",$C119),Banco!$A:$A,0) -> 7865 | M119: =IF(OR(ISERROR($L119),$H119="",$H119=0),"",OFFSET(M$1,MATCH($K119,$K$1:$K119,0)-1,0)) -> F | O119: =IF(ISNUMBER($L119),VALUE(OFFSET(Banco!$A$1,Composições!$L119-1,COLUMN(Composições!O119)-6)),0) -> 1 | P119: =IF(ISNUMBER($L119),VALUE(OFFSET(Banco!$A$1,Composições!$L119-1,COLUMN(Composições!P119)-6)),0) -> 1 | Q119: 0.02 | R119: 0.02
D120: =IF(ISNUMBER($L120),OFFSET(Banco!$A$1,Composições!$L120-1,COLUMN(Composições!D120)-1),"") ->  | E120: =IF(ISNUMBER($L120),OFFSET(Banco!$A$1,Composições!$L120-1,COLUMN(Composições!E120)-1),"") ->  | F120: 0 | G120: 0 | I120: =IF(ISNUMBER($L120),VALUE(OFFSET(Banco!$A$1,Composições!$L120-1,COLUMN(Composições!I120)-4)),0) -> 0 | J120: =IF(ISNUMBER($L120),VALUE(OFFSET(Banco!$A$1,Composições!$L120-1,COLUMN(Composições!J120)-4)),0) -> 0 | K120: =COUNTA($A$1:$A120)-1 -> 12 | L120: =MATCH(CONCATENATE($B120," ",$C120),Banco!$A:$A,0) ->  | M120: =IF(OR(ISERROR($L120),$H120="",$H120=0),"",OFFSET(M$1,MATCH($K120,$K$1:$K120,0)-1,0)) ->  | O120: =IF(ISNUMBER($L120),VALUE(OFFSET(Banco!$A$1,Composições!$L120-1,COLUMN(Composições!O120)-6)),0) -> 0 | P120: =IF(ISNUMBER($L120),VALUE(OFFSET(Banco!$A$1,Composições!$L120-1,COLUMN(Composições!P120)-6)),0) -> 0 | Q120: 0 | R120: 0
D121: =IF(ISNUMBER($L121),OFFSET(Banco!$A$1,Composições!$L121-1,COLUMN(Composições!D121)-1),"") ->  | E121: =IF(ISNUMBER($L121),OFFSET(Banco!$A$1,Composições!$L121-1,COLUMN(Composições!E121)-1),"") ->  | F121: =ROUND($H121*ROUND(I121,2),2) -> 0 | G121: =ROUND($H121*ROUND(J121,2),2) -> 0 | I121: =IF(ISNUMBER($L121),VALUE(OFFSET(Banco!$A$1,Composições!$L121-1,COLUMN(Composições!I121)-4)),0) -> 0 | J121: =IF(ISNUMBER($L121),VALUE(OFFSET(Banco!$A$1,Composições!$L121-1,COLUMN(Composições!J121)-4)),0) -> 0 | K121: =COUNTA($A$1:$A121)-1 -> 12 | L121: =MATCH(CONCATENATE($B121," ",$C121),Banco!$A:$A,0) ->  | M121: =IF(OR(ISERROR($L121),$H121="",$H121=0),"",OFFSET(M$1,MATCH($K121,$K$1:$K121,0)-1,0)) ->  | O121: =IF(ISNUMBER($L121),VALUE(OFFSET(Banco!$A$1,Composições!$L121-1,COLUMN(Composições!O121)-6)),0) -> 0 | P121: =IF(ISNUMBER($L121),VALUE(OFFSET(Banco!$A$1,Composições!$L121-1,COLUMN(Composições!P121)-6)),0) -> 0
K122: =COUNTA($A$1:$A122)-1 -> 12 | M122: =IF(OFFSET($M$1,MATCH(OFFSET(K122,-1,0),$K$1:$K122,0)-1,0)="F","F","") -> F
A123: =CONCATENATE($B123," ",$C123) -> Composição IUP30075 | B123: Composição | C123: IUP30075 | D123: Execução de imprimação com emulsão asfáltica a base d'água. | E123: M2 | F123: =IF($L123>0,SUM(OFFSET(F123,1,0,$L123),0)) -> 6.58 | G123: =IF($L123>0,SUM(OFFSET(G123,1,0,$L123),0)) -> 6.58 | I123: =IF(ISERROR(F123),0,F123) -> 6.58 | J123: =IF(ISERROR(G123),0,G123) -> 6.58 | K123: =COUNTA($A$1:$A123)-1 -> 13 | L123: =IF(MAX(K:K)=K123,MATCH(9999999,$K:$K)+1,MATCH(K123+1,K:K,0))-ROW(L123)-2 -> 10 | M123: =IF(AND(OR(I123<>0,J123<>0),N123="Sim"),"F","") -> F | N123: Sim
B124: Cotação | C124: IUP0007 | D124: =IF(ISNUMBER($L124),OFFSET(Banco!$A$1,Composições!$L124-1,COLUMN(Composições!D124)-1),"") -> Emulsão asfáltica a base d'água para imprimação. | E124: =IF(ISNUMBER($L124),OFFSET(Banco!$A$1,Composições!$L124-1,COLUMN(Composições!E124)-1),"") -> T | F124: =ROUND($H124*ROUND(I124,2),2) -> 5.9 | G124: =ROUND($H124*ROUND(J124,2),2) -> 5.9 | H124: 0.0012 | I124: =IF(ISNUMBER($L124),VALUE(OFFSET(Banco!$A$1,Composições!$L124-1,COLUMN(Composições!I124)-4)),0) -> 4915 | J124: =IF(ISNUMBER($L124),VALUE(OFFSET(Banco!$A$1,Composições!$L124-1,COLUMN(Composições!J124)-4)),0) -> 4915 | K124: =COUNTA($A$1:$A124)-1 -> 13 | L124: =MATCH(CONCATENATE($B124," ",$C124),Banco!$A:$A,0) -> 34 | M124: =IF(OR(ISERROR($L124),$H124="",$H124=0),"",OFFSET(M$1,MATCH($K124,$K$1:$K124,0)-1,0)) -> F | O124: =IF(ISNUMBER($L124),VALUE(OFFSET(Banco!$A$1,Composições!$L124-1,COLUMN(Composições!O124)-6)),0) -> 0 | P124: =IF(ISNUMBER($L124),VALUE(OFFSET(Banco!$A$1,Composições!$L124-1,COLUMN(Composições!P124)-6)),0) -> 0 | Q124: =ROUND(F124*O124,2) -> 0 | R124: =ROUND(G124*P124,2) -> 0
B125: SINAPI | C125: 91486 | D125: =IF(ISNUMBER($L125),OFFSET(Banco!$A$1,Composições!$L125-1,COLUMN(Composições!D125)-1),"") -> ESPARGIDOR DE ASFALTO PRESSURIZADO, TANQUE 6 M3 COM ISOLAÇÃO TÉRMICA, AQUECIDO COM 2 MAÇARICOS, COM BARRA ESPARGIDORA 3,60 M, MONTADO SOBRE CAMINHÃO TOCO, PBT 14.300 KG, POTÊNCIA 185 CV - CHI DIURNO. AF_05/2023 | E125: =IF(ISNUMBER($L125),OFFSET(Banco!$A$1,Composições!$L125-1,COLUMN(Composições!E125)-1),"") -> CHI | F125: 0.07 | G125: 0.07 | H125: 0.001 | I125: =IF(ISNUMBER($L125),VALUE(OFFSET(Banco!$A$1,Composições!$L125-1,COLUMN(Composições!I125)-4)),0) -> 65.8 | J125: =IF(ISNUMBER($L125),VALUE(OFFSET(Banco!$A$1,Composições!$L125-1,COLUMN(Composições!J125)-4)),0) -> 67.9 | K125: =COUNTA($A$1:$A125)-1 -> 13 | L125: =MATCH(CONCATENATE($B125," ",$C125),Banco!$A:$A,0) -> 7598 | M125: =IF(OR(ISERROR($L125),$H125="",$H125=0),"",OFFSET(M$1,MATCH($K125,$K$1:$K125,0)-1,0)) -> F | O125: =IF(ISNUMBER($L125),VALUE(OFFSET(Banco!$A$1,Composições!$L125-1,COLUMN(Composições!O125)-6)),0) -> 0.643 | P125: =IF(ISNUMBER($L125),VALUE(OFFSET(Banco!$A$1,Composições!$L125-1,COLUMN(Composições!P125)-6)),0) -> 0.6231 | Q125: 0.05 | R125: 0.04
B126: SINAPI | C126: 83362 | D126: =IF(ISNUMBER($L126),OFFSET(Banco!$A$1,Composições!$L126-1,COLUMN(Composições!D126)-1),"") -> ESPARGIDOR DE ASFALTO PRESSURIZADO, TANQUE 6 M3 COM ISOLAÇÃO TÉRMICA, AQUECIDO COM 2 MAÇARICOS, COM BARRA ESPARGIDORA 3,60 M, MONTADO SOBRE CAMINHÃO TOCO, PBT 14.300 KG, POTÊNCIA 185 CV - CHP DIURNO. AF_05/2023 | E126: =IF(ISNUMBER($L126),OFFSET(Banco!$A$1,Composições!$L126-1,COLUMN(Composições!E126)-1),"") -> CHP | F126: 0.27 | G126: 0.27 | H126: 0.001 | I126: =IF(ISNUMBER($L126),VALUE(OFFSET(Banco!$A$1,Composições!$L126-1,COLUMN(Composições!I126)-4)),0) -> 267.12 | J126: =IF(ISNUMBER($L126),VALUE(OFFSET(Banco!$A$1,Composições!$L126-1,COLUMN(Composições!J126)-4)),0) -> 269.22 | K126: =COUNTA($A$1:$A126)-1 -> 13 | L126: =MATCH(CONCATENATE($B126," ",$C126),Banco!$A:$A,0) -> 7599 | M126: =IF(OR(ISERROR($L126),$H126="",$H126=0),"",OFFSET(M$1,MATCH($K126,$K$1:$K126,0)-1,0)) -> F | O126: =IF(ISNUMBER($L126),VALUE(OFFSET(Banco!$A$1,Composições!$L126-1,COLUMN(Composições!O126)-6)),0) -> 0.3281 | P126: =IF(ISNUMBER($L126),VALUE(OFFSET(Banco!$A$1,Composições!$L126-1,COLUMN(Composições!P126)-6)),0) -> 0.3255 | Q126: 0.09 | R126: 0.09
B127: SINAPI | C127: 88316 | D127: =IF(ISNUMBER($L127),OFFSET(Banco!$A$1,Composições!$L127-1,COLUMN(Composições!D127)-1),"") -> SERVENTE COM ENCARGOS COMPLEMENTARES | E127: =IF(ISNUMBER($L127),OFFSET(Banco!$A$1,Composições!$L127-1,COLUMN(Composições!E127)-1),"") -> H | F127: 0.04 | G127: 0.04 | H127: 0.002 | I127: =IF(ISNUMBER($L127),VALUE(OFFSET(Banco!$A$1,Composições!$L127-1,COLUMN(Composições!I127)-4)),0) -> 20.13 | J127: =IF(ISNUMBER($L127),VALUE(OFFSET(Banco!$A$1,Composições!$L127-1,COLUMN(Composições!J127)-4)),0) -> 21.72 | K127: =COUNTA($A$1:$A127)-1 -> 13 | L127: =MATCH(CONCATENATE($B127," ",$C127),Banco!$A:$A,0) -> 13164 | M127: =IF(OR(ISERROR($L127),$H127="",$H127=0),"",OFFSET(M$1,MATCH($K127,$K$1:$K127,0)-1,0)) -> F | O127: =IF(ISNUMBER($L127),VALUE(OFFSET(Banco!$A$1,Composições!$L127-1,COLUMN(Composições!O127)-6)),0) -> 0 | P127: =IF(ISNUMBER($L127),VALUE(OFFSET(Banco!$A$1,Composições!$L127-1,COLUMN(Composições!P127)-6)),0) -> 0 | Q127: 0 | R127: 0
B128: SINAPI | C128: 89036 | D128: =IF(ISNUMBER($L128),OFFSET(Banco!$A$1,Composições!$L128-1,COLUMN(Composições!D128)-1),"") -> TRATOR DE PNEUS, POTÊNCIA 85 CV, TRAÇÃO 4X4, PESO COM LASTRO DE 4.675 KG - CHI DIURNO. AF_06/2014 | E128: =IF(ISNUMBER($L128),OFFSET(Banco!$A$1,Composições!$L128-1,COLUMN(Composições!E128)-1),"") -> CHI | F128: 0.06 | G128: 0.06 | H128: 0.0014 | I128: =IF(ISNUMBER($L128),VALUE(OFFSET(Banco!$A$1,Composições!$L128-1,COLUMN(Composições!I128)-4)),0) -> 43.95 | J128: =IF(ISNUMBER($L128),VALUE(OFFSET(Banco!$A$1,Composições!$L128-1,COLUMN(Composições!J128)-4)),0) -> 46.37 | K128: =COUNTA($A$1:$A128)-1 -> 13 | L128: =MATCH(CONCATENATE($B128," ",$C128),Banco!$A:$A,0) -> 7842 | M128: =IF(OR(ISERROR($L128),$H128="",$H128=0),"",OFFSET(M$1,MATCH($K128,$K$1:$K128,0)-1,0)) -> F | O128: =IF(ISNUMBER($L128),VALUE(OFFSET(Banco!$A$1,Composições!$L128-1,COLUMN(Composições!O128)-6)),0) -> 0.4005 | P128: =IF(ISNUMBER($L128),VALUE(OFFSET(Banco!$A$1,Composições!$L128-1,COLUMN(Composições!P128)-6)),0) -> 0.3796 | Q128: 0.02 | R128: 0.02
B129: SINAPI | C129: 89035 | D129: =IF(ISNUMBER($L129),OFFSET(Banco!$A$1,Composições!$L129-1,COLUMN(Composições!D129)-1),"") -> TRATOR DE PNEUS, POTÊNCIA 85 CV, TRAÇÃO 4X4, PESO COM LASTRO DE 4.675 KG - CHP DIURNO. AF_06/2014 | E129: =IF(ISNUMBER($L129),OFFSET(Banco!$A$1,Composições!$L129-1,COLUMN(Composições!E129)-1),"") -> CHP | F129: 0.22 | G129: 0.22 | H129: 0.0017 | I129: =IF(ISNUMBER($L129),VALUE(OFFSET(Banco!$A$1,Composições!$L129-1,COLUMN(Composições!I129)-4)),0) -> 127.02 | J129: =IF(ISNUMBER($L129),VALUE(OFFSET(Banco!$A$1,Composições!$L129-1,COLUMN(Composições!J129)-4)),0) -> 129.44 | K129: =COUNTA($A$1:$A129)-1 -> 13 | L129: =MATCH(CONCATENATE($B129," ",$C129),Banco!$A:$A,0) -> 7843 | M129: =IF(OR(ISERROR($L129),$H129="",$H129=0),"",OFFSET(M$1,MATCH($K129,$K$1:$K129,0)-1,0)) -> F | O129: =IF(ISNUMBER($L129),VALUE(OFFSET(Banco!$A$1,Composições!$L129-1,COLUMN(Composições!O129)-6)),0) -> 0.2581 | P129: =IF(ISNUMBER($L129),VALUE(OFFSET(Banco!$A$1,Composições!$L129-1,COLUMN(Composições!P129)-6)),0) -> 0.2532 | Q129: 0.06 | R129: 0.06
B130: SINAPI | C130: 5839 | D130: =IF(ISNUMBER($L130),OFFSET(Banco!$A$1,Composições!$L130-1,COLUMN(Composições!D130)-1),"") -> VASSOURA MECÂNICA REBOCÁVEL COM ESCOVA CILÍNDRICA, LARGURA ÚTIL DE VARRIMENTO DE 2,44 M - CHP DIURNO. AF_06/2014 | E130: =IF(ISNUMBER($L130),OFFSET(Banco!$A$1,Composições!$L130-1,COLUMN(Composições!E130)-1),"") -> CHP | F130: 0.02 | G130: 0.02 | H130: 0.0017 | I130: =IF(ISNUMBER($L130),VALUE(OFFSET(Banco!$A$1,Composições!$L130-1,COLUMN(Composições!I130)-4)),0) -> 9.33 | J130: =IF(ISNUMBER($L130),VALUE(OFFSET(Banco!$A$1,Composições!$L130-1,COLUMN(Composições!J130)-4)),0) -> 9.33 | K130: =COUNTA($A$1:$A130)-1 -> 13 | L130: =MATCH(CONCATENATE($B130," ",$C130),Banco!$A:$A,0) -> 7865 | M130: =IF(OR(ISERROR($L130),$H130="",$H130=0),"",OFFSET(M$1,MATCH($K130,$K$1:$K130,0)-1,0)) -> F | O130: =IF(ISNUMBER($L130),VALUE(OFFSET(Banco!$A$1,Composições!$L130-1,COLUMN(Composições!O130)-6)),0) -> 1 | P130: =IF(ISNUMBER($L130),VALUE(OFFSET(Banco!$A$1,Composições!$L130-1,COLUMN(Composições!P130)-6)),0) -> 1 | Q130: 0.02 | R130: 0.02
D131: =IF(ISNUMBER($L131),OFFSET(Banco!$A$1,Composições!$L131-1,COLUMN(Composições!D131)-1),"") ->  | E131: =IF(ISNUMBER($L131),OFFSET(Banco!$A$1,Composições!$L131-1,COLUMN(Composições!E131)-1),"") ->  | F131: 0 | G131: 0 | I131: =IF(ISNUMBER($L131),VALUE(OFFSET(Banco!$A$1,Composições!$L131-1,COLUMN(Composições!I131)-4)),0) -> 0 | J131: =IF(ISNUMBER($L131),VALUE(OFFSET(Banco!$A$1,Composições!$L131-1,COLUMN(Composições!J131)-4)),0) -> 0 | K131: =COUNTA($A$1:$A131)-1 -> 13 | L131: =MATCH(CONCATENATE($B131," ",$C131),Banco!$A:$A,0) ->  | M131: =IF(OR(ISERROR($L131),$H131="",$H131=0),"",OFFSET(M$1,MATCH($K131,$K$1:$K131,0)-1,0)) ->  | O131: =IF(ISNUMBER($L131),VALUE(OFFSET(Banco!$A$1,Composições!$L131-1,COLUMN(Composições!O131)-6)),0) -> 0 | P131: =IF(ISNUMBER($L131),VALUE(OFFSET(Banco!$A$1,Composições!$L131-1,COLUMN(Composições!P131)-6)),0) -> 0 | Q131: 0 | R131: 0
D132: =IF(ISNUMBER($L132),OFFSET(Banco!$A$1,Composições!$L132-1,COLUMN(Composições!D132)-1),"") ->  | E132: =IF(ISNUMBER($L132),OFFSET(Banco!$A$1,Composições!$L132-1,COLUMN(Composições!E132)-1),"") ->  | F132: 0 | G132: 0 | I132: =IF(ISNUMBER($L132),VALUE(OFFSET(Banco!$A$1,Composições!$L132-1,COLUMN(Composições!I132)-4)),0) -> 0 | J132: =IF(ISNUMBER($L132),VALUE(OFFSET(Banco!$A$1,Composições!$L132-1,COLUMN(Composições!J132)-4)),0) -> 0 | K132: =COUNTA($A$1:$A132)-1 -> 13 | L132: =MATCH(CONCATENATE($B132," ",$C132),Banco!$A:$A,0) ->  | M132: =IF(OR(ISERROR($L132),$H132="",$H132=0),"",OFFSET(M$1,MATCH($K132,$K$1:$K132,0)-1,0)) ->  | O132: =IF(ISNUMBER($L132),VALUE(OFFSET(Banco!$A$1,Composições!$L132-1,COLUMN(Composições!O132)-6)),0) -> 0 | P132: =IF(ISNUMBER($L132),VALUE(OFFSET(Banco!$A$1,Composições!$L132-1,COLUMN(Composições!P132)-6)),0) -> 0 | Q132: 0 | R132: 0
D133: =IF(ISNUMBER($L133),OFFSET(Banco!$A$1,Composições!$L133-1,COLUMN(Composições!D133)-1),"") ->  | E133: =IF(ISNUMBER($L133),OFFSET(Banco!$A$1,Composições!$L133-1,COLUMN(Composições!E133)-1),"") ->  | F133: =ROUND($H133*ROUND(I133,2),2) -> 0 | G133: =ROUND($H133*ROUND(J133,2),2) -> 0 | I133: =IF(ISNUMBER($L133),VALUE(OFFSET(Banco!$A$1,Composições!$L133-1,COLUMN(Composições!I133)-4)),0) -> 0 | J133: =IF(ISNUMBER($L133),VALUE(OFFSET(Banco!$A$1,Composições!$L133-1,COLUMN(Composições!J133)-4)),0) -> 0 | K133: =COUNTA($A$1:$A133)-1 -> 13 | L133: =MATCH(CONCATENATE($B133," ",$C133),Banco!$A:$A,0) ->  | M133: =IF(OR(ISERROR($L133),$H133="",$H133=0),"",OFFSET(M$1,MATCH($K133,$K$1:$K133,0)-1,0)) ->  | O133: =IF(ISNUMBER($L133),VALUE(OFFSET(Banco!$A$1,Composições!$L133-1,COLUMN(Composições!O133)-6)),0) -> 0 | P133: =IF(ISNUMBER($L133),VALUE(OFFSET(Banco!$A$1,Composições!$L133-1,COLUMN(Composições!P133)-6)),0) -> 0
K134: =COUNTA($A$1:$A134)-1 -> 13 | M134: =IF(OFFSET($M$1,MATCH(OFFSET(K134,-1,0),$K$1:$K134,0)-1,0)="F","F","") -> F
A135: =CONCATENATE($B135," ",$C135) -> Composição IUP30023 | B135: Composição | C135: IUP30023 | D135: Escavação mecânica de material 1­ª categoria, proveniente de corte do subleito (com motoniveladora 125 HP) | E135: M3 | F135: =IF($L135>0,SUM(OFFSET(F135,1,0,$L135),0)) -> 2.37 | G135: =IF($L135>0,SUM(OFFSET(G135,1,0,$L135),0)) -> 2.42 | I135: =IF(ISERROR(F135),0,F135) -> 2.37 | J135: =IF(ISERROR(G135),0,G135) -> 2.42 | K135: =COUNTA($A$1:$A135)-1 -> 14 | L135: =IF(MAX(K:K)=K135,MATCH(9999999,$K:$K)+1,MATCH(K135+1,K:K,0))-ROW(L135)-2 -> 3 | M135: =IF(AND(OR(I135<>0,J135<>0),N135="Sim"),"F","") -> F | N135: Sim
B136: SINAPI | C136: 5934 | D136: =IF(ISNUMBER($L136),OFFSET(Banco!$A$1,Composições!$L136-1,COLUMN(Composições!D136)-1),"") -> MOTONIVELADORA POTÊNCIA BÁSICA LÍQUIDA (PRIMEIRA MARCHA) 125 HP, PESO BRUTO 13032 KG, LARGURA DA LÂMINA DE 3,7 M - CHI DIURNO. AF_06/2014 | E136: =IF(ISNUMBER($L136),OFFSET(Banco!$A$1,Composições!$L136-1,COLUMN(Composições!E136)-1),"") -> CHI | F136: =ROUND($H136*ROUND(I136,2),2) -> 0.32 | G136: =ROUND($H136*ROUND(J136,2),2) -> 0.33 | H136: 0.0030612 | I136: =IF(ISNUMBER($L136),VALUE(OFFSET(Banco!$A$1,Composições!$L136-1,COLUMN(Composições!I136)-4)),0) -> 103.44 | J136: =IF(ISNUMBER($L136),VALUE(OFFSET(Banco!$A$1,Composições!$L136-1,COLUMN(Composições!J136)-4)),0) -> 106.98 | K136: =COUNTA($A$1:$A136)-1 -> 14 | L136: =MATCH(CONCATENATE($B136," ",$C136),Banco!$A:$A,0) -> 7698 | M136: =IF(OR(ISERROR($L136),$H136="",$H136=0),"",OFFSET(M$1,MATCH($K136,$K$1:$K136,0)-1,0)) -> F | O136: =IF(ISNUMBER($L136),VALUE(OFFSET(Banco!$A$1,Composições!$L136-1,COLUMN(Composições!O136)-6)),0) -> 0 | P136: =IF(ISNUMBER($L136),VALUE(OFFSET(Banco!$A$1,Composições!$L136-1,COLUMN(Composições!P136)-6)),0) -> 0 | Q136: =ROUND(F136*O136,2) -> 0 | R136: =ROUND(G136*P136,2) -> 0
B137: SINAPI | C137: 5932 | D137: =IF(ISNUMBER($L137),OFFSET(Banco!$A$1,Composições!$L137-1,COLUMN(Composições!D137)-1),"") -> MOTONIVELADORA POTÊNCIA BÁSICA LÍQUIDA (PRIMEIRA MARCHA) 125 HP, PESO BRUTO 13032 KG, LARGURA DA LÂMINA DE 3,7 M - CHP DIURNO. AF_06/2014 | E137: =IF(ISNUMBER($L137),OFFSET(Banco!$A$1,Composições!$L137-1,COLUMN(Composições!E137)-1),"") -> CHP | F137: 1.91 | G137: 1.94 | H137: 0.0071428 | I137: =IF(ISNUMBER($L137),VALUE(OFFSET(Banco!$A$1,Composições!$L137-1,COLUMN(Composições!I137)-4)),0) -> 267.68 | J137: =IF(ISNUMBER($L137),VALUE(OFFSET(Banco!$A$1,Composições!$L137-1,COLUMN(Composições!J137)-4)),0) -> 271.22 | K137: =COUNTA($A$1:$A137)-1 -> 14 | L137: =MATCH(CONCATENATE($B137," ",$C137),Banco!$A:$A,0) -> 7699 | M137: =IF(OR(ISERROR($L137),$H137="",$H137=0),"",OFFSET(M$1,MATCH($K137,$K$1:$K137,0)-1,0)) -> F | O137: =IF(ISNUMBER($L137),VALUE(OFFSET(Banco!$A$1,Composições!$L137-1,COLUMN(Composições!O137)-6)),0) -> 0 | P137: =IF(ISNUMBER($L137),VALUE(OFFSET(Banco!$A$1,Composições!$L137-1,COLUMN(Composições!P137)-6)),0) -> 0 | Q137: 0 | R137: 0
B138: SINAPI | C138: 88316 | D138: =IF(ISNUMBER($L138),OFFSET(Banco!$A$1,Composições!$L138-1,COLUMN(Composições!D138)-1),"") -> SERVENTE COM ENCARGOS COMPLEMENTARES | E138: =IF(ISNUMBER($L138),OFFSET(Banco!$A$1,Composições!$L138-1,COLUMN(Composições!E138)-1),"") -> H | F138: 0.14 | G138: 0.15 | H138: 0.0069 | I138: =IF(ISNUMBER($L138),VALUE(OFFSET(Banco!$A$1,Composições!$L138-1,COLUMN(Composições!I138)-4)),0) -> 20.13 | J138: =IF(ISNUMBER($L138),VALUE(OFFSET(Banco!$A$1,Composições!$L138-1,COLUMN(Composições!J138)-4)),0) -> 21.72 | K138: =COUNTA($A$1:$A138)-1 -> 14 | L138: =MATCH(CONCATENATE($B138," ",$C138),Banco!$A:$A,0) -> 13164 | M138: =IF(OR(ISERROR($L138),$H138="",$H138=0),"",OFFSET(M$1,MATCH($K138,$K$1:$K138,0)-1,0)) -> F | O138: =IF(ISNUMBER($L138),VALUE(OFFSET(Banco!$A$1,Composições!$L138-1,COLUMN(Composições!O138)-6)),0) -> 0 | P138: =IF(ISNUMBER($L138),VALUE(OFFSET(Banco!$A$1,Composições!$L138-1,COLUMN(Composições!P138)-6)),0) -> 0 | Q138: 0 | R138: 0
K139: =COUNTA($A$1:$A139)-1 -> 14 | M139: =IF(OFFSET($M$1,MATCH(OFFSET(K139,-1,0),$K$1:$K139,0)-1,0)="F","F","") -> F
A140: =CONCATENATE($B140," ",$C140) -> Composição IUP30069 | B140: Composição | C140: IUP30069 | D140: Execução e compactação de base para pavimentação com pedra britada ou bica corrida | E140: M3 | F140: =IF($L140>0,SUM(OFFSET(F140,1,0,$L140),0)) -> 95.26 | G140: =IF($L140>0,SUM(OFFSET(G140,1,0,$L140),0)) -> 95.58 | I140: =IF(ISERROR(F140),0,F140) -> 95.26 | J140: =IF(ISERROR(G140),0,G140) -> 95.58 | K140: =COUNTA($A$1:$A140)-1 -> 15 | L140: =IF(MAX(K:K)=K140,MATCH(9999999,$K:$K)+1,MATCH(K140+1,K:K,0))-ROW(L140)-2 -> 10 | M140: =IF(AND(OR(I140<>0,J140<>0),N140="Sim"),"F","") -> F | N140: Sim
B141: Cotação | C141: 4748 | D141: =IF(ISNUMBER($L141),OFFSET(Banco!$A$1,Composições!$L141-1,COLUMN(Composições!D141)-1),"") -> Pedra britada ou bica corrida, não classificada (posto pedreira/fornecedor, sem frete) | E141: =IF(ISNUMBER($L141),OFFSET(Banco!$A$1,Composições!$L141-1,COLUMN(Composições!E141)-1),"") -> M3 | F141: =ROUND($H141*ROUND(I141,2),2) -> 80.61 | G141: =ROUND($H141*ROUND(J141,2),2) -> 80.61 | H141: 1.3 | I141: =IF(ISNUMBER($L141),VALUE(OFFSET(Banco!$A$1,Composições!$L141-1,COLUMN(Composições!I141)-4)),0) -> 62.01 | J141: =IF(ISNUMBER($L141),VALUE(OFFSET(Banco!$A$1,Composições!$L141-1,COLUMN(Composições!J141)-4)),0) -> 62.01 | K141: =COUNTA($A$1:$A141)-1 -> 15 | L141: =MATCH(CONCATENATE($B141," ",$C141),Banco!$A:$A,0) -> 35 | M141: =IF(OR(ISERROR($L141),$H141="",$H141=0),"",OFFSET(M$1,MATCH($K141,$K$1:$K141,0)-1,0)) -> F | O141: =IF(ISNUMBER($L141),VALUE(OFFSET(Banco!$A$1,Composições!$L141-1,COLUMN(Composições!O141)-6)),0) -> 0 | P141: =IF(ISNUMBER($L141),VALUE(OFFSET(Banco!$A$1,Composições!$L141-1,COLUMN(Composições!P141)-6)),0) -> 0 | Q141: =ROUND(F141*O141,2) -> 0 | R141: =ROUND(G141*P141,2) -> 0
B142: SINAPI | C142: 96035 | D142: =IF(ISNUMBER($L142),OFFSET(Banco!$A$1,Composições!$L142-1,COLUMN(Composições!D142)-1),"") -> CAMINHÃO BASCULANTE 10 M3, TRUCADO, POTÊNCIA 230 CV, INCLUSIVE CAÇAMBA METÁLICA, COM DISTRIBUIDOR DE AGREGADOS ACOPLADO - CHP DIURNO. AF_02/2017 | E142: =IF(ISNUMBER($L142),OFFSET(Banco!$A$1,Composições!$L142-1,COLUMN(Composições!E142)-1),"") -> CHP | F142: 3.53 | G142: 3.56 | H142: 0.0125 | I142: =IF(ISNUMBER($L142),VALUE(OFFSET(Banco!$A$1,Composições!$L142-1,COLUMN(Composições!I142)-4)),0) -> 282.35 | J142: =IF(ISNUMBER($L142),VALUE(OFFSET(Banco!$A$1,Composições!$L142-1,COLUMN(Composições!J142)-4)),0) -> 284.53 | K142: =COUNTA($A$1:$A142)-1 -> 15 | L142: =MATCH(CONCATENATE($B142," ",$C142),Banco!$A:$A,0) -> 7515 | M142: =IF(OR(ISERROR($L142),$H142="",$H142=0),"",OFFSET(M$1,MATCH($K142,$K$1:$K142,0)-1,0)) -> F | O142: =IF(ISNUMBER($L142),VALUE(OFFSET(Banco!$A$1,Composições!$L142-1,COLUMN(Composições!O142)-6)),0) -> 0.4081 | P142: =IF(ISNUMBER($L142),VALUE(OFFSET(Banco!$A$1,Composições!$L142-1,COLUMN(Composições!P142)-6)),0) -> 0.405 | Q142: 1.44 | R142: 1.44
B143: SINAPI | C143: 6259 | D143: =IF(ISNUMBER($L143),OFFSET(Banco!$A$1,Composições!$L143-1,COLUMN(Composições!D143)-1),"") -> CAMINHÃO PIPA 6.000 L, PESO BRUTO TOTAL 13.000 KG, DISTÂNCIA ENTRE EIXOS 4,80 M, POTÊNCIA 189 CV INCLUSIVE TANQUE DE AÇO PARA TRANSPORTE DE ÁGUA, CAPACIDADE 6 M3 - CHP DIURNO. AF_06/2014 | E143: =IF(ISNUMBER($L143),OFFSET(Banco!$A$1,Composições!$L143-1,COLUMN(Composições!E143)-1),"") -> CHP | F143: 3.16 | G143: 3.19 | H143: 0.0125 | I143: =IF(ISNUMBER($L143),VALUE(OFFSET(Banco!$A$1,Composições!$L143-1,COLUMN(Composições!I143)-4)),0) -> 252.77 | J143: =IF(ISNUMBER($L143),VALUE(OFFSET(Banco!$A$1,Composições!$L143-1,COLUMN(Composições!J143)-4)),0) -> 254.87 | K143: =COUNTA($A$1:$A143)-1 -> 15 | L143: =MATCH(CONCATENATE($B143," ",$C143),Banco!$A:$A,0) -> 7533 | M143: =IF(OR(ISERROR($L143),$H143="",$H143=0),"",OFFSET(M$1,MATCH($K143,$K$1:$K143,0)-1,0)) -> F | O143: =IF(ISNUMBER($L143),VALUE(OFFSET(Banco!$A$1,Composições!$L143-1,COLUMN(Composições!O143)-6)),0) -> 0.2766 | P143: =IF(ISNUMBER($L143),VALUE(OFFSET(Banco!$A$1,Composições!$L143-1,COLUMN(Composições!P143)-6)),0) -> 0.2743 | Q143: 0.87 | R143: 0.88
B144: SINAPI | C144: 5942 | D144: =IF(ISNUMBER($L144),OFFSET(Banco!$A$1,Composições!$L144-1,COLUMN(Composições!D144)-1),"") -> PÁ CARREGADEIRA SOBRE RODAS, POTÊNCIA LÍQUIDA 128 HP, CAPACIDADE DA CAÇAMBA 1,7 A 2,8 M3, PESO OPERACIONAL 11632 KG - CHI DIURNO. AF_06/2014 | E144: =IF(ISNUMBER($L144),OFFSET(Banco!$A$1,Composições!$L144-1,COLUMN(Composições!E144)-1),"") -> CHI | F144: 0.22 | G144: 0.23 | H144: 0.0031 | I144: =IF(ISNUMBER($L144),VALUE(OFFSET(Banco!$A$1,Composições!$L144-1,COLUMN(Composições!I144)-4)),0) -> 71.88 | J144: =IF(ISNUMBER($L144),VALUE(OFFSET(Banco!$A$1,Composições!$L144-1,COLUMN(Composições!J144)-4)),0) -> 74.28 | K144: =COUNTA($A$1:$A144)-1 -> 15 | L144: =MATCH(CONCATENATE($B144," ",$C144),Banco!$A:$A,0) -> 7770 | M144: =IF(OR(ISERROR($L144),$H144="",$H144=0),"",OFFSET(M$1,MATCH($K144,$K$1:$K144,0)-1,0)) -> F | O144: =IF(ISNUMBER($L144),VALUE(OFFSET(Banco!$A$1,Composições!$L144-1,COLUMN(Composições!O144)-6)),0) -> 0 | P144: =IF(ISNUMBER($L144),VALUE(OFFSET(Banco!$A$1,Composições!$L144-1,COLUMN(Composições!P144)-6)),0) -> 0 | Q144: 0 | R144: 0
B145: SINAPI | C145: 5940 | D145: =IF(ISNUMBER($L145),OFFSET(Banco!$A$1,Composições!$L145-1,COLUMN(Composições!D145)-1),"") -> PÁ CARREGADEIRA SOBRE RODAS, POTÊNCIA LÍQUIDA 128 HP, CAPACIDADE DA CAÇAMBA 1,7 A 2,8 M3, PESO OPERACIONAL 11632 KG - CHP DIURNO. AF_06/2014 | E145: =IF(ISNUMBER($L145),OFFSET(Banco!$A$1,Composições!$L145-1,COLUMN(Composições!E145)-1),"") -> CHP | F145: 1.53 | G145: 1.56 | H145: 0.0094 | I145: =IF(ISNUMBER($L145),VALUE(OFFSET(Banco!$A$1,Composições!$L145-1,COLUMN(Composições!I145)-4)),0) -> 163.09 | J145: =IF(ISNUMBER($L145),VALUE(OFFSET(Banco!$A$1,Composições!$L145-1,COLUMN(Composições!J145)-4)),0) -> 165.49 | K145: =COUNTA($A$1:$A145)-1 -> 15 | L145: =MATCH(CONCATENATE($B145," ",$C145),Banco!$A:$A,0) -> 7771 | M145: =IF(OR(ISERROR($L145),$H145="",$H145=0),"",OFFSET(M$1,MATCH($K145,$K$1:$K145,0)-1,0)) -> F | O145: =IF(ISNUMBER($L145),VALUE(OFFSET(Banco!$A$1,Composições!$L145-1,COLUMN(Composições!O145)-6)),0) -> 0 | P145: =IF(ISNUMBER($L145),VALUE(OFFSET(Banco!$A$1,Composições!$L145-1,COLUMN(Composições!P145)-6)),0) -> 0 | Q145: 0 | R145: 0
B146: SINAPI | C146: 6880 | D146: =IF(ISNUMBER($L146),OFFSET(Banco!$A$1,Composições!$L146-1,COLUMN(Composições!D146)-1),"") -> ROLO COMPACTADOR DE PNEUS ESTÁTICO, PRESSÃO VARIÁVEL, POTÊNCIA 111 HP, PESO SEM/COM LASTRO 9,5 / 26 T, LARGURA DE TRABALHO 1,90 M - CHI DIURNO. AF_07/2014 | E146: =IF(ISNUMBER($L146),OFFSET(Banco!$A$1,Composições!$L146-1,COLUMN(Composições!E146)-1),"") -> CHI | F146: 0.22 | G146: 0.22 | H146: 0.0025 | I146: =IF(ISNUMBER($L146),VALUE(OFFSET(Banco!$A$1,Composições!$L146-1,COLUMN(Composições!I146)-4)),0) -> 87.69 | J146: =IF(ISNUMBER($L146),VALUE(OFFSET(Banco!$A$1,Composições!$L146-1,COLUMN(Composições!J146)-4)),0) -> 89.86 | K146: =COUNTA($A$1:$A146)-1 -> 15 | L146: =MATCH(CONCATENATE($B146," ",$C146),Banco!$A:$A,0) -> 7784 | M146: =IF(OR(ISERROR($L146),$H146="",$H146=0),"",OFFSET(M$1,MATCH($K146,$K$1:$K146,0)-1,0)) -> F | O146: =IF(ISNUMBER($L146),VALUE(OFFSET(Banco!$A$1,Composições!$L146-1,COLUMN(Composições!O146)-6)),0) -> 0.7246 | P146: =IF(ISNUMBER($L146),VALUE(OFFSET(Banco!$A$1,Composições!$L146-1,COLUMN(Composições!P146)-6)),0) -> 0.7071 | Q146: 0.16 | R146: 0.16
B147: SINAPI | C147: 6879 | D147: =IF(ISNUMBER($L147),OFFSET(Banco!$A$1,Composições!$L147-1,COLUMN(Composições!D147)-1),"") -> ROLO COMPACTADOR DE PNEUS ESTÁTICO, PRESSÃO VARIÁVEL, POTÊNCIA 111 HP, PESO SEM/COM LASTRO 9,5 / 26 T, LARGURA DE TRABALHO 1,90 M - CHP DIURNO. AF_07/2014 | E147: =IF(ISNUMBER($L147),OFFSET(Banco!$A$1,Composições!$L147-1,COLUMN(Composições!E147)-1),"") -> CHP | F147: 2.15 | G147: 2.17 | H147: 0.01 | I147: =IF(ISNUMBER($L147),VALUE(OFFSET(Banco!$A$1,Composições!$L147-1,COLUMN(Composições!I147)-4)),0) -> 215.32 | J147: =IF(ISNUMBER($L147),VALUE(OFFSET(Banco!$A$1,Composições!$L147-1,COLUMN(Composições!J147)-4)),0) -> 217.49 | K147: =COUNTA($A$1:$A147)-1 -> 15 | L147: =MATCH(CONCATENATE($B147," ",$C147),Banco!$A:$A,0) -> 7785 | M147: =IF(OR(ISERROR($L147),$H147="",$H147=0),"",OFFSET(M$1,MATCH($K147,$K$1:$K147,0)-1,0)) -> F | O147: =IF(ISNUMBER($L147),VALUE(OFFSET(Banco!$A$1,Composições!$L147-1,COLUMN(Composições!O147)-6)),0) -> 0.5862 | P147: =IF(ISNUMBER($L147),VALUE(OFFSET(Banco!$A$1,Composições!$L147-1,COLUMN(Composições!P147)-6)),0) -> 0.5804 | Q147: 1.26 | R147: 1.26
B148: SINAPI | C148: 5685 | D148: =IF(ISNUMBER($L148),OFFSET(Banco!$A$1,Composições!$L148-1,COLUMN(Composições!D148)-1),"") -> ROLO COMPACTADOR VIBRATÓRIO DE UM CILINDRO AÇO LISO, POTÊNCIA 80 HP, PESO OPERACIONAL MÁXIMO 8,1 T, IMPACTO DINÂMICO 16,15 / 9,5 T, LARGURA DE TRABALHO 1,68 M - CHI DIURNO. AF_06/2014 | E148: =IF(ISNUMBER($L148),OFFSET(Banco!$A$1,Composições!$L148-1,COLUMN(Composições!E148)-1),"") -> CHI | F148: 0.2 | G148: 0.21 | H148: 0.0031 | I148: =IF(ISNUMBER($L148),VALUE(OFFSET(Banco!$A$1,Composições!$L148-1,COLUMN(Composições!I148)-4)),0) -> 64.8 | J148: =IF(ISNUMBER($L148),VALUE(OFFSET(Banco!$A$1,Composições!$L148-1,COLUMN(Composições!J148)-4)),0) -> 66.97 | K148: =COUNTA($A$1:$A148)-1 -> 15 | L148: =MATCH(CONCATENATE($B148," ",$C148),Banco!$A:$A,0) -> 7792 | M148: =IF(OR(ISERROR($L148),$H148="",$H148=0),"",OFFSET(M$1,MATCH($K148,$K$1:$K148,0)-1,0)) -> F | O148: =IF(ISNUMBER($L148),VALUE(OFFSET(Banco!$A$1,Composições!$L148-1,COLUMN(Composições!O148)-6)),0) -> 0.6273 | P148: =IF(ISNUMBER($L148),VALUE(OFFSET(Banco!$A$1,Composições!$L148-1,COLUMN(Composições!P148)-6)),0) -> 0.607 | Q148: 0.13 | R148: 0.13
B149: SINAPI | C149: 5684 | D149: =IF(ISNUMBER($L149),OFFSET(Banco!$A$1,Composições!$L149-1,COLUMN(Composições!D149)-1),"") -> ROLO COMPACTADOR VIBRATÓRIO DE UM CILINDRO AÇO LISO, POTÊNCIA 80 HP, PESO OPERACIONAL MÁXIMO 8,1 T, IMPACTO DINÂMICO 16,15 / 9,5 T, LARGURA DE TRABALHO 1,68 M - CHP DIURNO. AF_06/2014 | E149: =IF(ISNUMBER($L149),OFFSET(Banco!$A$1,Composições!$L149-1,COLUMN(Composições!E149)-1),"") -> CHP | F149: 1.53 | G149: 1.55 | H149: 0.0094 | I149: =IF(ISNUMBER($L149),VALUE(OFFSET(Banco!$A$1,Composições!$L149-1,COLUMN(Composições!I149)-4)),0) -> 162.49 | J149: =IF(ISNUMBER($L149),VALUE(OFFSET(Banco!$A$1,Composições!$L149-1,COLUMN(Composições!J149)-4)),0) -> 164.66 | K149: =COUNTA($A$1:$A149)-1 -> 15 | L149: =MATCH(CONCATENATE($B149," ",$C149),Banco!$A:$A,0) -> 7793 | M149: =IF(OR(ISERROR($L149),$H149="",$H149=0),"",OFFSET(M$1,MATCH($K149,$K$1:$K149,0)-1,0)) -> F | O149: =IF(ISNUMBER($L149),VALUE(OFFSET(Banco!$A$1,Composições!$L149-1,COLUMN(Composições!O149)-6)),0) -> 0.497 | P149: =IF(ISNUMBER($L149),VALUE(OFFSET(Banco!$A$1,Composições!$L149-1,COLUMN(Composições!P149)-6)),0) -> 0.4905 | Q149: 0.76 | R149: 0.76
B150: SINAPI | C150: 88316 | D150: =IF(ISNUMBER($L150),OFFSET(Banco!$A$1,Composições!$L150-1,COLUMN(Composições!D150)-1),"") -> SERVENTE COM ENCARGOS COMPLEMENTARES | E150: =IF(ISNUMBER($L150),OFFSET(Banco!$A$1,Composições!$L150-1,COLUMN(Composições!E150)-1),"") -> H | F150: =ROUND($H150*ROUND(I150,2),2) -> 2.11 | G150: =ROUND($H150*ROUND(J150,2),2) -> 2.28 | H150: 0.105 | I150: =IF(ISNUMBER($L150),VALUE(OFFSET(Banco!$A$1,Composições!$L150-1,COLUMN(Composições!I150)-4)),0) -> 20.13 | J150: =IF(ISNUMBER($L150),VALUE(OFFSET(Banco!$A$1,Composições!$L150-1,COLUMN(Composições!J150)-4)),0) -> 21.72 | K150: =COUNTA($A$1:$A150)-1 -> 15 | L150: =MATCH(CONCATENATE($B150," ",$C150),Banco!$A:$A,0) -> 13164 | M150: =IF(OR(ISERROR($L150),$H150="",$H150=0),"",OFFSET(M$1,MATCH($K150,$K$1:$K150,0)-1,0)) -> F | O150: =IF(ISNUMBER($L150),VALUE(OFFSET(Banco!$A$1,Composições!$L150-1,COLUMN(Composições!O150)-6)),0) -> 0 | P150: =IF(ISNUMBER($L150),VALUE(OFFSET(Banco!$A$1,Composições!$L150-1,COLUMN(Composições!P150)-6)),0) -> 0
K151: =COUNTA($A$1:$A151)-1 -> 15 | M151: =IF(OFFSET($M$1,MATCH(OFFSET(K151,-1,0),$K$1:$K151,0)-1,0)="F","F","") -> F
A152: =CONCATENATE($B152," ",$C152) -> Composição IUP30001 | B152: Composição | C152: IUP30001 | D152: Meio-fio com sarjeta, concreto fck=20 MPa, seção 615 cm², moldado no local, inclusive escavação e pintura a cal em uma demão | E152: M | F152: =IF($L152>0,SUM(OFFSET(F152,1,0,$L152),0)) -> 49.07 | G152: =IF($L152>0,SUM(OFFSET(G152,1,0,$L152),0)) -> 51.16 | I152: =IF(ISERROR(F152),0,F152) -> 49.07 | J152: =IF(ISERROR(G152),0,G152) -> 51.16 | K152: =COUNTA($A$1:$A152)-1 -> 16 | L152: =IF(MAX(K:K)=K152,MATCH(9999999,$K:$K)+1,MATCH(K152+1,K:K,0))-ROW(L152)-2 -> 5 | M152: =IF(AND(OR(I152<>0,J152<>0),N152="Sim"),"F","") -> F | N152: Sim
B153: SINAPI | C153: 94963 | D153: =IF(ISNUMBER($L153),OFFSET(Banco!$A$1,Composições!$L153-1,COLUMN(Composições!D153)-1),"") -> CONCRETO FCK = 15MPA, TRAÇO 1:3,4:3,5 (EM MASSA SECA DE CIMENTO/ AREIA MÉDIA/ BRITA 1) - PREPARO MECÂNICO COM BETONEIRA 400 L. AF_05/2021 | E153: =IF(ISNUMBER($L153),OFFSET(Banco!$A$1,Composições!$L153-1,COLUMN(Composições!E153)-1),"") -> M3 | F153: =ROUND($H153*ROUND(I153,2),2) -> 27.06 | G153: =ROUND($H153*ROUND(J153,2),2) -> 27.48 | H153: 0.0615 | I153: =IF(ISNUMBER($L153),VALUE(OFFSET(Banco!$A$1,Composições!$L153-1,COLUMN(Composições!I153)-4)),0) -> 440.04 | J153: =IF(ISNUMBER($L153),VALUE(OFFSET(Banco!$A$1,Composições!$L153-1,COLUMN(Composições!J153)-4)),0) -> 446.84 | K153: =COUNTA($A$1:$A153)-1 -> 16 | L153: =MATCH(CONCATENATE($B153," ",$C153),Banco!$A:$A,0) -> 14340 | M153: =IF(OR(ISERROR($L153),$H153="",$H153=0),"",OFFSET(M$1,MATCH($K153,$K$1:$K153,0)-1,0)) -> F | O153: =IF(ISNUMBER($L153),VALUE(OFFSET(Banco!$A$1,Composições!$L153-1,COLUMN(Composições!O153)-6)),0) -> 0 | P153: =IF(ISNUMBER($L153),VALUE(OFFSET(Banco!$A$1,Composições!$L153-1,COLUMN(Composições!P153)-6)),0) -> 0 | Q153: =ROUND(F153*O153,2) -> 0 | R153: =ROUND(G153*P153,2) -> 0
B154: Composição | C154: IUD20080 | D154: =IF(ISNUMBER($L154),OFFSET(Banco!$A$1,Composições!$L154-1,COLUMN(Composições!D154)-1),"") -> Escavação manual em solo-prof. até 1,50 m | E154: =IF(ISNUMBER($L154),OFFSET(Banco!$A$1,Composições!$L154-1,COLUMN(Composições!E154)-1),"") -> M3 | F154: 1.86 | G154: 2.01 | H154: 0.0462 | I154: =IF(ISNUMBER($L154),VALUE(OFFSET(Banco!$A$1,Composições!$L154-1,COLUMN(Composições!I154)-4)),0) -> 40.26 | J154: =IF(ISNUMBER($L154),VALUE(OFFSET(Banco!$A$1,Composições!$L154-1,COLUMN(Composições!J154)-4)),0) -> 43.44 | K154: =COUNTA($A$1:$A154)-1 -> 16 | L154: =MATCH(CONCATENATE($B154," ",$C154),Banco!$A:$A,0) -> 7 | M154: =IF(OR(ISERROR($L154),$H154="",$H154=0),"",OFFSET(M$1,MATCH($K154,$K$1:$K154,0)-1,0)) -> F | O154: =IF(ISNUMBER($L154),VALUE(OFFSET(Banco!$A$1,Composições!$L154-1,COLUMN(Composições!O154)-6)),0) -> 0 | P154: =IF(ISNUMBER($L154),VALUE(OFFSET(Banco!$A$1,Composições!$L154-1,COLUMN(Composições!P154)-6)),0) -> 0 | Q154: 0 | R154: 0
B155: SINAPI | C155: 103670 | D155: =IF(ISNUMBER($L155),OFFSET(Banco!$A$1,Composições!$L155-1,COLUMN(Composições!D155)-1),"") -> LANÇAMENTO COM USO DE BALDES, ADENSAMENTO E ACABAMENTO DE CONCRETO EM ESTRUTURAS. AF_02/2022 | E155: =IF(ISNUMBER($L155),OFFSET(Banco!$A$1,Composições!$L155-1,COLUMN(Composições!E155)-1),"") -> M3 | F155: 16.77 | G155: 18.13 | H155: 0.0615 | I155: =IF(ISNUMBER($L155),VALUE(OFFSET(Banco!$A$1,Composições!$L155-1,COLUMN(Composições!I155)-4)),0) -> 272.66 | J155: =IF(ISNUMBER($L155),VALUE(OFFSET(Banco!$A$1,Composições!$L155-1,COLUMN(Composições!J155)-4)),0) -> 294.84 | K155: =COUNTA($A$1:$A155)-1 -> 16 | L155: =MATCH(CONCATENATE($B155," ",$C155),Banco!$A:$A,0) -> 7335 | M155: =IF(OR(ISERROR($L155),$H155="",$H155=0),"",OFFSET(M$1,MATCH($K155,$K$1:$K155,0)-1,0)) -> F | O155: =IF(ISNUMBER($L155),VALUE(OFFSET(Banco!$A$1,Composições!$L155-1,COLUMN(Composições!O155)-6)),0) -> 0.0064 | P155: =IF(ISNUMBER($L155),VALUE(OFFSET(Banco!$A$1,Composições!$L155-1,COLUMN(Composições!P155)-6)),0) -> 0.0059 | Q155: 0.11 | R155: 0.11
B156: SINAPI | C156: 102498 | D156: =IF(ISNUMBER($L156),OFFSET(Banco!$A$1,Composições!$L156-1,COLUMN(Composições!D156)-1),"") -> PINTURA DE MEIO-FIO COM TINTA BRANCA A BASE DE CAL (CAIAÇÃO). AF_05/2021 | E156: =IF(ISNUMBER($L156),OFFSET(Banco!$A$1,Composições!$L156-1,COLUMN(Composições!E156)-1),"") -> M | F156: 0.38 | G156: 0.41 | H156: 0.25 | I156: =IF(ISNUMBER($L156),VALUE(OFFSET(Banco!$A$1,Composições!$L156-1,COLUMN(Composições!I156)-4)),0) -> 1.52 | J156: =IF(ISNUMBER($L156),VALUE(OFFSET(Banco!$A$1,Composições!$L156-1,COLUMN(Composições!J156)-4)),0) -> 1.62 | K156: =COUNTA($A$1:$A156)-1 -> 16 | L156: =MATCH(CONCATENATE($B156," ",$C156),Banco!$A:$A,0) -> 14013 | M156: =IF(OR(ISERROR($L156),$H156="",$H156=0),"",OFFSET(M$1,MATCH($K156,$K$1:$K156,0)-1,0)) -> F | O156: =IF(ISNUMBER($L156),VALUE(OFFSET(Banco!$A$1,Composições!$L156-1,COLUMN(Composições!O156)-6)),0) -> 0 | P156: =IF(ISNUMBER($L156),VALUE(OFFSET(Banco!$A$1,Composições!$L156-1,COLUMN(Composições!P156)-6)),0) -> 0 | Q156: 0 | R156: 0
B157: Composição | C157: IUP30002 | D157: =IF(ISNUMBER($L157),OFFSET(Banco!$A$1,Composições!$L157-1,COLUMN(Composições!D157)-1),"") -> Recorte mecânico de pavimento asfáltico ou piso de concreto, com serra de disco diamantado para piso/asfalto | E157: =IF(ISNUMBER($L157),OFFSET(Banco!$A$1,Composições!$L157-1,COLUMN(Composições!E157)-1),"") -> M | F157: 3 | G157: 3.13 | H157: 1 | I157: =IF(ISNUMBER($L157),VALUE(OFFSET(Banco!$A$1,Composições!$L157-1,COLUMN(Composições!I157)-4)),0) -> 3 | J157: =IF(ISNUMBER($L157),VALUE(OFFSET(Banco!$A$1,Composições!$L157-1,COLUMN(Composições!J157)-4)),0) -> 3.13 | K157: =COUNTA($A$1:$A157)-1 -> 16 | L157: =MATCH(CONCATENATE($B157," ",$C157),Banco!$A:$A,0) -> 26 | M157: =IF(OR(ISERROR($L157),$H157="",$H157=0),"",OFFSET(M$1,MATCH($K157,$K$1:$K157,0)-1,0)) -> F | O157: =IF(ISNUMBER($L157),VALUE(OFFSET(Banco!$A$1,Composições!$L157-1,COLUMN(Composições!O157)-6)),0) -> 0 | P157: =IF(ISNUMBER($L157),VALUE(OFFSET(Banco!$A$1,Composições!$L157-1,COLUMN(Composições!P157)-6)),0) -> 0 | Q157: 0 | R157: 0
K158: =COUNTA($A$1:$A158)-1 -> 16 | M158: =IF(OFFSET($M$1,MATCH(OFFSET(K158,-1,0),$K$1:$K158,0)-1,0)="F","F","") -> F
A159: =CONCATENATE($B159," ",$C159) -> Composição IUP30003 | B159: Composição | C159: IUP30003 | D159: Tento (acabamento de limpa-rodas), concreto fck = 15 MPa, seção 330 cm², moldado no local, inclusive escavação | E159: M | F159: =IF($L159>0,SUM(OFFSET(F159,1,0,$L159),0)) -> 27.85 | G159: =IF($L159>0,SUM(OFFSET(G159,1,0,$L159),0)) -> 29.04 | I159: =IF(ISERROR(F159),0,F159) -> 27.85 | J159: =IF(ISERROR(G159),0,G159) -> 29.04 | K159: =COUNTA($A$1:$A159)-1 -> 17 | L159: =IF(MAX(K:K)=K159,MATCH(9999999,$K:$K)+1,MATCH(K159+1,K:K,0))-ROW(L159)-2 -> 4 | M159: =IF(AND(OR(I159<>0,J159<>0),N159="Sim"),"F","") -> F | N159: Sim
B160: SINAPI | C160: 94963 | D160: =IF(ISNUMBER($L160),OFFSET(Banco!$A$1,Composições!$L160-1,COLUMN(Composições!D160)-1),"") -> CONCRETO FCK = 15MPA, TRAÇO 1:3,4:3,5 (EM MASSA SECA DE CIMENTO/ AREIA MÉDIA/ BRITA 1) - PREPARO MECÂNICO COM BETONEIRA 400 L. AF_05/2021 | E160: =IF(ISNUMBER($L160),OFFSET(Banco!$A$1,Composições!$L160-1,COLUMN(Composições!E160)-1),"") -> M3 | F160: =ROUND($H160*ROUND(I160,2),2) -> 14.52 | G160: =ROUND($H160*ROUND(J160,2),2) -> 14.75 | H160: 0.033 | I160: =IF(ISNUMBER($L160),VALUE(OFFSET(Banco!$A$1,Composições!$L160-1,COLUMN(Composições!I160)-4)),0) -> 440.04 | J160: =IF(ISNUMBER($L160),VALUE(OFFSET(Banco!$A$1,Composições!$L160-1,COLUMN(Composições!J160)-4)),0) -> 446.84 | K160: =COUNTA($A$1:$A160)-1 -> 17 | L160: =MATCH(CONCATENATE($B160," ",$C160),Banco!$A:$A,0) -> 14340 | M160: =IF(OR(ISERROR($L160),$H160="",$H160=0),"",OFFSET(M$1,MATCH($K160,$K$1:$K160,0)-1,0)) -> F | O160: =IF(ISNUMBER($L160),VALUE(OFFSET(Banco!$A$1,Composições!$L160-1,COLUMN(Composições!O160)-6)),0) -> 0 | P160: =IF(ISNUMBER($L160),VALUE(OFFSET(Banco!$A$1,Composições!$L160-1,COLUMN(Composições!P160)-6)),0) -> 0 | Q160: =ROUND(F160*O160,2) -> 0 | R160: =ROUND(G160*P160,2) -> 0
B161: Composição | C161: IUD20080 | D161: =IF(ISNUMBER($L161),OFFSET(Banco!$A$1,Composições!$L161-1,COLUMN(Composições!D161)-1),"") -> Escavação manual em solo-prof. até 1,50 m | E161: =IF(ISNUMBER($L161),OFFSET(Banco!$A$1,Composições!$L161-1,COLUMN(Composições!E161)-1),"") -> M3 | F161: 1.33 | G161: 1.43 | H161: 0.033 | I161: =IF(ISNUMBER($L161),VALUE(OFFSET(Banco!$A$1,Composições!$L161-1,COLUMN(Composições!I161)-4)),0) -> 40.26 | J161: =IF(ISNUMBER($L161),VALUE(OFFSET(Banco!$A$1,Composições!$L161-1,COLUMN(Composições!J161)-4)),0) -> 43.44 | K161: =COUNTA($A$1:$A161)-1 -> 17 | L161: =MATCH(CONCATENATE($B161," ",$C161),Banco!$A:$A,0) -> 7 | M161: =IF(OR(ISERROR($L161),$H161="",$H161=0),"",OFFSET(M$1,MATCH($K161,$K$1:$K161,0)-1,0)) -> F | O161: =IF(ISNUMBER($L161),VALUE(OFFSET(Banco!$A$1,Composições!$L161-1,COLUMN(Composições!O161)-6)),0) -> 0 | P161: =IF(ISNUMBER($L161),VALUE(OFFSET(Banco!$A$1,Composições!$L161-1,COLUMN(Composições!P161)-6)),0) -> 0 | Q161: 0 | R161: 0
B162: SINAPI | C162: 103670 | D162: =IF(ISNUMBER($L162),OFFSET(Banco!$A$1,Composições!$L162-1,COLUMN(Composições!D162)-1),"") -> LANÇAMENTO COM USO DE BALDES, ADENSAMENTO E ACABAMENTO DE CONCRETO EM ESTRUTURAS. AF_02/2022 | E162: =IF(ISNUMBER($L162),OFFSET(Banco!$A$1,Composições!$L162-1,COLUMN(Composições!E162)-1),"") -> M3 | F162: 9 | G162: 9.73 | H162: 0.033 | I162: =IF(ISNUMBER($L162),VALUE(OFFSET(Banco!$A$1,Composições!$L162-1,COLUMN(Composições!I162)-4)),0) -> 272.66 | J162: =IF(ISNUMBER($L162),VALUE(OFFSET(Banco!$A$1,Composições!$L162-1,COLUMN(Composições!J162)-4)),0) -> 294.84 | K162: =COUNTA($A$1:$A162)-1 -> 17 | L162: =MATCH(CONCATENATE($B162," ",$C162),Banco!$A:$A,0) -> 7335 | M162: =IF(OR(ISERROR($L162),$H162="",$H162=0),"",OFFSET(M$1,MATCH($K162,$K$1:$K162,0)-1,0)) -> F | O162: =IF(ISNUMBER($L162),VALUE(OFFSET(Banco!$A$1,Composições!$L162-1,COLUMN(Composições!O162)-6)),0) -> 0.0064 | P162: =IF(ISNUMBER($L162),VALUE(OFFSET(Banco!$A$1,Composições!$L162-1,COLUMN(Composições!P162)-6)),0) -> 0.0059 | Q162: 0.06 | R162: 0.06
B163: Composição | C163: IUP30002 | D163: =IF(ISNUMBER($L163),OFFSET(Banco!$A$1,Composições!$L163-1,COLUMN(Composições!D163)-1),"") -> Recorte mecânico de pavimento asfáltico ou piso de concreto, com serra de disco diamantado para piso/asfalto | E163: =IF(ISNUMBER($L163),OFFSET(Banco!$A$1,Composições!$L163-1,COLUMN(Composições!E163)-1),"") -> M | F163: 3 | G163: 3.13 | H163: 1 | I163: =IF(ISNUMBER($L163),VALUE(OFFSET(Banco!$A$1,Composições!$L163-1,COLUMN(Composições!I163)-4)),0) -> 3 | J163: =IF(ISNUMBER($L163),VALUE(OFFSET(Banco!$A$1,Composições!$L163-1,COLUMN(Composições!J163)-4)),0) -> 3.13 | K163: =COUNTA($A$1:$A163)-1 -> 17 | L163: =MATCH(CONCATENATE($B163," ",$C163),Banco!$A:$A,0) -> 26 | M163: =IF(OR(ISERROR($L163),$H163="",$H163=0),"",OFFSET(M$1,MATCH($K163,$K$1:$K163,0)-1,0)) -> F | O163: =IF(ISNUMBER($L163),VALUE(OFFSET(Banco!$A$1,Composições!$L163-1,COLUMN(Composições!O163)-6)),0) -> 0 | P163: =IF(ISNUMBER($L163),VALUE(OFFSET(Banco!$A$1,Composições!$L163-1,COLUMN(Composições!P163)-6)),0) -> 0 | Q163: 0 | R163: 0
K164: =COUNTA($A$1:$A164)-1 -> 17 | M164: =IF(OFFSET($M$1,MATCH(OFFSET(K164,-1,0),$K$1:$K164,0)-1,0)="F","F","") -> F
A165: =CONCATENATE($B165," ",$C165) -> Composição IUP30008 | B165: Composição | C165: IUP30008 | D165: Piso tátil direcional e de alerta com ladrilho hidráulico de 20x20x2,0 cm, em concreto simples fck = 35MPa (NBR 9050 e com o Decreto 5296), incluindo fornecimento e assentamento com argamassa ou cimento colante sobre coxim preparado no piso rústico | E165: M | F165: =IF($L165>0,SUM(OFFSET(F165,1,0,$L165),0)) -> 29.07 | G165: =IF($L165>0,SUM(OFFSET(G165,1,0,$L165),0)) -> 29.73 | I165: =IF(ISERROR(F165),0,F165) -> 29.07 | J165: =IF(ISERROR(G165),0,G165) -> 29.73 | K165: =COUNTA($A$1:$A165)-1 -> 18 | L165: =IF(MAX(K:K)=K165,MATCH(9999999,$K:$K)+1,MATCH(K165+1,K:K,0))-ROW(L165)-2 -> 4 | M165: =IF(AND(OR(I165<>0,J165<>0),N165="Sim"),"F","") -> F | N165: Sim
B166: SINAPI-I | C166: 1381 | D166: =IF(ISNUMBER($L166),OFFSET(Banco!$A$1,Composições!$L166-1,COLUMN(Composições!D166)-1),"") -> ARGAMASSA COLANTE AC I PARA CERAMICAS | E166: =IF(ISNUMBER($L166),OFFSET(Banco!$A$1,Composições!$L166-1,COLUMN(Composições!E166)-1),"") -> KG | F166: =ROUND($H166*ROUND(I166,2),2) -> 1.01 | G166: =ROUND($H166*ROUND(J166,2),2) -> 1.01 | H166: 1.125 | I166: =IF(ISNUMBER($L166),VALUE(OFFSET(Banco!$A$1,Composições!$L166-1,COLUMN(Composições!I166)-4)),0) -> 0.9 | J166: =IF(ISNUMBER($L166),VALUE(OFFSET(Banco!$A$1,Composições!$L166-1,COLUMN(Composições!J166)-4)),0) -> 0.9 | K166: =COUNTA($A$1:$A166)-1 -> 18 | L166: =MATCH(CONCATENATE($B166," ",$C166),Banco!$A:$A,0) -> 356 | M166: =IF(OR(ISERROR($L166),$H166="",$H166=0),"",OFFSET(M$1,MATCH($K166,$K$1:$K166,0)-1,0)) -> F | O166: =IF(ISNUMBER($L166),VALUE(OFFSET(Banco!$A$1,Composições!$L166-1,COLUMN(Composições!O166)-6)),0) -> 0 | P166: =IF(ISNUMBER($L166),VALUE(OFFSET(Banco!$A$1,Composições!$L166-1,COLUMN(Composições!P166)-6)),0) -> 0 | Q166: =ROUND(F166*O166,2) -> 0 | R166: =ROUND(G166*P166,2) -> 0
B167: SINAPI-I | C167: 38135 | D167: =IF(ISNUMBER($L167),OFFSET(Banco!$A$1,Composições!$L167-1,COLUMN(Composições!D167)-1),"") -> PISO TATIL / PODOTATIL, LADRILHO HIDRAULICO / CONCRETO, *25 X 25* CM, E= *2,5* CM, PADRAO TATIL ALERTA OU DIRECIONAL, COR AMARELA | E167: =IF(ISNUMBER($L167),OFFSET(Banco!$A$1,Composições!$L167-1,COLUMN(Composições!E167)-1),"") -> M2 | F167: 19.95 | G167: 19.95 | H167: 0.2 | I167: =IF(ISNUMBER($L167),VALUE(OFFSET(Banco!$A$1,Composições!$L167-1,COLUMN(Composições!I167)-4)),0) -> 99.74 | J167: =IF(ISNUMBER($L167),VALUE(OFFSET(Banco!$A$1,Composições!$L167-1,COLUMN(Composições!J167)-4)),0) -> 99.74 | K167: =COUNTA($A$1:$A167)-1 -> 18 | L167: =MATCH(CONCATENATE($B167," ",$C167),Banco!$A:$A,0) -> 3493 | M167: =IF(OR(ISERROR($L167),$H167="",$H167=0),"",OFFSET(M$1,MATCH($K167,$K$1:$K167,0)-1,0)) -> F | O167: =IF(ISNUMBER($L167),VALUE(OFFSET(Banco!$A$1,Composições!$L167-1,COLUMN(Composições!O167)-6)),0) -> 0 | P167: =IF(ISNUMBER($L167),VALUE(OFFSET(Banco!$A$1,Composições!$L167-1,COLUMN(Composições!P167)-6)),0) -> 0 | Q167: 0 | R167: 0
B168: SINAPI | C168: 88309 | D168: =IF(ISNUMBER($L168),OFFSET(Banco!$A$1,Composições!$L168-1,COLUMN(Composições!D168)-1),"") -> PEDREIRO COM ENCARGOS COMPLEMENTARES | E168: =IF(ISNUMBER($L168),OFFSET(Banco!$A$1,Composições!$L168-1,COLUMN(Composições!E168)-1),"") -> H | F168: 3.8 | G168: 4.12 | H168: 0.152 | I168: =IF(ISNUMBER($L168),VALUE(OFFSET(Banco!$A$1,Composições!$L168-1,COLUMN(Composições!I168)-4)),0) -> 24.97 | J168: =IF(ISNUMBER($L168),VALUE(OFFSET(Banco!$A$1,Composições!$L168-1,COLUMN(Composições!J168)-4)),0) -> 27.11 | K168: =COUNTA($A$1:$A168)-1 -> 18 | L168: =MATCH(CONCATENATE($B168," ",$C168),Banco!$A:$A,0) -> 13151 | M168: =IF(OR(ISERROR($L168),$H168="",$H168=0),"",OFFSET(M$1,MATCH($K168,$K$1:$K168,0)-1,0)) -> F | O168: =IF(ISNUMBER($L168),VALUE(OFFSET(Banco!$A$1,Composições!$L168-1,COLUMN(Composições!O168)-6)),0) -> 0 | P168: =IF(ISNUMBER($L168),VALUE(OFFSET(Banco!$A$1,Composições!$L168-1,COLUMN(Composições!P168)-6)),0) -> 0 | Q168: 0 | R168: 0
B169: SINAPI | C169: 88316 | D169: =IF(ISNUMBER($L169),OFFSET(Banco!$A$1,Composições!$L169-1,COLUMN(Composições!D169)-1),"") -> SERVENTE COM ENCARGOS COMPLEMENTARES | E169: =IF(ISNUMBER($L169),OFFSET(Banco!$A$1,Composições!$L169-1,COLUMN(Composições!E169)-1),"") -> H | F169: 4.31 | G169: 4.65 | H169: 0.214 | I169: =IF(ISNUMBER($L169),VALUE(OFFSET(Banco!$A$1,Composições!$L169-1,COLUMN(Composições!I169)-4)),0) -> 20.13 | J169: =IF(ISNUMBER($L169),VALUE(OFFSET(Banco!$A$1,Composições!$L169-1,COLUMN(Composições!J169)-4)),0) -> 21.72 | K169: =COUNTA($A$1:$A169)-1 -> 18 | L169: =MATCH(CONCATENATE($B169," ",$C169),Banco!$A:$A,0) -> 13164 | M169: =IF(OR(ISERROR($L169),$H169="",$H169=0),"",OFFSET(M$1,MATCH($K169,$K$1:$K169,0)-1,0)) -> F | O169: =IF(ISNUMBER($L169),VALUE(OFFSET(Banco!$A$1,Composições!$L169-1,COLUMN(Composições!O169)-6)),0) -> 0 | P169: =IF(ISNUMBER($L169),VALUE(OFFSET(Banco!$A$1,Composições!$L169-1,COLUMN(Composições!P169)-6)),0) -> 0 | Q169: 0 | R169: 0
K170: =COUNTA($A$1:$A170)-1 -> 18 | M170: =IF(OFFSET($M$1,MATCH(OFFSET(K170,-1,0),$K$1:$K170,0)-1,0)="F","F","") -> F
A171: =CONCATENATE($B171," ",$C171) -> Composição IUS20016 | B171: Composição | C171: IUS20016 | D171: Placa de sinalização vertical totalmente refletiva, fornecimento e instalação. Exclusive poste (suporte) | E171: M2 | F171: =IF($L171>0,SUM(OFFSET(F171,1,0,$L171),0)) -> 941.23 | G171: =IF($L171>0,SUM(OFFSET(G171,1,0,$L171),0)) -> 942.44 | I171: =IF(ISERROR(F171),0,F171) -> 941.23 | J171: =IF(ISERROR(G171),0,G171) -> 942.44 | K171: =COUNTA($A$1:$A171)-1 -> 19 | L171: =IF(MAX(K:K)=K171,MATCH(9999999,$K:$K)+1,MATCH(K171+1,K:K,0))-ROW(L171)-2 -> 3 | M171: =IF(AND(OR(I171<>0,J171<>0),N171="Sim"),"F","") -> F | N171: Sim
B172: Cotação | C172: 34723 | D172: =IF(ISNUMBER($L172),OFFSET(Banco!$A$1,Composições!$L172-1,COLUMN(Composições!D172)-1),"") -> PLACA DE SINALIZACAO EM CHAPA DE ACO NUM 16 COM PINTURA REFLETIVA | E172: =IF(ISNUMBER($L172),OFFSET(Banco!$A$1,Composições!$L172-1,COLUMN(Composições!E172)-1),"") -> M2 | F172: =ROUND($H172*ROUND(I172,2),2) -> 924 | G172: =ROUND($H172*ROUND(J172,2),2) -> 924 | H172: 1 | I172: =IF(ISNUMBER($L172),VALUE(OFFSET(Banco!$A$1,Composições!$L172-1,COLUMN(Composições!I172)-4)),0) -> 924 | J172: =IF(ISNUMBER($L172),VALUE(OFFSET(Banco!$A$1,Composições!$L172-1,COLUMN(Composições!J172)-4)),0) -> 924 | K172: =COUNTA($A$1:$A172)-1 -> 19 | L172: =MATCH(CONCATENATE($B172," ",$C172),Banco!$A:$A,0) -> 36 | M172: =IF(OR(ISERROR($L172),$H172="",$H172=0),"",OFFSET(M$1,MATCH($K172,$K$1:$K172,0)-1,0)) -> F | O172: =IF(ISNUMBER($L172),VALUE(OFFSET(Banco!$A$1,Composições!$L172-1,COLUMN(Composições!O172)-6)),0) -> 0 | P172: =IF(ISNUMBER($L172),VALUE(OFFSET(Banco!$A$1,Composições!$L172-1,COLUMN(Composições!P172)-6)),0) -> 0 | Q172: =ROUND(F172*O172,2) -> 0 | R172: =ROUND(G172*P172,2) -> 0
B173: SINAPI | C173: 5824 | D173: =IF(ISNUMBER($L173),OFFSET(Banco!$A$1,Composições!$L173-1,COLUMN(Composições!D173)-1),"") -> CAMINHÃO TOCO, PBT 16.000 KG, CARGA ÚTIL MÁX. 10.685 KG, DIST. ENTRE EIXOS 4,8 M, POTÊNCIA 189 CV, INCLUSIVE CARROCERIA FIXA ABERTA DE MADEIRA P/ TRANSPORTE GERAL DE CARGA SECA, DIMEN. APROX. 2,5 X 7,00 X 0,50 M - CHP DIURNO. AF_06/2014 | E173: =IF(ISNUMBER($L173),OFFSET(Banco!$A$1,Composições!$L173-1,COLUMN(Composições!E173)-1),"") -> CHP | F173: 2.13 | G173: 2.15 | H173: 0.01 | I173: =IF(ISNUMBER($L173),VALUE(OFFSET(Banco!$A$1,Composições!$L173-1,COLUMN(Composições!I173)-4)),0) -> 213.16 | J173: =IF(ISNUMBER($L173),VALUE(OFFSET(Banco!$A$1,Composições!$L173-1,COLUMN(Composições!J173)-4)),0) -> 215.26 | K173: =COUNTA($A$1:$A173)-1 -> 19 | L173: =MATCH(CONCATENATE($B173," ",$C173),Banco!$A:$A,0) -> 7539 | M173: =IF(OR(ISERROR($L173),$H173="",$H173=0),"",OFFSET(M$1,MATCH($K173,$K$1:$K173,0)-1,0)) -> F | O173: =IF(ISNUMBER($L173),VALUE(OFFSET(Banco!$A$1,Composições!$L173-1,COLUMN(Composições!O173)-6)),0) -> 0.339 | P173: =IF(ISNUMBER($L173),VALUE(OFFSET(Banco!$A$1,Composições!$L173-1,COLUMN(Composições!P173)-6)),0) -> 0.3357 | Q173: 0.72 | R173: 0.72
B174: SINAPI | C174: 88316 | D174: =IF(ISNUMBER($L174),OFFSET(Banco!$A$1,Composições!$L174-1,COLUMN(Composições!D174)-1),"") -> SERVENTE COM ENCARGOS COMPLEMENTARES | E174: =IF(ISNUMBER($L174),OFFSET(Banco!$A$1,Composições!$L174-1,COLUMN(Composições!E174)-1),"") -> H | F174: 15.1 | G174: 16.29 | H174: 0.75 | I174: =IF(ISNUMBER($L174),VALUE(OFFSET(Banco!$A$1,Composições!$L174-1,COLUMN(Composições!I174)-4)),0) -> 20.13 | J174: =IF(ISNUMBER($L174),VALUE(OFFSET(Banco!$A$1,Composições!$L174-1,COLUMN(Composições!J174)-4)),0) -> 21.72 | K174: =COUNTA($A$1:$A174)-1 -> 19 | L174: =MATCH(CONCATENATE($B174," ",$C174),Banco!$A:$A,0) -> 13164 | M174: =IF(OR(ISERROR($L174),$H174="",$H174=0),"",OFFSET(M$1,MATCH($K174,$K$1:$K174,0)-1,0)) -> F | O174: =IF(ISNUMBER($L174),VALUE(OFFSET(Banco!$A$1,Composições!$L174-1,COLUMN(Composições!O174)-6)),0) -> 0 | P174: =IF(ISNUMBER($L174),VALUE(OFFSET(Banco!$A$1,Composições!$L174-1,COLUMN(Composições!P174)-6)),0) -> 0 | Q174: 0 | R174: 0
K175: =COUNTA($A$1:$A175)-1 -> 19 | M175: =IF(OFFSET($M$1,MATCH(OFFSET(K175,-1,0),$K$1:$K175,0)-1,0)="F","F","") -> F
A176: =CONCATENATE($B176," ",$C176) -> Composição IUP30002 | B176: Composição | C176: IUP30002 | D176: Recorte mecânico de pavimento asfáltico ou piso de concreto, com serra de disco diamantado para piso/asfalto | E176: M | F176: =IF($L176>0,SUM(OFFSET(F176,1,0,$L176),0)) -> 3 | G176: =IF($L176>0,SUM(OFFSET(G176,1,0,$L176),0)) -> 3.13 | I176: =IF(ISERROR(F176),0,F176) -> 3 | J176: =IF(ISERROR(G176),0,G176) -> 3.13 | K176: =COUNTA($A$1:$A176)-1 -> 20 | L176: =IF(MAX(K:K)=K176,MATCH(9999999,$K:$K)+1,MATCH(K176+1,K:K,0))-ROW(L176)-2 -> 3 | M176: =IF(AND(OR(I176<>0,J176<>0),N176="Sim"),"F","") -> F | N176: Sim
B177: SINAPI-I | C177: 13887 | D177: =IF(ISNUMBER($L177),OFFSET(Banco!$A$1,Composições!$L177-1,COLUMN(Composições!D177)-1),"") -> DISCO DE CORTE DIAMANTADO SEGMENTADO PARA CONCRETO/ASFALTO, DIAMETRO DE *350* MM, FURO DE 25,40 MM | E177: =IF(ISNUMBER($L177),OFFSET(Banco!$A$1,Composições!$L177-1,COLUMN(Composições!E177)-1),"") -> UN | F177: =ROUND($H177*ROUND(I177,2),2) -> 0.51 | G177: =ROUND($H177*ROUND(J177,2),2) -> 0.51 | H177: 0.002 | I177: =IF(ISNUMBER($L177),VALUE(OFFSET(Banco!$A$1,Composições!$L177-1,COLUMN(Composições!I177)-4)),0) -> 257.34 | J177: =IF(ISNUMBER($L177),VALUE(OFFSET(Banco!$A$1,Composições!$L177-1,COLUMN(Composições!J177)-4)),0) -> 257.34 | K177: =COUNTA($A$1:$A177)-1 -> 20 | L177: =MATCH(CONCATENATE($B177," ",$C177),Banco!$A:$A,0) -> 1782 | M177: =IF(OR(ISERROR($L177),$H177="",$H177=0),"",OFFSET(M$1,MATCH($K177,$K$1:$K177,0)-1,0)) -> F | O177: =IF(ISNUMBER($L177),VALUE(OFFSET(Banco!$A$1,Composições!$L177-1,COLUMN(Composições!O177)-6)),0) -> 0 | P177: =IF(ISNUMBER($L177),VALUE(OFFSET(Banco!$A$1,Composições!$L177-1,COLUMN(Composições!P177)-6)),0) -> 0 | Q177: =ROUND(F177*O177,2) -> 0 | R177: =ROUND(G177*P177,2) -> 0
B178: SINAPI | C178: 91283 | D178: =IF(ISNUMBER($L178),OFFSET(Banco!$A$1,Composições!$L178-1,COLUMN(Composições!D178)-1),"") -> CORTADORA DE PISO COM MOTOR 4 TEMPOS A GASOLINA, POTÊNCIA DE 13 HP, COM DISCO DE CORTE DIAMANTADO SEGMENTADO PARA CONCRETO, DIÂMETRO DE 350 MM, FURO DE 1" (14 X 1") - CHP DIURNO. AF_08/2015 | E178: =IF(ISNUMBER($L178),OFFSET(Banco!$A$1,Composições!$L178-1,COLUMN(Composições!E178)-1),"") -> CHP | F178: 0.82 | G178: 0.82 | H178: 0.083 | I178: =IF(ISNUMBER($L178),VALUE(OFFSET(Banco!$A$1,Composições!$L178-1,COLUMN(Composições!I178)-4)),0) -> 9.87 | J178: =IF(ISNUMBER($L178),VALUE(OFFSET(Banco!$A$1,Composições!$L178-1,COLUMN(Composições!J178)-4)),0) -> 9.87 | K178: =COUNTA($A$1:$A178)-1 -> 20 | L178: =MATCH(CONCATENATE($B178," ",$C178),Banco!$A:$A,0) -> 7573 | M178: =IF(OR(ISERROR($L178),$H178="",$H178=0),"",OFFSET(M$1,MATCH($K178,$K$1:$K178,0)-1,0)) -> F | O178: =IF(ISNUMBER($L178),VALUE(OFFSET(Banco!$A$1,Composições!$L178-1,COLUMN(Composições!O178)-6)),0) -> 0 | P178: =IF(ISNUMBER($L178),VALUE(OFFSET(Banco!$A$1,Composições!$L178-1,COLUMN(Composições!P178)-6)),0) -> 0 | Q178: 0 | R178: 0
B179: SINAPI | C179: 88316 | D179: =IF(ISNUMBER($L179),OFFSET(Banco!$A$1,Composições!$L179-1,COLUMN(Composições!D179)-1),"") -> SERVENTE COM ENCARGOS COMPLEMENTARES | E179: =IF(ISNUMBER($L179),OFFSET(Banco!$A$1,Composições!$L179-1,COLUMN(Composições!E179)-1),"") -> H | F179: 1.67 | G179: 1.8 | H179: 0.083 | I179: =IF(ISNUMBER($L179),VALUE(OFFSET(Banco!$A$1,Composições!$L179-1,COLUMN(Composições!I179)-4)),0) -> 20.13 | J179: =IF(ISNUMBER($L179),VALUE(OFFSET(Banco!$A$1,Composições!$L179-1,COLUMN(Composições!J179)-4)),0) -> 21.72 | K179: =COUNTA($A$1:$A179)-1 -> 20 | L179: =MATCH(CONCATENATE($B179," ",$C179),Banco!$A:$A,0) -> 13164 | M179: =IF(OR(ISERROR($L179),$H179="",$H179=0),"",OFFSET(M$1,MATCH($K179,$K$1:$K179,0)-1,0)) -> F | O179: =IF(ISNUMBER($L179),VALUE(OFFSET(Banco!$A$1,Composições!$L179-1,COLUMN(Composições!O179)-6)),0) -> 0 | P179: =IF(ISNUMBER($L179),VALUE(OFFSET(Banco!$A$1,Composições!$L179-1,COLUMN(Composições!P179)-6)),0) -> 0 | Q179: 0 | R179: 0
K180: =COUNTA($A$1:$A180)-1 -> 20 | M180: =IF(OFFSET($M$1,MATCH(OFFSET(K180,-1,0),$K$1:$K180,0)-1,0)="F","F","") -> F
A181: =CONCATENATE($B181," ",$C181) -> Composição IUD20075 | B181: Composição | C181: IUD20075 | D181: Regularização manual e compactação mecânica de terreno | E181: M2 | F181: =IF($L181>0,SUM(OFFSET(F181,1,0,$L181),0)) -> 6.68 | G181: =IF($L181>0,SUM(OFFSET(G181,1,0,$L181),0)) -> 7.2 | I181: =IF(ISERROR(F181),0,F181) -> 6.68 | J181: =IF(ISERROR(G181),0,G181) -> 7.2 | K181: =COUNTA($A$1:$A181)-1 -> 21 | L181: =IF(MAX(K:K)=K181,MATCH(9999999,$K:$K)+1,MATCH(K181+1,K:K,0))-ROW(L181)-2 -> 2 | M181: =IF(AND(OR(I181<>0,J181<>0),N181="Sim"),"F","") -> F | N181: Sim
B182: SINAPI | C182: 91533 | D182: =IF(ISNUMBER($L182),OFFSET(Banco!$A$1,Composições!$L182-1,COLUMN(Composições!D182)-1),"") -> COMPACTADOR DE SOLOS DE PERCUSSÃO (SOQUETE) COM MOTOR A GASOLINA 4 TEMPOS, POTÊNCIA 4 CV - CHP DIURNO. AF_08/2015 | E182: =IF(ISNUMBER($L182),OFFSET(Banco!$A$1,Composições!$L182-1,COLUMN(Composições!E182)-1),"") -> CHP | F182: =ROUND($H182*ROUND(I182,2),2) -> 1.65 | G182: =ROUND($H182*ROUND(J182,2),2) -> 1.77 | H182: 0.048 | I182: =IF(ISNUMBER($L182),VALUE(OFFSET(Banco!$A$1,Composições!$L182-1,COLUMN(Composições!I182)-4)),0) -> 34.42 | J182: =IF(ISNUMBER($L182),VALUE(OFFSET(Banco!$A$1,Composições!$L182-1,COLUMN(Composições!J182)-4)),0) -> 36.84 | K182: =COUNTA($A$1:$A182)-1 -> 21 | L182: =MATCH(CONCATENATE($B182," ",$C182),Banco!$A:$A,0) -> 7549 | M182: =IF(OR(ISERROR($L182),$H182="",$H182=0),"",OFFSET(M$1,MATCH($K182,$K$1:$K182,0)-1,0)) -> F | O182: =IF(ISNUMBER($L182),VALUE(OFFSET(Banco!$A$1,Composições!$L182-1,COLUMN(Composições!O182)-6)),0) -> 0 | P182: =IF(ISNUMBER($L182),VALUE(OFFSET(Banco!$A$1,Composições!$L182-1,COLUMN(Composições!P182)-6)),0) -> 0 | Q182: =ROUND(F182*O182,2) -> 0 | R182: =ROUND(G182*P182,2) -> 0
B183: SINAPI | C183: 88316 | D183: =IF(ISNUMBER($L183),OFFSET(Banco!$A$1,Composições!$L183-1,COLUMN(Composições!D183)-1),"") -> SERVENTE COM ENCARGOS COMPLEMENTARES | E183: =IF(ISNUMBER($L183),OFFSET(Banco!$A$1,Composições!$L183-1,COLUMN(Composições!E183)-1),"") -> H | F183: 5.03 | G183: 5.43 | H183: 0.25 | I183: =IF(ISNUMBER($L183),VALUE(OFFSET(Banco!$A$1,Composições!$L183-1,COLUMN(Composições!I183)-4)),0) -> 20.13 | J183: =IF(ISNUMBER($L183),VALUE(OFFSET(Banco!$A$1,Composições!$L183-1,COLUMN(Composições!J183)-4)),0) -> 21.72 | K183: =COUNTA($A$1:$A183)-1 -> 21 | L183: =MATCH(CONCATENATE($B183," ",$C183),Banco!$A:$A,0) -> 13164 | M183: =IF(OR(ISERROR($L183),$H183="",$H183=0),"",OFFSET(M$1,MATCH($K183,$K$1:$K183,0)-1,0)) -> F | O183: =IF(ISNUMBER($L183),VALUE(OFFSET(Banco!$A$1,Composições!$L183-1,COLUMN(Composições!O183)-6)),0) -> 0 | P183: =IF(ISNUMBER($L183),VALUE(OFFSET(Banco!$A$1,Composições!$L183-1,COLUMN(Composições!P183)-6)),0) -> 0 | Q183: 0 | R183: 0
K184: =COUNTA($A$1:$A184)-1 -> 21 | M184: =IF(OFFSET($M$1,MATCH(OFFSET(K184,-1,0),$K$1:$K184,0)-1,0)="F","F","") -> F
A185: =CONCATENATE($B185," ",$C185) -> Composição IUC10004 | B185: Composição | C185: IUC10004 | D185: Lastro de brita | E185: M3 | F185: =IF($L185>0,SUM(OFFSET(F185,1,0,$L185),0)) -> 144.63 | G185: =IF($L185>0,SUM(OFFSET(G185,1,0,$L185),0)) -> 147.81 | I185: =IF(ISERROR(F185),0,F185) -> 144.63 | J185: =IF(ISERROR(G185),0,G185) -> 147.81 | K185: =COUNTA($A$1:$A185)-1 -> 22 | L185: =IF(MAX(K:K)=K185,MATCH(9999999,$K:$K)+1,MATCH(K185+1,K:K,0))-ROW(L185)-2 -> 2 | M185: =IF(AND(OR(I185<>0,J185<>0),N185="Sim"),"F","") -> F | N185: Sim
B186: SINAPI-I | C186: 4718 | D186: =IF(ISNUMBER($L186),OFFSET(Banco!$A$1,Composições!$L186-1,COLUMN(Composições!D186)-1),"") -> PEDRA BRITADA N. 2 (19 A 38 MM) POSTO PEDREIRA/FORNECEDOR, SEM FRETE | E186: =IF(ISNUMBER($L186),OFFSET(Banco!$A$1,Composições!$L186-1,COLUMN(Composições!E186)-1),"") -> M3 | F186: =ROUND($H186*ROUND(I186,2),2) -> 104.37 | G186: =ROUND($H186*ROUND(J186,2),2) -> 104.37 | H186: 1.05 | I186: =IF(ISNUMBER($L186),VALUE(OFFSET(Banco!$A$1,Composições!$L186-1,COLUMN(Composições!I186)-4)),0) -> 99.4 | J186: =IF(ISNUMBER($L186),VALUE(OFFSET(Banco!$A$1,Composições!$L186-1,COLUMN(Composições!J186)-4)),0) -> 99.4 | K186: =COUNTA($A$1:$A186)-1 -> 22 | L186: =MATCH(CONCATENATE($B186," ",$C186),Banco!$A:$A,0) -> 3383 | M186: =IF(OR(ISERROR($L186),$H186="",$H186=0),"",OFFSET(M$1,MATCH($K186,$K$1:$K186,0)-1,0)) -> F | O186: =IF(ISNUMBER($L186),VALUE(OFFSET(Banco!$A$1,Composições!$L186-1,COLUMN(Composições!O186)-6)),0) -> 0 | P186: =IF(ISNUMBER($L186),VALUE(OFFSET(Banco!$A$1,Composições!$L186-1,COLUMN(Composições!P186)-6)),0) -> 0 | Q186: =ROUND(F186*O186,2) -> 0 | R186: =ROUND(G186*P186,2) -> 0
B187: SINAPI | C187: 88316 | D187: =IF(ISNUMBER($L187),OFFSET(Banco!$A$1,Composições!$L187-1,COLUMN(Composições!D187)-1),"") -> SERVENTE COM ENCARGOS COMPLEMENTARES | E187: =IF(ISNUMBER($L187),OFFSET(Banco!$A$1,Composições!$L187-1,COLUMN(Composições!E187)-1),"") -> H | F187: 40.26 | G187: 43.44 | H187: 2 | I187: =IF(ISNUMBER($L187),VALUE(OFFSET(Banco!$A$1,Composições!$L187-1,COLUMN(Composições!I187)-4)),0) -> 20.13 | J187: =IF(ISNUMBER($L187),VALUE(OFFSET(Banco!$A$1,Composições!$L187-1,COLUMN(Composições!J187)-4)),0) -> 21.72 | K187: =COUNTA($A$1:$A187)-1 -> 22 | L187: =MATCH(CONCATENATE($B187," ",$C187),Banco!$A:$A,0) -> 13164 | M187: =IF(OR(ISERROR($L187),$H187="",$H187=0),"",OFFSET(M$1,MATCH($K187,$K$1:$K187,0)-1,0)) -> F | O187: =IF(ISNUMBER($L187),VALUE(OFFSET(Banco!$A$1,Composições!$L187-1,COLUMN(Composições!O187)-6)),0) -> 0 | P187: =IF(ISNUMBER($L187),VALUE(OFFSET(Banco!$A$1,Composições!$L187-1,COLUMN(Composições!P187)-6)),0) -> 0 | Q187: 0 | R187: 0
K188: =COUNTA($A$1:$A188)-1 -> 22 | M188: =IF(OFFSET($M$1,MATCH(OFFSET(K188,-1,0),$K$1:$K188,0)-1,0)="F","F","") -> F
A189: =CONCATENATE($B189," ",$C189) -> Composição 011299000 | B189: Composição | C189: 011299000 | D189: INSTALAÇÃO/LIGAÇÃO PROVISÓRIA DE ENERGIA ELÉTRICA DE BAIXA TENSÃO | E189: UN | F189: =IF($L189>0,SUM(OFFSET(F189,1,0,$L189),0)) -> 782.21 | G189: =IF($L189>0,SUM(OFFSET(G189,1,0,$L189),0)) -> 802.59 | I189: =IF(ISERROR(F189),0,F189) -> 782.21 | J189: =IF(ISERROR(G189),0,G189) -> 802.59 | K189: =COUNTA($A$1:$A189)-1 -> 23 | L189: =IF(MAX(K:K)=K189,MATCH(9999999,$K:$K)+1,MATCH(K189+1,K:K,0))-ROW(L189)-2 -> 5 | M189: =IF(AND(OR(I189<>0,J189<>0),N189="Sim"),"F","") -> F | N189: Sim
B190: SINAPI-I | C190: 1008 | D190: =IF(ISNUMBER($L190),OFFSET(Banco!$A$1,Composições!$L190-1,COLUMN(Composições!D190)-1),"") -> CABO DE COBRE, RIGIDO, CLASSE 2, ISOLACAO EM PVC/A, ANTICHAMA BWF-B, 1 CONDUTOR, 450/750 V, SECAO NOMINAL 6 MM2 | E190: =IF(ISNUMBER($L190),OFFSET(Banco!$A$1,Composições!$L190-1,COLUMN(Composições!E190)-1),"") -> M | F190: =ROUND($H190*ROUND(I190,2),2) -> 169.02 | G190: =ROUND($H190*ROUND(J190,2),2) -> 169.02 | H190: 27 | I190: =IF(ISNUMBER($L190),VALUE(OFFSET(Banco!$A$1,Composições!$L190-1,COLUMN(Composições!I190)-4)),0) -> 6.26 | J190: =IF(ISNUMBER($L190),VALUE(OFFSET(Banco!$A$1,Composições!$L190-1,COLUMN(Composições!J190)-4)),0) -> 6.26 | K190: =COUNTA($A$1:$A190)-1 -> 23 | L190: =MATCH(CONCATENATE($B190," ",$C190),Banco!$A:$A,0) -> 824 | M190: =IF(OR(ISERROR($L190),$H190="",$H190=0),"",OFFSET(M$1,MATCH($K190,$K$1:$K190,0)-1,0)) -> F | O190: =IF(ISNUMBER($L190),VALUE(OFFSET(Banco!$A$1,Composições!$L190-1,COLUMN(Composições!O190)-6)),0) -> 0 | P190: =IF(ISNUMBER($L190),VALUE(OFFSET(Banco!$A$1,Composições!$L190-1,COLUMN(Composições!P190)-6)),0) -> 0 | Q190: =ROUND(F190*O190,2) -> 0 | R190: =ROUND(G190*P190,2) -> 0
B191: Cotação | C191: 1062 | D191: =IF(ISNUMBER($L191),OFFSET(Banco!$A$1,Composições!$L191-1,COLUMN(Composições!D191)-1),"") -> CAIXA INTERNA/EXTERNA DE MEDICAO PARA 1 MEDIDOR TRIFASICO, COM VISOR, EM CHAPA DE ACO 18 USG (PADRAO DA CONCESSIONARIA LOCAL) | E191: =IF(ISNUMBER($L191),OFFSET(Banco!$A$1,Composições!$L191-1,COLUMN(Composições!E191)-1),"") -> UN | F191: 235 | G191: 235 | H191: 1 | I191: =IF(ISNUMBER($L191),VALUE(OFFSET(Banco!$A$1,Composições!$L191-1,COLUMN(Composições!I191)-4)),0) -> 235 | J191: =IF(ISNUMBER($L191),VALUE(OFFSET(Banco!$A$1,Composições!$L191-1,COLUMN(Composições!J191)-4)),0) -> 235 | K191: =COUNTA($A$1:$A191)-1 -> 23 | L191: =MATCH(CONCATENATE($B191," ",$C191),Banco!$A:$A,0) -> 41 | M191: =IF(OR(ISERROR($L191),$H191="",$H191=0),"",OFFSET(M$1,MATCH($K191,$K$1:$K191,0)-1,0)) -> F | O191: =IF(ISNUMBER($L191),VALUE(OFFSET(Banco!$A$1,Composições!$L191-1,COLUMN(Composições!O191)-6)),0) -> 0 | P191: =IF(ISNUMBER($L191),VALUE(OFFSET(Banco!$A$1,Composições!$L191-1,COLUMN(Composições!P191)-6)),0) -> 0 | Q191: 0 | R191: 0
B192: Cotação | C192: 7701 | D192: =IF(ISNUMBER($L192),OFFSET(Banco!$A$1,Composições!$L192-1,COLUMN(Composições!D192)-1),"") -> TUBO ACO GALVANIZADO COM COSTURA, CLASSE MEDIA, DN 2.1/2", E = *3,65* MM, PESO *6,51* KG/M (NBR 5580) | E192: =IF(ISNUMBER($L192),OFFSET(Banco!$A$1,Composições!$L192-1,COLUMN(Composições!E192)-1),"") -> M | F192: 142.86 | G192: 142.86 | H192: 6 | I192: =IF(ISNUMBER($L192),VALUE(OFFSET(Banco!$A$1,Composições!$L192-1,COLUMN(Composições!I192)-4)),0) -> 23.81 | J192: =IF(ISNUMBER($L192),VALUE(OFFSET(Banco!$A$1,Composições!$L192-1,COLUMN(Composições!J192)-4)),0) -> 23.81 | K192: =COUNTA($A$1:$A192)-1 -> 23 | L192: =MATCH(CONCATENATE($B192," ",$C192),Banco!$A:$A,0) -> 40 | M192: =IF(OR(ISERROR($L192),$H192="",$H192=0),"",OFFSET(M$1,MATCH($K192,$K$1:$K192,0)-1,0)) -> F | O192: =IF(ISNUMBER($L192),VALUE(OFFSET(Banco!$A$1,Composições!$L192-1,COLUMN(Composições!O192)-6)),0) -> 0 | P192: =IF(ISNUMBER($L192),VALUE(OFFSET(Banco!$A$1,Composições!$L192-1,COLUMN(Composições!P192)-6)),0) -> 0 | Q192: 0 | R192: 0
B193: SINAPI | C193: 88264 | D193: =IF(ISNUMBER($L193),OFFSET(Banco!$A$1,Composições!$L193-1,COLUMN(Composições!D193)-1),"") -> ELETRICISTA COM ENCARGOS COMPLEMENTARES | E193: =IF(ISNUMBER($L193),OFFSET(Banco!$A$1,Composições!$L193-1,COLUMN(Composições!E193)-1),"") -> H | F193: 205.13 | G193: 223.13 | H193: 7.5 | I193: =IF(ISNUMBER($L193),VALUE(OFFSET(Banco!$A$1,Composições!$L193-1,COLUMN(Composições!I193)-4)),0) -> 27.35 | J193: =IF(ISNUMBER($L193),VALUE(OFFSET(Banco!$A$1,Composições!$L193-1,COLUMN(Composições!J193)-4)),0) -> 29.75 | K193: =COUNTA($A$1:$A193)-1 -> 23 | L193: =MATCH(CONCATENATE($B193," ",$C193),Banco!$A:$A,0) -> 13061 | M193: =IF(OR(ISERROR($L193),$H193="",$H193=0),"",OFFSET(M$1,MATCH($K193,$K$1:$K193,0)-1,0)) -> F | O193: =IF(ISNUMBER($L193),VALUE(OFFSET(Banco!$A$1,Composições!$L193-1,COLUMN(Composições!O193)-6)),0) -> 0 | P193: =IF(ISNUMBER($L193),VALUE(OFFSET(Banco!$A$1,Composições!$L193-1,COLUMN(Composições!P193)-6)),0) -> 0 | Q193: 0 | R193: 0
B194: SINAPI | C194: 88316 | D194: =IF(ISNUMBER($L194),OFFSET(Banco!$A$1,Composições!$L194-1,COLUMN(Composições!D194)-1),"") -> SERVENTE COM ENCARGOS COMPLEMENTARES | E194: =IF(ISNUMBER($L194),OFFSET(Banco!$A$1,Composições!$L194-1,COLUMN(Composições!E194)-1),"") -> H | F194: 30.2 | G194: 32.58 | H194: 1.5 | I194: =IF(ISNUMBER($L194),VALUE(OFFSET(Banco!$A$1,Composições!$L194-1,COLUMN(Composições!I194)-4)),0) -> 20.13 | J194: =IF(ISNUMBER($L194),VALUE(OFFSET(Banco!$A$1,Composições!$L194-1,COLUMN(Composições!J194)-4)),0) -> 21.72 | K194: =COUNTA($A$1:$A194)-1 -> 23 | L194: =MATCH(CONCATENATE($B194," ",$C194),Banco!$A:$A,0) -> 13164 | M194: =IF(OR(ISERROR($L194),$H194="",$H194=0),"",OFFSET(M$1,MATCH($K194,$K$1:$K194,0)-1,0)) -> F | O194: =IF(ISNUMBER($L194),VALUE(OFFSET(Banco!$A$1,Composições!$L194-1,COLUMN(Composições!O194)-6)),0) -> 0 | P194: =IF(ISNUMBER($L194),VALUE(OFFSET(Banco!$A$1,Composições!$L194-1,COLUMN(Composições!P194)-6)),0) -> 0 | Q194: 0 | R194: 0
K195: =COUNTA($A$1:$A195)-1 -> 23 | M195: =IF(OFFSET($M$1,MATCH(OFFSET(K195,-1,0),$K$1:$K195,0)-1,0)="F","F","") -> F
A196: =CONCATENATE($B196," ",$C196) -> Composição | B196: Composição | F196: =IF($L196>0,SUM(OFFSET(F196,1,0,$L196),0)) -> 0 | G196: =IF($L196>0,SUM(OFFSET(G196,1,0,$L196),0)) -> 0 | I196: =IF(ISERROR(F196),0,F196) -> 0 | J196: =IF(ISERROR(G196),0,G196) -> 0 | K196: =COUNTA($A$1:$A196)-1 -> 24 | L196: =IF(MAX(K:K)=K196,MATCH(9999999,$K:$K)+1,MATCH(K196+1,K:K,0))-ROW(L196)-2 -> 5 | M196: =IF(AND(OR(I196<>0,J196<>0),N196="Sim"),"F","") ->  | N196: Sim
D197: =IF(ISNUMBER($L197),OFFSET(Banco!$A$1,Composições!$L197-1,COLUMN(Composições!D197)-1),"") ->  | E197: =IF(ISNUMBER($L197),OFFSET(Banco!$A$1,Composições!$L197-1,COLUMN(Composições!E197)-1),"") ->  | F197: =ROUND($H197*ROUND(I197,2),2) -> 0 | G197: 0 | I197: =IF(ISNUMBER($L197),VALUE(OFFSET(Banco!$A$1,Composições!$L197-1,COLUMN(Composições!I197)-4)),0) -> 0 | J197: =IF(ISNUMBER($L197),VALUE(OFFSET(Banco!$A$1,Composições!$L197-1,COLUMN(Composições!J197)-4)),0) -> 0 | K197: =COUNTA($A$1:$A197)-1 -> 24 | L197: =MATCH(CONCATENATE($B197," ",$C197),Banco!$A:$A,0) ->  | M197: =IF(OR(ISERROR($L197),$H197="",$H197=0),"",OFFSET(M$1,MATCH($K197,$K$1:$K197,0)-1,0)) ->  | O197: =IF(ISNUMBER($L197),VALUE(OFFSET(Banco!$A$1,Composições!$L197-1,COLUMN(Composições!O197)-6)),0) -> 0 | P197: =IF(ISNUMBER($L197),VALUE(OFFSET(Banco!$A$1,Composições!$L197-1,COLUMN(Composições!P197)-6)),0) -> 0 | Q197: =ROUND(F197*O197,2) -> 0 | R197: 0
D198: =IF(ISNUMBER($L198),OFFSET(Banco!$A$1,Composições!$L198-1,COLUMN(Composições!D198)-1),"") ->  | E198: =IF(ISNUMBER($L198),OFFSET(Banco!$A$1,Composições!$L198-1,COLUMN(Composições!E198)-1),"") ->  | F198: 0 | G198: 0 | I198: =IF(ISNUMBER($L198),VALUE(OFFSET(Banco!$A$1,Composições!$L198-1,COLUMN(Composições!I198)-4)),0) -> 0 | J198: =IF(ISNUMBER($L198),VALUE(OFFSET(Banco!$A$1,Composições!$L198-1,COLUMN(Composições!J198)-4)),0) -> 0 | K198: =COUNTA($A$1:$A198)-1 -> 24 | L198: =MATCH(CONCATENATE($B198," ",$C198),Banco!$A:$A,0) ->  | M198: =IF(OR(ISERROR($L198),$H198="",$H198=0),"",OFFSET(M$1,MATCH($K198,$K$1:$K198,0)-1,0)) ->  | O198: =IF(ISNUMBER($L198),VALUE(OFFSET(Banco!$A$1,Composições!$L198-1,COLUMN(Composições!O198)-6)),0) -> 0 | P198: =IF(ISNUMBER($L198),VALUE(OFFSET(Banco!$A$1,Composições!$L198-1,COLUMN(Composições!P198)-6)),0) -> 0 | Q198: 0 | R198: 0
D199: =IF(ISNUMBER($L199),OFFSET(Banco!$A$1,Composições!$L199-1,COLUMN(Composições!D199)-1),"") ->  | E199: =IF(ISNUMBER($L199),OFFSET(Banco!$A$1,Composições!$L199-1,COLUMN(Composições!E199)-1),"") ->  | F199: 0 | G199: 0 | I199: =IF(ISNUMBER($L199),VALUE(OFFSET(Banco!$A$1,Composições!$L199-1,COLUMN(Composições!I199)-4)),0) -> 0 | J199: =IF(ISNUMBER($L199),VALUE(OFFSET(Banco!$A$1,Composições!$L199-1,COLUMN(Composições!J199)-4)),0) -> 0 | K199: =COUNTA($A$1:$A199)-1 -> 24 | L199: =MATCH(CONCATENATE($B199," ",$C199),Banco!$A:$A,0) ->  | M199: =IF(OR(ISERROR($L199),$H199="",$H199=0),"",OFFSET(M$1,MATCH($K199,$K$1:$K199,0)-1,0)) ->  | O199: =IF(ISNUMBER($L199),VALUE(OFFSET(Banco!$A$1,Composições!$L199-1,COLUMN(Composições!O199)-6)),0) -> 0 | P199: =IF(ISNUMBER($L199),VALUE(OFFSET(Banco!$A$1,Composições!$L199-1,COLUMN(Composições!P199)-6)),0) -> 0 | Q199: 0 | R199: 0
D200: =IF(ISNUMBER($L200),OFFSET(Banco!$A$1,Composições!$L200-1,COLUMN(Composições!D200)-1),"") ->  | E200: =IF(ISNUMBER($L200),OFFSET(Banco!$A$1,Composições!$L200-1,COLUMN(Composições!E200)-1),"") ->  | F200: 0 | G200: 0 | I200: =IF(ISNUMBER($L200),VALUE(OFFSET(Banco!$A$1,Composições!$L200-1,COLUMN(Composições!I200)-4)),0) -> 0 | J200: =IF(ISNUMBER($L200),VALUE(OFFSET(Banco!$A$1,Composições!$L200-1,COLUMN(Composições!J200)-4)),0) -> 0 | K200: =COUNTA($A$1:$A200)-1 -> 24 | L200: =MATCH(CONCATENATE($B200," ",$C200),Banco!$A:$A,0) ->  | M200: =IF(OR(ISERROR($L200),$H200="",$H200=0),"",OFFSET(M$1,MATCH($K200,$K$1:$K200,0)-1,0)) ->  | O200: =IF(ISNUMBER($L200),VALUE(OFFSET(Banco!$A$1,Composições!$L200-1,COLUMN(Composições!O200)-6)),0) -> 0 | P200: =IF(ISNUMBER($L200),VALUE(OFFSET(Banco!$A$1,Composições!$L200-1,COLUMN(Composições!P200)-6)),0) -> 0 | Q200: 0 | R200: 0
D201: =IF(ISNUMBER($L201),OFFSET(Banco!$A$1,Composições!$L201-1,COLUMN(Composições!D201)-1),"") ->  | E201: =IF(ISNUMBER($L201),OFFSET(Banco!$A$1,Composições!$L201-1,COLUMN(Composições!E201)-1),"") ->  | F201: =ROUND($H201*ROUND(I201,2),2) -> 0 | G201: =ROUND($H201*ROUND(J201,2),2) -> 0 | I201: =IF(ISNUMBER($L201),VALUE(OFFSET(Banco!$A$1,Composições!$L201-1,COLUMN(Composições!I201)-4)),0) -> 0 | J201: =IF(ISNUMBER($L201),VALUE(OFFSET(Banco!$A$1,Composições!$L201-1,COLUMN(Composições!J201)-4)),0) -> 0 | K201: =COUNTA($A$1:$A201)-1 -> 24 | L201: =MATCH(CONCATENATE($B201," ",$C201),Banco!$A:$A,0) ->  | M201: =IF(OR(ISERROR($L201),$H201="",$H201=0),"",OFFSET(M$1,MATCH($K201,$K$1:$K201,0)-1,0)) ->  | O201: =IF(ISNUMBER($L201),VALUE(OFFSET(Banco!$A$1,Composições!$L201-1,COLUMN(Composições!O201)-6)),0) -> 0 | P201: =IF(ISNUMBER($L201),VALUE(OFFSET(Banco!$A$1,Composições!$L201-1,COLUMN(Composições!P201)-6)),0) -> 0
... 4 more rows

Sheet Cotações
B1: COTAÇÕES | K1: Mediana | Q1: Cores das células:
K2: Média | S2: Fundo amarelo: células para preencher
K3: 1
S4: Fundo azul: células para seleção de opções
B6: =OFFSET(Cotações!$A$1,MATCH(COUNTIF($H$1:$H6,"Cotações"),Cotações!$J:$J,0)-1,COLUMN(Banco!B$6)-1) -> Cotação | C6: =OFFSET(Cotações!$A$1,MATCH(COUNTIF($H$1:$H6,"Cotações"),Cotações!$J:$J,0)-1,COLUMN(Banco!C$6)-1) -> 4813 | D6: =IF(COUNTIF(OFFSET(Banco!$A$6,1+NCOMPOSICOES,0,NCOTACOES),$A6)>1,"CÓDIGO REPETIDO",OFFSET(Cotações!$A$1,MATCH(COUNTIF($H$1:$H6,"Cotações"),Cotações!$J:$J,0)-1,COLUMN(Banco!D$6)-1)) -> PLACA DE OBRA (PARA CONSTRUCAO CIVIL) EM CHAPA GALVANIZADA *N. 22*, ADESIVADA, DE *2,4 X 1,2* M (SEM POSTES PARA FIXACAO) | E6: =OFFSET(Cotações!$A$1,MATCH(COUNTIF($H$1:$H6,"Cotações"),Cotações!$J:$J,0)-1,COLUMN(Banco!E$6)-1) -> M2 | F6: =OFFSET(Cotações!$A$1,MATCH(COUNTIF($H$1:$H6,"Cotações"),Cotações!$J:$J,0)-1,COLUMN(Banco!F$6)-1) -> 400 | G6: =OFFSET(Cotações!$A$1,MATCH(COUNTIF($H$1:$H6,"Cotações"),Cotações!$J:$J,0)-1,COLUMN(Banco!F$6)-1) -> 400 | H6: Cotações
B8: I001 | I8: =F8/H8 ->  | J8: I | L8: =IF(ISNUMBER(I8),IF(I8<>0,"F",""),"") -> 
B10: E001 | J10: E | L10: =IF(COUNTA(C10:I10)>0,"F","") -> 
B12: FONTE | C12: CÓDIGO | D12: DESCRIÇÃO | E12: UNIDADE | F12: =CHOOSE($K$3,"MEDIANA","MÉDIA")&IF(H13="",""," RETROAGIDA") -> MEDIANA | H12: ÍNDICE RETROAÇÃO | L12: =IF(AND(ISNUMBER(F13),M13="Sim"),"F","") -> F
A13: =CONCATENATE($B13," ",$C13) -> Cotação | B13: Cotação | F13: =IFERROR(CHOOSE($K$3,MEDIAN(OFFSET(F14,1,0,ROW(C16)-ROW(C14)-1)),AVERAGE(OFFSET(F14,1,0,ROW(C16)-ROW(C14)-1)))*IF(H13="",1,VLOOKUP(H13,INDICES,8)),0) -> 0 | J13: =COUNTA($A$1:$A13)-1 -> 0 | K13: =ROW(C16)-ROW(C14)-1 -> 1 | L13: =IF(AND(ISNUMBER(F13),M13="Sim"),"F","") -> F | M13: Sim
C14: EMPRESA | D14: NOME DA EMPRESA | F14: COTAÇÕES | H14: DATA COTAÇÃO | J14: C | L14: =IF(AND(ISNUMBER(F13),M13="Sim"),"F","") -> F
D15: =IF(C15<>"",VLOOKUP(C15,EMPRESAS,3,FALSE),"") ->  | J15: C | L15: =IF(AND(ISNUMBER(OFFSET($F$1,MATCH(MAX($J$1:$J15),$J$1:$J15,0)-1,0)),ISNUMBER(F15),INDEX($M$1:$M15,MATCH("ZZZZ",$M$1:$M15))="Sim"),"F","") -> 
C16: OBSERVAÇÕES: | L16: =IF(AND(ISNUMBER(F13),M13="Sim"),"F","") -> F
L17: =IF(AND(ISNUMBER(F13),M13="Sim"),"F","") -> F
L18: FILTRO | M18: IMPRIMIR
B19: ÍNDICES DE RETROAÇÃO: | L19: =IF(NINDICES>0,"F","") -> 
B20: ÍNDICE | C20: NOME DO ÍNDICE | D20: DESCRIÇÃO | E20: DATA BASE | F20: ÍNDICE DT BASE | G20: DT COTAÇÃO | H20: ÍNDICE DT COT. | I20: COEFICIENTE | J20: I | L20: =IF(NINDICES>0,"F","") -> 
B21: EMPRESAS FORNECEDORAS: | L21: =IF(NEMPRESAS>0,"F","") -> F
B22: EMPRESAS | C22: CNPJ | D22: NOME | F22: FONE | H22: CONTATO | J22: E | L22: =IF(NEMPRESAS>0,"F","") -> F
B23: E001 | C23: 00.000.000/0001.00 | D23: SINAPI 06-2025 | J23: E | L23: =IF(COUNTA(C23:I23)>0,"F","") -> F
B24: E002 | C24: 00.000.000/0001.01 | D24: AGESUL | J24: E | L24: F
B25: E003 | J25: E
B26: E004 | J26: E
B27: E005 | J27: E
B28: COTAÇÕES: | L28: =IF(NCOTACOES>0,"F","") -> F
B29: FONTE | C29: CÓDIGO | D29: DESCRIÇÃO | E29: UNIDADE | F29: =CHOOSE($K$3,"MEDIANA","MÉDIA")&IF(H30="",""," RETROAGIDA") -> MEDIANA | H29: ÍNDICE RETROAÇÃO | L29: =IF(AND(ISNUMBER(F30),M30="Sim"),"F","") -> F
A30: =CONCATENATE($B30," ",$C30) -> Cotação 4813 | B30: Cotação | C30: 4813 | D30: PLACA DE OBRA (PARA CONSTRUCAO CIVIL) EM CHAPA GALVANIZADA *N. 22*, ADESIVADA, DE *2,4 X 1,2* M (SEM POSTES PARA FIXACAO) | E30: M2 | F30: =IFERROR(CHOOSE($K$3,MEDIAN(OFFSET(F31,1,0,ROW(C33)-ROW(C31)-1)),AVERAGE(OFFSET(F31,1,0,ROW(C33)-ROW(C31)-1)))*IF(H30="",1,VLOOKUP(H30,INDICES,8)),0) -> 400 | J30: =COUNTA($A$1:$A30)-1 -> 1 | K30: =ROW(C33)-ROW(C31)-1 -> 1 | L30: =IF(AND(ISNUMBER(F30),M30="Sim"),"F","") -> F | M30: Sim
C31: EMPRESA | D31: NOME DA EMPRESA | F31: COTAÇÕES | H31: DATA COTAÇÃO | J31: C | L31: =IF(AND(ISNUMBER(F30),M30="Sim"),"F","") -> F
C32: E001 | D32: =IF(C32<>"",VLOOKUP(C32,EMPRESAS,3,FALSE),"") -> SINAPI 06-2025 | F32: 400 | H32: 06-2025 | J32: C | L32: =IF(AND(ISNUMBER(OFFSET($F$1,MATCH(MAX($J$1:$J32),$J$1:$J32,0)-1,0)),ISNUMBER(F32),INDEX($M$1:$M32,MATCH("ZZZZ",$M$1:$M32))="Sim"),"F","") -> F
C33: OBSERVAÇÕES: | L33: =IF(AND(ISNUMBER(F30),M30="Sim"),"F","") -> F
L34: =IF(AND(ISNUMBER(F30),M30="Sim"),"F","") -> F
B35: FONTE | C35: CÓDIGO | D35: DESCRIÇÃO | E35: UNIDADE | F35: =CHOOSE($K$3,"MEDIANA","MÉDIA")&IF(H36="",""," RETROAGIDA") -> MEDIANA | H35: ÍNDICE RETROAÇÃO | L35: =IF(AND(ISNUMBER(F36),M36="Sim"),"F","") -> F
A36: =CONCATENATE($B36," ",$C36) -> Cotação IUD003 | B36: Cotação | C36: IUD003 | D36: Grelha em FoFo, articulada, 1,0m x 0,45m -12 ton, fornecimento | E36: UN | F36: =IFERROR(CHOOSE($K$3,MEDIAN(OFFSET(F37,1,0,ROW(C39)-ROW(C37)-1)),AVERAGE(OFFSET(F37,1,0,ROW(C39)-ROW(C37)-1)))*IF(H36="",1,VLOOKUP(H36,INDICES,8)),0) -> 752.6 | J36: =COUNTA($A$1:$A36)-1 -> 2 | K36: =ROW(C39)-ROW(C37)-1 -> 1 | L36: =IF(AND(ISNUMBER(F36),M36="Sim"),"F","") -> F | M36: Sim
C37: EMPRESA | D37: NOME DA EMPRESA | F37: COTAÇÕES | H37: DATA COTAÇÃO | J37: C | L37: =IF(AND(ISNUMBER(F36),M36="Sim"),"F","") -> F
C38: E002 | D38: =IF(C38<>"",VLOOKUP(C38,EMPRESAS,3,FALSE),"") -> AGESUL | F38: 752.6 | H38: 06-2025 | J38: C | L38: =IF(AND(ISNUMBER(OFFSET($F$1,MATCH(MAX($J$1:$J38),$J$1:$J38,0)-1,0)),ISNUMBER(F38),INDEX($M$1:$M38,MATCH("ZZZZ",$M$1:$M38))="Sim"),"F","") -> F
C39: OBSERVAÇÕES: | L39: =IF(AND(ISNUMBER(F36),M36="Sim"),"F","") -> F
L40: =IF(AND(ISNUMBER(F36),M36="Sim"),"F","") -> F
B41: FONTE | C41: CÓDIGO | D41: DESCRIÇÃO | E41: UNIDADE | F41: =CHOOSE($K$3,"MEDIANA","MÉDIA")&IF(H42="",""," RETROAGIDA") -> MEDIANA | H41: ÍNDICE RETROAÇÃO | L41: =IF(AND(ISNUMBER(F42),M42="Sim"),"F","") -> F
A42: =CONCATENATE($B42," ",$C42) -> Cotação IUP0009 | B42: Cotação | C42: IUP0009 | D42: Emulsão asfáltica catiônica RR-1C para uso em pavimentação asfáltica. | E42: T | F42: =IFERROR(CHOOSE($K$3,MEDIAN(OFFSET(F43,1,0,ROW(C45)-ROW(C43)-1)),AVERAGE(OFFSET(F43,1,0,ROW(C45)-ROW(C43)-1)))*IF(H42="",1,VLOOKUP(H42,INDICES,8)),0) -> 4875 | J42: =COUNTA($A$1:$A42)-1 -> 3 | K42: =ROW(C45)-ROW(C43)-1 -> 1 | L42: =IF(AND(ISNUMBER(F42),M42="Sim"),"F","") -> F | M42: Sim
C43: EMPRESA | D43: NOME DA EMPRESA | F43: COTAÇÕES | H43: DATA COTAÇÃO | J43: C | L43: =IF(AND(ISNUMBER(F42),M42="Sim"),"F","") -> F
C44: E002 | D44: =IF(C44<>"",VLOOKUP(C44,EMPRESAS,3,FALSE),"") -> AGESUL | F44: 4875 | H44: 06-2025 | J44: C | L44: =IF(AND(ISNUMBER(OFFSET($F$1,MATCH(MAX($J$1:$J44),$J$1:$J44,0)-1,0)),ISNUMBER(F44),INDEX($M$1:$M44,MATCH("ZZZZ",$M$1:$M44))="Sim"),"F","") -> F
C45: OBSERVAÇÕES: | L45: =IF(AND(ISNUMBER(F42),M42="Sim"),"F","") -> F
L46: =IF(AND(ISNUMBER(F42),M42="Sim"),"F","") -> F
B47: FONTE | C47: CÓDIGO | D47: DESCRIÇÃO | E47: UNIDADE | F47: =CHOOSE($K$3,"MEDIANA","MÉDIA")&IF(H48="",""," RETROAGIDA") -> MEDIANA | H47: ÍNDICE RETROAÇÃO | L47: =IF(AND(ISNUMBER(F48),M48="Sim"),"F","") -> F
A48: =CONCATENATE($B48," ",$C48) -> Cotação IUP0007 | B48: Cotação | C48: IUP0007 | D48: Emulsão asfáltica a base d'água para imprimação. | E48: T | F48: =IFERROR(CHOOSE($K$3,MEDIAN(OFFSET(F49,1,0,ROW(C51)-ROW(C49)-1)),AVERAGE(OFFSET(F49,1,0,ROW(C51)-ROW(C49)-1)))*IF(H48="",1,VLOOKUP(H48,INDICES,8)),0) -> 4915 | J48: =COUNTA($A$1:$A48)-1 -> 4 | K48: =ROW(C51)-ROW(C49)-1 -> 1 | L48: =IF(AND(ISNUMBER(F48),M48="Sim"),"F","") -> F | M48: Sim
C49: EMPRESA | D49: NOME DA EMPRESA | F49: COTAÇÕES | H49: DATA COTAÇÃO | J49: C | L49: =IF(AND(ISNUMBER(F48),M48="Sim"),"F","") -> F
C50: E002 | D50: =IF(C50<>"",VLOOKUP(C50,EMPRESAS,3,FALSE),"") -> AGESUL | F50: 4915 | H50: 06-2025 | J50: C | L50: =IF(AND(ISNUMBER(OFFSET($F$1,MATCH(MAX($J$1:$J50),$J$1:$J50,0)-1,0)),ISNUMBER(F50),INDEX($M$1:$M50,MATCH("ZZZZ",$M$1:$M50))="Sim"),"F","") -> F
C51: OBSERVAÇÕES: | L51: =IF(AND(ISNUMBER(F48),M48="Sim"),"F","") -> F
L52: =IF(AND(ISNUMBER(F48),M48="Sim"),"F","") -> F
B53: FONTE | C53: CÓDIGO | D53: DESCRIÇÃO | E53: UNIDADE | F53: =CHOOSE($K$3,"MEDIANA","MÉDIA")&IF(H54="",""," RETROAGIDA") -> MEDIANA | H53: ÍNDICE RETROAÇÃO | L53: =IF(AND(ISNUMBER(F54),M54="Sim"),"F","") -> F
A54: =CONCATENATE($B54," ",$C54) -> Cotação 4748 | B54: Cotação | C54: 4748 | D54: Pedra britada ou bica corrida, não classificada (posto pedreira/fornecedor, sem frete) | E54: M3 | F54: =IFERROR(CHOOSE($K$3,MEDIAN(OFFSET(F55,1,0,ROW(C57)-ROW(C55)-1)),AVERAGE(OFFSET(F55,1,0,ROW(C57)-ROW(C55)-1)))*IF(H54="",1,VLOOKUP(H54,INDICES,8)),0) -> 62.01 | J54: =COUNTA($A$1:$A54)-1 -> 5 | K54: =ROW(C57)-ROW(C55)-1 -> 1 | L54: =IF(AND(ISNUMBER(F54),M54="Sim"),"F","") -> F | M54: Sim
C55: EMPRESA | D55: NOME DA EMPRESA | F55: COTAÇÕES | H55: DATA COTAÇÃO | J55: C | L55: =IF(AND(ISNUMBER(F54),M54="Sim"),"F","") -> F
C56: E001 | D56: =IF(C56<>"",VLOOKUP(C56,EMPRESAS,3,FALSE),"") -> SINAPI 06-2025 | F56: 62.01 | H56: 06-2025 | J56: C | L56: =IF(AND(ISNUMBER(OFFSET($F$1,MATCH(MAX($J$1:$J56),$J$1:$J56,0)-1,0)),ISNUMBER(F56),INDEX($M$1:$M56,MATCH("ZZZZ",$M$1:$M56))="Sim"),"F","") -> F
C57: OBSERVAÇÕES: | L57: =IF(AND(ISNUMBER(F54),M54="Sim"),"F","") -> F
L58: =IF(AND(ISNUMBER(F54),M54="Sim"),"F","") -> F
B59: FONTE | C59: CÓDIGO | D59: DESCRIÇÃO | E59: UNIDADE | F59: =CHOOSE($K$3,"MEDIANA","MÉDIA")&IF(H60="",""," RETROAGIDA") -> MEDIANA | H59: ÍNDICE RETROAÇÃO | L59: =IF(AND(ISNUMBER(F60),M60="Sim"),"F","") -> F
A60: =CONCATENATE($B60," ",$C60) -> Cotação 34723 | B60: Cotação | C60: 34723 | D60: PLACA DE SINALIZACAO EM CHAPA DE ACO NUM 16 COM PINTURA REFLETIVA | E60: M2 | F60: =IFERROR(CHOOSE($K$3,MEDIAN(OFFSET(F61,1,0,ROW(C63)-ROW(C61)-1)),AVERAGE(OFFSET(F61,1,0,ROW(C63)-ROW(C61)-1)))*IF(H60="",1,VLOOKUP(H60,INDICES,8)),0) -> 924 | J60: =COUNTA($A$1:$A60)-1 -> 6 | K60: =ROW(C63)-ROW(C61)-1 -> 1 | L60: =IF(AND(ISNUMBER(F60),M60="Sim"),"F","") -> F | M60: Sim
C61: EMPRESA | D61: NOME DA EMPRESA | F61: COTAÇÕES | H61: DATA COTAÇÃO | J61: C | L61: =IF(AND(ISNUMBER(F60),M60="Sim"),"F","") -> F
C62: E001 | D62: =IF(C62<>"",VLOOKUP(C62,EMPRESAS,3,FALSE),"") -> SINAPI 06-2025 | F62: 924 | H62: 06-2025 | J62: C | L62: =IF(AND(ISNUMBER(OFFSET($F$1,MATCH(MAX($J$1:$J62),$J$1:$J62,0)-1,0)),ISNUMBER(F62),INDEX($M$1:$M62,MATCH("ZZZZ",$M$1:$M62))="Sim"),"F","") -> F
C63: OBSERVAÇÕES: | L63: =IF(AND(ISNUMBER(F60),M60="Sim"),"F","") -> F
L64: =IF(AND(ISNUMBER(F60),M60="Sim"),"F","") -> F
B65: FONTE | C65: CÓDIGO | D65: DESCRIÇÃO | E65: UNIDADE | F65: =CHOOSE($K$3,"MEDIANA","MÉDIA")&IF(H66="",""," RETROAGIDA") -> MEDIANA | H65: ÍNDICE RETROAÇÃO | L65: =IF(AND(ISNUMBER(F66),M66="Sim"),"F","") -> F
A66: =CONCATENATE($B66," ",$C66) -> Cotação IUS87012 | B66: Cotação | C66: IUS87012 | D66: Fornecimento e implantação de coluna simples dn de 2”, espessura da parede 3,0mm, altura total de 3,50m, em aço galvanizado por imersão à quente. Inclusive instalação da placa de sinalização e elementos de fixação, exclusive fornecimento da placa | E66: UN | F66: =IFERROR(CHOOSE($K$3,MEDIAN(OFFSET(F67,1,0,ROW(C69)-ROW(C67)-1)),AVERAGE(OFFSET(F67,1,0,ROW(C69)-ROW(C67)-1)))*IF(H66="",1,VLOOKUP(H66,INDICES,8)),0) -> 343.45 | J66: =COUNTA($A$1:$A66)-1 -> 7 | K66: =ROW(C69)-ROW(C67)-1 -> 1 | L66: =IF(AND(ISNUMBER(F66),M66="Sim"),"F","") -> F | M66: Sim
C67: EMPRESA | D67: NOME DA EMPRESA | F67: COTAÇÕES | H67: DATA COTAÇÃO | J67: C | L67: =IF(AND(ISNUMBER(F66),M66="Sim"),"F","") -> F
C68: E002 | D68: =IF(C68<>"",VLOOKUP(C68,EMPRESAS,3,FALSE),"") -> AGESUL | F68: 343.45 | H68: 06-2025 | J68: C | L68: =IF(AND(ISNUMBER(OFFSET($F$1,MATCH(MAX($J$1:$J68),$J$1:$J68,0)-1,0)),ISNUMBER(F68),INDEX($M$1:$M68,MATCH("ZZZZ",$M$1:$M68))="Sim"),"F","") -> F
C69: OBSERVAÇÕES: | L69: =IF(AND(ISNUMBER(F66),M66="Sim"),"F","") -> F
L70: =IF(AND(ISNUMBER(F66),M66="Sim"),"F","") -> F
B71: FONTE | C71: CÓDIGO | D71: DESCRIÇÃO | E71: UNIDADE | F71: =CHOOSE($K$3,"MEDIANA","MÉDIA")&IF(H72="",""," RETROAGIDA") -> MEDIANA | H71: ÍNDICE RETROAÇÃO | L71: =IF(AND(ISNUMBER(F72),M72="Sim"),"F","") -> F
A72: =CONCATENATE($B72," ",$C72) -> Cotação 6243 | B72: Cotação | C72: 6243 | D72: TAMPAO FOFO SIMPLES COM BASE / REQUADRO, CLASSE B125 CARGA MAX. 12,5 T, REDONDO, TAMPA 600 MM (COM INSCRICAO EM RELEVO DO TIPO DE REDE) | E72: UN | F72: =IFERROR(CHOOSE($K$3,MEDIAN(OFFSET(F73,1,0,ROW(C75)-ROW(C73)-1)),AVERAGE(OFFSET(F73,1,0,ROW(C75)-ROW(C73)-1)))*IF(H72="",1,VLOOKUP(H72,INDICES,8)),0) -> 510 | J72: =COUNTA($A$1:$A72)-1 -> 8 | K72: =ROW(C75)-ROW(C73)-1 -> 1 | L72: =IF(AND(ISNUMBER(F72),M72="Sim"),"F","") -> F | M72: Sim
C73: EMPRESA | D73: NOME DA EMPRESA | F73: COTAÇÕES | H73: DATA COTAÇÃO | J73: C | L73: =IF(AND(ISNUMBER(F72),M72="Sim"),"F","") -> F
C74: E001 | D74: =IF(C74<>"",VLOOKUP(C74,EMPRESAS,3,FALSE),"") -> SINAPI 06-2025 | F74: 510 | H74: 06-2025 | J74: C | L74: =IF(AND(ISNUMBER(OFFSET($F$1,MATCH(MAX($J$1:$J74),$J$1:$J74,0)-1,0)),ISNUMBER(F74),INDEX($M$1:$M74,MATCH("ZZZZ",$M$1:$M74))="Sim"),"F","") -> F
C75: OBSERVAÇÕES: | L75: =IF(AND(ISNUMBER(F72),M72="Sim"),"F","") -> F
L76: =IF(AND(ISNUMBER(F72),M72="Sim"),"F","") -> F
B77: FONTE | C77: CÓDIGO | D77: DESCRIÇÃO | E77: UNIDADE | F77: =CHOOSE($K$3,"MEDIANA","MÉDIA")&IF(H78="",""," RETROAGIDA") -> MEDIANA | H77: ÍNDICE RETROAÇÃO | L77: =IF(AND(ISNUMBER(F78),M78="Sim"),"F","") -> F
A78: =CONCATENATE($B78," ",$C78) -> Cotação 10775 | B78: Cotação | C78: 10775 | D78: LOCACAO DE CONTAINER 2,30 X 6,00 M, ALT. 2,50 M, COM 1 SANITARIO, PARA ESCRITORIO, COMPLETO, SEM DIVISORIAS INTERNAS (NAO INCLUI MOBILIZACAO/DESMOBILIZACAO) | E78: MÊS | F78: =IFERROR(CHOOSE($K$3,MEDIAN(OFFSET(F79,1,0,ROW(C81)-ROW(C79)-1)),AVERAGE(OFFSET(F79,1,0,ROW(C81)-ROW(C79)-1)))*IF(H78="",1,VLOOKUP(H78,INDICES,8)),0) -> 903.5 | J78: =COUNTA($A$1:$A78)-1 -> 9 | K78: =ROW(C81)-ROW(C79)-1 -> 1 | L78: =IF(AND(ISNUMBER(F78),M78="Sim"),"F","") -> F | M78: Sim
C79: EMPRESA | D79: NOME DA EMPRESA | F79: COTAÇÕES | H79: DATA COTAÇÃO | J79: C | L79: =IF(AND(ISNUMBER(F78),M78="Sim"),"F","") -> F
C80: E001 | D80: =IF(C80<>"",VLOOKUP(C80,EMPRESAS,3,FALSE),"") -> SINAPI 06-2025 | F80: 903.5 | H80: 06-2025 | J80: C | L80: =IF(AND(ISNUMBER(OFFSET($F$1,MATCH(MAX($J$1:$J80),$J$1:$J80,0)-1,0)),ISNUMBER(F80),INDEX($M$1:$M80,MATCH("ZZZZ",$M$1:$M80))="Sim"),"F","") -> F
C81: OBSERVAÇÕES: | L81: =IF(AND(ISNUMBER(F78),M78="Sim"),"F","") -> F
L82: =IF(AND(ISNUMBER(F78),M78="Sim"),"F","") -> F
B83: FONTE | C83: CÓDIGO | D83: DESCRIÇÃO | E83: UNIDADE | F83: =CHOOSE($K$3,"MEDIANA","MÉDIA")&IF(H84="",""," RETROAGIDA") -> MEDIANA | H83: ÍNDICE RETROAÇÃO | L83: =IF(AND(ISNUMBER(F84),M84="Sim"),"F","") -> F
A84: =CONCATENATE($B84," ",$C84) -> Cotação 7701 | B84: Cotação | C84: 7701 | D84: TUBO ACO GALVANIZADO COM COSTURA, CLASSE MEDIA, DN 2.1/2", E = *3,65* MM, PESO *6,51* KG/M (NBR 5580) | E84: M | F84: =IFERROR(CHOOSE($K$3,MEDIAN(OFFSET(F85,1,0,ROW(C87)-ROW(C85)-1)),AVERAGE(OFFSET(F85,1,0,ROW(C87)-ROW(C85)-1)))*IF(H84="",1,VLOOKUP(H84,INDICES,8)),0) -> 23.81 | J84: =COUNTA($A$1:$A84)-1 -> 10 | K84: =ROW(C87)-ROW(C85)-1 -> 1 | L84: =IF(AND(ISNUMBER(F84),M84="Sim"),"F","") -> F | M84: Sim
C85: EMPRESA | D85: NOME DA EMPRESA | F85: COTAÇÕES | H85: DATA COTAÇÃO | J85: C | L85: =IF(AND(ISNUMBER(F84),M84="Sim"),"F","") -> F
C86: E001 | D86: =IF(C86<>"",VLOOKUP(C86,EMPRESAS,3,FALSE),"") -> SINAPI 06-2025 | F86: 23.81 | H86: 06-2025 | J86: C | L86: =IF(AND(ISNUMBER(OFFSET($F$1,MATCH(MAX($J$1:$J86),$J$1:$J86,0)-1,0)),ISNUMBER(F86),INDEX($M$1:$M86,MATCH("ZZZZ",$M$1:$M86))="Sim"),"F","") -> F
C87: OBSERVAÇÕES: | L87: =IF(AND(ISNUMBER(F84),M84="Sim"),"F","") -> F
L88: =IF(AND(ISNUMBER(F84),M84="Sim"),"F","") -> F
B89: FONTE | C89: CÓDIGO | D89: DESCRIÇÃO | E89: UNIDADE | F89: =CHOOSE($K$3,"MEDIANA","MÉDIA")&IF(H90="",""," RETROAGIDA") -> MEDIANA | H89: ÍNDICE RETROAÇÃO | L89: =IF(AND(ISNUMBER(F90),M90="Sim"),"F","") -> F
A90: =CONCATENATE($B90," ",$C90) -> Cotação 1062 | B90: Cotação | C90: 1062 | D90: CAIXA INTERNA/EXTERNA DE MEDICAO PARA 1 MEDIDOR TRIFASICO, COM VISOR, EM CHAPA DE ACO 18 USG (PADRAO DA CONCESSIONARIA LOCAL) | E90: UN | F90: =IFERROR(CHOOSE($K$3,MEDIAN(OFFSET(F91,1,0,ROW(C93)-ROW(C91)-1)),AVERAGE(OFFSET(F91,1,0,ROW(C93)-ROW(C91)-1)))*IF(H90="",1,VLOOKUP(H90,INDICES,8)),0) -> 235 | J90: =COUNTA($A$1:$A90)-1 -> 11 | K90: =ROW(C93)-ROW(C91)-1 -> 1 | L90: =IF(AND(ISNUMBER(F90),M90="Sim"),"F","") -> F | M90: Sim
C91: EMPRESA | D91: NOME DA EMPRESA | F91: COTAÇÕES | H91: DATA COTAÇÃO | J91: C | L91: =IF(AND(ISNUMBER(F90),M90="Sim"),"F","") -> F
C92: E001 | D92: =IF(C92<>"",VLOOKUP(C92,EMPRESAS,3,FALSE),"") -> SINAPI 06-2025 | F92: 235 | H92: 06-2025 | J92: C | L92: =IF(AND(ISNUMBER(OFFSET($F$1,MATCH(MAX($J$1:$J92),$J$1:$J92,0)-1,0)),ISNUMBER(F92),INDEX($M$1:$M92,MATCH("ZZZZ",$M$1:$M92))="Sim"),"F","") -> F
C93: OBSERVAÇÕES: | L93: =IF(AND(ISNUMBER(F90),M90="Sim"),"F","") -> F
L94: =IF(AND(ISNUMBER(F90),M90="Sim"),"F","") -> F
A95: ### | B95: 2025-07-10 | L95: F
B96: Data | E96: Resp. Pesquisa de Mercado: | G96: ALAN PINHEIRO TRINDADE | L96: F

Sheet Banco
B1: BANCO DE CUSTOS - REFERÊNCIA 2.6 | I1: AS = ATRIBUÍDO SÃO PAULO | L1: =MID(CELL("nome.arquivo"),SEARCH("[",CELL("nome.arquivo"))+1,SEARCH("]",CELL("nome.arquivo"))-SEARCH("[",CELL("nome.arquivo"))-1) -> BAIRRO JATOBÁ_RUA ALAGOAS - Multipla.xlsm
B2: DATA PREÇO (SINAPI): | D2: LOCALIDADE / DATA EMISSÃO (SINAPI): | I2: CR = COEFICIENTE DE REPRESENTATIVIDADE | L2: =MID(L1,1,LEN(L1)-IF(LEFT(RIGHT(L1,4),1)=".",4,5)) -> BAIRRO JATOBÁ_RUA ALAGOAS - Multipla
B3: 09/2025 | D3: CAMPO GRANDE | I3: C = COLETADO | L3: =IF(LEFT(RIGHT(L1,4),1)=".",RIGHT(L1,3),RIGHT(L1,4)) -> xlsm
B4: =IF(L3<>"xlsm","Extensão do arquivo: xlsm",IF(DATABASE="","",IF(L2<>L4,"Nome arquivo: " & L4,""))) -> Nome arquivo: Referência 09-2025 | D4: 10/10/2025 | I4: ORIGEM DO PREÇO | L4: =IF(B3="","",_xlfn.CONCAT("Referência ",TEXT(B3,"mm"),"-",TEXT(B3,"aaaa"))) -> Referência 09-2025
B5: FONTE | C5: CÓDIGO | D5: DESCRIÇÃO | E5: UNIDADE | F5: CUSTO UNITÁRIO DESONERADO | G5: CUSTO UNITÁRIO NÃO DESONERADO | J5: % AS DESONERADO | K5: % AS NAO DESONERADO
A7: =CONCATENATE($B7," ",$C7) -> Composição IUD20080 | B7: =OFFSET(Composições!$A$1,MATCH(COUNTIF($H$1:$H7,"Composições"),Composições!$K:$K,0)-1,COLUMN(Banco!B$6)-1) -> Composição | C7: =OFFSET(Composições!$A$1,MATCH(COUNTIF($H$1:$H7,"Composições"),Composições!$K:$K,0)-1,COLUMN(Banco!C$6)-1) -> IUD20080 | D7: =IF(COUNTIF(OFFSET(Banco!$A$6,1,0,NCOMPOSICOES),$A7)>1,"CÓDIGO REPETIDO",OFFSET(Composições!$A$1,MATCH(COUNTIF($H$1:$H7,"Composições"),Composições!$K:$K,0)-1,COLUMN(Banco!D$6)-1)) -> Escavação manual em solo-prof. até 1,50 m | E7: =OFFSET(Composições!$A$1,MATCH(COUNTIF($H$1:$H7,"Composições"),Composições!$K:$K,0)-1,COLUMN(Banco!E$6)-1) -> M3 | F7: =OFFSET(Composições!$A$1,MATCH(COUNTIF($H$1:$H7,"Composições"),Composições!$K:$K,0)-1,COLUMN(Banco!F$6)-1) -> 40.26 | G7: =OFFSET(Composições!$A$1,MATCH(COUNTIF($H$1:$H7,"Composições"),Composições!$K:$K,0)-1,COLUMN(Banco!G$6)-1) -> 43.44 | H7: Composições | J7: =OFFSET(Composições!$A$1,MATCH(COUNTIF($H$1:$H7,"Composições"),Composições!$K:$K,0)-1,COLUMN(Banco!J$6)+4) -> 0 | K7: =OFFSET(Composições!$A$1,MATCH(COUNTIF($H$1:$H7,"Composições"),Composições!$K:$K,0)-1,COLUMN(Banco!K$6)+4) -> 0
A8: =CONCATENATE($B8," ",$C8) -> Composição IUS0001 | B8: =OFFSET(Composições!$A$1,MATCH(COUNTIF($H$1:$H8,"Composições"),Composições!$K:$K,0)-1,COLUMN(Banco!B$6)-1) -> Composição | C8: =OFFSET(Composições!$A$1,MATCH(COUNTIF($H$1:$H8,"Composições"),Composições!$K:$K,0)-1,COLUMN(Banco!C$6)-1) -> IUS0001 | D8: =IF(COUNTIF(OFFSET(Banco!$A$6,1,0,NCOMPOSICOES),$A8)>1,"CÓDIGO REPETIDO",OFFSET(Composições!$A$1,MATCH(COUNTIF($H$1:$H8,"Composições"),Composições!$K:$K,0)-1,COLUMN(Banco!D$6)-1)) -> Placa de obra em chapa de aço galvanizado (REF 74209/001 descontinuado em 01/01/2020) | E8: =OFFSET(Composições!$A$1,MATCH(COUNTIF($H$1:$H8,"Composições"),Composições!$K:$K,0)-1,COLUMN(Banco!E$6)-1) -> M2 | F8: =OFFSET(Composições!$A$1,MATCH(COUNTIF($H$1:$H8,"Composições"),Composições!$K:$K,0)-1,COLUMN(Banco!F$6)-1) -> 506.56 | G8: =OFFSET(Composições!$A$1,MATCH(COUNTIF($H$1:$H8,"Composições"),Composições!$K:$K,0)-1,COLUMN(Banco!G$6)-1) -> 511.92 | H8: Composições | J8: =OFFSET(Composições!$A$1,MATCH(COUNTIF($H$1:$H8,"Composições"),Composições!$K:$K,0)-1,COLUMN(Banco!J$6)+4) -> 0 | K8: =OFFSET(Composições!$A$1,MATCH(COUNTIF($H$1:$H8,"Composições"),Composições!$K:$K,0)-1,COLUMN(Banco!K$6)+4) -> 0
A9: Composição IUD20017 | B9: =OFFSET(Composições!$A$1,MATCH(COUNTIF($H$1:$H9,"Composições"),Composições!$K:$K,0)-1,COLUMN(Banco!B$6)-1) -> Composição | C9: =OFFSET(Composições!$A$1,MATCH(COUNTIF($H$1:$H9,"Composições"),Composições!$K:$K,0)-1,COLUMN(Banco!C$6)-1) -> IUD20017 | D9: =IF(COUNTIF(OFFSET(Banco!$A$6,1,0,NCOMPOSICOES),$A9)>1,"CÓDIGO REPETIDO",OFFSET(Composições!$A$1,MATCH(COUNTIF($H$1:$H9,"Composições"),Composições!$K:$K,0)-1,COLUMN(Banco!D$6)-1)) -> Ligação provisória de água | E9: =OFFSET(Composições!$A$1,MATCH(COUNTIF($H$1:$H9,"Composições"),Composições!$K:$K,0)-1,COLUMN(Banco!E$6)-1) -> UN | F9: =OFFSET(Composições!$A$1,MATCH(COUNTIF($H$1:$H9,"Composições"),Composições!$K:$K,0)-1,COLUMN(Banco!F$6)-1) -> 483.47 | G9: =OFFSET(Composições!$A$1,MATCH(COUNTIF($H$1:$H9,"Composições"),Composições!$K:$K,0)-1,COLUMN(Banco!G$6)-1) -> 490.93 | H9: Composições | J9: =OFFSET(Composições!$A$1,MATCH(COUNTIF($H$1:$H9,"Composições"),Composições!$K:$K,0)-1,COLUMN(Banco!J$6)+4) -> 0 | K9: =OFFSET(Composições!$A$1,MATCH(COUNTIF($H$1:$H9,"Composições"),Composições!$K:$K,0)-1,COLUMN(Banco!K$6)+4) -> 0
A10: Composição IUI00003 | B10: =OFFSET(Composições!$A$1,MATCH(COUNTIF($H$1:$H10,"Composições"),Composições!$K:$K,0)-1,COLUMN(Banco!B$6)-1) -> Composição | C10: =OFFSET(Composições!$A$1,MATCH(COUNTIF($H$1:$H10,"Composições"),Composições!$K:$K,0)-1,COLUMN(Banco!C$6)-1) -> IUI00003 | D10: =IF(COUNTIF(OFFSET(Banco!$A$6,1,0,NCOMPOSICOES),$A10)>1,"CÓDIGO REPETIDO",OFFSET(Composições!$A$1,MATCH(COUNTIF($H$1:$H10,"Composições"),Composições!$K:$K,0)-1,COLUMN(Banco!D$6)-1)) -> Sinalização de advertência de obra com placa (fundo laranja) sobre cavalete, conforme ABNT-NBR-7678 | E10: =OFFSET(Composições!$A$1,MATCH(COUNTIF($H$1:$H10,"Composições"),Composições!$K:$K,0)-1,COLUMN(Banco!E$6)-1) -> UN | F10: =OFFSET(Composições!$A$1,MATCH(COUNTIF($H$1:$H10,"Composições"),Composições!$K:$K,0)-1,COLUMN(Banco!F$6)-1) -> 484.12 | G10: =OFFSET(Composições!$A$1,MATCH(COUNTIF($H$1:$H10,"Composições"),Composições!$K:$K,0)-1,COLUMN(Banco!G$6)-1) -> 488.64 | H10: Composições | J10: =OFFSET(Composições!$A$1,MATCH(COUNTIF($H$1:$H10,"Composições"),Composições!$K:$K,0)-1,COLUMN(Banco!J$6)+4) -> 0 | K10: =OFFSET(Composições!$A$1,MATCH(COUNTIF($H$1:$H10,"Composições"),Composições!$K:$K,0)-1,COLUMN(Banco!K$6)+4) -> 0
A11: Composição IUD30112 | B11: =OFFSET(Composições!$A$1,MATCH(COUNTIF($H$1:$H11,"Composições"),Composições!$K:$K,0)-1,COLUMN(Banco!B$6)-1) -> Composição | C11: =OFFSET(Composições!$A$1,MATCH(COUNTIF($H$1:$H11,"Composições"),Composições!$K:$K,0)-1,COLUMN(Banco!C$6)-1) -> IUD30112 | D11: =IF(COUNTIF(OFFSET(Banco!$A$6,1,0,NCOMPOSICOES),$A11)>1,"CÓDIGO REPETIDO",OFFSET(Composições!$A$1,MATCH(COUNTIF($H$1:$H11,"Composições"),Composições!$K:$K,0)-1,COLUMN(Banco!D$6)-1)) -> Lastro ou enroncamento de pedra-de-mão ou rachão, com lançamento mecanizado, fornecimento e apiloamento. Exclusive transporte. | E11: =OFFSET(Composições!$A$1,MATCH(COUNTIF($H$1:$H11,"Composições"),Composições!$K:$K,0)-1,COLUMN(Banco!E$6)-1) -> M3 | F11: =OFFSET(Composições!$A$1,MATCH(COUNTIF($H$1:$H11,"Composições"),Composições!$K:$K,0)-1,COLUMN(Banco!F$6)-1) -> 282.89 | G11: =OFFSET(Composições!$A$1,MATCH(COUNTIF($H$1:$H11,"Composições"),Composições!$K:$K,0)-1,COLUMN(Banco!G$6)-1) -> 293.7 | H11: Composições | J11: =OFFSET(Composições!$A$1,MATCH(COUNTIF($H$1:$H11,"Composições"),Composições!$K:$K,0)-1,COLUMN(Banco!J$6)+4) -> 0 | K11: =OFFSET(Composições!$A$1,MATCH(COUNTIF($H$1:$H11,"Composições"),Composições!$K:$K,0)-1,COLUMN(Banco!K$6)+4) -> 0
A12: Composição IUD20006 | B12: =OFFSET(Composições!$A$1,MATCH(COUNTIF($H$1:$H12,"Composições"),Composições!$K:$K,0)-1,COLUMN(Banco!B$6)-1) -> Composição | C12: =OFFSET(Composições!$A$1,MATCH(COUNTIF($H$1:$H12,"Composições"),Composições!$K:$K,0)-1,COLUMN(Banco!C$6)-1) -> IUD20006 | D12: =IF(COUNTIF(OFFSET(Banco!$A$6,1,0,NCOMPOSICOES),$A12)>1,"CÓDIGO REPETIDO",OFFSET(Composições!$A$1,MATCH(COUNTIF($H$1:$H12,"Composições"),Composições!$K:$K,0)-1,COLUMN(Banco!D$6)-1)) -> BLSC - Boca-de-lobo simples, em concreto simples fck 20 MPa, incluindo forma, escavação, calçamento ao redor e grelha em FoFo tipo pesada, conforme projeto | E12: =OFFSET(Composições!$A$1,MATCH(COUNTIF($H$1:$H12,"Composições"),Composições!$K:$K,0)-1,COLUMN(Banco!E$6)-1) -> UN | F12: =OFFSET(Composições!$A$1,MATCH(COUNTIF($H$1:$H12,"Composições"),Composições!$K:$K,0)-1,COLUMN(Banco!F$6)-1) -> 1706.18 | G12: =OFFSET(Composições!$A$1,MATCH(COUNTIF($H$1:$H12,"Composições"),Composições!$K:$K,0)-1,COLUMN(Banco!G$6)-1) -> 1741.43 | H12: Composições | J12: =OFFSET(Composições!$A$1,MATCH(COUNTIF($H$1:$H12,"Composições"),Composições!$K:$K,0)-1,COLUMN(Banco!J$6)+4) -> 0 | K12: =OFFSET(Composições!$A$1,MATCH(COUNTIF($H$1:$H12,"Composições"),Composições!$K:$K,0)-1,COLUMN(Banco!K$6)+4) -> 0
A13: Composição IUD20007 | B13: =OFFSET(Composições!$A$1,MATCH(COUNTIF($H$1:$H13,"Composições"),Composições!$K:$K,0)-1,COLUMN(Banco!B$6)-1) -> Composição | C13: =OFFSET(Composições!$A$1,MATCH(COUNTIF($H$1:$H13,"Composições"),Composições!$K:$K,0)-1,COLUMN(Banco!C$6)-1) -> IUD20007 | D13: =IF(COUNTIF(OFFSET(Banco!$A$6,1,0,NCOMPOSICOES),$A13)>1,"CÓDIGO REPETIDO",OFFSET(Composições!$A$1,MATCH(COUNTIF($H$1:$H13,"Composições"),Composições!$K:$K,0)-1,COLUMN(Banco!D$6)-1)) -> BLDC - Boca-de-lobo dupla, em concreto simples fck 20 MPa, com guia chapeu, incluindo forma, escavação, calçamento ao redor e grelhas em FoFo tipo pesada, conforme projeto | E13: =OFFSET(Composições!$A$1,MATCH(COUNTIF($H$1:$H13,"Composições"),Composições!$K:$K,0)-1,COLUMN(Banco!E$6)-1) -> UN | F13: =OFFSET(Composições!$A$1,MATCH(COUNTIF($H$1:$H13,"Composições"),Composições!$K:$K,0)-1,COLUMN(Banco!F$6)-1) -> 3177.17 | G13: =OFFSET(Composições!$A$1,MATCH(COUNTIF($H$1:$H13,"Composições"),Composições!$K:$K,0)-1,COLUMN(Banco!G$6)-1) -> 3239.64 | H13: Composições | J13: =OFFSET(Composições!$A$1,MATCH(COUNTIF($H$1:$H13,"Composições"),Composições!$K:$K,0)-1,COLUMN(Banco!J$6)+4) -> 0 | K13: =OFFSET(Composições!$A$1,MATCH(COUNTIF($H$1:$H13,"Composições"),Composições!$K:$K,0)-1,COLUMN(Banco!K$6)+4) -> 0
A14: Composição IUD20008 | B14: =OFFSET(Composições!$A$1,MATCH(COUNTIF($H$1:$H14,"Composições"),Composições!$K:$K,0)-1,COLUMN(Banco!B$6)-1) -> Composição | C14: =OFFSET(Composições!$A$1,MATCH(COUNTIF($H$1:$H14,"Composições"),Composições!$K:$K,0)-1,COLUMN(Banco!C$6)-1) -> IUD20008 | D14: =IF(COUNTIF(OFFSET(Banco!$A$6,1,0,NCOMPOSICOES),$A14)>1,"CÓDIGO REPETIDO",OFFSET(Composições!$A$1,MATCH(COUNTIF($H$1:$H14,"Composições"),Composições!$K:$K,0)-1,COLUMN(Banco!D$6)-1)) -> BLTC - Boca-de-lobo tripla, em concreto simples fck 20 MPa, com guia chapeu, incluindo forma, escavação, calçamento ao redor e grelhas em f°f° tipo pesada, conforme projeto | E14: =OFFSET(Composições!$A$1,MATCH(COUNTIF($H$1:$H14,"Composições"),Composições!$K:$K,0)-1,COLUMN(Banco!E$6)-1) -> UN | F14: =OFFSET(Composições!$A$1,MATCH(COUNTIF($H$1:$H14,"Composições"),Composições!$K:$K,0)-1,COLUMN(Banco!F$6)-1) -> 4652.22 | G14: =OFFSET(Composições!$A$1,MATCH(COUNTIF($H$1:$H14,"Composições"),Composições!$K:$K,0)-1,COLUMN(Banco!G$6)-1) -> 4742.04 | H14: Composições | J14: =OFFSET(Composições!$A$1,MATCH(COUNTIF($H$1:$H14,"Composições"),Composições!$K:$K,0)-1,COLUMN(Banco!J$6)+4) -> 0 | K14: =OFFSET(Composições!$A$1,MATCH(COUNTIF($H$1:$H14,"Composições"),Composições!$K:$K,0)-1,COLUMN(Banco!K$6)+4) -> 0
A15: Composição IUD20087 | B15: =OFFSET(Composições!$A$1,MATCH(COUNTIF($H$1:$H15,"Composições"),Composições!$K:$K,0)-1,COLUMN(Banco!B$6)-1) -> Composição | C15: =OFFSET(Composições!$A$1,MATCH(COUNTIF($H$1:$H15,"Composições"),Composições!$K:$K,0)-1,COLUMN(Banco!C$6)-1) -> IUD20087 | D15: =IF(COUNTIF(OFFSET(Banco!$A$6,1,0,NCOMPOSICOES),$A15)>1,"CÓDIGO REPETIDO",OFFSET(Composições!$A$1,MATCH(COUNTIF($H$1:$H15,"Composições"),Composições!$K:$K,0)-1,COLUMN(Banco!D$6)-1)) -> PV-1 - Poço-de-visita 2,32x2,32m, em alv. de bloco estrutural, rev. int. com argam. 1:3, lastro de brita 12cm, berço 18cm em conc. fck = 15 MPa, laje de 12cm em conc. armado fck = 20 MPa, incl. forma, escav. manual e reat. apiloado. Excl. pescoço e tampão | E15: =OFFSET(Composições!$A$1,MATCH(COUNTIF($H$1:$H15,"Composições"),Composições!$K:$K,0)-1,COLUMN(Banco!E$6)-1) -> UN | F15: =OFFSET(Composições!$A$1,MATCH(COUNTIF($H$1:$H15,"Composições"),Composições!$K:$K,0)-1,COLUMN(Banco!F$6)-1) -> 5165.37 | G15: =OFFSET(Composições!$A$1,MATCH(COUNTIF($H$1:$H15,"Composições"),Composições!$K:$K,0)-1,COLUMN(Banco!G$6)-1) -> 5342.49 | H15: Composições | J15: =OFFSET(Composições!$A$1,MATCH(COUNTIF($H$1:$H15,"Composições"),Composições!$K:$K,0)-1,COLUMN(Banco!J$6)+4) -> 0 | K15: =OFFSET(Composições!$A$1,MATCH(COUNTIF($H$1:$H15,"Composições"),Composições!$K:$K,0)-1,COLUMN(Banco!K$6)+4) -> 0
A16: Composição IUD30165 | B16: =OFFSET(Composições!$A$1,MATCH(COUNTIF($H$1:$H16,"Composições"),Composições!$K:$K,0)-1,COLUMN(Banco!B$6)-1) -> Composição | C16: =OFFSET(Composições!$A$1,MATCH(COUNTIF($H$1:$H16,"Composições"),Composições!$K:$K,0)-1,COLUMN(Banco!C$6)-1) -> IUD30165 | D16: =IF(COUNTIF(OFFSET(Banco!$A$6,1,0,NCOMPOSICOES),$A16)>1,"CÓDIGO REPETIDO",OFFSET(Composições!$A$1,MATCH(COUNTIF($H$1:$H16,"Composições"),Composições!$K:$K,0)-1,COLUMN(Banco!D$6)-1)) -> Dissipador de energia hidráulica em concreto armado Tipo-02 vazão entre 2 e 3 m3/s | E16: =OFFSET(Composições!$A$1,MATCH(COUNTIF($H$1:$H16,"Composições"),Composições!$K:$K,0)-1,COLUMN(Banco!E$6)-1) -> UN | F16: =OFFSET(Composições!$A$1,MATCH(COUNTIF($H$1:$H16,"Composições"),Composições!$K:$K,0)-1,COLUMN(Banco!F$6)-1) -> 15727.46 | G16: =OFFSET(Composições!$A$1,MATCH(COUNTIF($H$1:$H16,"Composições"),Composições!$K:$K,0)-1,COLUMN(Banco!G$6)-1) -> 16356.81 | H16: Composições | J16: =OFFSET(Composições!$A$1,MATCH(COUNTIF($H$1:$H16,"Composições"),Composições!$K:$K,0)-1,COLUMN(Banco!J$6)+4) -> 0 | K16: =OFFSET(Composições!$A$1,MATCH(COUNTIF($H$1:$H16,"Composições"),Composições!$K:$K,0)-1,COLUMN(Banco!K$6)+4) -> 0
A17: Composição IUP30005 | B17: =OFFSET(Composições!$A$1,MATCH(COUNTIF($H$1:$H17,"Composições"),Composições!$K:$K,0)-1,COLUMN(Banco!B$6)-1) -> Composição | C17: =OFFSET(Composições!$A$1,MATCH(COUNTIF($H$1:$H17,"Composições"),Composições!$K:$K,0)-1,COLUMN(Banco!C$6)-1) -> IUP30005 | D17: =IF(COUNTIF(OFFSET(Banco!$A$6,1,0,NCOMPOSICOES),$A17)>1,"CÓDIGO REPETIDO",OFFSET(Composições!$A$1,MATCH(COUNTIF($H$1:$H17,"Composições"),Composições!$K:$K,0)-1,COLUMN(Banco!D$6)-1)) -> Demolição de pavimento asfáltico com emprego de retro-escavadeira e serra de disco, exclusive bota-fora do material | E17: =OFFSET(Composições!$A$1,MATCH(COUNTIF($H$1:$H17,"Composições"),Composições!$K:$K,0)-1,COLUMN(Banco!E$6)-1) -> M3 | F17: =OFFSET(Composições!$A$1,MATCH(COUNTIF($H$1:$H17,"Composições"),Composições!$K:$K,0)-1,COLUMN(Banco!F$6)-1) -> 17.79 | G17: =OFFSET(Composições!$A$1,MATCH(COUNTIF($H$1:$H17,"Composições"),Composições!$K:$K,0)-1,COLUMN(Banco!G$6)-1) -> 18.55 | H17: Composições | J17: =OFFSET(Composições!$A$1,MATCH(COUNTIF($H$1:$H17,"Composições"),Composições!$K:$K,0)-1,COLUMN(Banco!J$6)+4) -> 0 | K17: =OFFSET(Composições!$A$1,MATCH(COUNTIF($H$1:$H17,"Composições"),Composições!$K:$K,0)-1,COLUMN(Banco!K$6)+4) -> 0
A18: Composição IUP30094 | B18: =OFFSET(Composições!$A$1,MATCH(COUNTIF($H$1:$H18,"Composições"),Composições!$K:$K,0)-1,COLUMN(Banco!B$6)-1) -> Composição | C18: =OFFSET(Composições!$A$1,MATCH(COUNTIF($H$1:$H18,"Composições"),Composições!$K:$K,0)-1,COLUMN(Banco!C$6)-1) -> IUP30094 | D18: =IF(COUNTIF(OFFSET(Banco!$A$6,1,0,NCOMPOSICOES),$A18)>1,"CÓDIGO REPETIDO",OFFSET(Composições!$A$1,MATCH(COUNTIF($H$1:$H18,"Composições"),Composições!$K:$K,0)-1,COLUMN(Banco!D$6)-1)) -> EXECUÇÃO DE PINTURA DE LIGAÇÃO COM EMULSÃO ASFÁLTICA RR-1C | E18: =OFFSET(Composições!$A$1,MATCH(COUNTIF($H$1:$H18,"Composições"),Composições!$K:$K,0)-1,COLUMN(Banco!E$6)-1) -> M2 | F18: =OFFSET(Composições!$A$1,MATCH(COUNTIF($H$1:$H18,"Composições"),Composições!$K:$K,0)-1,COLUMN(Banco!F$6)-1) -> 3.14 | G18: =OFFSET(Composições!$A$1,MATCH(COUNTIF($H$1:$H18,"Composições"),Composições!$K:$K,0)-1,COLUMN(Banco!G$6)-1) -> 3.18 | H18: Composições | J18: =OFFSET(Composições!$A$1,MATCH(COUNTIF($H$1:$H18,"Composições"),Composições!$K:$K,0)-1,COLUMN(Banco!J$6)+4) -> 0 | K18: =OFFSET(Composições!$A$1,MATCH(COUNTIF($H$1:$H18,"Composições"),Composições!$K:$K,0)-1,COLUMN(Banco!K$6)+4) -> 0
A19: Composição IUP30075 | B19: =OFFSET(Composições!$A$1,MATCH(COUNTIF($H$1:$H19,"Composições"),Composições!$K:$K,0)-1,COLUMN(Banco!B$6)-1) -> Composição | C19: =OFFSET(Composições!$A$1,MATCH(COUNTIF($H$1:$H19,"Composições"),Composições!$K:$K,0)-1,COLUMN(Banco!C$6)-1) -> IUP30075 | D19: =IF(COUNTIF(OFFSET(Banco!$A$6,1,0,NCOMPOSICOES),$A19)>1,"CÓDIGO REPETIDO",OFFSET(Composições!$A$1,MATCH(COUNTIF($H$1:$H19,"Composições"),Composições!$K:$K,0)-1,COLUMN(Banco!D$6)-1)) -> Execução de imprimação com emulsão asfáltica a base d'água. | E19: =OFFSET(Composições!$A$1,MATCH(COUNTIF($H$1:$H19,"Composições"),Composições!$K:$K,0)-1,COLUMN(Banco!E$6)-1) -> M2 | F19: =OFFSET(Composições!$A$1,MATCH(COUNTIF($H$1:$H19,"Composições"),Composições!$K:$K,0)-1,COLUMN(Banco!F$6)-1) -> 6.58 | G19: =OFFSET(Composições!$A$1,MATCH(COUNTIF($H$1:$H19,"Composições"),Composições!$K:$K,0)-1,COLUMN(Banco!G$6)-1) -> 6.58 | H19: Composições | J19: =OFFSET(Composições!$A$1,MATCH(COUNTIF($H$1:$H19,"Composições"),Composições!$K:$K,0)-1,COLUMN(Banco!J$6)+4) -> 0 | K19: =OFFSET(Composições!$A$1,MATCH(COUNTIF($H$1:$H19,"Composições"),Composições!$K:$K,0)-1,COLUMN(Banco!K$6)+4) -> 0
A20: Composição IUP30023 | B20: =OFFSET(Composições!$A$1,MATCH(COUNTIF($H$1:$H20,"Composições"),Composições!$K:$K,0)-1,COLUMN(Banco!B$6)-1) -> Composição | C20: =OFFSET(Composições!$A$1,MATCH(COUNTIF($H$1:$H20,"Composições"),Composições!$K:$K,0)-1,COLUMN(Banco!C$6)-1) -> IUP30023 | D20: =IF(COUNTIF(OFFSET(Banco!$A$6,1,0,NCOMPOSICOES),$A20)>1,"CÓDIGO REPETIDO",OFFSET(Composições!$A$1,MATCH(COUNTIF($H$1:$H20,"Composições"),Composições!$K:$K,0)-1,COLUMN(Banco!D$6)-1)) -> Escavação mecânica de material 1­ª categoria, proveniente de corte do subleito (com motoniveladora 125 HP) | E20: =OFFSET(Composições!$A$1,MATCH(COUNTIF($H$1:$H20,"Composições"),Composições!$K:$K,0)-1,COLUMN(Banco!E$6)-1) -> M3 | F20: =OFFSET(Composições!$A$1,MATCH(COUNTIF($H$1:$H20,"Composições"),Composições!$K:$K,0)-1,COLUMN(Banco!F$6)-1) -> 2.37 | G20: =OFFSET(Composições!$A$1,MATCH(COUNTIF($H$1:$H20,"Composições"),Composições!$K:$K,0)-1,COLUMN(Banco!G$6)-1) -> 2.42 | H20: Composições | J20: =OFFSET(Composições!$A$1,MATCH(COUNTIF($H$1:$H20,"Composições"),Composições!$K:$K,0)-1,COLUMN(Banco!J$6)+4) -> 0 | K20: =OFFSET(Composições!$A$1,MATCH(COUNTIF($H$1:$H20,"Composições"),Composições!$K:$K,0)-1,COLUMN(Banco!K$6)+4) -> 0
A21: Composição IUP30069 | B21: =OFFSET(Composições!$A$1,MATCH(COUNTIF($H$1:$H21,"Composições"),Composições!$K:$K,0)-1,COLUMN(Banco!B$6)-1) -> Composição | C21: =OFFSET(Composições!$A$1,MATCH(COUNTIF($H$1:$H21,"Composições"),Composições!$K:$K,0)-1,COLUMN(Banco!C$6)-1) -> IUP30069 | D21: =IF(COUNTIF(OFFSET(Banco!$A$6,1,0,NCOMPOSICOES),$A21)>1,"CÓDIGO REPETIDO",OFFSET(Composições!$A$1,MATCH(COUNTIF($H$1:$H21,"Composições"),Composições!$K:$K,0)-1,COLUMN(Banco!D$6)-1)) -> Execução e compactação de base para pavimentação com pedra britada ou bica corrida | E21: =OFFSET(Composições!$A$1,MATCH(COUNTIF($H$1:$H21,"Composições"),Composições!$K:$K,0)-1,COLUMN(Banco!E$6)-1) -> M3 | F21: =OFFSET(Composições!$A$1,MATCH(COUNTIF($H$1:$H21,"Composições"),Composições!$K:$K,0)-1,COLUMN(Banco!F$6)-1) -> 95.26 | G21: =OFFSET(Composições!$A$1,MATCH(COUNTIF($H$1:$H21,"Composições"),Composições!$K:$K,0)-1,COLUMN(Banco!G$6)-1) -> 95.58 | H21: Composições | J21: =OFFSET(Composições!$A$1,MATCH(COUNTIF($H$1:$H21,"Composições"),Composições!$K:$K,0)-1,COLUMN(Banco!J$6)+4) -> 0 | K21: =OFFSET(Composições!$A$1,MATCH(COUNTIF($H$1:$H21,"Composições"),Composições!$K:$K,0)-1,COLUMN(Banco!K$6)+4) -> 0
A22: Composição IUP30001 | B22: =OFFSET(Composições!$A$1,MATCH(COUNTIF($H$1:$H22,"Composições"),Composições!$K:$K,0)-1,COLUMN(Banco!B$6)-1) -> Composição | C22: =OFFSET(Composições!$A$1,MATCH(COUNTIF($H$1:$H22,"Composições"),Composições!$K:$K,0)-1,COLUMN(Banco!C$6)-1) -> IUP30001 | D22: =IF(COUNTIF(OFFSET(Banco!$A$6,1,0,NCOMPOSICOES),$A22)>1,"CÓDIGO REPETIDO",OFFSET(Composições!$A$1,MATCH(COUNTIF($H$1:$H22,"Composições"),Composições!$K:$K,0)-1,COLUMN(Banco!D$6)-1)) -> Meio-fio com sarjeta, concreto fck=20 MPa, seção 615 cm², moldado no local, inclusive escavação e pintura a cal em uma demão | E22: =OFFSET(Composições!$A$1,MATCH(COUNTIF($H$1:$H22,"Composições"),Composições!$K:$K,0)-1,COLUMN(Banco!E$6)-1) -> M | F22: =OFFSET(Composições!$A$1,MATCH(COUNTIF($H$1:$H22,"Composições"),Composições!$K:$K,0)-1,COLUMN(Banco!F$6)-1) -> 49.07 | G22: =OFFSET(Composições!$A$1,MATCH(COUNTIF($H$1:$H22,"Composições"),Composições!$K:$K,0)-1,COLUMN(Banco!G$6)-1) -> 51.16 | H22: Composições | J22: =OFFSET(Composições!$A$1,MATCH(COUNTIF($H$1:$H22,"Composições"),Composições!$K:$K,0)-1,COLUMN(Banco!J$6)+4) -> 0 | K22: =OFFSET(Composições!$A$1,MATCH(COUNTIF($H$1:$H22,"Composições"),Composições!$K:$K,0)-1,COLUMN(Banco!K$6)+4) -> 0
A23: Composição IUP30003 | B23: =OFFSET(Composições!$A$1,MATCH(COUNTIF($H$1:$H23,"Composições"),Composições!$K:$K,0)-1,COLUMN(Banco!B$6)-1) -> Composição | C23: =OFFSET(Composições!$A$1,MATCH(COUNTIF($H$1:$H23,"Composições"),Composições!$K:$K,0)-1,COLUMN(Banco!C$6)-1) -> IUP30003 | D23: =IF(COUNTIF(OFFSET(Banco!$A$6,1,0,NCOMPOSICOES),$A23)>1,"CÓDIGO REPETIDO",OFFSET(Composições!$A$1,MATCH(COUNTIF($H$1:$H23,"Composições"),Composições!$K:$K,0)-1,COLUMN(Banco!D$6)-1)) -> Tento (acabamento de limpa-rodas), concreto fck = 15 MPa, seção 330 cm², moldado no local, inclusive escavação | E23: =OFFSET(Composições!$A$1,MATCH(COUNTIF($H$1:$H23,"Composições"),Composições!$K:$K,0)-1,COLUMN(Banco!E$6)-1) -> M | F23: =OFFSET(Composições!$A$1,MATCH(COUNTIF($H$1:$H23,"Composições"),Composições!$K:$K,0)-1,COLUMN(Banco!F$6)-1) -> 27.85 | G23: =OFFSET(Composições!$A$1,MATCH(COUNTIF($H$1:$H23,"Composições"),Composições!$K:$K,0)-1,COLUMN(Banco!G$6)-1) -> 29.04 | H23: Composições | J23: =OFFSET(Composições!$A$1,MATCH(COUNTIF($H$1:$H23,"Composições"),Composições!$K:$K,0)-1,COLUMN(Banco!J$6)+4) -> 0 | K23: =OFFSET(Composições!$A$1,MATCH(COUNTIF($H$1:$H23,"Composições"),Composições!$K:$K,0)-1,COLUMN(Banco!K$6)+4) -> 0
A24: Composição IUP30008 | B24: =OFFSET(Composições!$A$1,MATCH(COUNTIF($H$1:$H24,"Composições"),Composições!$K:$K,0)-1,COLUMN(Banco!B$6)-1) -> Composição | C24: =OFFSET(Composições!$A$1,MATCH(COUNTIF($H$1:$H24,"Composições"),Composições!$K:$K,0)-1,COLUMN(Banco!C$6)-1) -> IUP30008 | D24: =IF(COUNTIF(OFFSET(Banco!$A$6,1,0,NCOMPOSICOES),$A24)>1,"CÓDIGO REPETIDO",OFFSET(Composições!$A$1,MATCH(COUNTIF($H$1:$H24,"Composições"),Composições!$K:$K,0)-1,COLUMN(Banco!D$6)-1)) -> Piso tátil direcional e de alerta com ladrilho hidráulico de 20x20x2,0 cm, em concreto simples fck = 35MPa (NBR 9050 e com o Decreto 5296), incluindo fornecimento e assentamento com argamassa ou cimento colante sobre coxim preparado no piso rústico | E24: =OFFSET(Composições!$A$1,MATCH(COUNTIF($H$1:$H24,"Composições"),Composições!$K:$K,0)-1,COLUMN(Banco!E$6)-1) -> M | F24: =OFFSET(Composições!$A$1,MATCH(COUNTIF($H$1:$H24,"Composições"),Composições!$K:$K,0)-1,COLUMN(Banco!F$6)-1) -> 29.07 | G24: =OFFSET(Composições!$A$1,MATCH(COUNTIF($H$1:$H24,"Composições"),Composições!$K:$K,0)-1,COLUMN(Banco!G$6)-1) -> 29.73 | H24: Composições | J24: =OFFSET(Composições!$A$1,MATCH(COUNTIF($H$1:$H24,"Composições"),Composições!$K:$K,0)-1,COLUMN(Banco!J$6)+4) -> 0 | K24: =OFFSET(Composições!$A$1,MATCH(COUNTIF($H$1:$H24,"Composições"),Composições!$K:$K,0)-1,COLUMN(Banco!K$6)+4) -> 0
A25: Composição IUS20016 | B25: =OFFSET(Composições!$A$1,MATCH(COUNTIF($H$1:$H25,"Composições"),Composições!$K:$K,0)-1,COLUMN(Banco!B$6)-1) -> Composição | C25: =OFFSET(Composições!$A$1,MATCH(COUNTIF($H$1:$H25,"Composições"),Composições!$K:$K,0)-1,COLUMN(Banco!C$6)-1) -> IUS20016 | D25: =IF(COUNTIF(OFFSET(Banco!$A$6,1,0,NCOMPOSICOES),$A25)>1,"CÓDIGO REPETIDO",OFFSET(Composições!$A$1,MATCH(COUNTIF($H$1:$H25,"Composições"),Composições!$K:$K,0)-1,COLUMN(Banco!D$6)-1)) -> Placa de sinalização vertical totalmente refletiva, fornecimento e instalação. Exclusive poste (suporte) | E25: =OFFSET(Composições!$A$1,MATCH(COUNTIF($H$1:$H25,"Composições"),Composições!$K:$K,0)-1,COLUMN(Banco!E$6)-1) -> M2 | F25: =OFFSET(Composições!$A$1,MATCH(COUNTIF($H$1:$H25,"Composições"),Composições!$K:$K,0)-1,COLUMN(Banco!F$6)-1) -> 941.23 | G25: =OFFSET(Composições!$A$1,MATCH(COUNTIF($H$1:$H25,"Composições"),Composições!$K:$K,0)-1,COLUMN(Banco!G$6)-1) -> 942.44 | H25: Composições | J25: =OFFSET(Composições!$A$1,MATCH(COUNTIF($H$1:$H25,"Composições"),Composições!$K:$K,0)-1,COLUMN(Banco!J$6)+4) -> 0 | K25: =OFFSET(Composições!$A$1,MATCH(COUNTIF($H$1:$H25,"Composições"),Composições!$K:$K,0)-1,COLUMN(Banco!K$6)+4) -> 0
A26: Composição IUP30002 | B26: =OFFSET(Composições!$A$1,MATCH(COUNTIF($H$1:$H26,"Composições"),Composições!$K:$K,0)-1,COLUMN(Banco!B$6)-1) -> Composição | C26: =OFFSET(Composições!$A$1,MATCH(COUNTIF($H$1:$H26,"Composições"),Composições!$K:$K,0)-1,COLUMN(Banco!C$6)-1) -> IUP30002 | D26: =IF(COUNTIF(OFFSET(Banco!$A$6,1,0,NCOMPOSICOES),$A26)>1,"CÓDIGO REPETIDO",OFFSET(Composições!$A$1,MATCH(COUNTIF($H$1:$H26,"Composições"),Composições!$K:$K,0)-1,COLUMN(Banco!D$6)-1)) -> Recorte mecânico de pavimento asfáltico ou piso de concreto, com serra de disco diamantado para piso/asfalto | E26: =OFFSET(Composições!$A$1,MATCH(COUNTIF($H$1:$H26,"Composições"),Composições!$K:$K,0)-1,COLUMN(Banco!E$6)-1) -> M | F26: =OFFSET(Composições!$A$1,MATCH(COUNTIF($H$1:$H26,"Composições"),Composições!$K:$K,0)-1,COLUMN(Banco!F$6)-1) -> 3 | G26: =OFFSET(Composições!$A$1,MATCH(COUNTIF($H$1:$H26,"Composições"),Composições!$K:$K,0)-1,COLUMN(Banco!G$6)-1) -> 3.13 | H26: Composições | J26: =OFFSET(Composições!$A$1,MATCH(COUNTIF($H$1:$H26,"Composições"),Composições!$K:$K,0)-1,COLUMN(Banco!J$6)+4) -> 0 | K26: =OFFSET(Composições!$A$1,MATCH(COUNTIF($H$1:$H26,"Composições"),Composições!$K:$K,0)-1,COLUMN(Banco!K$6)+4) -> 0
A27: Composição IUD20075 | B27: =OFFSET(Composições!$A$1,MATCH(COUNTIF($H$1:$H27,"Composições"),Composições!$K:$K,0)-1,COLUMN(Banco!B$6)-1) -> Composição | C27: =OFFSET(Composições!$A$1,MATCH(COUNTIF($H$1:$H27,"Composições"),Composições!$K:$K,0)-1,COLUMN(Banco!C$6)-1) -> IUD20075 | D27: =IF(COUNTIF(OFFSET(Banco!$A$6,1,0,NCOMPOSICOES),$A27)>1,"CÓDIGO REPETIDO",OFFSET(Composições!$A$1,MATCH(COUNTIF($H$1:$H27,"Composições"),Composições!$K:$K,0)-1,COLUMN(Banco!D$6)-1)) -> Regularização manual e compactação mecânica de terreno | E27: =OFFSET(Composições!$A$1,MATCH(COUNTIF($H$1:$H27,"Composições"),Composições!$K:$K,0)-1,COLUMN(Banco!E$6)-1) -> M2 | F27: =OFFSET(Composições!$A$1,MATCH(COUNTIF($H$1:$H27,"Composições"),Composições!$K:$K,0)-1,COLUMN(Banco!F$6)-1) -> 6.68 | G27: =OFFSET(Composições!$A$1,MATCH(COUNTIF($H$1:$H27,"Composições"),Composições!$K:$K,0)-1,COLUMN(Banco!G$6)-1) -> 7.2 | H27: Composições | J27: =OFFSET(Composições!$A$1,MATCH(COUNTIF($H$1:$H27,"Composições"),Composições!$K:$K,0)-1,COLUMN(Banco!J$6)+4) -> 0 | K27: =OFFSET(Composições!$A$1,MATCH(COUNTIF($H$1:$H27,"Composições"),Composições!$K:$K,0)-1,COLUMN(Banco!K$6)+4) -> 0
A28: Composição IUC10004 | B28: =OFFSET(Composições!$A$1,MATCH(COUNTIF($H$1:$H28,"Composições"),Composições!$K:$K,0)-1,COLUMN(Banco!B$6)-1) -> Composição | C28: =OFFSET(Composições!$A$1,MATCH(COUNTIF($H$1:$H28,"Composições"),Composições!$K:$K,0)-1,COLUMN(Banco!C$6)-1) -> IUC10004 | D28: =IF(COUNTIF(OFFSET(Banco!$A$6,1,0,NCOMPOSICOES),$A28)>1,"CÓDIGO REPETIDO",OFFSET(Composições!$A$1,MATCH(COUNTIF($H$1:$H28,"Composições"),Composições!$K:$K,0)-1,COLUMN(Banco!D$6)-1)) -> Lastro de brita | E28: =OFFSET(Composições!$A$1,MATCH(COUNTIF($H$1:$H28,"Composições"),Composições!$K:$K,0)-1,COLUMN(Banco!E$6)-1) -> M3 | F28: =OFFSET(Composições!$A$1,MATCH(COUNTIF($H$1:$H28,"Composições"),Composições!$K:$K,0)-1,COLUMN(Banco!F$6)-1) -> 144.63 | G28: =OFFSET(Composições!$A$1,MATCH(COUNTIF($H$1:$H28,"Composições"),Composições!$K:$K,0)-1,COLUMN(Banco!G$6)-1) -> 147.81 | H28: Composições | J28: =OFFSET(Composições!$A$1,MATCH(COUNTIF($H$1:$H28,"Composições"),Composições!$K:$K,0)-1,COLUMN(Banco!J$6)+4) -> 0 | K28: =OFFSET(Composições!$A$1,MATCH(COUNTIF($H$1:$H28,"Composições"),Composições!$K:$K,0)-1,COLUMN(Banco!K$6)+4) -> 0
A29: Composição 011299000 | B29: =OFFSET(Composições!$A$1,MATCH(COUNTIF($H$1:$H29,"Composições"),Composições!$K:$K,0)-1,COLUMN(Banco!B$6)-1) -> Composição | C29: =OFFSET(Composições!$A$1,MATCH(COUNTIF($H$1:$H29,"Composições"),Composições!$K:$K,0)-1,COLUMN(Banco!C$6)-1) -> 011299000 | D29: =IF(COUNTIF(OFFSET(Banco!$A$6,1,0,NCOMPOSICOES),$A29)>1,"CÓDIGO REPETIDO",OFFSET(Composições!$A$1,MATCH(COUNTIF($H$1:$H29,"Composições"),Composições!$K:$K,0)-1,COLUMN(Banco!D$6)-1)) -> INSTALAÇÃO/LIGAÇÃO PROVISÓRIA DE ENERGIA ELÉTRICA DE BAIXA TENSÃO | E29: =OFFSET(Composições!$A$1,MATCH(COUNTIF($H$1:$H29,"Composições"),Composições!$K:$K,0)-1,COLUMN(Banco!E$6)-1) -> UN | F29: =OFFSET(Composições!$A$1,MATCH(COUNTIF($H$1:$H29,"Composições"),Composições!$K:$K,0)-1,COLUMN(Banco!F$6)-1) -> 782.21 | G29: =OFFSET(Composições!$A$1,MATCH(COUNTIF($H$1:$H29,"Composições"),Composições!$K:$K,0)-1,COLUMN(Banco!G$6)-1) -> 802.59 | H29: Composições | J29: =OFFSET(Composições!$A$1,MATCH(COUNTIF($H$1:$H29,"Composições"),Composições!$K:$K,0)-1,COLUMN(Banco!J$6)+4) -> 0 | K29: =OFFSET(Composições!$A$1,MATCH(COUNTIF($H$1:$H29,"Composições"),Composições!$K:$K,0)-1,COLUMN(Banco!K$6)+4) -> 0
A30: Composição 0 | B30: =OFFSET(Composições!$A$1,MATCH(COUNTIF($H$1:$H30,"Composições"),Composições!$K:$K,0)-1,COLUMN(Banco!B$6)-1) -> Composição | C30: =OFFSET(Composições!$A$1,MATCH(COUNTIF($H$1:$H30,"Composições"),Composições!$K:$K,0)-1,COLUMN(Banco!C$6)-1) -> 0 | D30: =IF(COUNTIF(OFFSET(Banco!$A$6,1,0,NCOMPOSICOES),$A30)>1,"CÓDIGO REPETIDO",OFFSET(Composições!$A$1,MATCH(COUNTIF($H$1:$H30,"Composições"),Composições!$K:$K,0)-1,COLUMN(Banco!D$6)-1)) -> 0 | E30: =OFFSET(Composições!$A$1,MATCH(COUNTIF($H$1:$H30,"Composições"),Composições!$K:$K,0)-1,COLUMN(Banco!E$6)-1) -> 0 | F30: =OFFSET(Composições!$A$1,MATCH(COUNTIF($H$1:$H30,"Composições"),Composições!$K:$K,0)-1,COLUMN(Banco!F$6)-1) -> 0 | G30: =OFFSET(Composições!$A$1,MATCH(COUNTIF($H$1:$H30,"Composições"),Composições!$K:$K,0)-1,COLUMN(Banco!G$6)-1) -> 0 | H30: Composições | J30: =OFFSET(Composições!$A$1,MATCH(COUNTIF($H$1:$H30,"Composições"),Composições!$K:$K,0)-1,COLUMN(Banco!J$6)+4) -> 0 | K30: =OFFSET(Composições!$A$1,MATCH(COUNTIF($H$1:$H30,"Composições"),Composições!$K:$K,0)-1,COLUMN(Banco!K$6)+4) -> 0
A31: =CONCATENATE($B31," ",$C31) -> Cotação 4813 | B31: =OFFSET(Cotações!$A$1,MATCH(COUNTIF($H$1:$H31,"Cotações"),Cotações!$J:$J,0)-1,COLUMN(Banco!B$6)-1) -> Cotação | C31: =OFFSET(Cotações!$A$1,MATCH(COUNTIF($H$1:$H31,"Cotações"),Cotações!$J:$J,0)-1,COLUMN(Banco!C$6)-1) -> 4813 | D31: =IF(COUNTIF(OFFSET(Banco!$A$6,1+NCOMPOSICOES,0,NCOTACOES),$A31)>1,"CÓDIGO REPETIDO",OFFSET(Cotações!$A$1,MATCH(COUNTIF($H$1:$H31,"Cotações"),Cotações!$J:$J,0)-1,COLUMN(Banco!D$6)-1)) -> PLACA DE OBRA (PARA CONSTRUCAO CIVIL) EM CHAPA GALVANIZADA *N. 22*, ADESIVADA, DE *2,4 X 1,2* M (SEM POSTES PARA FIXACAO) | E31: =OFFSET(Cotações!$A$1,MATCH(COUNTIF($H$1:$H31,"Cotações"),Cotações!$J:$J,0)-1,COLUMN(Banco!E$6)-1) -> M2 | F31: =OFFSET(Cotações!$A$1,MATCH(COUNTIF($H$1:$H31,"Cotações"),Cotações!$J:$J,0)-1,COLUMN(Banco!F$6)-1) -> 400 | G31: =OFFSET(Cotações!$A$1,MATCH(COUNTIF($H$1:$H31,"Cotações"),Cotações!$J:$J,0)-1,COLUMN(Banco!F$6)-1) -> 400 | H31: Cotações
A32: =CONCATENATE($B32," ",$C32) -> Cotação IUD003 | B32: =OFFSET(Cotações!$A$1,MATCH(COUNTIF($H$1:$H32,"Cotações"),Cotações!$J:$J,0)-1,COLUMN(Banco!B$6)-1) -> Cotação | C32: =OFFSET(Cotações!$A$1,MATCH(COUNTIF($H$1:$H32,"Cotações"),Cotações!$J:$J,0)-1,COLUMN(Banco!C$6)-1) -> IUD003 | D32: =IF(COUNTIF(OFFSET(Banco!$A$6,1+NCOMPOSICOES,0,NCOTACOES),$A32)>1,"CÓDIGO REPETIDO",OFFSET(Cotações!$A$1,MATCH(COUNTIF($H$1:$H32,"Cotações"),Cotações!$J:$J,0)-1,COLUMN(Banco!D$6)-1)) -> Grelha em FoFo, articulada, 1,0m x 0,45m -12 ton, fornecimento | E32: =OFFSET(Cotações!$A$1,MATCH(COUNTIF($H$1:$H32,"Cotações"),Cotações!$J:$J,0)-1,COLUMN(Banco!E$6)-1) -> UN | F32: =OFFSET(Cotações!$A$1,MATCH(COUNTIF($H$1:$H32,"Cotações"),Cotações!$J:$J,0)-1,COLUMN(Banco!F$6)-1) -> 752.6 | G32: =OFFSET(Cotações!$A$1,MATCH(COUNTIF($H$1:$H32,"Cotações"),Cotações!$J:$J,0)-1,COLUMN(Banco!F$6)-1) -> 752.6 | H32: Cotações
A33: Cotação IUP0009 | B33: =OFFSET(Cotações!$A$1,MATCH(COUNTIF($H$1:$H33,"Cotações"),Cotações!$J:$J,0)-1,COLUMN(Banco!B$6)-1) -> Cotação | C33: =OFFSET(Cotações!$A$1,MATCH(COUNTIF($H$1:$H33,"Cotações"),Cotações!$J:$J,0)-1,COLUMN(Banco!C$6)-1) -> IUP0009 | D33: =IF(COUNTIF(OFFSET(Banco!$A$6,1+NCOMPOSICOES,0,NCOTACOES),$A33)>1,"CÓDIGO REPETIDO",OFFSET(Cotações!$A$1,MATCH(COUNTIF($H$1:$H33,"Cotações"),Cotações!$J:$J,0)-1,COLUMN(Banco!D$6)-1)) -> Emulsão asfáltica catiônica RR-1C para uso em pavimentação asfáltica. | E33: =OFFSET(Cotações!$A$1,MATCH(COUNTIF($H$1:$H33,"Cotações"),Cotações!$J:$J,0)-1,COLUMN(Banco!E$6)-1) -> T | F33: =OFFSET(Cotações!$A$1,MATCH(COUNTIF($H$1:$H33,"Cotações"),Cotações!$J:$J,0)-1,COLUMN(Banco!F$6)-1) -> 4875 | G33: =OFFSET(Cotações!$A$1,MATCH(COUNTIF($H$1:$H33,"Cotações"),Cotações!$J:$J,0)-1,COLUMN(Banco!F$6)-1) -> 4875 | H33: Cotações
A34: Cotação IUP0007 | B34: =OFFSET(Cotações!$A$1,MATCH(COUNTIF($H$1:$H34,"Cotações"),Cotações!$J:$J,0)-1,COLUMN(Banco!B$6)-1) -> Cotação | C34: =OFFSET(Cotações!$A$1,MATCH(COUNTIF($H$1:$H34,"Cotações"),Cotações!$J:$J,0)-1,COLUMN(Banco!C$6)-1) -> IUP0007 | D34: =IF(COUNTIF(OFFSET(Banco!$A$6,1+NCOMPOSICOES,0,NCOTACOES),$A34)>1,"CÓDIGO REPETIDO",OFFSET(Cotações!$A$1,MATCH(COUNTIF($H$1:$H34,"Cotações"),Cotações!$J:$J,0)-1,COLUMN(Banco!D$6)-1)) -> Emulsão asfáltica a base d'água para imprimação. | E34: =OFFSET(Cotações!$A$1,MATCH(COUNTIF($H$1:$H34,"Cotações"),Cotações!$J:$J,0)-1,COLUMN(Banco!E$6)-1) -> T | F34: =OFFSET(Cotações!$A$1,MATCH(COUNTIF($H$1:$H34,"Cotações"),Cotações!$J:$J,0)-1,COLUMN(Banco!F$6)-1) -> 4915 | G34: =OFFSET(Cotações!$A$1,MATCH(COUNTIF($H$1:$H34,"Cotações"),Cotações!$J:$J,0)-1,COLUMN(Banco!F$6)-1) -> 4915 | H34: Cotações
A35: Cotação 4748 | B35: =OFFSET(Cotações!$A$1,MATCH(COUNTIF($H$1:$H35,"Cotações"),Cotações!$J:$J,0)-1,COLUMN(Banco!B$6)-1) -> Cotação | C35: =OFFSET(Cotações!$A$1,MATCH(COUNTIF($H$1:$H35,"Cotações"),Cotações!$J:$J,0)-1,COLUMN(Banco!C$6)-1) -> 4748 | D35: =IF(COUNTIF(OFFSET(Banco!$A$6,1+NCOMPOSICOES,0,NCOTACOES),$A35)>1,"CÓDIGO REPETIDO",OFFSET(Cotações!$A$1,MATCH(COUNTIF($H$1:$H35,"Cotações"),Cotações!$J:$J,0)-1,COLUMN(Banco!D$6)-1)) -> Pedra britada ou bica corrida, não classificada (posto pedreira/fornecedor, sem frete) | E35: =OFFSET(Cotações!$A$1,MATCH(COUNTIF($H$1:$H35,"Cotações"),Cotações!$J:$J,0)-1,COLUMN(Banco!E$6)-1) -> M3 | F35: =OFFSET(Cotações!$A$1,MATCH(COUNTIF($H$1:$H35,"Cotações"),Cotações!$J:$J,0)-1,COLUMN(Banco!F$6)-1) -> 62.01 | G35: =OFFSET(Cotações!$A$1,MATCH(COUNTIF($H$1:$H35,"Cotações"),Cotações!$J:$J,0)-1,COLUMN(Banco!F$6)-1) -> 62.01 | H35: Cotações
A36: Cotação 34723 | B36: =OFFSET(Cotações!$A$1,MATCH(COUNTIF($H$1:$H36,"Cotações"),Cotações!$J:$J,0)-1,COLUMN(Banco!B$6)-1) -> Cotação | C36: =OFFSET(Cotações!$A$1,MATCH(COUNTIF($H$1:$H36,"Cotações"),Cotações!$J:$J,0)-1,COLUMN(Banco!C$6)-1) -> 34723 | D36: =IF(COUNTIF(OFFSET(Banco!$A$6,1+NCOMPOSICOES,0,NCOTACOES),$A36)>1,"CÓDIGO REPETIDO",OFFSET(Cotações!$A$1,MATCH(COUNTIF($H$1:$H36,"Cotações"),Cotações!$J:$J,0)-1,COLUMN(Banco!D$6)-1)) -> PLACA DE SINALIZACAO EM CHAPA DE ACO NUM 16 COM PINTURA REFLETIVA | E36: =OFFSET(Cotações!$A$1,MATCH(COUNTIF($H$1:$H36,"Cotações"),Cotações!$J:$J,0)-1,COLUMN(Banco!E$6)-1) -> M2 | F36: =OFFSET(Cotações!$A$1,MATCH(COUNTIF($H$1:$H36,"Cotações"),Cotações!$J:$J,0)-1,COLUMN(Banco!F$6)-1) -> 924 | G36: =OFFSET(Cotações!$A$1,MATCH(COUNTIF($H$1:$H36,"Cotações"),Cotações!$J:$J,0)-1,COLUMN(Banco!F$6)-1) -> 924 | H36: Cotações
A37: Cotação IUS87012 | B37: =OFFSET(Cotações!$A$1,MATCH(COUNTIF($H$1:$H37,"Cotações"),Cotações!$J:$J,0)-1,COLUMN(Banco!B$6)-1) -> Cotação | C37: =OFFSET(Cotações!$A$1,MATCH(COUNTIF($H$1:$H37,"Cotações"),Cotações!$J:$J,0)-1,COLUMN(Banco!C$6)-1) -> IUS87012 | D37: =IF(COUNTIF(OFFSET(Banco!$A$6,1+NCOMPOSICOES,0,NCOTACOES),$A37)>1,"CÓDIGO REPETIDO",OFFSET(Cotações!$A$1,MATCH(COUNTIF($H$1:$H37,"Cotações"),Cotações!$J:$J,0)-1,COLUMN(Banco!D$6)-1)) -> Fornecimento e implantação de coluna simples dn de 2”, espessura da parede 3,0mm, altura total de 3,50m, em aço galvanizado por imersão à quente. Inclusive instalação da placa de sinalização e elementos de fixação, exclusive fornecimento da placa | E37: =OFFSET(Cotações!$A$1,MATCH(COUNTIF($H$1:$H37,"Cotações"),Cotações!$J:$J,0)-1,COLUMN(Banco!E$6)-1) -> UN | F37: =OFFSET(Cotações!$A$1,MATCH(COUNTIF($H$1:$H37,"Cotações"),Cotações!$J:$J,0)-1,COLUMN(Banco!F$6)-1) -> 343.45 | G37: =OFFSET(Cotações!$A$1,MATCH(COUNTIF($H$1:$H37,"Cotações"),Cotações!$J:$J,0)-1,COLUMN(Banco!F$6)-1) -> 343.45 | H37: Cotações
A38: Cotação 6243 | B38: =OFFSET(Cotações!$A$1,MATCH(COUNTIF($H$1:$H38,"Cotações"),Cotações!$J:$J,0)-1,COLUMN(Banco!B$6)-1) -> Cotação | C38: =OFFSET(Cotações!$A$1,MATCH(COUNTIF($H$1:$H38,"Cotações"),Cotações!$J:$J,0)-1,COLUMN(Banco!C$6)-1) -> 6243 | D38: =IF(COUNTIF(OFFSET(Banco!$A$6,1+NCOMPOSICOES,0,NCOTACOES),$A38)>1,"CÓDIGO REPETIDO",OFFSET(Cotações!$A$1,MATCH(COUNTIF($H$1:$H38,"Cotações"),Cotações!$J:$J,0)-1,COLUMN(Banco!D$6)-1)) -> TAMPAO FOFO SIMPLES COM BASE / REQUADRO, CLASSE B125 CARGA MAX. 12,5 T, REDONDO, TAMPA 600 MM (COM INSCRICAO EM RELEVO DO TIPO DE REDE) | E38: =OFFSET(Cotações!$A$1,MATCH(COUNTIF($H$1:$H38,"Cotações"),Cotações!$J:$J,0)-1,COLUMN(Banco!E$6)-1) -> UN | F38: =OFFSET(Cotações!$A$1,MATCH(COUNTIF($H$1:$H38,"Cotações"),Cotações!$J:$J,0)-1,COLUMN(Banco!F$6)-1) -> 510 | G38: =OFFSET(Cotações!$A$1,MATCH(COUNTIF($H$1:$H38,"Cotações"),Cotações!$J:$J,0)-1,COLUMN(Banco!F$6)-1) -> 510 | H38: Cotações
A39: Cotação 10775 | B39: =OFFSET(Cotações!$A$1,MATCH(COUNTIF($H$1:$H39,"Cotações"),Cotações!$J:$J,0)-1,COLUMN(Banco!B$6)-1) -> Cotação | C39: =OFFSET(Cotações!$A$1,MATCH(COUNTIF($H$1:$H39,"Cotações"),Cotações!$J:$J,0)-1,COLUMN(Banco!C$6)-1) -> 10775 | D39: =IF(COUNTIF(OFFSET(Banco!$A$6,1+NCOMPOSICOES,0,NCOTACOES),$A39)>1,"CÓDIGO REPETIDO",OFFSET(Cotações!$A$1,MATCH(COUNTIF($H$1:$H39,"Cotações"),Cotações!$J:$J,0)-1,COLUMN(Banco!D$6)-1)) -> LOCACAO DE CONTAINER 2,30 X 6,00 M, ALT. 2,50 M, COM 1 SANITARIO, PARA ESCRITORIO, COMPLETO, SEM DIVISORIAS INTERNAS (NAO INCLUI MOBILIZACAO/DESMOBILIZACAO) | E39: =OFFSET(Cotações!$A$1,MATCH(COUNTIF($H$1:$H39,"Cotações"),Cotações!$J:$J,0)-1,COLUMN(Banco!E$6)-1) -> MÊS | F39: =OFFSET(Cotações!$A$1,MATCH(COUNTIF($H$1:$H39,"Cotações"),Cotações!$J:$J,0)-1,COLUMN(Banco!F$6)-1) -> 903.5 | G39: =OFFSET(Cotações!$A$1,MATCH(COUNTIF($H$1:$H39,"Cotações"),Cotações!$J:$J,0)-1,COLUMN(Banco!F$6)-1) -> 903.5 | H39: Cotações
A40: Cotação 7701 | B40: =OFFSET(Cotações!$A$1,MATCH(COUNTIF($H$1:$H40,"Cotações"),Cotações!$J:$J,0)-1,COLUMN(Banco!B$6)-1) -> Cotação | C40: =OFFSET(Cotações!$A$1,MATCH(COUNTIF($H$1:$H40,"Cotações"),Cotações!$J:$J,0)-1,COLUMN(Banco!C$6)-1) -> 7701 | D40: =IF(COUNTIF(OFFSET(Banco!$A$6,1+NCOMPOSICOES,0,NCOTACOES),$A40)>1,"CÓDIGO REPETIDO",OFFSET(Cotações!$A$1,MATCH(COUNTIF($H$1:$H40,"Cotações"),Cotações!$J:$J,0)-1,COLUMN(Banco!D$6)-1)) -> TUBO ACO GALVANIZADO COM COSTURA, CLASSE MEDIA, DN 2.1/2", E = *3,65* MM, PESO *6,51* KG/M (NBR 5580) | E40: =OFFSET(Cotações!$A$1,MATCH(COUNTIF($H$1:$H40,"Cotações"),Cotações!$J:$J,0)-1,COLUMN(Banco!E$6)-1) -> M | F40: =OFFSET(Cotações!$A$1,MATCH(COUNTIF($H$1:$H40,"Cotações"),Cotações!$J:$J,0)-1,COLUMN(Banco!F$6)-1) -> 23.81 | G40: =OFFSET(Cotações!$A$1,MATCH(COUNTIF($H$1:$H40,"Cotações"),Cotações!$J:$J,0)-1,COLUMN(Banco!F$6)-1) -> 23.81 | H40: Cotações
A41: Cotação 1062 | B41: =OFFSET(Cotações!$A$1,MATCH(COUNTIF($H$1:$H41,"Cotações"),Cotações!$J:$J,0)-1,COLUMN(Banco!B$6)-1) -> Cotação | C41: =OFFSET(Cotações!$A$1,MATCH(COUNTIF($H$1:$H41,"Cotações"),Cotações!$J:$J,0)-1,COLUMN(Banco!C$6)-1) -> 1062 | D41: =IF(COUNTIF(OFFSET(Banco!$A$6,1+NCOMPOSICOES,0,NCOTACOES),$A41)>1,"CÓDIGO REPETIDO",OFFSET(Cotações!$A$1,MATCH(COUNTIF($H$1:$H41,"Cotações"),Cotações!$J:$J,0)-1,COLUMN(Banco!D$6)-1)) -> CAIXA INTERNA/EXTERNA DE MEDICAO PARA 1 MEDIDOR TRIFASICO, COM VISOR, EM CHAPA DE ACO 18 USG (PADRAO DA CONCESSIONARIA LOCAL) | E41: =OFFSET(Cotações!$A$1,MATCH(COUNTIF($H$1:$H41,"Cotações"),Cotações!$J:$J,0)-1,COLUMN(Banco!E$6)-1) -> UN | F41: =OFFSET(Cotações!$A$1,MATCH(COUNTIF($H$1:$H41,"Cotações"),Cotações!$J:$J,0)-1,COLUMN(Banco!F$6)-1) -> 235 | G41: =OFFSET(Cotações!$A$1,MATCH(COUNTIF($H$1:$H41,"Cotações"),Cotações!$J:$J,0)-1,COLUMN(Banco!F$6)-1) -> 235 | H41: Cotações
A42: =CONCATENATE($B42," ",$C42) -> SINAPI-I 45333 | B42: SINAPI-I | C42: 45333 | D42: ABERTURA PARA ENCAIXE DE CUBA OU LAVATORIO EM BANCADA DE MARMORE/ GRANITO OU OUTRO TIPO DE PEDRA NATURAL | E42: UN | F42: 213.23 | G42: 213.23 | I42: CR
A43: SINAPI-I 11270 | B43: SINAPI-I | C43: 11270 | D43: ABRACADEIRA DE LATAO PARA FIXACAO DE CABO PARA-RAIO, DIMENSOES 32 X 24 X 24 MM | E43: UN | F43: 2.91 | G43: 2.91 | I43: CR
A44: SINAPI-I 412 | B44: SINAPI-I | C44: 412 | D44: ABRACADEIRA DE NYLON PARA AMARRACAO DE CABOS, COMPRIMENTO DE *230* X *7,6* MM | E44: UN | F44: 1.59 | G44: 1.59 | I44: CR
A45: SINAPI-I 414 | B45: SINAPI-I | C45: 414 | D45: ABRACADEIRA DE NYLON PARA AMARRACAO DE CABOS, COMPRIMENTO DE 100 X 2,5 MM | E45: UN | F45: 0.1 | G45: 0.1 | I45: CR
A46: SINAPI-I 410 | B46: SINAPI-I | C46: 410 | D46: ABRACADEIRA DE NYLON PARA AMARRACAO DE CABOS, COMPRIMENTO DE 150 X *3,6* MM | E46: UN | F46: 0.24 | G46: 0.24 | I46: CR
A47: SINAPI-I 411 | B47: SINAPI-I | C47: 411 | D47: ABRACADEIRA DE NYLON PARA AMARRACAO DE CABOS, COMPRIMENTO DE 200 X *4,6* MM | E47: UN | F47: 0.31 | G47: 0.31 | I47: C
A48: SINAPI-I 408 | B48: SINAPI-I | C48: 408 | D48: ABRACADEIRA DE NYLON PARA AMARRACAO DE CABOS, COMPRIMENTO DE 390 X *4,6* MM | E48: UN | F48: 1.53 | G48: 1.53 | I48: CR
A49: SINAPI-I 39131 | B49: SINAPI-I | C49: 39131 | D49: ABRACADEIRA EM ACO PARA AMARRACAO DE ELETRODUTOS, TIPO D, COM 1 1/2" E CUNHA DE FIXACAO | E49: UN | F49: 5.73 | G49: 5.73 | I49: CR
A50: SINAPI-I 394 | B50: SINAPI-I | C50: 394 | D50: ABRACADEIRA EM ACO PARA AMARRACAO DE ELETRODUTOS, TIPO D, COM 1 1/2" E PARAFUSO DE FIXACAO | E50: UN | F50: 5.8 | G50: 5.8 | I50: CR
A51: SINAPI-I 39130 | B51: SINAPI-I | C51: 39130 | D51: ABRACADEIRA EM ACO PARA AMARRACAO DE ELETRODUTOS, TIPO D, COM 1 1/4" E CUNHA DE FIXACAO | E51: UN | F51: 5.23 | G51: 5.23 | I51: CR
A52: SINAPI-I 395 | B52: SINAPI-I | C52: 395 | D52: ABRACADEIRA EM ACO PARA AMARRACAO DE ELETRODUTOS, TIPO D, COM 1 1/4" E PARAFUSO DE FIXACAO | E52: UN | F52: 5.59 | G52: 5.59 | I52: CR
A53: SINAPI-I 39129 | B53: SINAPI-I | C53: 39129 | D53: ABRACADEIRA EM ACO PARA AMARRACAO DE ELETRODUTOS, TIPO D, COM 1" E CUNHA DE FIXACAO | E53: UN | F53: 3.22 | G53: 3.22 | I53: CR
A54: SINAPI-I 393 | B54: SINAPI-I | C54: 393 | D54: ABRACADEIRA EM ACO PARA AMARRACAO DE ELETRODUTOS, TIPO D, COM 1" E PARAFUSO DE FIXACAO | E54: UN | F54: 3.37 | G54: 3.37 | I54: C
A55: SINAPI-I 39127 | B55: SINAPI-I | C55: 39127 | D55: ABRACADEIRA EM ACO PARA AMARRACAO DE ELETRODUTOS, TIPO D, COM 1/2" E CUNHA DE FIXACAO | E55: UN | F55: 2.76 | G55: 2.76 | I55: CR
A56: SINAPI-I 392 | B56: SINAPI-I | C56: 392 | D56: ABRACADEIRA EM ACO PARA AMARRACAO DE ELETRODUTOS, TIPO D, COM 1/2" E PARAFUSO DE FIXACAO | E56: UN | F56: 2.83 | G56: 2.83 | I56: CR
A57: SINAPI-I 39133 | B57: SINAPI-I | C57: 39133 | D57: ABRACADEIRA EM ACO PARA AMARRACAO DE ELETRODUTOS, TIPO D, COM 2 1/2" E CUNHA DE FIXACAO | E57: UN | F57: 7.52 | G57: 7.52 | I57: CR
A58: SINAPI-I 397 | B58: SINAPI-I | C58: 397 | D58: ABRACADEIRA EM ACO PARA AMARRACAO DE ELETRODUTOS, TIPO D, COM 2 1/2" E PARAFUSO DE FIXACAO | E58: UN | F58: 8.31 | G58: 8.31 | I58: CR
A59: SINAPI-I 39132 | B59: SINAPI-I | C59: 39132 | D59: ABRACADEIRA EM ACO PARA AMARRACAO DE ELETRODUTOS, TIPO D, COM 2" E CUNHA DE FIXACAO | E59: UN | F59: 6.02 | G59: 6.02 | I59: CR
A60: SINAPI-I 396 | B60: SINAPI-I | C60: 396 | D60: ABRACADEIRA EM ACO PARA AMARRACAO DE ELETRODUTOS, TIPO D, COM 2" E PARAFUSO DE FIXACAO | E60: UN | F60: 6.45 | G60: 6.45 | I60: CR
A61: SINAPI-I 39135 | B61: SINAPI-I | C61: 39135 | D61: ABRACADEIRA EM ACO PARA AMARRACAO DE ELETRODUTOS, TIPO D, COM 3 1/2" E CUNHA DE FIXACAO | E61: UN | F61: 12.04 | G61: 12.04 | I61: CR
A62: SINAPI-I 39134 | B62: SINAPI-I | C62: 39134 | D62: ABRACADEIRA EM ACO PARA AMARRACAO DE ELETRODUTOS, TIPO D, COM 3" E CUNHA DE FIXACAO | E62: UN | F62: 10.03 | G62: 10.03 | I62: CR
A63: SINAPI-I 398 | B63: SINAPI-I | C63: 398 | D63: ABRACADEIRA EM ACO PARA AMARRACAO DE ELETRODUTOS, TIPO D, COM 3" E PARAFUSO DE FIXACAO | E63: UN | F63: 9.24 | G63: 9.24 | I63: CR
A64: SINAPI-I 39128 | B64: SINAPI-I | C64: 39128 | D64: ABRACADEIRA EM ACO PARA AMARRACAO DE ELETRODUTOS, TIPO D, COM 3/4" E CUNHA DE FIXACAO | E64: UN | F64: 3.01 | G64: 3.01 | I64: CR
A65: SINAPI-I 400 | B65: SINAPI-I | C65: 400 | D65: ABRACADEIRA EM ACO PARA AMARRACAO DE ELETRODUTOS, TIPO D, COM 3/4" E PARAFUSO DE FIXACAO | E65: UN | F65: 2.93 | G65: 2.93 | I65: CR
A66: SINAPI-I 39125 | B66: SINAPI-I | C66: 39125 | D66: ABRACADEIRA EM ACO PARA AMARRACAO DE ELETRODUTOS, TIPO D, COM 3/8" E PARAFUSO DE FIXACAO | E66: UN | F66: 3.01 | G66: 3.01 | I66: CR
A67: SINAPI-I 39126 | B67: SINAPI-I | C67: 39126 | D67: ABRACADEIRA EM ACO PARA AMARRACAO DE ELETRODUTOS, TIPO D, COM 4" E CUNHA DE FIXACAO | E67: UN | F67: 13.55 | G67: 13.55 | I67: CR
A68: SINAPI-I 399 | B68: SINAPI-I | C68: 399 | D68: ABRACADEIRA EM ACO PARA AMARRACAO DE ELETRODUTOS, TIPO D, COM 4" E PARAFUSO DE FIXACAO | E68: UN | F68: 11.93 | G68: 11.93 | I68: CR
A69: SINAPI-I 39158 | B69: SINAPI-I | C69: 39158 | D69: ABRACADEIRA EM ACO PARA AMARRACAO DE ELETRODUTOS, TIPO ECONOMICA (GOTA), COM 8" | E69: UN | F69: 32.05 | G69: 32.05 | I69: CR
A70: SINAPI-I 39141 | B70: SINAPI-I | C70: 39141 | D70: ABRACADEIRA EM ACO PARA AMARRACAO DE ELETRODUTOS, TIPO U SIMPLES, COM 1 1/2" | E70: UN | F70: 2.33 | G70: 2.33 | I70: CR
A71: SINAPI-I 39140 | B71: SINAPI-I | C71: 39140 | D71: ABRACADEIRA EM ACO PARA AMARRACAO DE ELETRODUTOS, TIPO U SIMPLES, COM 1 1/4" | E71: UN | F71: 2.11 | G71: 2.11 | I71: CR
A72: SINAPI-I 39139 | B72: SINAPI-I | C72: 39139 | D72: ABRACADEIRA EM ACO PARA AMARRACAO DE ELETRODUTOS, TIPO U SIMPLES, COM 1" | E72: UN | F72: 1.75 | G72: 1.75 | I72: CR
A73: SINAPI-I 39137 | B73: SINAPI-I | C73: 39137 | D73: ABRACADEIRA EM ACO PARA AMARRACAO DE ELETRODUTOS, TIPO U SIMPLES, COM 1/2" | E73: UN | F73: 1.21 | G73: 1.21 | I73: CR
A74: SINAPI-I 39143 | B74: SINAPI-I | C74: 39143 | D74: ABRACADEIRA EM ACO PARA AMARRACAO DE ELETRODUTOS, TIPO U SIMPLES, COM 2 1/2" | E74: UN | F74: 4.8 | G74: 4.8 | I74: CR
A75: SINAPI-I 39142 | B75: SINAPI-I | C75: 39142 | D75: ABRACADEIRA EM ACO PARA AMARRACAO DE ELETRODUTOS, TIPO U SIMPLES, COM 2" | E75: UN | F75: 3.44 | G75: 3.44 | I75: CR
A76: SINAPI-I 39144 | B76: SINAPI-I | C76: 39144 | D76: ABRACADEIRA EM ACO PARA AMARRACAO DE ELETRODUTOS, TIPO U SIMPLES, COM 3" | E76: UN | F76: 5.59 | G76: 5.59 | I76: CR
A77: SINAPI-I 39138 | B77: SINAPI-I | C77: 39138 | D77: ABRACADEIRA EM ACO PARA AMARRACAO DE ELETRODUTOS, TIPO U SIMPLES, COM 3/4" | E77: UN | F77: 1.29 | G77: 1.29 | I77: CR
A78: SINAPI-I 39136 | B78: SINAPI-I | C78: 39136 | D78: ABRACADEIRA EM ACO PARA AMARRACAO DE ELETRODUTOS, TIPO U SIMPLES, COM 3/8" | E78: UN | F78: 0.86 | G78: 0.86 | I78: CR
A79: SINAPI-I 39145 | B79: SINAPI-I | C79: 39145 | D79: ABRACADEIRA EM ACO PARA AMARRACAO DE ELETRODUTOS, TIPO U SIMPLES, COM 4" | E79: UN | F79: 9.21 | G79: 9.21 | I79: CR
A80: SINAPI-I 12615 | B80: SINAPI-I | C80: 12615 | D80: ABRACADEIRA PVC, PARA CALHA PLUVIAL, DIAMETRO ENTRE *80 E 100* MM, PARA DRENAGEM PLUVIAL PREDIAL | E80: UN | F80: 13.91 | G80: 13.91 | I80: CR
A81: SINAPI-I 11927 | B81: SINAPI-I | C81: 11927 | D81: ABRACADEIRA, GALVANIZADA/ZINCADA, ROSCA SEM FIM, PARAFUSO INOX, LARGURA FITA *12,6 A *14 MM, D = 2" A 2 1/2" | E81: UN | F81: 8.7 | G81: 8.7 | I81: CR
A82: SINAPI-I 11928 | B82: SINAPI-I | C82: 11928 | D82: ABRACADEIRA, GALVANIZADA/ZINCADA, ROSCA SEM FIM, PARAFUSO INOX, LARGURA FITA *12,6 A *14 MM, D = 3" A 3 3/4" | E82: UN | F82: 9.97 | G82: 9.97 | I82: CR
A83: SINAPI-I 11929 | B83: SINAPI-I | C83: 11929 | D83: ABRACADEIRA, GALVANIZADA/ZINCADA, ROSCA SEM FIM, PARAFUSO INOX, LARGURA FITA *12,6 A *14 MM, D = 4" A 4 3/4" | E83: UN | F83: 15.42 | G83: 15.42 | I83: CR
A84: SINAPI-I 36801 | B84: SINAPI-I | C84: 36801 | D84: ACABAMENTO DE METAL CROMADO PARA REGISTRO PEQUENO, DE PAREDE, 1/2" OU 3/4" | E84: UN | F84: 38.95 | G84: 38.95 | I84: CR
A85: SINAPI-I 36246 | B85: SINAPI-I | C85: 36246 | D85: ACABAMENTO SIMPLES/CONVENCIONAL PARA FORRO PVC, TIPO "U" OU "C", COR BRANCA, COMPRIMENTO 6 M | E85: M | F85: 5.32 | G85: 5.32 | I85: CR
A86: SINAPI-I 37600 | B86: SINAPI-I | C86: 37600 | D86: ACESSORIO DE LIGACAO NAO ELETRICO PARA CARGAS EXPLOSIVAS, TUBO DE 6 M | E86: UN
A87: SINAPI-I 37599 | B87: SINAPI-I | C87: 37599 | D87: ACESSORIO INICIADOR NAO ELETRICO, TUBO DE 6 M, TEMPO DE RETARDO DE *160* MS | E87: UN
A88: SINAPI-I 1 | B88: SINAPI-I | C88: 1 | D88: ACETILENO - RECARGA DE GAS PARA CILINDRO (NAO INCLUI TROCA/MANUTENCAO DO CILINDRO) | E88: KG | F88: 100 | G88: 100 | I88: C
A89: SINAPI-I 3 | B89: SINAPI-I | C89: 3 | D89: ACIDO CLORIDRICO / ACIDO MURIATICO, DILUICAO 10% A 12% PARA USO EM LIMPEZA | E89: L | F89: 13.2 | G89: 13.2 | I89: CR
A90: SINAPI-I 43054 | B90: SINAPI-I | C90: 43054 | D90: ACO CA-25, 10,0 MM, OU 12,5 MM, OU 16,0 MM, OU 20,0 MM, OU 25,0 MM, VERGALHAO | E90: KG | F90: 8.58 | G90: 8.58 | I90: CR
A91: SINAPI-I 42402 | B91: SINAPI-I | C91: 42402 | D91: ACO CA-25, 16,0 MM, BARRA DE TRANSFERENCIA | E91: KG | F91: 8.2 | G91: 8.2 | I91: CR
A92: SINAPI-I 42403 | B92: SINAPI-I | C92: 42403 | D92: ACO CA-25, 20,0 MM, BARRA DE TRANSFERENCIA | E92: KG | F92: 10.52 | G92: 10.52 | I92: CR
A93: SINAPI-I 42404 | B93: SINAPI-I | C93: 42404 | D93: ACO CA-25, 25,0 MM, BARRA DE TRANSFERENCIA | E93: KG | F93: 10.46 | G93: 10.46 | I93: CR
A94: SINAPI-I 42405 | B94: SINAPI-I | C94: 42405 | D94: ACO CA-25, 32,0 MM, BARRA DE TRANSFERENCIA | E94: KG | F94: 11.14 | G94: 11.14 | I94: CR
A95: SINAPI-I 34341 | B95: SINAPI-I | C95: 34341 | D95: ACO CA-25, 32,0 MM, VERGALHAO | E95: KG | F95: 9.67 | G95: 9.67 | I95: CR
A96: SINAPI-I 43053 | B96: SINAPI-I | C96: 43053 | D96: ACO CA-25, 6,3 MM OU 8,0 MM, VERGALHAO | E96: KG | F96: 7.67 | G96: 7.67 | I96: CR
A97: SINAPI-I 43058 | B97: SINAPI-I | C97: 43058 | D97: ACO CA-50, 10,0 MM, OU 12,5 MM, OU 16,0 MM, OU 20,0 MM, DOBRADO E CORTADO | E97: KG | F97: 7.95 | G97: 7.95 | I97: CR
A98: SINAPI-I 34 | B98: SINAPI-I | C98: 34 | D98: ACO CA-50, 10,0 MM, VERGALHAO | E98: KG | F98: 7.99 | G98: 7.99 | I98: CR
A99: SINAPI-I 43055 | B99: SINAPI-I | C99: 43055 | D99: ACO CA-50, 12,5 MM OU 16,0 MM, VERGALHAO | E99: KG | F99: 6.92 | G99: 6.92 | I99: C
A100: SINAPI-I 43056 | B100: SINAPI-I | C100: 43056 | D100: ACO CA-50, 20,0 MM OU 25,0 MM, VERGALHAO | E100: KG | F100: 7.98 | G100: 7.98 | I100: CR
A101: SINAPI-I 43057 | B101: SINAPI-I | C101: 43057 | D101: ACO CA-50, 32,0 MM, VERGALHAO | E101: KG | F101: 8.77 | G101: 8.77 | I101: CR
A102: SINAPI-I 34449 | B102: SINAPI-I | C102: 34449 | D102: ACO CA-50, 6,3 MM, DOBRADO E CORTADO | E102: KG | F102: 9.37 | G102: 9.37 | I102: CR
A103: SINAPI-I 32 | B103: SINAPI-I | C103: 32 | D103: ACO CA-50, 6,3 MM, VERGALHAO | E103: KG | F103: 8.43 | G103: 8.43 | I103: CR
A104: SINAPI-I 33 | B104: SINAPI-I | C104: 33 | D104: ACO CA-50, 8,0 MM, VERGALHAO | E104: KG | F104: 8.47 | G104: 8.47 | I104: CR
A105: SINAPI-I 43061 | B105: SINAPI-I | C105: 43061 | D105: ACO CA-60, 4,2 MM OU 5,0 MM, DOBRADO E CORTADO | E105: KG | F105: 7.92 | G105: 7.92 | I105: CR
A106: =CONCATENATE($B106," ",$C106) -> SINAPI-I 43059 | B106: SINAPI-I | C106: 43059 | D106: ACO CA-60, 4,2 MM, OU 5,0 MM, OU 6,0 MM, OU 7,0 MM, VERGALHAO | E106: KG | F106: 7.56 | G106: 7.56 | I106: CR
A107: SINAPI-I 43062 | B107: SINAPI-I | C107: 43062 | D107: ACO CA-60, 6,0 MM OU 7,0 MM, DOBRADO E CORTADO | E107: KG | F107: 8.38 | G107: 8.38 | I107: CR
A108: SINAPI-I 43060 | B108: SINAPI-I | C108: 43060 | D108: ACO CA-60, 8,0 MM OU 9,5 MM, VERGALHAO | E108: KG | F108: 6.58 | G108: 6.58 | I108: CR
A109: SINAPI-I 40410 | B109: SINAPI-I | C109: 40410 | D109: ACOPLAMENTO RIGIDO EM FERRO FUNDIDO PARA SISTEMA DE TUBULACAO RANHURADA, DN 50 MM (2") | E109: UN
A110: SINAPI-I 40411 | B110: SINAPI-I | C110: 40411 | D110: ACOPLAMENTO RIGIDO EM FERRO FUNDIDO PARA SISTEMA DE TUBULACAO RANHURADA, DN 65 MM (2 1/2") | E110: UN
A111: SINAPI-I 40412 | B111: SINAPI-I | C111: 40412 | D111: ACOPLAMENTO RIGIDO EM FERRO FUNDIDO PARA SISTEMA DE TUBULACAO RANHURADA, DN 80 MM (3") | E111: UN
A112: SINAPI-I 44254 | B112: SINAPI-I | C112: 44254 | D112: ADAPTADOR CPVC, ROSCAVEL, COM FLANGES E ANEL DE VEDACAO, 15 MM, CAIXA D'AGUA PARA AGUA QUENTE | E112: UN | F112: 36.1 | G112: 36.1 | I112: CR
A113: SINAPI-I 44255 | B113: SINAPI-I | C113: 44255 | D113: ADAPTADOR CPVC, ROSCAVEL, COM FLANGES E ANEL DE VEDACAO, 22 MM, CAIXA D'AGUA PARA AGUA QUENTE | E113: UN | F113: 40.02 | G113: 40.02 | I113: CR
A114: SINAPI-I 44256 | B114: SINAPI-I | C114: 44256 | D114: ADAPTADOR CPVC, ROSCAVEL, COM FLANGES E ANEL DE VEDACAO, 28 MM, CAIXA D'AGUA PARA AGUA QUENTE | E114: UN | F114: 45.2 | G114: 45.2 | I114: CR
A115: SINAPI-I 44257 | B115: SINAPI-I | C115: 44257 | D115: ADAPTADOR CPVC, ROSCAVEL, COM FLANGES E ANEL DE VEDACAO, 35 MM, CAIXA D'AGUA PARA AGUA QUENTE | E115: UN | F115: 71.51 | G115: 71.51 | I115: CR
A116: SINAPI-I 44258 | B116: SINAPI-I | C116: 44258 | D116: ADAPTADOR CPVC, ROSCAVEL, COM FLANGES E ANEL DE VEDACAO, 42 MM, CAIXA D'AGUA PARA AGUA QUENTE | E116: UN | F116: 81.72 | G116: 81.72 | I116: CR
A117: SINAPI-I 44259 | B117: SINAPI-I | C117: 44259 | D117: ADAPTADOR CPVC, ROSCAVEL, COM FLANGES E ANEL DE VEDACAO, 54 MM, CAIXA D'AGUA PARA AGUA QUENTE | E117: UN | F117: 112.17 | G117: 112.17 | I117: CR
A118: SINAPI-I 37997 | B118: SINAPI-I | C118: 37997 | D118: ADAPTADOR CPVC, SOLDAVEL, 15 MM, PARA AGUA QUENTE | E118: UN | F118: 21.51 | G118: 21.51 | I118: CR
A119: SINAPI-I 37998 | B119: SINAPI-I | C119: 37998 | D119: ADAPTADOR CPVC, SOLDAVEL, 22 MM, PARA AGUA QUENTE | E119: UN | F119: 28.79 | G119: 28.79 | I119: CR
A120: SINAPI-I 55 | B120: SINAPI-I | C120: 55 | D120: ADAPTADOR DE COMPRESSAO EM POLIPROPILENO (PP), PARA TUBO EM PEAD, 20 MM X 1/2", PARA LIGACAO PREDIAL DE AGUA (NTS 179) | E120: UN
A121: SINAPI-I 61 | B121: SINAPI-I | C121: 61 | D121: ADAPTADOR DE COMPRESSAO EM POLIPROPILENO (PP), PARA TUBO EM PEAD, 20 MM X 3/4", PARA LIGACAO PREDIAL DE AGUA (NTS 179) | E121: UN
A122: SINAPI-I 62 | B122: SINAPI-I | C122: 62 | D122: ADAPTADOR DE COMPRESSAO EM POLIPROPILENO (PP), PARA TUBO EM PEAD, 32 MM X 1", PARA LIGACAO PREDIAL DE AGUA (NTS 179) | E122: UN
A123: SINAPI-I 10899 | B123: SINAPI-I | C123: 10899 | D123: ADAPTADOR EM LATAO, ENGATE RAPIDO 2 1/2" X ROSCA INTERNA 5 FIOS 2 1/2", PARA INSTALACAO PREDIAL DE COMBATE A INCENDIO | E123: UN | F123: 78.85 | G123: 78.85 | I123: CR
A124: SINAPI-I 10900 | B124: SINAPI-I | C124: 10900 | D124: ADAPTADOR EM LATAO, ENGATE RAPIDO1 1/2" X ROSCA INTERNA 5 FIOS 2 1/2", PARA INSTALACAO PREDIAL DE COMBATE A INCENDIO | E124: UN | F124: 61.71 | G124: 61.71 | I124: CR
A125: SINAPI-I 47 | B125: SINAPI-I | C125: 47 | D125: ADAPTADOR PVC PBA, BOLSA/ROSCA, JE, DN 100 / DE 110 MM | E125: UN | F125: 76.05 | G125: 76.05 | I125: CR
A126: SINAPI-I 48 | B126: SINAPI-I | C126: 48 | D126: ADAPTADOR PVC PBA, BOLSA/ROSCA, JE, DN 50 / DE 60 MM | E126: UN | F126: 19.84 | G126: 19.84 | I126: CR
A127: SINAPI-I 46 | B127: SINAPI-I | C127: 46 | D127: ADAPTADOR PVC PBA, BOLSA/ROSCA, JE, DN 75 / DE 85 MM | E127: UN | F127: 44.48 | G127: 44.48 | I127: CR
A128: SINAPI-I 52 | B128: SINAPI-I | C128: 52 | D128: ADAPTADOR PVC PBA, PONTA/ROSCA, JE, DN 50 / DE 60 MM | E128: UN | F128: 15.07 | G128: 15.07 | I128: CR
A129: SINAPI-I 43 | B129: SINAPI-I | C129: 43 | D129: ADAPTADOR PVC PBA, PONTA/ROSCA, JE, DN 75 / DE 85 MM | E129: UN | F129: 50.86 | G129: 50.86 | I129: CR
A130: SINAPI-I 103 | B130: SINAPI-I | C130: 103 | D130: ADAPTADOR PVC SOLDAVEL CURTO COM BOLSA E ROSCA, 110 MM X 4", PARA AGUA FRIA | E130: UN | F130: 48.22 | G130: 48.22 | I130: CR
A131: SINAPI-I 107 | B131: SINAPI-I | C131: 107 | D131: ADAPTADOR PVC SOLDAVEL CURTO COM BOLSA E ROSCA, 20 MM X 1/2", PARA AGUA FRIA | E131: UN | F131: 0.91 | G131: 0.91 | I131: CR
A132: SINAPI-I 65 | B132: SINAPI-I | C132: 65 | D132: ADAPTADOR PVC SOLDAVEL CURTO COM BOLSA E ROSCA, 25 MM X 3/4", PARA AGUA FRIA | E132: UN | F132: 0.99 | G132: 0.99 | I132: CR
A133: SINAPI-I 108 | B133: SINAPI-I | C133: 108 | D133: ADAPTADOR PVC SOLDAVEL CURTO COM BOLSA E ROSCA, 32 MM X 1", PARA AGUA FRIA | E133: UN | F133: 2 | G133: 2 | I133: CR
A134: SINAPI-I 110 | B134: SINAPI-I | C134: 110 | D134: ADAPTADOR PVC SOLDAVEL CURTO COM BOLSA E ROSCA, 40 MM X 1 1/2", PARA AGUA FRIA | E134: UN | F134: 6.94 | G134: 6.94 | I134: CR
A135: SINAPI-I 109 | B135: SINAPI-I | C135: 109 | D135: ADAPTADOR PVC SOLDAVEL CURTO COM BOLSA E ROSCA, 40 MM X 1 1/4", PARA AGUA FRIA | E135: UN | F135: 4.13 | G135: 4.13 | I135: CR
A136: SINAPI-I 111 | B136: SINAPI-I | C136: 111 | D136: ADAPTADOR PVC SOLDAVEL CURTO COM BOLSA E ROSCA, 50 MM X 1 1/4", PARA AGUA FRIA | E136: UN | F136: 9.39 | G136: 9.39 | I136: CR
A137: SINAPI-I 112 | B137: SINAPI-I | C137: 112 | D137: ADAPTADOR PVC SOLDAVEL CURTO COM BOLSA E ROSCA, 50 MM X1 1/2", PARA AGUA FRIA | E137: UN | F137: 4.97 | G137: 4.97 | I137: CR
A138: SINAPI-I 113 | B138: SINAPI-I | C138: 113 | D138: ADAPTADOR PVC SOLDAVEL CURTO COM BOLSA E ROSCA, 60 MM X 2", PARA AGUA FRIA | E138: UN | F138: 12.45 | G138: 12.45 | I138: CR
A139: SINAPI-I 104 | B139: SINAPI-I | C139: 104 | D139: ADAPTADOR PVC SOLDAVEL CURTO COM BOLSA E ROSCA, 75 MM X 2 1/2", PARA AGUA FRIA | E139: UN | F139: 21.67 | G139: 21.67 | I139: CR
A140: SINAPI-I 102 | B140: SINAPI-I | C140: 102 | D140: ADAPTADOR PVC SOLDAVEL CURTO COM BOLSA E ROSCA, 85 MM X 3", PARA AGUA FRIA | E140: UN | F140: 29.88 | G140: 29.88 | I140: CR
A141: SINAPI-I 95 | B141: SINAPI-I | C141: 95 | D141: ADAPTADOR PVC SOLDAVEL, COM FLANGE E ANEL DE VEDACAO, 20 MM X 1/2", PARA CAIXA D'AGUA | E141: UN | F141: 12.63 | G141: 12.63 | I141: CR
A142: SINAPI-I 96 | B142: SINAPI-I | C142: 96 | D142: ADAPTADOR PVC SOLDAVEL, COM FLANGE E ANEL DE VEDACAO, 25 MM X 3/4", PARA CAIXA D'AGUA | E142: UN | F142: 13.73 | G142: 13.73 | I142: CR
A143: SINAPI-I 97 | B143: SINAPI-I | C143: 97 | D143: ADAPTADOR PVC SOLDAVEL, COM FLANGE E ANEL DE VEDACAO, 32 MM X 1", PARA CAIXA D'AGUA | E143: UN | F143: 20.66 | G143: 20.66 | I143: CR
A144: SINAPI-I 98 | B144: SINAPI-I | C144: 98 | D144: ADAPTADOR PVC SOLDAVEL, COM FLANGE E ANEL DE VEDACAO, 40 MM X 1 1/4", PARA CAIXA D'AGUA | E144: UN | F144: 30.93 | G144: 30.93 | I144: CR
A145: SINAPI-I 99 | B145: SINAPI-I | C145: 99 | D145: ADAPTADOR PVC SOLDAVEL, COM FLANGE E ANEL DE VEDACAO, 50 MM X 1 1/2", PARA CAIXA D'AGUA | E145: UN | F145: 29.24 | G145: 29.24 | I145: CR
A146: SINAPI-I 60 | B146: SINAPI-I | C146: 60 | D146: ADAPTADOR PVC, COM REGISTRO, PARA PEAD, 20 MM X 3/4", PARA LIGACAO PREDIAL DE AGUA | E146: UN
A147: SINAPI-I 72 | B147: SINAPI-I | C147: 72 | D147: ADAPTADOR PVC, ROSCAVEL, COM FLANGES E ANEL DE VEDACAO, 1 1/2", PARA CAIXA D'AGUA | E147: UN | F147: 56.07 | G147: 56.07 | I147: CR
A148: SINAPI-I 71 | B148: SINAPI-I | C148: 71 | D148: ADAPTADOR PVC, ROSCAVEL, COM FLANGES E ANEL DE VEDACAO, 1", PARA CAIXA D'AGUA | E148: UN | F148: 34.63 | G148: 34.63 | I148: CR
A149: SINAPI-I 67 | B149: SINAPI-I | C149: 67 | D149: ADAPTADOR PVC, ROSCAVEL, COM FLANGES E ANEL DE VEDACAO, 1/2", PARA CAIXA D'AGUA | E149: UN | F149: 18.13 | G149: 18.13 | I149: CR
A150: SINAPI-I 73 | B150: SINAPI-I | C150: 73 | D150: ADAPTADOR PVC, ROSCAVEL, COM FLANGES E ANEL DE VEDACAO, 3/4", PARA CAIXA D'AGUA | E150: UN | F150: 17.35 | G150: 17.35 | I150: CR
A151: SINAPI-I 100 | B151: SINAPI-I | C151: 100 | D151: ADAPTADOR PVC, SOLDAVEL, COM FLANGES E ANEL DE VEDACAO, 60 MM X 2", PARA CAIXA D'AGUA | E151: UN | F151: 51.08 | G151: 51.08 | I151: CR
A152: SINAPI-I 75 | B152: SINAPI-I | C152: 75 | D152: ADAPTADOR PVC, SOLDAVEL, COM FLANGES LIVRES, 110 MM X 4", PARA CAIXA D'AGUA | E152: UN | F152: 297.8 | G152: 297.8 | I152: CR
A153: SINAPI-I 83 | B153: SINAPI-I | C153: 83 | D153: ADAPTADOR PVC, SOLDAVEL, COM FLANGES LIVRES, 75 MM X 2 1/2", PARA CAIXA D'AGUA | E153: UN | F153: 238.08 | G153: 238.08 | I153: CR
A154: SINAPI-I 74 | B154: SINAPI-I | C154: 74 | D154: ADAPTADOR PVC, SOLDAVEL, COM FLANGES LIVRES, 85 MM X 3", PARA CAIXA D'AGUA | E154: UN | F154: 340.39 | G154: 340.39 | I154: CR
A155: SINAPI-I 106 | B155: SINAPI-I | C155: 106 | D155: ADAPTADOR PVC, SOLDAVEL, LONGO, COM FLANGE LIVRE, 110 MM X 4", PARA CAIXA D'AGUA | E155: UN | F155: 430.44 | G155: 430.44 | I155: CR
A156: SINAPI-I 88 | B156: SINAPI-I | C156: 88 | D156: ADAPTADOR PVC, SOLDAVEL, LONGO, COM FLANGE LIVRE, 32 MM X 1", PARA CAIXA D'AGUA | E156: UN | F156: 12.1 | G156: 12.1 | I156: CR
A157: SINAPI-I 82 | B157: SINAPI-I | C157: 82 | D157: ADAPTADOR PVC, SOLDAVEL, LONGO, COM FLANGE LIVRE, 75 MM X 2 1/2", PARA CAIXA D'AGUA | E157: UN | F157: 226.52 | G157: 226.52 | I157: CR
A158: SINAPI-I 105 | B158: SINAPI-I | C158: 105 | D158: ADAPTADOR PVC, SOLDAVEL, LONGO, COM FLANGE LIVRE, 85 MM X 3", PARA CAIXA D'AGUA | E158: UN | F158: 320.97 | G158: 320.97 | I158: CR
A159: SINAPI-I 39719 | B159: SINAPI-I | C159: 39719 | D159: ADESIVO / COLA DE CONTATO LIQUIDO, A BASE DE RESINAS, PARA COLAGEM DE ESPUMA PARA ISOLAMENTO TERMICO FLEXIVEL | E159: L | F159: 199.15 | G159: 199.15 | I159: CR
A160: SINAPI-I 3410 | B160: SINAPI-I | C160: 3410 | D160: ADESIVO / COLA PARA EPS (ISOPOR) E OUTROS MATERIAIS | E160: KG | F160: 44.8 | G160: 44.8 | I160: CR
A161: SINAPI-I 4791 | B161: SINAPI-I | C161: 4791 | D161: ADESIVO ACRILICO DE BASE AQUOSA / COLA DE CONTATO | E161: KG | F161: 38.21 | G161: 38.21 | I161: CR
A162: SINAPI-I 157 | B162: SINAPI-I | C162: 157 | D162: ADESIVO ESTRUTURAL A BASE DE RESINA EPOXI PARA INJECAO EM TRINCAS, BICOMPONENTE, BAIXA VISCOSIDADE | E162: KG | F162: 148.83 | G162: 148.83 | I162: CR
A163: SINAPI-I 156 | B163: SINAPI-I | C163: 156 | D163: ADESIVO ESTRUTURAL A BASE DE RESINA EPOXI, BICOMPONENTE, FLUIDO | E163: KG | F163: 52.99 | G163: 52.99 | I163: CR
A164: SINAPI-I 131 | B164: SINAPI-I | C164: 131 | D164: ADESIVO ESTRUTURAL A BASE DE RESINA EPOXI, BICOMPONENTE, PASTOSO (TIXOTROPICO) | E164: KG | F164: 45.32 | G164: 45.32 | I164: CR
A165: SINAPI-I 21114 | B165: SINAPI-I | C165: 21114 | D165: ADESIVO PARA TUBOS CPVC, *75* G | E165: UN | F165: 39.26 | G165: 39.26 | I165: CR
A166: SINAPI-I 119 | B166: SINAPI-I | C166: 119 | D166: ADESIVO PLASTICO PARA PVC, BISNAGA COM 75 GR | E166: UN | F166: 9.95 | G166: 9.95 | I166: C
A167: SINAPI-I 122 | B167: SINAPI-I | C167: 122 | D167: ADESIVO PLASTICO PARA PVC, FRASCO COM *850* GR | E167: UN | F167: 76.56 | G167: 76.56 | I167: CR
A168: SINAPI-I 20080 | B168: SINAPI-I | C168: 20080 | D168: ADESIVO PLASTICO PARA PVC, FRASCO COM 175 GR | E168: UN | F168: 24.98 | G168: 24.98 | I168: CR
A169: SINAPI-I 124 | B169: SINAPI-I | C169: 124 | D169: ADITIVO ACELERADOR DE PEGA E ENDURECIMENTO PARA ARGAMASSAS E CONCRETOS, LIQUIDO E ISENTO DE CLORETOS | E169: L | F169: 17.47 | G169: 17.47 | I169: CR
A170: =CONCATENATE($B170," ",$C170) -> SINAPI-I 7334 | B170: SINAPI-I | C170: 7334 | D170: ADITIVO ADESIVO LIQUIDO PARA ARGAMASSAS DE REVESTIMENTOS CIMENTICIOS | E170: L
A171: SINAPI-I 45146 | B171: SINAPI-I | C171: 45146 | D171: ADITIVO IMPERMEABILIZANTE CRISTALIZANTE PARA CONCRETO | E171: KG | F171: 33.51 | G171: 33.51 | I171: CR
A172: SINAPI-I 123 | B172: SINAPI-I | C172: 123 | D172: ADITIVO IMPERMEABILIZANTE DE PEGA NORMAL PARA ARGAMASSAS E CONCRETOS SEM ARMACAO, LIQUIDO E ISENTO DE CLORETOS | E172: L | F172: 7.15 | G172: 7.15 | I172: C
A173: SINAPI-I 127 | B173: SINAPI-I | C173: 127 | D173: ADITIVO IMPERMEABILIZANTE DE PEGA ULTRARRAPIDA, LIQUIDO E ISENTO DE CLORETOS | E173: L | F173: 17.07 | G173: 17.07 | I173: CR
A174: SINAPI-I 133 | B174: SINAPI-I | C174: 133 | D174: ADITIVO LIQUIDO INCORPORADOR DE AR PARA CONCRETO E ARGAMASSA, LIQUIDO E ISENTO DE CLORETOS | E174: L | F174: 7.09 | G174: 7.09 | I174: CR
A175: SINAPI-I 43617 | B175: SINAPI-I | C175: 43617 | D175: ADITIVO PLASTIFICANTE E ESTABILIZADOR PARA ARGAMASSAS DE ASSENTAMENTO E REBOCO, LIQUIDO E ISENTO DE CLORETOS | E175: L | F175: 7.92 | G175: 7.92 | I175: CR
A176: SINAPI-I 132 | B176: SINAPI-I | C176: 132 | D176: ADITIVO PLASTIFICANTE RETARDADOR DE PEGA E REDUTOR DE AGUA PARA CONCRETO, LIQUIDO E ISENTO DE CLORETOS | E176: L | F176: 7.35 | G176: 7.35 | I176: CR
A177: SINAPI-I 43618 | B177: SINAPI-I | C177: 43618 | D177: ADITIVO SUPERPLASTIFICANTE DE PEGA NORMAL PARA CONCRETO, LIQUIDO E ISENTO DE CLORETOS | E177: KG | F177: 18.5 | G177: 18.5 | I177: CR
A178: SINAPI-I 37476 | B178: SINAPI-I | C178: 37476 | D178: ADUELA/ GALERIA PRE-MOLDADA DE CONCRETO ARMADO, SECAO QUADRADA INTERNA DE 1,50 X 1,50 M (L X A), MISULA DE 20 X 20 CM, C = 1,00 M, ESPESSURA MIN = 15 CM, TB-45 E FCK DO CONCRETO = 30 MPA | E178: UN | F178: 3925.05 | G178: 3925.05 | I178: CR
A179: SINAPI-I 37478 | B179: SINAPI-I | C179: 37478 | D179: ADUELA/ GALERIA PRE-MOLDADA DE CONCRETO ARMADO, SECAO RETANGULAR INTERNA DE 2,00 X 2,00 M (L X A), MISULA DE 20 X 20 CM, C = 1,00 M, ESPESSURA MIN = 15 CM, TB-45 E FCK DO CONCRETO = 30 MPA | E179: UN | F179: 4916.23 | G179: 4916.23 | I179: CR
A180: SINAPI-I 37477 | B180: SINAPI-I | C180: 37477 | D180: ADUELA/ GALERIA PRE-MOLDADA DE CONCRETO ARMADO, SECAO RETANGULAR INTERNA DE 2,50 X 2,50 M (L X A), MISULA DE 20 X 20 CM, C = 1,00 M, ESPESSURA MIN = 15 CM, TB-45 E FCK DO CONCRETO = 30 MPA | E180: UN | F180: 6660.7 | G180: 6660.7 | I180: CR
A181: SINAPI-I 37479 | B181: SINAPI-I | C181: 37479 | D181: ADUELA/ GALERIA PRE-MOLDADA DE CONCRETO ARMADO, SECAO RETANGULAR INTERNA DE 3,00 X 3,00 M (L X A), MISULA DE 20 X 20 CM, C = 1.00 M, ESPESSURA MIN = 20 CM, TB-45 E FCK DO CONCRETO = 30 MPA | E181: UN | F181: 7899.67 | G181: 7899.67 | I181: CR
A182: SINAPI-I 4319 | B182: SINAPI-I | C182: 4319 | D182: AFASTADOR PARA TELHA DE FIBROCIMENTO CANALETE 90 OU KALHETAO | E182: UN | F182: 1.37 | G182: 1.37 | I182: CR
A183: SINAPI-I 42409 | B183: SINAPI-I | C183: 42409 | D183: AGENTE DE CURA, PROTETOR DA EVAPORACAO DA AGUA DE HIDRATACAO DO CONCRETO | E183: KG | F183: 11.65 | G183: 11.65 | I183: CR
A184: SINAPI-I 40553 | B184: SINAPI-I | C184: 40553 | D184: AGREGADO RECICLADO, TIPO RACHAO RECICLADO CINZA, CLASSE A | E184: M3
A185: SINAPI-I 6114 | B185: SINAPI-I | C185: 6114 | D185: AJUDANTE DE ARMADOR (HORISTA) | E185: H | F185: 14.24 | G185: 15.85 | I185: CR
A186: SINAPI-I 40912 | B186: SINAPI-I | C186: 40912 | D186: AJUDANTE DE ARMADOR (MENSALISTA) | E186: MES | F186: 2487.31 | G186: 2771.16 | I186: CR
A187: SINAPI-I 247 | B187: SINAPI-I | C187: 247 | D187: AJUDANTE DE ELETRICISTA (HORISTA) | E187: H | F187: 14.24 | G187: 15.85 | I187: CR
A188: SINAPI-I 40919 | B188: SINAPI-I | C188: 40919 | D188: AJUDANTE DE ELETRICISTA (MENSALISTA) | E188: MES | F188: 2487.31 | G188: 2771.16 | I188: CR
A189: SINAPI-I 44499 | B189: SINAPI-I | C189: 44499 | D189: AJUDANTE DE ESTRUTURAS METALICAS (HORISTA) | E189: H | F189: 14.24 | G189: 15.85 | I189: CR
A190: SINAPI-I 40984 | B190: SINAPI-I | C190: 40984 | D190: AJUDANTE DE ESTRUTURAS METALICAS (MENSALISTA) | E190: MES | F190: 2487.31 | G190: 2771.16 | I190: CR
A191: SINAPI-I 248 | B191: SINAPI-I | C191: 248 | D191: AJUDANTE DE OPERACAO EM GERAL (HORISTA) | E191: H | F191: 14.68 | G191: 16.35 | I191: CR
A192: SINAPI-I 41086 | B192: SINAPI-I | C192: 41086 | D192: AJUDANTE DE OPERACAO EM GERAL (MENSALISTA) | E192: MES | F192: 2564.44 | G192: 2857.08 | I192: CR
A193: SINAPI-I 34466 | B193: SINAPI-I | C193: 34466 | D193: AJUDANTE DE PINTOR (HORISTA) | E193: H | F193: 14.24 | G193: 15.85 | I193: CR
A194: SINAPI-I 41083 | B194: SINAPI-I | C194: 41083 | D194: AJUDANTE DE PINTOR (MENSALISTA) | E194: MES | F194: 2487.31 | G194: 2771.16 | I194: CR
A195: SINAPI-I 252 | B195: SINAPI-I | C195: 252 | D195: AJUDANTE DE SERRALHEIRO (HORISTA) | E195: H | F195: 14.24 | G195: 15.85 | I195: CR
A196: SINAPI-I 40909 | B196: SINAPI-I | C196: 40909 | D196: AJUDANTE DE SERRALHEIRO (MENSALISTA) | E196: MES | F196: 2487.31 | G196: 2771.16 | I196: CR
A197: SINAPI-I 242 | B197: SINAPI-I | C197: 242 | D197: AJUDANTE ESPECIALIZADO (HORISTA) | E197: H | F197: 14.68 | G197: 16.35 | I197: CR
A198: SINAPI-I 41085 | B198: SINAPI-I | C198: 41085 | D198: AJUDANTE ESPECIALIZADO (MENSALISTA) | E198: MES | F198: 2564.44 | G198: 2857.08 | I198: CR
A199: SINAPI-I 427 | B199: SINAPI-I | C199: 427 | D199: ALCA PREFORMADA DE CONTRA POSTE, EM ACO GALVANIZADO, PARA CABO 3/16", COMPRIMENTO *860* MM | E199: UN | F199: 12.89 | G199: 12.89 | I199: CR
A200: SINAPI-I 417 | B200: SINAPI-I | C200: 417 | D200: ALCA PREFORMADA DE DISTRIBUICAO, EM ACO GALVANIZADO, PARA CABO DE ALUMINIO DIAMETRO 16 A 25 MM | E200: UN | F200: 6.08 | G200: 6.08 | I200: CR
A201: SINAPI-I 11273 | B201: SINAPI-I | C201: 11273 | D201: ALCA PREFORMADA DE DISTRIBUICAO, EM ACO GALVANIZADO, PARA CONDUTORES DE ALUMINIO AWG 1/0 (CAA 6/1 OU CA 7 FIOS) | E201: UN | F201: 18.86 | G201: 18.86 | I201: CR
... 4299 more rows

Sheet NOVO
B2: Novidades da Versão
A5: V2.0
B6: GERAL
C7: =IF(D7<>"","▪","") -> ▪ | D7: Alteração da extensão do arquivo “Referência mm–aaaa” de xls para xlsm.
B8: Banco
C9: =IF(D9<>"","▪","") -> ▪ | D9: Ajuste na macro [Importar SINAPI] para importar os relatórios do SINAPI no novo formato.
C10: =IF(D10<>"","▪","") -> 
A11: V2.1
B12: Banco
C13: =IF(D13<>"","▪","") -> ▪ | D13: Ajuste na macro [Importar SINAPI] para continuar importando também no antigo formato do SINAPI.
A15: V2.2
B16: Busca
C17: =IF(D17<>"","▪","") -> ▪ | D17: Correção na macro [Busca].
A19: V2.3
B20: GERAL
C21: =IF(D21<>"","▪","") -> ▪ | D21: Substituição da função própria “@CONCATENAR” pela função “=concat()” nativa do Excel, para evitar incompatibilidade com versões antigas do MS Excel.
B22: Banco
C23: =IF(D23<>"","▪","") -> ▪ | D23: Ajuste na macro [Importar SINAPI] para evitar o erro “estouro” caso a aba Banco tenha mais de 32.767 linhas.
B24: Composições
C25: =IF(D25<>"","▪","") -> ▪ | D25: Fixação do nome “Composição” na coluna FONTE nas linhas de título das composições.
C26: =IF(D26<>"","▪","") -> ▪ | D26: Alterada a cor das células com lista suspensa (coluna FONTE), para manter o padrão da Planilha Múltipla.
B27: Cotações
C28: =IF(D28<>"","▪","") -> ▪ | D28: Alterada a cor das células com lista suspensa (coluna EMPRESA e ÍNDICE RETROAÇÃO), para manter o padrão da Planilha Múltipla.
A30: V2.4
B31: Banco
C32: =IF(D32<>"","▪","") -> ▪ | D32: Correção na macro [Importar Banco Qualquer].
C33: =IF(D33<>"","▪","") -> ▪ | D33: Exibidas as colunas J:K quem apresentam os percentuais dos preços de insumos Atribuídos São Paulo (% AS).
A35: V2.5
B36: Banco
C37: =IF(D37<>"","▪","") -> ▪ | D37: Ajuste na macro [Importar Banco Qualquer] para evitar o erro “estouro” caso a aba Banco tenha mais de 32.767 linhas.
C38: =IF(D38<>"","▪","") -> ▪ | D38: Ajuste na formatação, para exibir na cor vermelha, os códigos dos insumos e composições sem custo.
B39: Composições
C40: =IF(D40<>"","▪","") -> ▪ | D40: Ajuste na formação das linhas de título das composições para ajuste automático da altura da linha.
C41: =IF(D41<>"","▪","") -> ▪ | D41: Ajuste na fórmula dos preços totais dos itens dos insumos/composições (alterada a função “truncar” para a função “arredondar”).
C42: =IF(D42<>"","▪","") -> ▪ | D42: Alterada a lista suspensa nas células na coluna FONTE para exibir apenas as fontes disponíveis na aba Banco.
C43: =IF(D43<>"","▪","") -> ▪ | D43: Inclusão de legenda das cores das células.
B44: Composições
C45: =IF(D45<>"","▪","") -> ▪ | D45: Inclusão de legenda das cores das células.
A47: V2.6
B48: Banco
C49: =IF(D49<>"","▪","") -> ▪ | D49: Inclusão de alerta de erro, na célula B4, para indicar se a extensão do arquivo está errada (diferente de "xlsm") e se o nome do arquivo está errado, tendo por referência a data base de preço do SINAPI (célula B3).
C50: =IF(D50<>"","▪","") -> ▪ | D50: Correção na macro [Limpar Banco]. Que estava ocultando a coluna H e causando erro na macro [Importar SINAPI] antigo (até 2024).
C51: =IF(D51<>"","▪","") -> ▪ | D51: Ajuste na macro [Importar SINAPI] para ocultar as colunas J:K (percentual Atribuído São Paulo) para o SINAPI antigo (até 2024).

Sheet Relatórios
A1: DADOS DOS RELATÓRIOS IMPORTADOS
A5: TIPO | B5: ENCARGOS SOCIAIS | C5: ABRANGÊNCIA | D5: LOCALIDADE | E5: VÍNCULO | F5: DATA PREÇOS | G5: DATA DE RT | H5: DATA EMISSÃO
A6: SINAPI | B6: SEM DESONERAÇÃO: 107,52% HORISTA e 64,80% MENSALISTA COM DESONERAÇÃO: 86,39% HORISTA e 47,92% MENSALISTA | C6: NACIONAL | D6: CAMPO GRANDE | E6: SINAPI FORMATO 2025 | F6: 09/2025 | H6: 10/10/2025

Sheet Busca
B1: BUSCA
C2: CONTÉM: | D2: ESCAVAÇÃO MECÂNICA
C3: NÃO CONTÉM:
C4: RELATÓRIOS:
B5: FONTE | C5: CÓDIGO | D5: DESCRIÇÃO | E5: UNIDADE | F5: DESONERADO | G5: NÃO DESONERADO | I5: ORIGEM DO PREÇO
B6: SINAPI | C6: 101102 | D6: TUBULÃO A CÉU ABERTO, DIÂMETRO DO FUSTE DE 100CM, ESCAVAÇÃO MECÂNICA, SEM ALARGAMENTO DE BASE, CONCRETO FEITO EM OBRA E LANÇADO COM JERICA (EXCLUSIVE MOBILIZAÇÃO E DESMOBILIZAÇÃO). AF_05/2020 | E6: M3 | F6: 874,61 | G6: 888,06
B7: SINAPI | C7: 101110 | D7: TUBULÃO A CÉU ABERTO, DIÂMETRO DO FUSTE DE 100CM, ESCAVAÇÃO MECÂNICA, SEM ALARGAMENTO DE BASE, CONCRETO USINADO E LANÇADO COM BOMBA OU DIRETAMENTE DO CAMINHÃO (EXCLUSIVE BOMBEAMENTO, MOBILIZAÇÃO E DESMOBILIZAÇÃO). AF_05/2020 | E7: M3 | F7: 952,35 | G7: 956,78
B8: SINAPI | C8: 101103 | D8: TUBULÃO A CÉU ABERTO, DIÂMETRO DO FUSTE DE 120CM, ESCAVAÇÃO MECÂNICA, SEM ALARGAMENTO DE BASE, CONCRETO FEITO EM OBRA E LANÇADO COM JERICA (EXCLUSIVE MOBILIZAÇÃO E DESMOBILIZAÇÃO). AF_05/2020 | E8: M3 | F8: 824,22 | G8: 836,77
B9: SINAPI | C9: 101111 | D9: TUBULÃO A CÉU ABERTO, DIÂMETRO DO FUSTE DE 120CM, ESCAVAÇÃO MECÂNICA, SEM ALARGAMENTO DE BASE, CONCRETO USINADO E LANÇADO COM BOMBA OU DIRETAMENTE DO CAMINHÃO (EXCLUSIVE BOMBEAMENTO, MOBILIZAÇÃO E DESMOBILIZAÇÃO). AF_05/2020 | E9: M3 | F9: 900,14 | G9: 904,04
B10: SINAPI | C10: 101100 | D10: TUBULÃO A CÉU ABERTO, DIÂMETRO DO FUSTE DE 70CM, ESCAVAÇÃO MECÂNICA, SEM ALARGAMENTO DE BASE, CONCRETO FEITO EM OBRA E LANÇADO COM JERICA. AF_05/2020 | E10: M3 | F10: 917,41 | G10: 933,02
B11: SINAPI | C11: 101108 | D11: TUBULÃO A CÉU ABERTO, DIÂMETRO DO FUSTE DE 70CM, ESCAVAÇÃO MECÂNICA, SEM ALARGAMENTO DE BASE, CONCRETO USINADO E LANÇADO COM BOMBA OU DIRETAMENTE DO CAMINHÃO (EXCLUSIVE BOMBEAMENTO, MOBILIZAÇÃO E DESMOBILIZAÇÃO). AF_05/2020 | E11: M3 | F11: 996,92 | G11: 1002,99
B12: SINAPI | C12: 101101 | D12: TUBULÃO A CÉU ABERTO, DIÂMETRO DO FUSTE DE 80CM, ESCAVAÇÃO MECÂNICA, SEM ALARGAMENTO DE BASE, CONCRETO FEITO EM OBRA E LANÇADO COM JERICA (EXCLUSIVE MOBILIZAÇÃO E DESMOBILIZAÇÃO). AF_05/2020 | E12: M3 | F12: 896,31 | G12: 911,16
B13: SINAPI | C13: 101109 | D13: TUBULÃO A CÉU ABERTO, DIÂMETRO DO FUSTE DE 80CM, ESCAVAÇÃO MECÂNICA, SEM ALARGAMENTO DE BASE, CONCRETO USINADO E LANÇADO COM BOMBA OU DIRETAMENTE DO CAMINHÃO (EXCLUSIVE BOMBEAMENTO, MOBILIZAÇÃO E DESMOBILIZAÇÃO). AF_05/2020 | E13: M3 | F13: 974,89 | G13: 980,36
